{"text_format":"1","workbook":"xlsx","n_sheets":2,"sheets":["SCRIPTS","LECTEUR"],"not_rendered":{"charts":0,"images":7,"macros":1,"external_links":0,"defined_names":7,"comments":2,"pivot_tables":0},"unopened":[],"bounds":{"document_bytes":16777216,"sheet_cells":100000,"rows_first":2000,"rows_last":500,"rows_between":2000,"halvings":0,"cell_chars":16384,"cell_head_chars":4096},"cells_cut":0,"cells_raw":0,"read":"whole","date_system":"1900"}

{"sheet":"SCRIPTS","index":0,"n_rows":3289,"n_cols":4,"rows_kept":3289,"cut":false,"hidden":false,"merged":[]}
[]
["Index","","Comics Scripts VO / VF"]
[1,0,"http://i19.photobucket.com/albums/b187/wgallen/Misc/Infinity01.jpg","NEKOKONEKO"]
[1,1,"… A SPEKTR, A NINJA, A CROCMAN…"]
[1,2,"… UN SPEKTR, UN NINJA, UN CROCMAN ...."]
[1,1,"AS MASTERS OF STEALTH SOMETIMES…"]
[1,2,"SONT PARFOIS CONNUS COMME DES MAÎTRES DE LA FURTIVITÉ ...."]
[1,1,"HIGHLANDER DAUGHTERS"]
[1,2,"FILLES HIGHLANDER"]
[1,1,"CREAK!"]
[1,2,"CRAQUE !"]
[1,1,"OUS ERE !!!"]
[1,2,"QUI EST LÀ !!!"]
[1,1,"… A QUICK MIND IS JUST AS IMPORTANT AS TO CAMO…"]
[1,2,"... UN ESPRIT VIF EST TOUT AUSSI IMPORTANT QU'UN CAMOUFLAGE…."]
[1,1,"MIAW!"]
[1,2,"MIAOU !"]
[1,1,"MIAW!"]
[1,2,"MIAOU !"]
[1,1,"THE CAT !"]
[1,2,"C'EST LE CHAT !"]
[2,0,"http://i19.photobucket.com/albums/b187/wgallen/Misc/NewNinija.jpg"]
[2,1,"HIYA ! I'M THE NEW NINJA RELEASE !"]
[2,2,"S'LUT ! SUIS LA NOUVELLE VERSION NINJA !"]
[2,1,"YES !!! NOW MAYBE PEOPLE WILL STOP WHINING ABOUT MY PONYTAIL !!!"]
[2,2,"OUI !!! PEUT-ÊTRE QUE MAINTENANT LES GENS S'ARRÊTERONT ENFIN DE SE PLAINDRE DE MA QUEUE DE CHEVAL !!!"]
[3,0,"http://i19.photobucket.com/albums/b187/wgallen/Misc/VanZant.jpg"]
[3,1,"PRIVATE! I NEED A DATE TO THE OFFICER BALL!"]
[3,2,"SOLDAT ! J'AI BESOIN D'UN RENCARD POUR LE BAL DES OFFICIERS !"]
[3,1,"ACK!! SORRY SIR, I ALREADY HAVE A DATE…"]
[3,2,"MINCE !! DÉSOLÉ CHEF, J'AI DÉJÀ UN RENDEZ-VOUS...."]
[3,1,"… BUT ME LITTLE SISTER ES INNA THE REGIMENT TOO !"]
[3,2,"... MAIS MA PETITE SŒUR EST AUSSI DANS LE RÉGIMENT !"]
[3,1,"JUST ONE BOX SIR ?"]
[3,2,"JUSTE UNE BOÎTE CHEF ?"]
[3,1,"AWWWW CRAP !!"]
[3,2,"HOOH MERDE !!"]
[4,0,"https://img.fireden.net/tg/thumb/1447/77/1447770968774s.jpg","ROOKI"]
[4,1,"CYBERMASK"]
[4,2,"CYBERMASK"]
[4,1,"WELL THAT'S AWKWARD"]
[4,2,"WELL THAT'S AWKWARD"]
[5,0,"http://i43.tinypic.com/21kjadz.jpg","CARLOTA KOWALSKI"]
[5,1,"FIRST TESTING OF LINKED TROOPS IN THE ARIADNAN ARMY"]
[5,2,"PREMIERS TESTS DES TROUPES LIÉES DE L'ARMÉE ARIADNAISE"]
[6,0,"http://www.critskillpeople.com/wp-content/uploads/2015/01/Corvusdecideng.jpg"]
[6,1,"HOW THEY TAKE DECISIONS IN CORVUS BELLI"]
[6,2,"PROCESSUS DE DÉCISIONS CHEZ CORVUS BELLI"]
[6,1,"FIRST BLOOD ?"]
[6,2,"PREMIER SANG ?"]
[7,0,"http://i44.tinypic.com/2e3738w.jpg"]
[7,1,"ALEPH HAS DETECTED US!"]
[7,2,"ALEPH NOUS A DÉTECTÉS !"]
[7,1,"YOU ARE IN INFERIORITY…"]
[7,2,"VOUS ÊTES EN INFÉRIORITÉ…."]
[7,1,"SURRENDER OR YOU WILL ALL DIE"]
[7,2,"RENDEZ-VOUS OU VOUS MOUREZ TOUS."]
[7,1,"SURRENDER ?! INFERIORITY ?!"]
[7,2,"REDDITION ?! INFÉRIORITÉ ?!"]
[7,1,"CHECK OUT THA FINGAH THAT YOU'LL SOON HAVE STUCK INTO YOUR BATTERY SLOT, COMPIUTAHBITCH"]
[7,2,"REGARDE BIEN CE MAJEUR QUE T'AURAS BIENTÔT COLLÉ DANS TON LOGEMENT À PILES, ORDISALOPE"]
[7,1,"IT IS DOWN !"]
[7,2,"ÇA A PLANTÉ !"]
[7,1,"MORAN IS COMPUTER MASTER BADASS!!"]
[7,2,"MORAN EST UN MAITRE DE L'INFORMATIQUE BADASS !!"]
[7,1,"YOU ARE INFERIOR"]
[7,2,"VOUS ÊTES INFÉRIEUR"]
[7,1,"DAMN MUDDAR…!"]
[7,2,"PUTAIN DE MUDDAR*… !   *INSULTE : QUELQUE CHOSE QUE VOUS NOMMEZ POUR QUELQU'UN QUE VOUS N’AIMEZ PAS"]
[7,1,"DO YOU WANT SOME STATISTICS ? WATCH:"]
[7,2,"SOUHAITEZ-VOUS QUELQUES STATISTIQUES ? REGARDEZ :"]
[7,1,"I HAVE REGISTERED A TOTAL OF 87/88,5 LOSSES CAUSED BY HORMONAL DISORDER"]
[7,2,"J’AI RECENSÉE UN TOTAL DE 87/88,5 PERTES CAUSÉES PAR DES DÉSORDRES HORMONAUX"]
[7,1,"IN ONE MONTH"]
[7,2,"EN UN MOIS"]
[7,1,"SOME FACTIONS HAVE ACHIEVED TO TAKE ADVANTAGE OF THIS MISALIGNMENT SUITABLY"]
[7,2,"CERTAINES FACTIONS ONT RÉUSSI À TIRER PARTI DE CE DÉSÉQUILIBRE DE MANIÈRE APPROPRIÉE"]
[7,1,"BUT GENERALLY, IT IS A DOUBLE EDGED WEAPON THAT YOU CANNOT HANDLE"]
[7,2,"MAIS EN GÉNÉRAL, C'EST UNE ARME À DOUBLE TRANCHANT QUE VOUS NE POUVEZ PAS MANIPULER"]
[7,1,"ARIADNA GOES IN HEAD WITH A 65% OF OWN DEATHS"]
[7,2,"ARIADNA SE MET EN TÊTE AVEC 65% DE SES PROPRES MORTS."]
[8,0,"https://carlotakowalsky.files.wordpress.com/2010/07/brandoeng.jpg"]
[8,1,"BY LUCIFER'S BEARD! WHAT IS THAT NOISE ?!"]
[8,2,"PAR LA BARBE DE LUCIFER! C'EST QUOI CE TAPAGE ?!"]
[8,1,"BRAN DO CASTRO, SIR"]
[8,2,"BRAN DO CASTRO, CHEF"]
[8,1,"SHUT UP, MONKEY!"]
[8,2,"FERME LÀ, SINGE !"]
[8,1,"SURELY HE HAS SPOTTED ENEMIES"]
[8,2,"SÛREMENT QU'IL A REPÉRÉ DES ENNEMIS"]
[8,1,"BUT LOOK WHAT HE DID !"]
[8,2,"MAIS ALLONS VOIR CE QU'IL A VU !"]
[8,1,"SO NOISY!"]
[8,2,"SI BRUYANT !"]
[8,1,"NOMADS. THEY LOSE THE INTEGRITY AND COMPOSURE REQUIRED ON THE BATTLEFIELD EASILY"]
[8,2,"LES NOMADES. ILS PERDENT FACILEMENT L'INTÉGRITÉ ET LE SANG-FROID NÉCESSAIRES SUR LE CHAMP DE BATAILLE."]
[8,1,"THEY HAVE HIT TO JUANA"]
[8,2,"ILS ONT TUÉ JEANNE !!!"]
[8,1,"PAGAAAANS !!"]
[8,2,"PAÏEEEENS !!"]
[9,0,"https://carlotakowalsky.files.wordpress.com/2010/08/alephos4eng1280.jpg"]
[9,1,"ARE WE IN A DREAM ?"]
[9,2,"SOMMES-NOUS DANS UN RÊVE ?"]
[9,1,"A SYSTEM FAILURE OF ALEPH ?"]
[9,2,"UN BUG SYSTÈME D'ALEPH ?"]
[9,1,"SOMETHING WORT"]
[9,2,"QUELQUE CHOSE DE PIRE"]
[9,1,"THIS SUCKS!!"]
[9,2,"ÇA CRAINT !!"]
[9,1,"I'M BACK WITH WARHAMMER!"]
[9,2,"JE RETOURNE AVEC WARHAMMER !"]
[10,0,"https://image.noelshack.com/fichiers/2019/11/5/1552638561-picture-3.jpg"]
[10,1,"MY HAND DIES"]
[10,2,"MA MAIN EST MORTE."]
[10,1,"I GOT BLIND"]
[10,2,"J'AI ÉTÉ AVEUGLÉ."]
[10,1,"STICKER ON THE BUTT"]
[10,2,"AUTOCOLLANT SUR LES FESSES"]
[10,1,"AND"]
[10,2,"ET ..."]
[10,1,"YEP.. WITH THAT IS ENOUGH"]
[10,2,"OUAIS... AVEC ÇA, C'EST ASSEZ"]
[10,1,"SINCE WE ARE HERE, LET'S GO TO THE POINT AND SCORE"]
[10,2,"VU QU'ON EST LÀ, ALLONS DROIT AU BUT ET MARQUONS."]
[10,1,"NO MORE ?"]
[10,2,"PAS PLUS ?"]
[10,1,"WELL"]
[10,2,"BIEN"]
[10,1,"OOK"]
[10,2,"OOK"]
[10,1,"MAXIMUS TURN"]
[10,2,"TOUR MAXIMUS"]
[10,1,"…"]
[10,2,"…"]
[10,1,"WE HAVE TO REMEMBER THAT HE'S BLIND, DAZED & TROLLED"]
[10,2,"RAPPELONS-NOUS QU'IL EST AVEUGLE, ÉTOURDI ET TROLLÉ."]
[10,1,"ALL MY PLAN WASTED !"]
[10,2,"TOUT MON PLAN EST RUINÉ !"]
[10,1,"I APPRECIATE THAT YOU LET ME TAKE A STEP (YOU BASTARD)"]
[10,2,"J'APPRÉCIE QUE TU ME LAISSES FAIRE UN PAS (ENFOIRÉ)"]
[10,1,"NOW WHAT ?! WHAT ?!"]
[10,2,"ET MAINTENANT QUOI ?! QUOI ?!"]
[11,0,"https://image.noelshack.com/fichiers/2019/11/5/1552638562-picture-5.jpg"]
[11,1,"OK GUYS, WE ALL KNOW THAT ARISTEIA WAS RELEASED RECENTLY"]
[11,2,"OK LES GARS, ON SAIT TOUS QU'ARISTEIA A ÉTÉ PUBLIÉ RÉCEMMENT"]
[11,1,"HERE COMES…"]
[11,2,"ET VOILÀ..."]
[11,1,"WE HAVE ALREADY A NEW ORIGINAL CHARACTER!"]
[11,2,"NOUS AVONS DÉJÀ UN NOUVEAU PERSONNAGE ORIGINAL !"]
[11,1,"A'IGHT, A'RIGHT! AND WHERE IS THIS NEW … ?"]
[11,2,"DACC, DACC! ET OÙ EST CE NOUVEAU... ?"]
[11,1,"SURPRISE MADAFAKA!"]
[11,2,"SURPRISE MADAFAKA* !   * FILS DE PUTE EN SLANG LANGUE GANGSTA RAP"]
[11,1,"… OH ?"]
[11,2,"... OH ?"]
[11,1,"PLACKA!!"]
[11,2,"PLACKA !!!"]
[11,1,"ZAS"]
[11,2,"ZAS"]
[11,1,"ARE YOU KIDDING ME ?!"]
[11,2,"VOUS VOUS FOUTEZ DE MOI ?!"]
[12,0,"https://image.noelshack.com/fichiers/2019/11/5/1552638562-picture-7.jpg"]
[12,1,"U'R MINE"]
[12,2,"TU ES À MOI"]
[12,1,"PLIC"]
[12,2,"NABOT"]
[12,1,"DOOOOOMFEET!"]
[12,2,"DOOOOOMFEET!"]
[13,0,"https://carlotakowalsky.files.wordpress.com/2010/08/cascudaspa.jpg"]
[13,1,"A… CHUS!"]
[13,2,"A...TCHOUM!"]
[13,1,"PST!"]
[13,2,"PST!"]
[13,1,"EVERYTHING OK ?"]
[13,2,"TOUT EST OK ?"]
[13,1,"SNIF"]
[13,2,"SNIF"]
[13,1,"YES, DON'T WORRY"]
[13,2,"OUI, NE VOUS INQUIÉTEZ PAS"]
[13,1,"REPLAY OF THE MOMENT FROM ANOTHER POINT OF VIEW"]
[13,2,"REJOUONS LA SCÈNE D'UN AUTRE POINT DE VUE"]
[13,1,"A… CHUS !"]
[13,2,"A...TCHOUM!"]
[13,1,"STEALTH"]
[13,2,"FURTIVITÉ"]
[13,1,"EVERYTHING OK ?"]
[13,2,"TOUT EST OK ?"]
[13,1,"YES, DON'T WORRY"]
[13,2,"OUI, NE VOUS INQUIÉTEZ PAS"]
[14,0,"http://i469.photobucket.com/albums/rr51/panzerkunst_2008/downside.jpg","ARMOR ART"]
[14,1,"THE DOWNSIDE OF TOO MUCH TO …"]
[14,2,"LES INCONVÉNIENTS D'UNE TROP GRANDE QUANTITÉ DE TO...."]
[14,1,"I JUST DON'T UNDERSTAND ALL THE HATERS"]
[14,2,"JE NE COMPRENDS PAS TOUS CES HÂTER."]
[14,1,"I KNOW RIGHT ? WE'RE HERE AND WETE THE HYPERPOWER GET USED TO IT"]
[14,2,"HA OUAIS ? ON EST LÀ ET ON EST L'HYPERPUISSANCE HABITUÉE À EN UTILISER."]
[14,1,"YEAH! HEMO HAS EFFUGIT!"]
[14,2,"OUAIS ! NEMO NOS EFFUGIT * ! * NO-ONE ESCAPES US / PERSONNE NE NOUS ÉCHAPPE DEVISE LATINE DU NAVAL CHASSEURS REGIMENT"]
[14,1,"PTUI! YUP"]
[14,2,"PFFEUFF ! OUAIP"]
[14,1,"WELL, LT, I GOTHA GO AMP SEE YA"]
[14,2,"C'EST ÇA, JE DOIS ALLER CAMPER. A PLUS."]
[14,1,"DAMN THOSE HEXA ARE FINE, WOTTA FUCK!"]
[14,2,"PUTAIN, CES HEXA SONT BIEN !"]
[14,1,"UH… LT, THAT WAS CORPORAL TUI ALAMOTO HE'S A CROCMAN"]
[14,2,"EUH... LUI, C'ÉTAIT LE CAPORAL TUI ALAMOTO, C'EST UN CROCMAN."]
[14,1,"YOU SWISS GUARD THINK YOU'RE SO SMART ?!"]
[14,2,"VOUS, LES GARDES SUISSES, VOUS VOUS CROYEZ MALINS !"]
[14,1,"SLICE … UURK … BZZT"]
[14,2,"COUPER .... UURK .... BZZT"]
[14,1,"I'LL HAVE YOU TRANSFERRED TO NORDKAAP SO FUST YOUR…"]
[14,2,"JE VOUS FERAI TRANSFÉRER À NORDKAAP SI VITE QUE VOTRE...."]
[14,1,"LIEUTENANT ?"]
[14,2,"LIEUTENANT ?"]
[14,1,"YEAH ?"]
[14,2,"OUAIS ?"]
[14,1,"SWEEET…"]
[14,2,"ADORABLE..."]
[14,1,"HEY LOOK, WERE IN BTB"]
[14,2,"HEY ÉCOUTEZ, NOUS SOMMES EN CORPS À CORPS"]
[15,0,"https://img.photobucket.com/albums/v294/Stranger59/nomadcomic01copy.jpg","STRANGER"]
[15,1,"BUT… THAT'S NOT FAIR !!!!"]
[15,2,"MAIS... C'EST PAS JUSTE !!!!!!!!"]
[15,1,"IT'S JUST REGULATIOINS. YOU ARE OUR DOCTOR, YOU CAN'T BE ALTERING YOUR UNIFORM!"]
[15,2,"C'EST LE RÈGLEMENT. VOUS ÊTES NOTRE MÉDECIN, VOUS NE POUVEZ PAS RETOUCHER VOTRE UNIFORME !"]
[15,1,"IT'S SLUTTY ENOUGH AS IS"]
[15,2,"C'EST DÉJÀ ASSEZ VULGAIRE COMME ÇA."]
[15,1,"SORRY, BUT AS A DOCTOR YOU HAVE DIFFERENT RULES. YOUR UNIFORM MUST BE UNALTERED!"]
[15,2,"DÉSOLÉ, MAIS EN TANT QUE MÉDECIN, VOUS AVEZ DES RÈGLES DIFFÉRENTES. VOTRE UNIFORME NE DOIT PAS ÊTRE RETOUCHÉ !"]
[15,1,"EVERYONE ELSE IS COSPLAYING 40K CHARACTERS!"]
[15,2,"TOUS LES AUTRES COSPLAYENT DES PERSONNAGES DE 40K !"]
[15,1,"WELL, IF I CAN'T ALTER THE UNIFORM…"]
[15,2,"BIEN, SI JE NE PEUX PAS RETOUCHER L'UNIFORME...."]
[15,1,"A VISIT TO THE SURGERY DISTRICT LATER …"]
[15,2,"UNE VISITE AU BLOC OPÉRATOIRE PLUS TARD..."]
[15,1,"HOW YA LIKE ME NOW, BITCHES!"]
[15,2,"ET MAINTENANT COMMENT VOUS ME TROUVEZ, LES PÉTASSES !"]
[15,1,"OUR LIVES ARE IN HER HANDS ?"]
[15,2,"NOS VIES SONT ENTRE SES MAINS ?"]
[15,1,"REMIND ME NOT TO GET INJURED. EVER."]
[15,2,"RAPPELLE-MOI DE NE PAS ME FAIRE BLESSER. JAMAIS."]
[16,0,"http://img.photobucket.com/albums/v294/Stranger59/nomadcomic02copy.jpg"]
[16,1,"NOW, WE DON'T WANT YOU TO BE OFFENDED, BUT…"]
[16,2,"ÉCOUTEZ, ON NE VOUDRAIT PAS VOUS OFFENSER, MAIS..."]
[16,1,"WILL YOU QUIT SUGARCOATING IT!"]
[16,2,"ARRÊTEZ DE L'ÉDULCORER !"]
[16,1,"WE CALLED YOU IN TODAY BECAUSE YOUR BREASTS ARE FAR TOO BIG!"]
[16,2,"ON T'A APPELÉ AUJOURD'HUI PARCE QUE TES SEINS SONT BEAUCOUP TROP GROS !"]
[16,1,"MY BREASTS, MA'AMS?"]
[16,2,"MES SEINS, M'DAME ?"]
[16,1,"YES! THEY DISTRACT YOUR FELLOW SOLDIERS AND CAN'T BE EASY TO AROUND WITH!"]
[16,2,"OUI ! ÇA DISTRAIT LES AUTRES SOLDATS ET ÇA NE DOIT PAS ÊTRE FACILE DE COURIR AVEC !"]
[16,1,"I KNOW THE ATTENTION IS NICE, BUT YOU'LL HAVE TO UNDO SOME OF YOUR AUGMENTS…"]
[16,2,"JE SAIS QUE L'ATTENTION EST AGRÉABLE, MAIS VOUS DEVREZ VOUS DÉFAIRE DE CERTAINES DE VOS AUGMENTATIONS..."]
[16,1,"WELL, SHUCKS! THESE AREN'T AUGMENTED ONE BIT, MA'AM!"]
[16,2,"BEN ZUT ! ILS N'ONT PAS ÉTÉ AUGMENTÉS D'UN IOTA, M'DAME !"]
[16,1,"TEY ARE 100% AS THAT GOD FELLOW OF YOURS MADE MADE THEM !"]
[16,2,"ILS SONT 100% TELS QUE DIEU LES A FAITS !"]
[16,1,"HECK, YA'LL COULD CHECK THEM YOURSELVES YA LIKE!"]
[16,2,"DIANTRE, MAIS VOUS POUVEZ LES VÉRIFIER PAR VOUS-MÊMES SI VOUS VOULEZ !"]
[16,1,"WE CAN FINISH THIS IN A FEW MINUTES, DEAL ?"]
[16,2,"ÇA MARCHE SI ON FINI ÇA DANS QUELQUES MINUTES ?"]
[16,1,"AGREED"]
[16,2,"D’ACCORD"]
[16,1,"MY GOD! THEY ARE SOOOO SOFT!"]
[16,2,"MON DIEU ! ILS SONT SIIIII MOELLEUX !"]
[16,1,"WHY, THAN-OWL ! MA'AM, CAN YOU PLEASE NOT PINCH!"]
[16,2,"AÏE ! M'DAME, POUVEZ-VOUS, S'IL VOUS PLAÎT, NE PAS PINCER !"]
[16,1,"WELL WHAT IF I DO THIS, INSTEAD?"]
[16,2,"BIEN ET SI JE FAIS ÇA À LA PLACE ?"]
[16,1,"OH, MA'AM, I HOPE THIS WON'T GO ON MY SERVICE RECORD!"]
[16,2,"OH, M'DAME, J'ESPÈRE QUE ÇA N'IRA PAS DANS MON DOSSIER MILITAIRE !"]
[17,0,"http://i342.photobucket.com/albums/o430/Muwampa/tira1_EN.jpg","V"]
[17,1,"DICE OF STEEL"]
[17,2,"DÉS D'ACIER"]
[17,1,"HEY, MAN! THEY JUST UPLOAED THE ONIWABAN STAT"]
[17,2,"HÉ, MEC ! ILS VIENNENT JUSTE DE METTRE À JOUR LES STATS DE L'ONIWABAN"]
[17,1,"YEAH, IT'S LIKE… BLEH"]
[17,2,"OUAIS, C'EST DU GENRE... MÉH"]
[17,1,"DON'T LIKE IT ?"]
[17,2,"TU N'AIMES PAS ?"]
[17,1,"LET'S JUST SAY EPISODE III DIDN'T LEAVE ME AS DISAPOINTED"]
[17,2,"DISONS JUSTE QUE L'ÉPISODE III NE M'A PAS LAISSÉ AUSSI DÉSAPPOINTÉ."]
[17,1,"REALLY ?"]
[17,2,"VRAIMENT ?"]
[17,1,"THERE'S NO DOUBT CORVUS BELLI, SCREWED UP THIS TIME"]
[17,2,"IL N'Y A AUCUN DOUTE QUE CORVUS BELLI A FOIRÉ CETTE FOIS."]
[17,1,"SCREWED UP? MAN, IT'S A MONOFILAMENT WELDING TO…"]
[17,2,"FOIRÉ ? MEC, C'EST UN TO QUI MANIE UNE ARME MONOFILAMENT ..."]
[17,1,"ONLY IN CLOSE COMBAT, WHERE HE'S GOT A FORTY PERCENT CHANCE OF FAILING PATHETICALLY"]
[17,2,"SEULEMENT AU CORPS À CORPS, OÙ IL A 40% DE CHANCES D'ÉCHOUER PATHÉTIQUEMENT."]
[17,1,"…. SUPERIOR INFILTRATION…"]
[17,2,"…. IL A SON INFILTRATION SUPÉRIEURE...."]
[17,1,"HUH! THAT CAN'T JUSTIFY THOSE 44 POINTS…"]
[17,2,"EUH ! ÇA NE JUSTIFIE PAS SES 44 POINTS..."]
[17,1,"THE WULVER ON THE OTHER HAND… WOW! THAT GUY CAN CHEW UP BULLETS ! AND FOR JUST 38 POINTS! GO AHEAD, COMPARE IT TO ANY HI. WHAT NOW ? IT KICK ASS!"]
[17,2,"LE WULVER D'UN AUTRE CÔTÉ... WOW ! CE TYPE PEUT CHIQUER DES BALLES ! ET POUR SEULEMENT 38 POINTS ! VAS-Y, COMPARE-LE À N'IMPORTE QUELLE HI. ALORS ? IL DÉCHIRE !"]
[17,1,"HE'S HAIRIER THAN WOLVERINE AND HIS BALLS ARE MADE OF TESSEUM!"]
[17,2,"IL EST PLUS POILU QUE WOLVERINE ET SES COUILLES SONT EN TESSEUM !"]
[17,1,"BUT THE DULL ONIWABAM WON'T BEAT ANYONE. MOST OF THE TIME HE'LL SIMPLY DIE WON'T BE OF ANY USE AGAINST A WARJACK OR A VAMPIRE, MUCH LESS A SITH LORD"]
[17,2,"MAIS CET ONIWABAM FADE NE BATTRA PERSONNE. LA PLUPART DU TEMPS, IL MOURRA TOUT SIMPLEMENT ET NE SERVIRA À RIEN CONTRE UN WARJACK OU UN VAMPIRE, ENCORE MOINS CONTRE UN SEIGNEUR SITH."]
[17,1,"LISTEN, FOR 44 POINTS YOU CAN GET THREE SWORD MASTERS WITH TWO ATTACKS THAT ALWAYS -ALWAYS- STRIKE FIRST"]
[17,2,"ÉCOUTE, POUR 44 POINTS TU PEUX AVOIR TROIS MAÎTRES ÉPÉISTES AVEC DEUX ATTAQUES QUI TOUJOURS -TOUJOURS- FRAPPERONT EN PREMIER"]
[17,1,"PLUS, HE'S A GARDENER"]
[17,2,"EN PLUS, C'EST UN JARDINIER."]
[18,0,"https://image.noelshack.com/fichiers/2019/11/5/1552638757-picture-9.jpg","GUEST RAIN VOX"]
[18,1,"WOOO!! YEAH BABY !!"]
[18,2,"WHOAAA !! OUAIS BÉBÉ !!"]
[19,0,"http://i46.photobucket.com/albums/f109/Yasbir/haqqislamwill01.jpg","ALEXANDER NEVSKY"]
[19,1,"GREETTINGS, INFIDELS! MY NAME IS OMAR BIN YUSUF IB JATAMI ABDEL-KHAMER IB FADLAN BEN MUSTAFA AHMANIDENYAB"]
[19,2,"SALUTATIONS, INFIDÈLES ! JE M'APPELLE OMAR BIN YUSUF IB JATAMI ABDEL-KHAMER IB FADLAN BEN MUSTAFA AHMANIDENYAB."]
[19,1,"FRIENDS CALL ME OMAR"]
[19,2,"MES AMIS M'APPELLE OMAR"]
[19,1,"BUT NO INFIDEL IS A FRIEND OF MINE YOU KNOW"]
[19,2,"MAIS VOUS SAVEZ, JE N'AI AUCUN AMI INFIDÈLE "]
[19,1,"MANY HAVE ASKED WHAT IS THE SECRET BEHIND OUR SOLDIER'S FORCE OF WILL, WHAT MAKES THEM UNAFRAID OF DEATH AND RELENTLESS IN THE FIGHT"]
[19,2,"NOMBREUX SE SONT DEMANDÉ QUEL EST LE SECRET DERRIÈRE LA FORCE DE VOLONTÉ DE NOS SOLDATS, QUI LES RENDENT INSENSIBLES À LA MORT ET IMPLACABLES AU COMBAT."]
[19,1,"THE SECRET, UNBELIEVERS, LIES IN OUR HARSH TRAINING, THAT ONLY THE BEST CAN FINISH…"]
[19,2,"LE SECRET, INCROYANTS, SE CACHE DANS NOTRE ENTRAÎNEMENT RIGOUREUX, QUE SEULS LES MEILLEURS PEUVENT FINIR...."]
[19,1,"ONLY THOSE ABLE TO FOCUS ON THE TARGET, NEVER LOSING SIGHT OF IT, CAN JOIN THE SNIPER FORCE"]
[19,2,"SEULS CEUX CAPABLES DE SE CONCENTRER SUR UNE CIBLE, SANS JAMAIS LA PERDRE DE VUE, PEUVENT REJOINDRE LA FORCE SNIPER."]
[19,1,"YOU'VE BEEN AIMING AT THE TARGET FOR THREE MINUTES NOW. RECRUIT! WHAT, IN THE PROPHET'S NAME, ARE YOU THINKING ?"]
[19,2,"VOUS VISEZ CETTE CIBLE DEPUIS TROIS MINUTES MAINTENANT. RECRUE ! AU NOM DU PROPHÈTE, À QUOI PENSEZ-VOUS ?"]
[19,1,"I… I'M THINKING HOW WISE THE PROPHET WAS WHEN HE SAID WOMEN SHOULD WEAR A VEIL"]
[19,2,"JE... JE PENSAIS À QUEL POINT LE PROPHÈTE FUT SAGE QUAND IL A DIT QUE LES FEMMES DEVRAIENT PORTER LE VOILE."]
[19,1,"HA! I'D BELIEVE THAT IF YOU WERE STARING AT MY FACE"]
[19,2,"AH ! J'Y CROIRAIS SI VOUS ME REGARDIEZ EN FACE."]
[19,1,"STRAIN !!"]
[19,2,"SLIIINGH !!"]
[19,1,"ALAS! THE KUM WHO LOSES THE PATH IN THE DESERT WON'T BE AMONG THE CHOSEN !"]
[19,2,"HÉLAS ! UN KUM QUI PERD LE SENTIER DANS LE DÉSERT NE POURRA PAS ÊTRE PARMI LES ÉLUS !"]
[19,1,"PIECE OF TAIIL !!! …. ARGH"]
[19,2,"QUEL CUUUL !!!!!! …. AAARGH"]
[19,1,"YASMINE, WON'T YOU SIT DOWN, IN THE NAME OF ALLAH ?!!"]
[19,2,"YASMINE, AU NOM D'ALLAH, VOULEZ-VOUS VOUS ASSEOIR ?!!"]
[19,1,"LET THEM LEARN TO FOCUS ! AND I WAS MODELLED LIKE THIS, ANY PROBLEM ?"]
[19,2,"QU'ILS APPRENNENT À SE CONCENTRER ! ET J'AI ÉTÉ FAITE COMME ÇA, C'EST UN PROBLÈME ?"]
[20,0,"http://i46.photobucket.com/albums/f109/Yasbir/haqqislamwill02.jpg"]
[20,1,"AND OUR DOCTORS ! NO WONDER THEY ARE THE BEST IN THE WHOLE SPHERE, THEY MUST OVERCOME THE HARDEST TRIALS ! FEW EVER GRADUATE… IN ONE PIECE"]
[20,2,"AINSI QUE NOS MÉDECINS ! IL N'EST PAS ÉTONNANT QU'ILS SOIENT LES MEILLEURS DANS TOUTE LA SPHÈRE, ILS DOIVENT SURMONTER LES ÉPREUVES LES PLUS ÉPROUVANTES ! PEU D'ENTRE EUX ONT OBTENU LEUR DIPLÔME... D'UN SEUL COUP."]
[20,1,"WELL… I'M GOING TO NEED A VOLUNTEER FOR THE PRACTICE OF RESCUE BREA… OH SHIT"]
[20,2,"BIEN... JE VAIS AVOIR BESOIN D'UN VOLONTAIRE POUR LA PRATIQUE DU MASSAGE CARDIA... OH MERDE !"]
[20,1,"ME !"]
[20,2,"MOI !"]
[20,1,"ME !"]
[20,2,"MOI !"]
[20,1,"I SAW HER FIRST !"]
[20,2,"JE L'AI VUE EN PREMIER !"]
[20,1,"GET AWAY, YOU SON OF A THOUSAND LEPER DOGS !"]
[20,2,"VA-T'EN, FILS D'UN MILLIER DE CHIENS LÉPREUX !"]
[20,1,"TASTE MY FIST, YOU PANO SISSY !"]
[20,2,"GOÛTE À MON POING, ESPÈCE DE MAUVIETTE PANO !"]
[20,1,"FOUCH!"]
[20,2,"FOUCH !"]
[20,1,"WHAT DID YOU CALL ME ?!!"]
[20,2,"COMMENT TU M'AS APPELÉ ?!!!!"]
[20,1,"AGH!"]
[20,2,"AGH !"]
[20,1,"THIS KIND OF THING NEVER HAPPENED TO ME IN TEN YEARS AS AN INSTRUCTOR…"]
[20,2,"EN 10 ANS CE GENRE DE CHOSE NE M'EST JAMAIS ARRIVÉ EN TANT QU'INSTRUCTEUR...."]
[20,1,"THEN IT'S, INFIDELS, WHEN THE KEY MOMENT COMES. THE SPEECH TO THE NEW MARTYRS OF ALLAH!!!"]
[20,2,"PUIS CE SERA, INFIDÈLES, QUAND LE GRAND JOUR VIENDRA. LE DISCOURS AUX NOUVEAUX MARTYRS D'ALLAH !!!!!"]
[20,1,"BROTHERS !! SHOULD YOU FALL FIGHTING FOR THE ONLY TRUE FAITH, A HUNDRED VIRGINS LIKE THIS ONE WILL AVAIT, YOU IN PARADISE !!"]
[20,2,"FRÈRES !! SI VOUS TOMBEZ EN COMBATTANT POUR LA SEULE VRAIE FOI, UNE CENTAINE DE VIERGES COMME CELLE-CI VOUS Y ATTENDRONT, POUR VOUS AU PARADIS ! !"]
[20,1,"WHO THE FUCK ARE YOU CALLING A VIRGIN, TARIQ ?"]
[20,2,"PUTAIN, QUI TU TRAITES DE VIERGE, TARIQ ?"]
[20,1,"SILENCE, WOMAN !! YOU'LL RUIN MY HARANGUE !"]
[20,2,"SILENCE, FEMME !!! TU RUINE MA HARANGUE !"]
[20,1,"NOW YOU KNOW THE SECRET OF OUR STRENGH"]
[20,2,"MAINTENANT VOUS CONNAISSEZ LE SECRET DE NOTRE FORCE"]
[20,1,"NO ATOMIC BATTERIES, NO NANO-BULLSHIT, TRADITIONAL METHODS HAVE ALWAYS WORKED"]
[20,2,"PAS DE PILES ATOMIQUES, PAS DE NANO-CONNERIES, LES MÉTHODES TRADITIONNELLES ONT TOUJOURS MARCHÉ..."]
[20,1,"THAT IS WHY YOU ARE CONDEMNED, WHY YOU CAN'T WIN, BUT CONVERSION IS ALWAYS A CHOICE"]
[20,2,"C'EST POURQUOI VOUS ÊTES CONDAMNÉS, POURQUOI VOUS NE POUVEZ GAGNER, MAIS LA CONVERSION EST TOUJOURS UN CHOIX."]
[20,1,"RIGHT, YOU CAN'T EAT ANY MORE PORK, BUT WE'RE TALKING ABOUT A HUNDRED VIRGINS ! AS THE DESERT PROVERB GOES…"]
[20,2,"C'EST VRAI, VOUS NE POUVEZ PLUS MANGER DE PORC, MAIS NOUS PARLONS D'UNE CENTAINE DE VIERGES ! ET COMME LE DIT LE PROVERBE DU DÉSERT...."]
[20,1,"A GOOD RACK CAN MAKE A DONKEY ATTACK A LION"]
[20,2,"UNE BONNE DENTITION PEUT FAIRE ATTAQUER LE LION PAR UN ÂNE"]
[20,1,"LIEUTENANT, PLEASE TELL ME WHAT I SEE IS NOT REAL !"]
[20,2,"LIEUTENANT, S'IL VOUS PLAÎT, DITES-MOI QUE CE QUE JE VOIS N'EST PAS RÉEL !"]
[20,1,"YOU MEAN THE ARAB WEARING A DJELLABA…"]
[20,2,"VOUS PARLEZ DE L'ARABE PORTANT UNE DJELLABA..."]
[20,1,"YES!"]
[20,2,"OUI !"]
[20,1,"… THAT IS COMING UNARMOURED…"]
[20,2,"... VENU SANS PROTECTION ..."]
[20,1,"YES!"]
[20,2,"OUI !"]
[20,1,"… AND IS CLIMBING UP OUR CUTTER …"]
[20,2,"... ET QUI A ESCALADÉ NOTRE CUTTER ...."]
[20,1,"YES!"]
[20,2,"OUI !"]
[20,1,"… AND HITTING IT IN THE HEAD WITH AN E/MARAT?"]
[20,2,"... ET LUI A TIRÉ DANS LA TÊTE AVEC UN E/MARAT ?"]
[20,1,"YES !"]
[20,2,"OUI !"]
[20,1,"DON'T WORRY … IT'S NOT REAL "]
[20,2,"PAS DE SOUCIS... CE N'EST PAS RÉEL. "]
[20,1,"SOB… DAWN FANATICS !"]
[20,2,"FDP... FANATIQUES DU DIMANCHE !"]
[20,1,"HAHAHAHA!!! A HUNDRED ? I'M GETTINGS A THOUSAND FOR THIS !!!"]
[20,2,"HAHAHAHA !!!!! UNE CENTAINE ? J'EN AURAI MILLE POUR ÇA !!!!!!"]
[21,0,"http://i46.photobucket.com/albums/f109/Yasbir/cadmus.jpg"]
[21,1,"ONE BIG TENTACLE, THE TONGUES... MIGHTY ALLAH! THESE ALIEN DEMONS KEEP GETTING MORE AND MORE REPULSIVE !!"]
[21,2,"UN GROS TENTACULE, DES LANGUES.... ALLAH LE TOUT-PUISSANT ! CES DÉMONS EXTRATERRESTRES DEVIENNENT DE PLUS EN PLUS RÉPUGNANTS ! !"]
[21,1,"DON'T KNOW, TARIQ… THERE'S SOMETHING ABOUT THIS ONE … HMMM…"]
[21,2,"JE SAIS PAS, TARIQ... IL Y A QUELQUE CHOSE À PROPOS DE CELUI-LÀ... HMMM…."]
[21,1,"MAYBE WE COULD TAKE IT OT THE BASE, EXPERIMENT A BIT WITH IT ? I MEAN LIKE IN A LAB AND SUCH…"]
[21,2,"PEUT-ÊTRE QUE NOUS POURRIONS L'EMMENER À LA BASE, EXPÉRIMENTER UN PEU AVEC LUI ? JE VEUX DIRE COMME DANS UN LABO ET TOUT ÇA...."]
[21,1,"SURE YOU ARE GOING TO EXPERIMENT: ISLAMIC DISCIPLINE! YOU LASCIVIOUS DESERT FOX !"]
[21,2,"CERTAIN QUE VOUS ALLEZ EXPÉRIMENTER : LA DISCIPLINE ISLAMIQUE ! ESPÈCE DE RENARDE LASCIVE DU DÉSERT !"]
[21,1,"DAWN!"]
[21,2,"MINCE !"]
[22,0,"http://i46.photobucket.com/albums/f109/Yasbir/HAQSCI1copia.jpg"]
[22,1,"HAQQISLAMIC SCIENCE"]
[22,2,"SCIENCE HAQQISLAMIQUE"]
[22,1,"MANUAL FOR INFIDELS (I)"]
[22,2,"MANUEL POUR LES INFIDÈLE (I)"]
[22,1,"AS YOU KNOW, MR TARIK, BAKUNIN IS HIGHLY INTERESTED IN SHARING THE SUPER JUMP GENETIC MANIPULATION TECHNIQUES APPLIED IN YOUR KHAWARIJS"]
[22,2,"COMME VOUS LE SAVEZ, M. TARIK, BAKOUNINE EST TRÈS INTÉRESSÉE PAR LE PARTAGE DES TECHNIQUES DE MANIPULATION GÉNÉTIQUE DU SUPER SAUT QUI SONT APPLIQUÉES SUR VOS KHAWARIJS."]
[22,1,"GENETIC MANIPULATION ? HA,HA … MR AMBASSADOR, ALLAH'S WAY IS ABOVE SUCH MODERN CRUDE METHODS"]
[22,2,"MANIPULATION GÉNÉTIQUE ? HA, HA, HA... M. L'AMBASSADEUR, LA VOIE D'ALLAH EST SUPÉRIEURE À CES MÉTHODES MODERNES GROSSIÈRES."]
[22,1,"LET ME SHOW YOU …"]
[22,2,"LAISSEZ-MOI VOUS MONTRER..."]
[22,1,"AS YOU CAN SEE WE PLACED ONE ODALISQUE AT …"]
[22,2,"COMME VOUS POUVEZ LE VOIR, NOUS AVONS PLACÉ UNE ODALISQUE SUR..."]
[22,1,"HOLY … VIRGIN … !"]
[22,2,"SAINTE... VIERGE... !"]
[22,1,"OH, NO, NEITHER OF THEM, BUT SHE IS AN ANGEL, ISN'T IT ?"]
[22,2,"OH, NON, AUCUN DES DEUX, MAIS C'EST UN ANGE, N'EST-CE PAS ?"]
[22,1,"AS I SAID, WE PLACED ONE ODALISQUE, IN BIKINI, ON A COLUMN OF 20 METERS …"]
[22,2,"COMME JE LE DISAIS, NOUS AVONS PLACÉS UNE ODALISQUE, EN BIKINI, SUR UNE COLONNE DE 20 MÈTRES ...."]
[22,1,"… AND LET THE LEGENDARY ISLAMIC VIRILITY DO THE REST !"]
[22,2,"... ET LAISSONS LA LÉGENDAIRE VIRILITÉ ISLAMIQUE FAIRE LE RESTE !"]
[22,1,"AMAZING !!!!"]
[22,2,"INCROYABLE !!!!!!!"]
[22,1,"WELL, IF YOU COULD SEE HER WITHOUT THE BIKINI… "]
[22,2,"EH BIEN, SI ON POUVAIT LA VOIR SANS LE BIKINI... "]
[22,1,"WHERE ???!!!"]
[22,2,"OÙ ???!!"]
[22,1,"I'M SORRY, THE SATELLITE LAUNCH SITE BY 'ORGANIC PROPULSION' IS A RESTRICTED AREA …"]
[22,2,"JE SUIS DÉSOLÉ, LE SITE DE LANCEMENT DE SATELLITE PAR 'PROPULSION ORGANIQUE' EST UNE ZONE RESTREINTE..."]
[22,1,"MINE, MINE, MINE, MINEEEEE … !!!"]
[22,2,"A MOI, À MOI, À MOI, À MOIIIII... !!!"]
[22,1,"19,75, RECRUIT, GOOD JUMP !"]
[22,2,"19,75, BON SAUT, RECRUE !"]
[23,0,"http://i46.photobucket.com/albums/f109/Yasbir/CASKUDILLAS.jpg"]
[23,1,"HAQQISLMAIC SCIENCE"]
[23,2,"SCIENCE HAQQISLAMIQUE"]
[23,1,"MANUAL FOR INFIDELS (II)"]
[23,2,"MANUEL POUR LES INFIDÈLES (II)"]
[23,1,"IT HAS BEEN A HARD WORK, TARIK, BUT WITH THE DNA SAMPLES OBTAINED FROM YOUR ALIEN TROPHIES COLLECTION, WE GOT WHAT YOU ASKED FOR …"]
[23,2,"ÇA A ÉTÉ UN TRAVAIL DIFFICILE, TARIK, MAIS AVEC LES ÉCHANTILLONS D'ADN OBTENUS À PARTIR DE VOTRE COLLECTION DE TROPHÉES ALIENS, NOUS AVONS EU CE QUE VOUS AVEZ DEMANDÉ..."]
[23,1,"BUT … ARE YOU SURE THIS WILL WORK ?"]
[23,2,"MAIS ... ÊTES-VOUS SÛR QUE ÇA VA MARCHER ?"]
[23,1,"THE COUNCIL OF ULEMAS ASKED THE SAME WHEN I PROPOSED TO CREATE THE ODALISQUE'S MAYAPAGE, AND NOW IS THE MOST VISITED SITE OF MAYA !!"]
[23,2,"LE CONSEIL DES OULÉMAS M'A DEMANDÉ LA MÊME CHOSE QUAND J'AI PROPOSÉ DE CRÉER LA MAYAPAGE ODALISQUE, ET MAINTENANT C'EST LE SITE LE PLUS VISITÉ DE MAYA !!"]
[23,1,"BELIEVE ME, PROFFESOR, WHEN THE ARIADNIAN SEE OUR STUFF, … !"]
[23,2,"CROYEZ-MOI, PROFESSEUR, QUAND LES ARIADNAIS VERRONT NOTRE MARCHANDISE, ... !"]
[23,1,"… WE WILL MAKE A KILLING WITH TESSEUM !!"]
[23,2,"... NOUS ALLONS FAIRE UN TABAC AVEC LE TESSEUM !!!"]
[23,1,"DAMN ! ONE ESCAPES, GIVE ME THE NUTCRACKER!"]
[23,2,"MERDE ! IL Y'EN A UN QUI S'ÉCHAPPE, DONNE-MOI LE CASSE-NOISETTES !"]
[23,1,"DAMN YOU, HUMAN! IN CASKUDA LANGUAGE"]
[23,2,"MAUDIT SOIS-TU, HUMAIN ! EN LANGAGE CASKUDA"]
[24,0,"http://i46.photobucket.com/albums/f109/Yasbir/hassassins.jpg"]
[24,1,"SALAAM, MASTER YASBIR ABD EL-KADER BEN HAHMED AHM…."]
[24,2,"SALAAM, MASTER YASBIR ABD EL-KADER BEN HAHMED AHM…."]
[24,1,"CALL ME YASBIR, LITTLE GRASSHOPPER, OR THIS'LL TAKE FOREVER !"]
[24,2,"APPELLE-MOI YASBIR, PETITE SAUTERELLE OU ÇA VA PRENDRE UNE ÉTERNITÉ !"]
[24,1,"MASTER YASBIR, I AM HERE TO ASK YOU SOMETHING …"]
[24,2,"MAÎTRE YASBIR, JE SUIS ICI POUR VOUS DEMANDER QUELQUE CHOSE..."]
[24,1,"OH, BUT OF COURSE I SHALL TAKE YOU AS MY FOURTH SPOUSE LITTLE THING !"]
[24,2,"OH, MAIS BIEN SÛR, JE TE PRENDRAI POUR QUATRIÈME ÉPOUSE, PETITE PUCE !"]
[24,1,"MY, NO, THAT'S NOT WHY I'M HERE !"]
[24,2,"MY, NON, CE N'EST PAS POUR ÇA QUE JE SUIS LÀ !"]
[24,1,"DAMMIT!!"]
[24,2,"MERDE !!!!"]
[24,1,"MASTER, OUR ARCHIVES SUGGEST THAT THE WORD HASSASSIN MEANS \"HASHISH TAKER\", AND THAT OUR ANCESTORS WERE CONDITIONED BY MEANS OF THIS DRUG. IS THAT RIGHT ?"]
[24,2,"MAÎTRE, NOS ARCHIVES SUGGÈRENT QUE LE MOT HASSASSIN SIGNIFIE \"HASHISH TAKER\", ET QUE NOS ANCÊTRES ONT ÉTÉ CONDITIONNÉS AVEC CETTE DROGUE. EST CE EXACT ?"]
[24,1,"SEE… THAT'S WHAT WE THOUGHT. AS A MATTER OF FACT. I HAD THE HONOUR OF TRAINING THE FIRST BATTALION OF OUR SECTORIAL ARMY USING THE OLD METHODS"]
[24,2,"D'ACCORD... C'EST CE QUE NOUS PENSIONS, EN FAIT, J'AI EU L'HONNEUR D'ENTRAÎNER LE PREMIER BATAILLON DE NOTRE ARMÉE SECTORIELLE EN UTILISANT CES ANCIENNES MÉTHODES."]
[24,1,"OH! AND HOW DID THAT GO MASTER ?"]
[24,2,"OH ! ET COMMENT ÇA S'EST PASSÉ, MAÎTRE ?"]
[24,1,"WELL, IN MY HUMBLE OPINION, AND JUDGING BY THE RESULTS…"]
[24,2,"EH BIEN, EN TOUTE MODESTIE IL FAUT JUGER SUR LES RÉSULTATS...."]
[24,1,"\"… THE ONES WHO WERE ON DRUGS WERE THE HISTORIAN ASSHOLES WHO MADE THAT CRAP UP!\""]
[24,2,".... TOUS SEULS QUI SE DROGUAIENT ÉTAIENT LES CONNARDS D'HISTORIENS QUI ONT INVENTÉ CES CONNERIES !"]
[24,1,"HEEEY MAAAN! I'M SOOO HIGH, I THINK I STABBED THE MASTER BY MISTAKE ! HAHAHAAAA"]
[24,2,"HEEEY MAAAN ! JE SUIS TROOOOP DÉFONCÉ, JE CROIS QUE J'AI POIGNARDÉ LE MAÎTRE PAR ERREUR ! HAHAHAHAAAAAA"]
[24,1,"SONS OF A HERPES-RIDDEN PIG !!"]
[24,2,"FILS DE PORC RONGÉ PAR L'HERPÈS !!"]
[24,1,"NUUUURSE!"]
[24,2,"INFIRMIÈÈÈÈRE !"]
[24,1,"SHIT OFF, RASTAMAN! I'M READING THE SCRIPTURES ! "]
[24,2,"VA TE FAIRE FOUTRE, RASTAMAN ! JE LIS LES ÉCRITURES ! "]
[24,1,"YEEEEAH TAKE A LOOK AT THIS, ALLAH IS WAAAY BIG !"]
[24,2,"OOOOUAIS, REGARDE ÇA, ALLAH EST VRAIIIIMENT GRAND !"]
[24,1,"MASTER! I DID IT. I DID IT ! I HAVE IMPERSONATION PLUS ! "]
[24,2,"MAÎTRE ! JE L'AI FAIT. JE L'AI FAIT ! J'AI SUPPLANTATION PLUS ! "]
[24,1,"LOOKIT ME. I'M AN AVATAAR!"]
[24,2,"REGARDEZ-MOI. JE SUIS UN AVATAR !"]
[25,0,"http://i46.photobucket.com/albums/f109/Yasbir/avatar-2.jpg"]
[25,1,"LIEUTNANT YASBIR, WE MUST ABANDON THIS PLACE! THE CA GOES FOR US AND ATTACKS WITH AN AVATAR!!!"]
[25,2,"LIEUTENANT YASBIR, NOUS DEVONS ABANDONNER LA PLACE ! L'IE FONCE SUR NOUS ET ATTAQUE AVEC UN AVATAR !!!"]
[25,1,"NO!! IT CAN'T BE TRUE !! NO, FUCK!!!!! IT'S IMPOSSIBLE!!!!"]
[25,2,"NON!! C'EST PAS VRAI !! NON, PUTAIN !!!! C'EST IMPOSSIBLE !!!!!"]
[25,1,"DO YOU SEE, MASTER ? I WAS RIGHT, BUT NOBODY PAID ANY ATTENTION !!!! EVERYBODY DESPISES ME !!!! "]
[25,2,"VOUS VOYEZ, MAÎTRE ? J'AVAIS RAISON, MAIS PERSONNE NE M'A ÉCOUTÉ !!!!!!! TOUT LE MONDE ME MÉPRISE !!!!"]
[25,1,"THEY CALL ME JUNKE !!"]
[25,2,"ON ME TRAITE DE JUNKIE !!"]
[25,1,"EVEN THEY TRIED TO COOK ME !!!"]
[25,2,"MÊME EUX ONT ESSAYÉ DE ME CUISINER !!!"]
[25,1,"AND NOW IT'S TOO LATE !!"]
[25,2,"ET MAINTENANT C'EST TROP TARD !!"]
[25,1,"GO HELL !!!! RECRUIT AB-DURAH-ZELL ORDELY !!!! TWO WHISKYS AND A HAM SANDWICH. I ABJURE RIGHT NOW… !!!"]
[25,2,"AU DIABLE !!!! ORDONNANCE AB-DURAH-ZELL !!!! DEUX WHISKYS ET UN SANDWICH AU JAMBON. J'ABJURE MAINTENANT... !!!!"]
[25,1,"I'VE HAD ENOUGH !!!"]
[25,2,"J'EN AI ASSEZ !!!!"]
[26,0,"http://i46.photobucket.com/albums/f109/Yasbir/ARIADNACUISINE.jpg"]
[26,1,"ARIADNA CUISINE"]
[26,2,"CUISINE D'ARIADNA"]
[26,1,"AAAH, THESE COOKS, COMRRRADES HAVE BEHAVED WELL !! I WANTED TO TRY THE FAMOUS TORTILLA MEROVINGIA STYLE !"]
[26,2,"AAAH, CES KOMARRRADES CUISINIERS ONT BIEN TRAVAILLÉ !!! DEPUIS LE TEMPS QUE JE VOULAIS ESSAYER LA FAMEUSE TORTILLA À LA MERRROVINGIENNE !"]
[26,1,"WITH A GOOD JUG OF VODKA, OF COURSE …"]
[26,2,"ET UNE BONNE BOUTEILLE DE VODKA, BIEN SÛR..."]
[26,1,"DIE, FUCKING PRIMATE … !!!!"]
[26,2,"MEURS, SALE PRIMAATE... !!!!"]
[26,1,"BY LENIN'S MUMMY !"]
[26,2,"PAR LA MOMIE DE LÉNINE !"]
[26,1,"NOBODY SURPRISES DIMITRY NITROTOLUENOV, SON, GRANDSON AND GREAT GRANDSON OF THE GLORIOUS SPETZNAZ OF MOTHER RUSSIA !!"]
[26,2,"PERSONNE NE SURPREND DIMITRY NITROTOLUENOV, FILS, PETIT-FILS ET ARRIÈRE-PETIT-FILS DE LA GLORIEUSE SPETZNAZ DE LA MÈRE RUSSIE ! !"]
[26,1,"SWALLOW TESSEUM, ALIEN SALMONELLA !!"]
[26,2,"GOBE DU TESSEUM, SALMONELLE ALIEN !!"]
[26,1,"NAC"]
[26,2,"COUAC"]
[27,0,"http://i46.photobucket.com/albums/f109/Yasbir/ARIADNACUISINEB.jpg"]
[27,1,"KITCHEN ?! HERE THE CAPTAIN DIMITRY !! MAY I ASK WHERE THE HELL, THE IRMANDIHOS OBTAINED THOSE EGGS FOR THE TORTILLA ??"]
[27,2,"CUISINE ?! ICI LE CAPITAINE DIMITRY !!!! PUIS-JE SAVOIR OÙ L'IRMANDIHOS A TROUVÉ CES ŒUFS POUR LA TORTILLA ?"]
[27,1,"COMRADE CAPTAIN ? I FEAR THAT … FROM THE SAME CRASHED SPACESHIP WHERE THEY BROUGHT THAT PAIR OF FROZEN CRABS"]
[27,2,"KOMARADE CAPITAINE ? JE CRAINS QUE... DU MÊME VAISSEAU SPATIAL ÉCRASÉ D'OÙ ILS ONT RAMENÉ CETTE PAIRE DE CRABES CONGELÉS"]
[27,1,"SPEAKING OF WICH…"]
[27,2,"EN PARLANT DE ÇA....."]
[27,1,"COULD YOU SEND A COUPLE OF ANTITANK UNIT … ?"]
[27,2,"POURRIEZ-VOUS ENVOYER DEUX OU TROIS UNITÉS ANTICHARS... ?"]
[27,1,"… BECAUSE ONE OF THEM JUST GOT OUT OF THE FRIDGE AND IT SEEMS BAD MOOD !!!!"]
[27,2,"... PARCE QUE L'UN D'EUX VIENT JUSTE DE SORTIR DU FRIGO ET IL SEMBLE DE MAUVAISE HUMEUR !!!"]
[27,1,"SON OF A !!!"]
[27,2,"FILS DE !!"]
[27,1,"* HERE IS GOING TO BE A MASSACRE"]
[27,2,"* ICI, IL VA Y AVOIR UN MASSACRE"]
[28,0,"http://i46.photobucket.com/albums/f109/Yasbir/irmandinhos-1.jpg"]
[28,1,"THE IRMANDINHOS CLAN"]
[28,2,"LE CLAN DES IRMANDINHOS"]
[28,1,"CHRONICLES OF THE DEEPEST ARIADNA (I)"]
[28,2,"CHRONIQUES DES PROFONDEURS D'ARIADNA (I)"]
[28,1,"HEY, XULIO, ONE THING I MUST ASK YOU…"]
[28,2,"HÉ, XULIO, J'AI UN TRUC À TE DEMANDER...."]
[28,1,"TELL ME, CELSO"]
[28,2,"VAS-Y KELSO."]
[28,1,"I SAY… MMM, YOUR CHICKENS USES GRENADELAUNCHERS ?"]
[28,2,"JE ME DEMANDAIS... MMMH, VOS POULETS UTILISENT DES LANCE-GRENADES ?"]
[28,1,"NO, CELSO WHY … ?"]
[28,2,"NON, KELSO, POURQUOI .... ?"]
[28,1,"THEN IT IS THAT YOU HAVE AGAIN \"XAVESTIS\" IN THE HENHOUSE"]
[28,2,"ALORS C'EST QUE VOUS AVEZ ENCORE DES \" XAVESTIS \" DANS LE POULAILLER"]
[28,1,"CAGO NO DEMO, WITH THESE BUGS !! "]
[28,2,"Y'EN À PLEIN LE CAGO, AVEC CES INSECTES !!"]
[28,1,"I'LL GET MY SHOTGUN !!"]
[28,2,"JE VAIS CHERCHER MON FUSIL !!!!"]
[28,1,"DIIIIIIIE HUMANNNNN !!!"]
[28,2,"MEEEEUUURT HUMAINNNNN !!!!"]
[29,0,"http://i875.photobucket.com/albums/ab318/Hartmann71/Chistes/Chiste20-C.jpg"]
[29,1,"BALA PERDIDA (CALEDONIO TERMINAL)"]
[29,2,"BALLE PERDUE (TERMINAL CALÉDONIEN)"]
[29,1,"!! LA CHICA GÜLVERRR !!"]
[29,2,"!HÉ, JEUNE WULVETTE!"]
[29,1,"! PERO QUE CRUZ LA MIA ! !PRIMERO ME LLAMAN CALLEJON SIN SALIDA GENÉTICO ..."]
[29,2,"! MAIS QUELLE CROIX ! D'ABORD, ON M'APPELLE L'IMPASSE GÉNÉTIQUE..."]
[29,1,"… Y AHORA EL FRIKAZO ÉSTE! !DEJADME VIVIR, CONO!"]
[29,2,"... ET MAINTENANT CE MONSTRE ! LAISSEZ-MOI VIVRE, BORDEL !"]
[29,1,"AY BOSTRIA, QUE YO SOLO QUERIA HACER EL JUEGO DE MINIATURAS DEFINITIVO, IY ME TEMO QUE HEMOS CREADO UN MONSTRUO!"]
[29,2,"HA BOSTRIA, EN VOULANT CRÉER LE JEU DE FIGURINES ULTIME, JE CRAINS D'AVOIR CRÉÉ UN MONSTRE !"]
[29,1,"HOMBRE INTERRUPTOR, TANTO COMO MONSTRUO… YO CREO QUE TIENE UN BUEN TRASERO"]
[29,2,"VOYONS INTERRUPTOR, CE N'EST PAS SI MONSTRUEUX... JE PENSE QU'ELLE A UN BEAU CUL."]
[29,1,"!NO LO DECIA POR ELLA!"]
[29,2,"JE NE PARLE PAS D'ELLE !"]
[29,1,"AH, DERDON, HE TENIO UN LAPSUS…"]
[29,2,"AH, DÉSOLÉ, J'AI EU UN LAPSUS...."]
[29,1,"LA CULPA ES DE LOS PADRES, QUE LAS VISTEN COMO ODALISCAS"]
[29,2,"LA FAUTE INCOMBE AUX PARENTS, QUI LES HABILLENT EN ODALISQUES"]
[30,0,"http://i46.photobucket.com/albums/f109/Yasbir/MODERATORS.jpg"]
[30,1,"NOMAD FASHION"]
[30,2,"FASHION NOMADE"]
[30,1,"MANUAL FOR INSURGENTS (I)"]
[30,2,"MANUEL POUR INSURGÉS (I)"]
[30,1,"WELL, OK !! WE ARE MODERATORS FROM BAKUNIN! WE ARE ECCENTRIC PEOPLE!! WE MAKE OURSELVES WEIRD THINGS ! I HAVE RABBIT EARS AND YOU HAVE ELF EARS !!!!"]
[30,2,"BON, OK !! ON EST DES MODÉRATEURS DE BAKOUNINE ! ON EST EXCENTRIQUES !! ON SE FAIT DES TRUCS TORDUS ! J'AI DES OREILLES DE LAPIN ET TU AS DES OREILLES D'ELFE !!!!!!!!"]
[30,1,"AND SOMETHING MORE, BABY…"]
[30,2,"ET QUELQUE CHOSE DE PLUS, BÉBÉ....."]
[30,1,"BUT … DAMN!! EVERY TIME WE GO ON PATROL WITH THOSE GUYS OF SESAME'S SECTOR…"]
[30,2,"MAIS ... MERDE !! CHAQUE FOIS QU'ON PATROUILLE AVEC CES GARS DU SECTEUR SESAME...."]
[30,1,"… IT MAKES WE WANT TO DESERT !!!..."]
[30,2,"... ÇA DONNE ENVIE DE DÉSERTER !!!…."]
[30,1,"FUCKING FREAKS !"]
[30,2,"PUTAIN DE MONSTRES !"]
[30,1,"COOKIEEEES !!!!"]
[30,2,"COOKIEEEES !!!!"]
[30,1,"AND NOW BUDDIES, I'M GOING TO SHOW YOU THE DIFFERENCE BETWEEN \"DEAD\" AND \"ALIVE\" I'M ALIVE …"]
[30,2,"ET MAINTENANT, LES COPAINS, JE VAIS VOUS MONTRER LA DIFFÉRENCE ENTRE \"MORT\" ET \"VIVANT\", JE SUIS VIVANT...."]
[30,1,"AND YOU ARE DEAD !!! BWAHAHAHAA-HAAAAAH !!!!"]
[30,2,"ET VOUS ÊTES MORT !!!!!! BWAHAHAHAHAHAA-HAAAAAAAH !!!!!!!!"]
[31,0,"http://i46.photobucket.com/albums/f109/Yasbir/irmandinhos2.jpg"]
[31,1,"THE IRMANDINHOS CLAN "]
[31,2,"LE CLAN DES IRMANDINHOS"]
[31,1,"CHRONICLES OF THE DEEPEST ARIADNA (II)"]
[31,2,"CHRONICLES DES PROFONDEURS D'ARIADNA (II)"]
[31,1,"HIIII, MAN ! MMM, XULIO, I WAS TOLD THAT THE \"JUMANSFER\" BOOK IS READY, WHAT DO YOU THINK ?"]
[31,2,"LUUUUT, MEC ! MMMH, XULIO, J'AI APPRIS QUE LE LIVRE \"JUMANSSEFER\" ÉTAIT PRÊT, QU'EN PENSES-TU ?"]
[31,1,"WELL… DISAPPOINTING, CELSO, VERY DISAPPOINTING"]
[31,2,"EH BIEN... C'EST DÉCEVANT, KELSO, TRÈS DÉCEVANT."]
[31,1,"COOOME ON ! AND SO ??"]
[31,2,"HO ALLEEEZ ! ET DONC ??"]
[31,1,"OH, I THOUGHT TAHT \"LINK\" MEANS ONE THING … AND THAT WAS NOT !"]
[31,2,"ET BIEN, JE PENSAIS QUE \"LIÉE\" AVAIT UN SENS... QU'IL N'AVAIT PAS !"]
[31,1,"… YOU ! … YOU'LL LINK WITH THE GOATS, ASSHOLE !!!"]
[31,2,"... TOI ! ... TU TE LIERAS AUX CHÈVRES, CONNARD !!!"]
[31,1,"HORNY DOG !!!"]
[31,2,"GROS CHIEN !!!"]
[31,1,"HOGNY DOG ? WHO CALLS ME ?"]
[31,2,"GNOS CHIEN ? QUI M'APPELLE ?"]
[31,1,"OH LA LAAA, TGHE CALEDONIAN VOLUNTEER !!"]
[31,2,"OH LA LAAAA, LA VOLONTAIRE CALÉDONIENNE !!"]
[31,1,"I WILL SEE IF SHE WANTS TO MAKE A \"FIRETEAM\"…"]
[31,2,"J'IRAIS VOIR SI ELLE VEUT FAIRE UNE \" FIRETEAM \"..."]
[32,0,"http://i46.photobucket.com/albums/f109/Yasbir/Infinity/Cosacos02.jpg"]
[32,1,"HOWEVER THE HALF OF ALL CANNON WILL LOAD NON-LETHAL AMMUNITION IT IS IMPERATIVE TO CAPTURE ALIVE THE LEADER OF THE SHASVASTII COMBAT GROUP AND THEN BE HELD FOR QUESTIONING"]
[32,2,"CEPENDANT LA MOITIÉ DES CANONS CHARGERA DES MUNITIONS NON LÉTALES, IL EST IMPÉRATIF DE CAPTURER VIVANT LE CHEF DU GROUPE DE COMBAT SHASVASTII, POUR POUVOIR LE METTRE EN INTERROGATOIRE."]
[32,1,"THAT IS NOT FAIR, HO NO !"]
[32,2,"HO NON, C'EST PAS JUSTE !"]
[32,1,"OUR EXPERTS EXPECT TO GET ACCURATE INFORMATION ABOUT THE SECRET BASE OF THIS PETTY BOURGEOIS ALIEN SCUM INFILTRATED IN OUR TERRITORY"]
[32,2,"NOS EXPERTS ESPÈRENT OBTENIR DES INFORMATIONS PRÉCISES SUR LA BASE SECRÈTE DE CETTE RACAILLE DE PETITS BOURGEOIS ALIEN, INFILTRÉE SUR NOTRE TERRITOIRE."]
[32,1,"!AY QUE ME DA!"]
[32,2,"JE NE PEUX PAS LE CROIRE !"]
[33,0,"http://i46.photobucket.com/albums/f109/Yasbir/Infinity/Cosacos03.jpg"]
[33,1,"ONCE WE HAVE THE COORDINATES, WE WILL LAUNCH A MASSIVE ATTACK WITH ARTILLERY SUPPORT. WE WILL FRY THEM WITHOUT MERC…EERMMMM… ???!!!!!!!!!?"]
[33,2,"UNE FOIS QUE NOUS AURONS LES COORDONNÉES, NOUS LANCERONS UNE ATTAQUE MASSIVE AVEC UN SOUTIEN D'ARTILLERIE. ON LES FERA FRIRE SANS MERC.…HEERMMMMMM... ?????!!!!!!!!!!!!!??"]
[33,1,"YEAH! IT'LL BE EASY!"]
[33,2,"OUAIS ! ÇA SERA FACILE !"]
[33,1,"FUNNY VASSILILY VERY FUNNY!! STOP JOKING AND LET'S DO 1500 PUSH UPS !!!!"]
[33,2,"MARRANT VASSILLY TRÈS MARRANT !!! ARRÊTE DE RIRE ET VA FAIRE 1500 POMPES !!!!!!"]
[33,1,"MPFFF!! OH LIEUTNANT, I … THIS MISSION  EGG ME ON !!! MFFF … !"]
[33,2,"MPFFF !!! HUMM LIOUTENANT, JE... OUI AVEC CETTE MISSION NOUS DEVONS MARCHER SUR OEU... !!!!!! MFFF ... ! *JEU DE MOTS ANGLAIS AVEC EGG = ŒUF, DÉSUET EN FRANÇAIS"]
[33,1,"2500!!! RIGHT NOW !!"]
[33,2,"2500 !!! TOUT DE SUITE !!!"]
[34,0,"http://i46.photobucket.com/albums/f109/Yasbir/Chiste17-Aeng.jpg"]
[34,1,"FIDAY WISDOM"]
[34,2,"SAGESSE DE FIDAY"]
[34,1,"MANUAL FOR INFIDELS (III)"]
[34,2,"MANUEL POUR LES INFIDELS (III)"]
[34,1,"BOURAK, HAQQISLAMITE TAVERN. (ONLY JUICES AND TEAS) 11:15"]
[34,2,"BOURAK, TAVERNE HAQQISLAMITE (UNIQUEMENT DES JUS DE FRUIT ET DES THÉS) 11H15"]
[34,1,"UAAAUHHH! LOOK, MASTER YASBIR, THE NEW BOX GHULAM GIRL, WHAT A HOTTIE !!!!"]
[34,2,"UAAAAUHHHH ! REGARDEZ MAÎTRE YASBIR, LA FILLE GHULAM DE LA NOUVELLE BOÎTE, QUEL CANON !!!!!!!!"]
[34,1,"OH YES, MY LITTLE GRASSHOPPER!! ALLAH, THE INFIDELS SCULPT THEM BETTER DAY BY DAY!!! AND SHE LOOKS SO LONELY…"]
[34,2,"OH OUI, MA PETITE SAUTERELLE !! PAR ALLAH, LES INFIDÈLES LES SCULPTENT MIEUX JOUR APRÈS JOUR !!!! ET ELLE A L'AIR SI SEULE...."]
[34,1,"YOU ONLY WILL SEE HER IN HAQQISLAM ENLIST TODAY!!"]
[34,2,"VOUS NE LA VERREZ QUE DANS L'ARMÉE D'HAQQISLAM, ALORS ENRÔLEZ VOUS DÈS AUJOURD'HUI !!"]
[34,1,"WELL !! AS OFFICIAL INSTRUCTOR IS MY DUTY TO GIVE YOU A COUPLE OF LESSONS ON HOW TO WOO THE DAUGHTERS OF THE DESERT, LOOK AN AXPERT, CADET !!"]
[34,2,"BIEN !! EN TANT QU'INSTRUCTEUR ATTITRÉ, JE ME DOIS DE VOUS DONNER QUELQUES LEÇONS SUR LA FAÇON DE COURTISER LES FILLES DU DÉSERT, REGARDEZ FAIRE UN EXPERT, CADET !!"]
[34,1,"EUHHH ?!!!! W... WHAT ? NO, NO, SIR, I COULD GO !!!! I MUST SACRIFICE FOR THE CAUSE, I WILL…"]
[34,2,"EUHHHH ? !!!!!!!! QUE... QUOI ? NON, NON, NON, MONSIEUR, JE PEUX Y ALLER !!!!!!!! JE DEVRAI ME SACRIFIER POUR LA CAUSE, JE POURRAI...."]
[34,1,"… HIERARCHY IS BULLSHIT…"]
[34,2,"... LA HIÉRARCHIE C'EST DE LA CONNERIE…."]
[34,1,"I CAN'T BELIEVE IT !!! WHY DO THE MOST BEAUTIFUL OF THE ODALISQUES WEAR THE GHULAM UNIFORM !?"]
[34,2,"JE NE PEUX PAS LE CROIRE !!!!!! POURQUOI LA PLUS BELLE DES ODALISQUES PORTE-T-ELLE L'UNIFORME GHULAM ?"]
[34,1,"EXCUSE ME, SIR … ? "]
[34,2,"EXCUSEZ-MOI, MONSIEUR … ?"]
[34,1,"LIOUTENIANT YASBIR, MASTER OF FIDAYS"]
[34,2,"LIOUTINANT YASBIR, MAITRE DES FIDAYS"]
[34,1,"AND I THINK THAT THESE CLOTHES ARE UNWORTHY OF YOUR RADIANT BEAUTY !!"]
[34,2,"ET JE PENSE QUE CES VÊTEMENTS SONT INDIGNES DE VOTRE BEAUTÉ RAYONNANTE !!!"]
[35,0,"http://i46.photobucket.com/albums/f109/Yasbir/Chiste17-B.jpg"]
[35,1,"OH, THANKS, BUT … DO YOU REALLY THINK I COULD HAVE A CHANCE AS ODALISQUE ? I'M NOT SURE"]
[35,2,"OH, MERCI, MAIS... PENSEZ-VOUS VRAIMENT QUE JE POURRAIS AVOIR UNE CHANCE COMME ODALISQUE ? JE N'EN SUIS PAS SÛR"]
[35,1,"SURE! YOU ARE TALKING TO A VETERAN OFFICER WITH EXPERIENCE, AND INFLUENCIAL, HUMM… ACTUALLY … MAYBE YOU COULD COME TONIGHT TO MY ROOM TO ASSES YOUR SKILLS AND …"]
[35,2,"CERTAINEMENT ! VOUS PARLEZ À UN OFFICIER CHEVRONNÉ QUI A DE L'EXPÉRIENCE ET DE L'INFLUENCE, HUMM... EN FAIT... PEUT-ÊTRE POURRIEZ-VOUS VENIR CE SOIR DANS MA CHAMBRE POUR ÉVALUER VOS COMPÉTENCES ET..."]
[35,1,"I'M AFRAID THERE COULD BE A PROBLEM SIR"]
[35,2,"J'AI PEUR QU'IL N'Y AIT UN PROBLÈME, MONSIEUR."]
[35,1,"SAY NO MORE! YOU HAVE A FIANCE, DON'T WORRY, IT DOESN'T MATTER, MY SPECIALTY IS MAKING IT LOOK LIKE AN ACCIDENT, JUR, JUR…"]
[35,2,"N'EN DITES PAS PLUS ! VOUS AVEZ UN FIANCÉ, NE VOUS INQUIÉTEZ PAS, ÇA N'A PAS D'IMPORTANCE, MA SPÉCIALITÉ EST DE FAIRE PASSER ÇA POUR UN ACCIDENT, JURÉ, JURÉ..."]
[35,1,"OH THAT IS PRECISELY THE PROBLEM…"]
[35,2,"OH C'EST PRÉCISÉMENT ÇA LE PROBLÈME...."]
[35,1,"WE HAVE THE SAME SPECIALTY !!"]
[35,2,"NOUS AVONS LA MÊME SPÉCIALITÉ !!!"]
[35,1,"BLZZT? 2+2= AW CRAP !!!!"]
[35,2,"BLZZT ? 2+2= AW MERDE !!!!!!!!"]
[36,0,"http://i46.photobucket.com/albums/f109/Yasbir/Chiste17-C.jpg"]
[36,1,"SO … AGAIN \"WITH MANOUVERS\" ISN'T IT ? SATYR, APOSTATE WITHOUT GOD !! LECHER, NOBODY CAN STOP YOU !!"]
[36,2,"ALORS.... C'EST TOUJOURS \"DES DÉMONSTRATIONS\" N'EST-CE PAS ? SATYRE, APOSTAT SANS DIEU ! OBSÉDÉ, RIEN NE T'ARRÊTE !"]
[36,1,"EUH… TASHMINA, MY DEAR WIFE WHAT A NICE SURPRISE …"]
[36,2,"EUH… TASHMINA, MA CHÈRE FEMME QUELLE BONNE SURPRISE …"]
[36,1,"EHHHHHHH … I LOVE YOUR CAMOUFLAGE WITH SHORT HAIR ??"]
[36,2,"EUHHHHHH... J'ADORE TON CAMOUFLAGE AVEC CHEVEUX COURTS ??"]
[36,1,"HOW SWEET !! … "]
[36,2,"COMME C'EST MIGNON !! … "]
[36,1,"… JUST THIS ONCE, I WILL GIVE YOU 20 SECONDS ADVANTAGE"]
[36,2,"... JUSTE POUR CETTE FOIS, JE TE DONNERAI 20 SECONDES D'AVANCE."]
[36,1,"OUCH !"]
[36,2,"OUCH !"]
[36,1,"… FIVE, FOUR, THREE…"]
[36,2,"… CINQ, QUATRE, TROIS…"]
[36,1,"… AND HERE ARE TWO GREAT LESSONS ON WOMEN APPRENTICE : NEVER TAKE AS A WIFE A FIDAY ASSASSIN !"]
[36,2,"... ET VOICI DEUX GRANDES LEÇONS SUR LES FEMMES, APPRENTIE : NE JAMAIS PRENDRE POUR ÉPOUSE UNE ASSASSIN FIDAY !"]
[36,1,"GOT IT ! AND THE SECOND ONE ?"]
[36,2,"COMPRIS ! ET LA SECONDE ?"]
[36,1,"YOU JUST CAN'T MISS SUCH A PIECE OF ASS !! EVEN IF SHE IS A FIDAY ASSASSIN !!"]
[36,2,"TU NE PEUX PAS RATER UN TEL PÉTARD ! !!! MÊME SI C'EST UNE ASSASSIN FIDAY !!"]
[36,1,"WHAT A DILEMMA MASTER !"]
[36,2,"QUEL DILEMME MAITRE !"]
[36,1,"I'M TELLING YOU *"]
[36,2,"JE NE VOUS LE FAIS PAS DIRE *"]
[36,1,"* CURRENTLY, THIS LOGIC PROBLEM IS STUDIED AT THE UNIVERSITY OF MEDINA AS \"THE YASBIR PARADOX\""]
[36,2,"* ACTUELLEMENT, CE PROBLÈME DE LOGIQUE EST ÉTUDIÉ À L'UNIVERSITÉ DE MEDINA EN TANT QUE \"PARADOXE DE YASBIR\"."]
[37,0,"http://i46.photobucket.com/albums/f109/Yasbir/Chiste19copia.jpg"]
[37,1,"CLASH OF THE TITANS "]
[37,2,"CLASH DES TITANS "]
[37,1,"ALEPH IS YOUR FIRIEND (I)"]
[37,2,"ALEPH EST VOTRE AMI (I)"]
[37,1,"LOOK, AUGIAS, MY BROTHER ! THE GREAT ACHILLES LAUNCHES A CHARGE AGAINST THE VANGUARD OF PANOCEANIA AND ITS LEADER ISN'T THAT RECKLESS ?"]
[37,2,"REGARDE, AUGIAS, MON FRÈRE ! LE GRAND ACHILLE LANCE UNE CHARGE CONTRE L'AVANT-GARDE DE LA PANOCÉANIE ET SON CHEF, N'EST-CE PAS IMPRUDENT ?"]
[37,1,"HA! RECKLESS IS THE FOOL THAT STAND IN HIS WAY !!"]
[37,2,"HA HA ! LE FOU EST L'INSOUCIANT QUI SE MET À TRAVERS SON CHEMIN !!"]
[37,1,"BEFORE THESE POOR SEMI-EVOLVED APES REALIZE IT, THEIR LIVES WILL BE NO MORE THAN A PATHETIC MEMORY !"]
[37,2,"AVANT QUE CES PAUVRES SINGES SEMI-ÉVOLUÉS NE LE RÉALISENT, LEURS VIES NE SERONT PLUS QU'UN SOUVENIR PATHÉTIQUE !"]
[37,1,"NOTHING SURVIVES THE RAGE OF OUR LEADER !!"]
[37,2,"RIEN NE SURVIT À LA RAGE DE NOTRE CHEF !!"]
[37,1,"BECAUSE HE IS THE WORST NIGHTMARE OF THE ENEMY CUBED !!!!"]
[37,2,"CAR IL EST LE PIRE CAUCHEMAR DE L'ENNEMI ENCUBÉ !!"]
[37,1,"THE GOD OF WAR REINCARNATED"]
[37,2,"LE DIEU DE LA GUERRE RÉINCARNÉ"]
[37,1,"A MASS DESTRUCTION CYCLONE !!"]
[37,2,"UN CYCLONE DE DESTRUCTION MASSIF !!"]
[37,1,"THE DEVASTATING NEMESIS THAT DESTROY ALL IN THE NAME OF ALEPH !!!!"]
[37,2,"UN NÉMÉSIS DÉVASTATEUR QUI DÉTRUIT TOUT AU NOM D'ALEPH !!!!"]
[37,1,"HE IS … !!!"]
[37,2,"C'EST UN … !!!"]
[37,1,"A PERFECT ASSHOLE !!!"]
[37,2,"PARFAIT TROUC DU CUL !!!"]
[37,1,"HELL YEAH !"]
[37,2,"HA OUAIS PUTAIN !"]
[37,1,"WONDERFULL ! MMMMH, SAINT JOAN OF ARC … OH YES, THIS IS A REAL RECREATION … FOR MY EEYES !!!"]
[37,2,"\"MAGNIFIQUE ! MMMMH, SAINTE JEANNE D'ARC... OH OUI, C'EST UNE VRAIE RÉCRÉATION*... POUR MES YEEEUX !!!!!\n* JEU DE MOTS ANGLAIS ENTRE RECRÉATION ET RÉCRÉATION \""]
[37,1,"BABY IF YOU WANNA BE ONLY JOAN INSTEAD OF \"SAINT\" THIS IS YOUR CHANCE !"]
[37,2,"BÉBÉ SI ÇA TE DIS D'ÊTRE SEULEMENT ÊTRE UNE JEANNE AU LIEU D'UNE \"SAINTE\" C'EST TA CHANCE !"]
[37,1,"OH LORD GIVE ME PATIENCE … !"]
[37,2,"OH SEIGNEUR, DONNEZ MOI LA PATIENCE … !"]
[37,1,"YOUR PRAYERS ARE FUTILE, SWEETHEART NO FEMALE RESISTS MY APOLLO-LIKE FIGURE AND MY \"GOLDEN PARTHENON\" HIGHLIGHTED HAIR !!!"]
[37,2,"TES PRIÈRES SONT VAINES, MA CHÉRIE, AUCUNE FEMELLE NE RÉSISTE À MA SILHOUETTE APOLLOÏDE ET À MA COIFFURE \"PARTHÉNON DORÉE\" ILLUMINÉE !!!"]
[37,1,"… RIGHT NOW !!"]
[37,2,"... MAINTENANT !!"]
[37,1,"BLOOONDE !!"]
[37,2,"BLOOONDE !!"]
[38,0,"http://i46.photobucket.com/albums/f109/Yasbir/bestinlife.jpg"]
[38,1,"GREETINGS, MAYANAUTS ! THIS IS \"SPHERE TODAY\" PRESENTING A POLL OF THE VARIOUS WARRING FACTIONS IN INFINITY"]
[38,2,"SALUTATIONS, MAYANAUTES ! C'EST \" SPHÈRE TODAY \", NOUS ALLONS PRÉSENTER LES RÉSULTATS D'UN SONDAGE AUPRÈS DE DIFFÉRENTES FACTIONS RIVALES DANS INFINITY..."]
[38,1,"OUR VIEWERS ARE INTERESTED IN THEIR MOTIVATIONS AND IDIOSYNCRASIES, SO WE'VE DONE THE BIG QUESTION"]
[38,2,"NOS TÉLÉSPECTATEURS ÉTANT INTÉRESSÉS PAR LEURS MOTIVATIONS ET LEURS TEMPÉRAMENTS, NOUS AVONS DONC POSÉ LA GRANDE QUESTION EXISTENTIELLE"]
[38,1,"WHAT IS BEST IN LIFE ?"]
[38,2,"QU'EST-CE QUI EST LE MIEUX DANS LA VIE ?"]
[38,1,"HIGHLANDER RIFLE (ARIADNA)"]
[38,2,"FUSILLIER HIGHLANDER (ARIADNA)"]
[38,1,"TO CRUSH YOUR ENNEMIES !"]
[38,2,"ÉCRASER SES ENNEMIS !"]
[38,1,"SEE THEM DRIVEN BEFORE YOU !!!!"]
[38,2,"LES VOIR ROULER DEVANT SOI !!!!"]
[38,1,"AND TO HEAR THE LAMENTATION OF THEIR WOMEN !!!!!"]
[38,2,"ET ENTENDRE LES LAMENTATIONS DE LEURS FEMMES !!!!!"]
[38,1,"WOMENS ? WGHERE ????"]
[38,2,"DES FEMMES ? O... OÙ ÇA ???"]
[38,1,"MODERATOR (NOMADS)"]
[38,2,"MODÉRATEUR (NOMADES)"]
[38,1,"BUEHHHH… BLUE PILLSSSS ! AYEAHHHH … !!!"]
[38,2,"BUEHHHHHHH.... LES PILULES BLEUES ! OUAIHHHHH ..."]
[38,1,"… OR RED PILLS, I'M NOT SUUUUUURE I'M TRASCENDING MAAAATE …. !!"]
[38,2,"... OU LES PILULES ROUGES, JE SUIS PAS SUUUUUURE, JE SUIS EN PLEIN TRIP, PAAAARTNAIRE ...... ! !"]
[38,1,"FUCK YOU, KID YOU DON'T HAVE NO IDEA !"]
[38,2,"DÉGAGE, GAMIN, T'EN N'A AUCUNE IDÉE !"]
[38,1,"COOOOKIEEEEESS !!"]
[38,2,"COOOOKIEEEEESS !!"]
[38,1,"CHUNDA CHUNDA CHUNDA CHUNDA"]
[38,2,"GERBE GERBE GERBE GERBE"]
[38,1,"MAYA, UNDOUBTEDLY, MY FRIEND"]
[38,2,"SANS AUCUN DOUTE, MAYA, MON AMI"]
[38,1,"THE MAYANET IS THE GREATEST ADVANCEMENT OF HUMANITY AND UNIVERSAL DREAM ALL THE KNOWLEDGE THE ART, AVAILABLE TO THE PUBLIC WITH A SINGLE CLICK HOW WONDERFUL !"]
[38,2,"LE MAYANET EST LE PLUS GRAND PROGRÈS DE L'HUMANITÉ ET UN RÊVE UNIVERSEL, LA CONNAISSANCE, L'ART, ACCESSIBLE AU PUBLIC EN UN SEUL CLIC, QUELLE MERVEILLE !"]
[38,1,"OH YES I SEE JUST LOOK AT YOUR RECENT SEARCHES "]
[38,2,"AH OUI, JE VOIS ÇA... JE SUIS SUR VOTRE HISTORIQUE DE RECHERCHES "]
[38,1,"\"WILD WILD ODALISQUES\""]
[38,2,"WILD WILD ODALISQUES"]
[38,1,"\"CALEDONIAN GIRL VOLUNTEER FOR EVERYTHING\""]
[38,2," UNE VOLONTAIRE CALÉDONIENNE PRÊTE À TOUT"]
[38,1,"\"MORAT'S WEAPON OF ASS DESTRUCTION\" !!!!"]
[38,2,"MORAT LE PLUS DUR EST DERRIÈRE TOI !!!!"]
[38,1,"\"IF I AM NOT TARIK MANSURI, WHAT DO I DO WITH THIS BIG GUN ?\""]
[38,2,"\"SI JE NE SUIS PAS TARIK MANSURI, QUE PUIS-JE FAIRE AVEC CE GROS FLINGUE ?\""]
[38,1,"AHEM… PURE QUANTUM PHYSICS !!"]
[38,2,"AHEM.... EFFECTIVEMENT DE LA PHYSIQUE QUANTIQUE PURE !!"]
[38,1,"TO BE CONTINUED…"]
[38,2,"À SUIVRE....."]
[39,0,"http://i46.photobucket.com/albums/f109/Yasbir/BESTINLIFE2.jpg"]
[39,1,"GREETINGS, MAYANAUTS !! AS WE PROMISED, WE OFFER THE SECOND PART OF THE PROGRAM IN WICH DIFFERENT ACTORS OF OUR UNIVERSE ANSWER THE BIG QUESTION…"]
[39,2,"SALUTATIONS, MAYANAUTES !! COMME PROMIS, NOUS VOUS OFFRONS LA DEUXIÈME PARTIE DE NOTRE PROGRAMME, DANS LEQUEL DIFFÉRENTS ACTEURS DE NOTRE UNIVERS RÉPONDENT À LA GRANDE QUESTION...."]
[39,1,"WHAT IS BEST IN LIFE ?"]
[39,2,"QU'EST-CE QUI EST LE MIEUX DANS LA VIE ?"]
[39,1,"TARIK MANSURI (HAQQISLAM)"]
[39,2,"TARIK MANSURI (HAQQISLAM)"]
[39,1,"STUPID QUESTIONS, DON'T YOU !?"]
[39,2,"QUESTION STUPIDE, QUE TU POSE !?"]
[39,1,"EHMM… MR MANSURI THIS IF FOR MAYACHANNEL… WOULD YOU LOOK AT THE CAMERA ?"]
[39,2,"EHMM.... M. MANSURI C'EST POUR MAYACHANNEL... POURRIEZ-VOUS REGARDER LA CAMÉRA ?"]
[39,1,"GO TO SEX CASKUDAS AND LEAVE ME ALONE ! BRAINLESS INFIDEL !!"]
[39,2,"VA AU SEX CASKUDAS ET LAISSE-MOI SEUL ! INFIDÈLE SANS CERVELLE !!"]
[39,1,"SHAVASTII (COMBINED ARMY)"]
[39,2,"SHASVASTII (ARMÉE COMBINÉE)"]
[39,1,"DIIIIIE HUMANNNNN !!!!"]
[39,2,"MEEEEEURT HUMAINNNNNNN !!!!"]
[39,1,"OK, OK ! NOW I GET IT !!"]
[39,2,"OK, OK ! MAINTENANT, JE VOIS !!"]
[39,1,"I UNDERSTOOD YOU THE FIRST TIME !!!!"]
[39,2,"J'AVAIS COMPRIS LA PREMIÈRE FOIS !!!"]
[39,1,"PLEASE, DON'T WORRY !!!!!"]
[39,2,"NE VOUS INQUIÉTEZ PAS !!!!!"]
[39,1,"HEEEEEEEELPPPPPP !!!!"]
[39,2,"ÀÀÀÀÀ L'AIDEEEEE !!!!"]
[40,0,"http://i46.photobucket.com/albums/f109/Yasbir/BESTINLIFE3.jpg"]
[40,1,"AQUILES (ALEPH)"]
[40,2,"ACHILLE (ALEPH)"]
[40,1,"MY NEW SILVERY HAIR EXTENSIONS \"SPARTAN FASHION\", OUH YEAH ! THE DR LOVE IS BACK !"]
[40,2,"MES NOUVELLES EXTENSIONS CHEVEUX ARGENTÉS \"SPARTAN FASHION\", OH YEAH ! LE DR LOVE EST DE RETOUR !"]
[40,1,"YOU CAN RUN, BUT YOU CAN'T RESIST…"]
[40,2,"VOUS POUVEZ COURIR, MAIS VOUS NE POURREZ PAS LUTTER...."]
[40,1,"MMMH, I CAN SMELL YOUR DESIRE FROM HERE…"]
[40,2,"MMMH, JE PEUX SENTIR TON DÉSIR D'ICI...."]
[40,1,"DAMN RECREATIONS!! DAMN ALEPH !!! I'LL KILL HIM !!!! I SWEAR I'LL KILL THIS GUY !!!!!"]
[40,2,"PUTAIN DE RECRÉATIONS !! PUTAIN D'ALEPH !!! JE VAIS LE TUER !!!! JE JURE QUE JE VAIS TUER CE TYPE !!!!!!!!!"]
[40,1,"CAALMNESS, TRASIMEDES, THE SCIENCE HAS DONE WHAT HAS COULD …"]
[40,2,"DU CAAALME, TRASIMEDES, LA SCIENCE A FAIT CE QU'ELLE A PU..."]
[40,1,"BRING ME THE MISSIL LAUNCHER !!!!"]
[40,2,"APPORTEZ-MOI LE LANCE-MISSILES !!!!!"]
[40,1,"KUANG SHI (YU JING)"]
[40,2,"KUANG SHI (YU JING)"]
[40,1,"EXPLODE !!"]
[40,2,"EXPLOSER !!"]
[40,1,"EXPLODE !!"]
[40,2,"EXPLOSER !!"]
[40,1,"EXPLODE !!"]
[40,2,"EXPLOSER !!"]
[40,1,"I HATE THIS JOB!"]
[40,2,"JE HAIS CE BOULOT !"]
[40,1,"I HATE THIS JOB!!"]
[40,2,"JE HAIS CE BOULOT !!"]
[40,1,"I HATE THIS JOB!!!!"]
[40,2,"JE HAIS CE BOULOT !!!!"]
[40,1,"HEEEEELPPPPP !!!!"]
[40,2,"ÀÀÀÀÀ L'AIDEEEEE !!!!"]
[41,0,"http://i39.tinypic.com/s270nl.jpg"]
[41,1,"ADAM'S RIB"]
[41,2,"CÔTE D'ADAM "]
[41,1,"ALEPH IS YOUR FRIEND (II)"]
[41,2,"ALEPH EST VOTRE AMI (II)"]
[41,1,"RED ALERT, BROTHER TRASIMEDES ! NEW OFFICER HAS JUST ARIVED SENT BY ALEPH AND … IS A WOMAN !!!"]
[41,2,"ALERTE ROUGE, FRÈRE TRASIMEDES ! UN NOUVEL OFFICIER VIENT JUSTE D'ARRIVER, ENVOYÉ PAR ALEPH ET … C'EST UNE FEMME !!!"]
[41,1,"NO !! A FEMALE MYRMIDON ?!"]
[41,2,"NON !! UNE MYRMIDON ?!"]
[41,1,"THIS CANNOT HAPPEN, ALEPH HAS GONE CRAZY !!"]
[41,2,"C'EST PAS VRAI, ALEPH EST DEVENUE FOLLE !!!"]
[41,1,"I CANNOT BELIEVE WHAT I'M LISTENING ! YOU SHOULD BE ASHAMED ! THAT KIND OF SEXIST ATTITUDE ARE COMPLETELY ANACHRONIC IN 23TH CENTURY, MORE EVEN COMING FROM ALEPH'S WARRIORS ! WOMEN CAN …"]
[41,2,"JE NE PEUX PAS CROIRE CE QUE J'ENTENDS ! VOUS DEVRIEZ AVOIR HONTE ! CE GENRE D'ATTITUDE SEXISTE EST TOTALEMENT ANACHRONIQUE AU 23ÈME SIÈCLE, ENCORE PLUS DE LA PART DES GUERRIERS D'ALEPHS ! UNE FEMME PEUT..."]
[41,1,"TSSSH, STOP POSING WITH THE SWORD LIKE TAHT, YOU POKE MY EYE …"]
[41,2,"TSSSH, NE POSEZ PAS AVEC L'ÉPÉE COMME ÇA, VOUS M’ÉBLOUISSEZ ..."]
[41,1,"… NOW LOW DOWN YOUR VOICE AND COVER YOURSELF WITH A HOOD BEFORE HE FINDS YOU !!"]
[41,2,"... MAINTENANT BAISSEZ LE TON ET COUVREZ-VOUS D'UNE CAGOULE AVANT QU'IL NE VOUS TROUVE !!!"]
[41,1,"TOO LATE ! HE'S GOT HER SMELL !"]
[41,2,"TROP TARD ! IL A SENTI SON ODEUR !"]
[41,1,"MMMM, WHAT DO WE HAVE HEEEREE, A PLUMP MYRMIDON FEMALE! MUMMY ALEPH IS GETTING NICER DAY BY DAY WITH HIS FAVOURITE SON, WHAT'S YOUR NAME, GORGEOUS 'LOVEISINTHEHAIR' ?"]
[41,2,"MMMM, QU'AVONS-NOUS LÀÀÀÀ, UNE MYRMIDON BIEN EN CHAIR ! MAMAN ALEPH EST DE PLUS EN PLUS GENTILLE AVEC SON FILS PRÉFÉRÉ, QUEL EST TON NOM, \"CHEVELURED'AMOUR\" ?"]
[41,1,"DO YOU KNOW THAT YOUR ARMOUR FITS YOU VERY WELL BUT YOU WILL LOOK EVEN BETTER WITHOUT IT ?"]
[41,2,"SAVIEZ-VOUS QUE VOTRE ARMURE VOUS VA TRÈS BIEN MAIS QUE VOUS SERIEZ ENCORE PLUS BELLE SANS ELLE ?"]
[41,1,"HAVE YOU EVER SEEN A NAKED DEMIGOD ?"]
[41,2,"AVEZ-VOUS DÉJÀ VU NU UN DEMI-DIEU ?"]
[41,1,"WOW, LOVELY HAIR, WHAT SHAMPOO DO YOU USE ?"]
[41,2,"WOW, BELLE CHEVELURE, QUEL SHAMPOOING UTILISEZ-VOUS ?"]
[41,1,"TRASIMEDES …"]
[41,2,"TRASIMEDES …"]
[41,1,"… MISSILE LAUNCHER "]
[41,2,"… LANCE-MISSILE"]
[41,1,"NAAAH, WASTE OF TIME, THEN ANOTHER ONE COMES OUT"]
[41,2,"NAAAH, PERTE DE TEMPS, UN AUTRE RÉAPPARAITRA"]
[41,1,"IF THE GUY WHO CREATED CUBES WOULD HAVE BEEN KILLED SOON ENOUGH…"]
[41,2,"SI LE MEC QUI AVAIT CRÉÉ LES CUBES AVAIT ÉTÉ TUÉ PLUS TÔT  ..."]
[42,0,"http://www.critskillpeople.com/wp-content/uploads/2015/01/lastwords01.jpg"]
[42,1,"FAMOUS LAST WORDS"]
[42,2,"DES PAROLES GRAVÉES DANS LE MARBRE"]
[42,1,"IN THE BEGGINING CORVUS CREATED INFINITY"]
[42,2,"AU COMMENCEMENT CORVUS CRÉA INFINITY."]
[42,1,"CORVUS SAW INFINITY WAS GOOD …"]
[42,2,"CORVUS VIT QU'INFINITY ÉTAIT BON..."]
[42,1,"AND THEN THE PROPHET BOSTRIA SPOKE THE WORDS :"]
[42,2,"ET VINT CES MOTS QUE LE PROPHÈTE BOSTRIA PRONONÇA :"]
[42,1,"\"BELIEVE ME, YOU CAN HAVE MORE INFLUENCE ON NEW MINIATURES WITH DIFFERENT EQUIPMENT THAT ON NEW PROFILES. (…) IF THE FORUM IS A CRY THIS OR THAT, THEN WE TAKE IT INTO ACCOUNT.\""]
[42,2,"CROYEZ-MOI, VOUS POUVEZ AVOIR PLUS D'INFLUENCE SUR LES NOUVELLES FIGURINES AVEC DES ÉQUIPEMENTS DIFFÉRENTS QU'AVEC DE NOUVEAUX PROFILS. (...) SI LE FORUM POUSSE UN CRI POUR CECI OU CELA, ALORS NOUS EN TIENDRONS COMPTE."]
[42,1,"THE FAITHFUL READED THIS, BUT THEIR UNDERSTANDING BECOMES CLOUDY, SO THEY TWISTED HIS WORDS."]
[42,2,"LES FIDÈLES LE LURENT, MAIS LEUR COMPRÉHENSION DEVINT OBSCURE, ALORS ILS DÉFORMÈRENT SES PAROLES."]
[42,1,"… AND THEN … , CHAOS"]
[42,2,"... ET PUIS VINT ..., LE CHAOS"]
[42,1,"DAMN, GUYS, THINGS ARE GETTING NASTY!!. THE HAQQIS HACKED OUR MAZINGER, WE ARE OUT OF AMMO … !!!"]
[42,2,"BON SANG, LES CHOSES SE GÂTENT, LES GARS !! LES HAQQIS ONT PIRATÉ NOTRE MAZINGER, ON N'A PLUS DE MUNITIONS... !!!!!"]
[42,1,"… THEY HAVE DECIMATED THE HELLOFKITTY BRIGADE …"]
[42,2,"... ILS ONT DÉCIMÉ LA BRIGADE HELLOFKITTY..."]
[42,1,"… AND NOW ATTACKS A GROUP OF DOMINATRIX ODALISQUES OF THE SULTANATE !!!"]
[42,2,"... ET MAINTENANT UN GROUPE DE DOMINATRICES ODALISQUES DU SULTANAT ATTAQUE !!!!"]
[42,1,"COOOOKIEEEESSSS !!!!!"]
[42,2,"COOOOKIEEEESSSS !!!!!"]
[42,1,"TO THE DEAAAATHH !!!!"]
[42,2,"À MOOOORRRT !!!"]
[42,1,"GO ON, SISTERS, GIVE A LESSON TO THESE INFIDEL DOGS !! LASH THEM WITH YOUR SACRED FURY !!!!"]
[42,2,"ALLEZ MES SŒURS, DONNONS UNE LEÇON À CES CHIENS D'INFIDÈLES !! FOUETTEZ-LES AVEC VOTRE FUREUR SACRÉE !!!!"]
[42,1,"PROVES THE ISLAMIC DISCIPLINE, DIRTILY UNBELIEVING !!"]
[42,2,"PREUVE DE LA DISCIPLINE ISLAMIQUE, SALETÉS D'INCROYANTS !"]
[42,1,"YES, LADY, BEAT ME ! BEAT ME ! I HAVE BEEN A VERY BAAAD BOY !!"]
[42,2,"OUI, MAÎTRESSE, FRAPPEZ-MOI ! FRAPPEZ-MOI ! J'AI ÉTÉ UN GARÇON TRÈS VILAIIIN !!"]
[42,1,"COOKIES ! COOKIES ! COOKIIIES !"]
[42,2,"COOKIES ! COOKIES ! COOKIIIES !"]
[42,1,"SHUT UP !!!"]
[42,2,"FERMEZ LÀ !!!"]
[42,1,"EHHHM, BOSTRIA, ARE YOU SURE THAT THE REQUESTS WERE A GOOD IDEA ?"]
[42,2,"EHHHHM, BOSTRIA, ES-TU SÛR QUE CES DEMANDES ÉTAIENT UNE BONNE IDÉE ?"]
[42,1,"HAVE YOU SEEN HOW THE SALES GROW, INTERRUPTOR ?"]
[42,2,"AS-TU VU COMMENT LES VENTES AUGMENTENT, INTERRUPTOR ?"]
[42,1,"SURE… BY THE WAY… I NOTICE SOMETHING CHANGED IN YOU, ISN'T IT ?"]
[42,2,"BIEN SÛR... AU FAIT... J'AI REMARQUÉ QUE QUELQUE CHOSE A CHANGÉ CHEZ TOI, NON ?"]
[42,1,"YES…"]
[42,2,"OUI...."]
[42,1,"I BRIBED THE DRAFTSMAN, NOW HE IS DOING JUSTICE TO MYSELF"]
[42,2,"J'AI SOUDOYÉ LE DESSINATEUR, MAINTENANT IL ME REND JUSTICE."]
[42,1,"I GAVE HIM TWO ASSAULT GEISHAS BOXES WITH T.O. TANGA, PAINTED BY GIRALDEZ"]
[42,2,"JE LUI AI DONNÉ DEUX BOÎTES DE GEISHAS D'ASSAUT AVEC DES TANGA T.O., PEINTES PAR GIRALDEZ."]
[42,1,"PHEW! WHEN HE SEE THE KHAPU KALKI ELITE HOURIS …"]
[42,2,"PHEW ! QUAND IL VERRA L'ÉLITE HOURIS DE QHAPU QALKI ..."]
[42,1,"HE'LL OIL PAINT YOU !!"]
[42,2,"IL TE PEINDRA À L'HUILE !!"]
[43,0,"http://i46.photobucket.com/albums/f109/Yasbir/SEXIST.jpg"]
[43,1,"GREETINGS, MAYANAUTS !! ONE OF THE MANY DISCUSSIONS ABOUT INFINITY STILL REMAINS OPEN: ARE THE \"LICKING LOLLIPOP\" MINIATURES SEXIST ?"]
[43,2,"SALUTATIONS, MAYANAUTES !! PARMI LES NOMBREUSES DISCUSSIONS SUR INFINITY, L'UNE D'ELLES RESTE ENCORE OUVERTE : EST-CE SEXISTE QUE DES FIGURINES \"LÈCHENT DES LOLLYLOP\" ?"]
[43,1,"THE SIGNIFICANCE OF THE PROBLEM HAS LED EXPERTS FROM CANGAS UNIVERSITY OF RODINA POSE A POLL TO SETTLE THE MATTER !"]
[43,2,"L'IMPORTANCE DE CE PROBLÈME A CONDUIT DES EXPERTS DE L'UNIVERSITÉ CANGAS DE RODINA, À FAIRE UN SONDAGE POUR TRANCHER DÉFINITIVEMENT CETTE QUESTION !"]
[43,1,"DO YOU CONSIDER PROVOCATIVE OR SUGGESTIVE THE NEW MODERATOR MODEL ?"]
[43,2,"JUGEZ-VOUS PROVOCATEUR OU SUGGESTIF LA NOUVELLE VERSION DU MODÉRATEUR ?"]
[43,1,"LOLLIPOOOOOOP !!!!"]
[43,2,"LOLLIPOOOOOOOOP ! !!!!!!!"]
[43,1,"OH, WELL, I THINK HE HAS SOMETHING !! I DON'T KNOW, HE'S SOOOO…."]
[43,2,"OH, EH BIEN, JE TROUVE QU'IL A QUELQUE CHOSE !!!! JE NE SAIS PAS, IL EST TROP…."]
[43,1,"SOW, YOU ARE A SLUT !"]
[43,2,"COCHONNE, TU ES UNE SALOPE !"]
[43,1,"HEY, BERT !"]
[43,2,"HÉ, BERT !"]
[43,1,"WHAT'S UP, ERNIE ?"]
[43,2,"QUOI DE NEUF, ERNIE ?"]
[43,1,"I ALSO WANT A LOLLIPO…"]
[43,2,"JE VEUX AUSSI UNE SUCETTE...."]
[43,1,"OH, NO, YOU DON'T"]
[43,2,"OH, NON, TU NE VEUX PAS"]
[43,1,"OPTIONS :"]
[43,2,"OPTIONS :"]
[43,1,"A - AAAAARRRRGHH !!!!"]
[43,2,"A - AAAAAAARRRRRRGHH !!!!"]
[43,1,"B - I'LL BE BACK TO GUARHAMMER !!"]
[43,2,"JE RETOURNE À GUARHAMMER !"]
[43,1,"C - NO, AND I WANT HALF DOZEN !"]
[43,2,"C - NON, ET J'EN VEUX UNE DEMI-DOUZAINE !"]
[43,1,"D - ARE THEY IN INFLATABLE FORM ?\n(NOT FOR ME, IS FOR A FRIEND OF MINE)"]
[43,2,"\"D - Y'A T'IL UNE FORME GONFLABLE ?\n(CE N'EST PAS POUR MOI, C'EST POUR UN AMI À MOI)\""]
[44,0,"http://i46.photobucket.com/albums/f109/Yasbir/Chiste26B.jpg"]
[44,1,"HAQQISLAMIC SCIENCE "]
[44,2,"SCIENCE HAQQISLAMIQUE"]
[44,1,"MANUAL FOR INFIDELS III"]
[44,2,"MANUEL POUR LES INFIDÈLES III"]
[44,1,"I DON'T UNDERSTAND THESE COMPLAINTS, TARIK !"]
[44,2,"JE NE COMPRENDS PAS CES PLAINTES, ...TARIK !"]
[44,1,"HOW DO YOU SAY THAT THE NEW BIO-MODIFIED MOUNT FAILS THE REQUIREMENTS ? THAT'S UNHEARD OF !!!"]
[44,2,"COMMENT POUVEZ-VOUS DIRE QUE CETTE NOUVELLE MONTURE BIO-MODIFIÉE NE RÉPOND PAS AUX ATTENTES ? C'EST DU JAMAIS VU !!"]
[44,1,"MAN, I ONLY SAID …"]
[44,2,"MEC, J'AI SEULEMENT DIS …"]
[44,1,"YOU SAID, YOU SAID… ! YOU ASKED FOR HIGH DENSITY ORGANIC ARMOR AND IT HAS !"]
[44,2,"VOUS DITES, VOUS DITES... ! VOUS DEMANDIEZ UNE ARMURE ORGANIQUE À GRANDE DENSITÉ ET ELLE L'A !"]
[44,1,"HEM, SURE, BUT …"]
[44,2,"HEMM, CERTAINEMENT, MAIS …"]
[44,1,"NO IFS, ANDS, OR BUTS ABOUT IT !! YOU ASKED FOR 360° VISOR AND WE GOT IT"]
[44,2,"PAS DE 'SI', DE 'ET' OU DE 'MAIS' À CE PROPOS !! VOUS AVIEZ DEMANDÉ UN VISEUR 360° ET ON L'A EU."]
[44,1,"OF COURSE, THE TROUBLE IS …"]
[44,2,"BIEN SÛR, LE PROBLÈME C'EST …"]
[44,1,"MORE REQUESTS ! IT MUST HAVE CLIMBING PLUS ! WELL, IT HAS CLIMBING PLUS, SO, CAN I KNOW WHY SO MANY COMPLAINT ? WE CREATED THE ULTIMATE BAD ASS BEAST !!!"]
[44,2,"TOUJOURS PLUS DE DEMANDES ! IL DEVAIT AVOIR ESCALADER PLUS ! BIEN, IL A ESCALADER PLUS, PUIS-JE DONC SAVOIR POURQUOI TANT DE PLAINTES ? NOUS AVONS CRÉÉ L'ULTIME CRÉATURE BAD ASS !!!"]
[44,1,"THAT'S THE POINT … !"]
[44,2,"C'EST LE PROBLÈME... !"]
[44,1,"WHY DO NOT YOU HAVE GIVEN IT A MOST THREATENING ASPECT MEN !!???"]
[44,2,"POURQUOI NE LUI AVEZ-VOUS PAS DONNÉ UN ASPECT PLUS MENAÇANT, LES MECS !!???"]
[44,1,"… ATILA ! DOESN'T, BOY"]
[44,2,"... ATILA ! ARRÊTE, BONHOMME."]
[44,1,"THAT WAS THE LAST STRAW !!! NOW YOU COMPLAINT ABOUT ITS AESTHETIC !!!"]
[44,2,"C'ÉTAIT LA GOUTTE D'EAU QUI FAIT DÉBORDER LE VASE !!! MAINTENANT VOUS VOUS PLAIGNEZ DE SON ESTHÉTIQUE !"]
[44,1,"WHAT'S NEXT ? SAY THAT YOU CAN NOT SEE I FROM SPACE !?? OH, MEN …. !"]
[44,2,"QU'EST-CE QUE CE SERA APRÈS ? DIRE QUE VOUS NE POUVEZ PAS LE VOIR DEPUIS L'ESPACE !?? INCROYABLE ... !"]
[45,0,"http://i46.photobucket.com/albums/f109/Yasbir/DUTY.jpg"]
[45,1,"FIDAY WISDOM"]
[45,2,"SAGESSE DE FIDAY"]
[45,1,"MANUAL FOR INFIDELS (IV)"]
[45,2,"MANUEL POUR LES INFIDÈLES (IV)"]
[45,1,"LIUTENIANT YASBIR, WE MUST ABANDON THE POSITION ! THE PANOCEANIC INFIDELS ARE TOO NUMEROUS AND THEY'RE SURROUNDING US !"]
[45,2,"LIOUTINANT YASBIR, NOUS DEVONS ABANDONNER LA POSITION ! LES INFIDÈLES PANOCÉANIENS SONT TROP NOMBREUX ET ILS NOUS ENCERCLENT !"]
[45,1,"MY JANISSAIRES ARE OUT OF AMMO !"]
[45,2,"MES JANISSAIRES SONT À COURT DE MUNITIONS !"]
[45,1,"AND MY ODALISQUES OUT OF LUBE !!!"]
[45,2,"ET MES ODALISQUES DE LUBRIFIANT !!!"]
[45,1,"AND 'IM OUT OF MEN, DAMMIT ! I KNEW THOSE LAYOFFS WOULD COST US DEARLY !!!"]
[45,2,"ET JE N'AI PLUS D'HOMMES, BON SANG ! JE SAVAIS QUE CES LICENCIEMENTS NOUS COÛTERAIENT CHER !!!!!!"]
[45,1,"ALLRIGHT MEN, RETREAT THROUGH THE SOUTHERN CREST, I WILL COVER YOUR RETREAT !!"]
[45,2,"TRÈS BIEN LES GARS, RETRAITÉS À TRAVERS LA CRÊTE SUD-EST, JE COUVRIRAI VOTRE RETRAITE !!"]
[45,1,"AT LEAST MY SACRIFICE WILL BUY YOU TIME TO GET SAFE !"]
[45,2,"AU MOINS, MON SACRIFICE VOUS LAISSERA DU TEMPS POUR VOUS METTRE EN SÉCURITÉ !"]
[45,1,"ON HIS OWN ?! IT'S SO MARTYR OF HIM !!"]
[45,2,"TOUT SEUL ?! C'EST TELLEMENT MARTYR DE SA PART !!"]
[45,1,"THE FIDAY KNOW THIS IS THEIR DUTY …"]
[45,2,"LES FIDAY SAVENT QUE C'EST LEUR DEVOIR..."]
[45,1,"… BUT THE OTHER DAY HE RECOGNIZED THAT WHAT REALLY PISSES HIM OFF …"]
[45,2,"... MAIS L'AUTRE JOUR, IL A RECONNU QUE CE QUI L'ÉNERVE VRAIMENT..."]
[46,0,"http://i46.photobucket.com/albums/f109/Yasbir/DUTY2.jpg"]
[46,1,"… IS WHEN THEY SCRATCH HIM BETWEEN THE EARS "]
[46,2,"... C'EST QUAND ILS LE GRATTENT ENTRE LES OREILLES "]
[46,1,"MY DEAR FANS … !"]
[46,2,"MES CHERS FANS … !"]
[46,1,"… ONCE AGAIN I APPEAR BEFORE YOU !!"]
[46,2,"… UNE FOIS ENCORE J'APPARAIS DEVANT VOUS !!"]
[47,0,"http://i46.photobucket.com/albums/f109/Yasbir/tarikandbert_zpsd5ac19e2.jpg"]
[47,1,"HAQQISLAMIC SCIENCE : THE DEFINITIVE : THE DEFINITIVE REMOTE "]
[47,2,"SCIENCE HAQQISLAMIQUE : LE DRONE ULTIME"]
[47,1,"MANUAL FOR INFIDELS (IV)"]
[47,2,"MANUEL POUR LES INFIDÈLES (IV)"]
[47,1,"ARE YOU KIDDING ME, TARIK ? LISTEN, WE'RE THE NOMADS, THE EXPERTS IN REMOTES"]
[47,2,"TU TE FOUS DE MOI, TARIK ? ÉCOUTE, NOUS SOMMES DES NOMADES, LES SPÉCIALISTES DES DRONES."]
[47,1,"I'VE SEEN DILDOS WITH MORE CLASS, THAT'S JUST A DISASTER WITH A FAN AND A CAMERA, WHY WOULD WE WANT SOMETHING LIKE THAT ?"]
[47,2,"J'AI DÉJÀ VU DES GODES AVEC PLUS DE CLASSE, ÇA C'EST JUSTE UN DÉSASTRE AVEC UN VENTILATEUR ET UNE CAMÉRA, POURQUOI ON VOUDRAIT QUELQUE CHOSE COMME ÇA ?"]
[47,1,"AAAAH, BERT, MY FRIEND, YOU INFIDELS AND YOUR LAMENTABLE LACK OF IMAGINATION…"]
[47,2,"AAAAAH, BERT, MON AMI, VOUS AUTRES INFIDÈLES ET VOTRE LAMENTABLE MANQUE D'IMAGINATION...."]
[47,1,"THE DESIGN IS ONLY A SMALL PART OF ITS VALUE …"]
[47,2,"LE DESIGN N'EST QU'UNE INFIME PARTIE DE SA VALEUR ...."]
[47,1,"THE REST IS KNOWING HOW TO USE IT"]
[47,2,"LE RESTE ÉTANT DE SAVOIR COMMENT L'UTILISER !!"]
[47,1,"I'LL BUY TWO DOZEN"]
[47,2,"J'EN ACHÈTERAI DEUX DOUZAINES."]
[47,1,"HO SHIT… !!"]
[47,2,"HO MERDE.... !!"]
[47,1,"WHO LET TARIK ON BOARD ?!!"]
[47,2,"QUI A FAIT MONTER TARIK À BORD ?!!"]
[48,0,"http://i46.photobucket.com/albums/f109/Yasbir/BOSANDGIRALDEZ01.jpg"]
[48,1,"OH, GREAT LORD BOSTRIA !! YOUR GENOCIDAL HELLOFKITTIES REGIMENT IS FINISHED WOULD YOU GIVE YOUR MAGNANIMOUS APPROVAL ?"]
[48,2,"OH, GRAND SEIGNEUR BOSTRIA !! VOTRE RÉGIMENT DE GÉNOCIDAIRES HELLOFKITTIES EST FINI, DONNERIEZ-VOUS VOTRE APPROBATION MAGNANIME ?"]
[48,1,"WELL, GIRALDEZ, MY LACKEY … NOW YOU FOLLOWD MY DIRECTIONS AS IT IS YOUR OBLIGATION, I AM PLEASED, I AM PLEASED "]
[48,2,"BIEN, GIRALDEZ, MON LARBIN... VOUS AVEZ SUIVI MES INSTRUCTIONS MAINTENANT COMME IL EN EST VOTRE OBLIGATION, J'EN SUIS HEUREUX"]
[48,1,"YOU CAN DRINK THREE SWIGS OF WATER AS A REWARD "]
[48,2,"VOUS POURREZ BOIRE TROIS GORGÉES D'EAU EN RÉCOMPENSE. "]
[48,1,"AND MAYBE TODAY WE WILL LET YOU REST A LITTLE"]
[48,2,"ET PEUT-ÊTRE QU'AUJOURD'HUI NOUS VOUS LAISSERONS VOUS REPOSER UN PEU."]
[48,1,"OOHHH, THANK YOU MY LORD !!!!"]
[48,2,"OOHHHH, MERCI MON SEIGNEUR !!!! "]
[48,1,"MMMMM…. DEEP INSIDE, I AM SOFT"]
[48,2,"MMM....... AU FOND DE MOI, JE SUIS BON"]
[48,1,"KILL THEM ALL !!"]
[48,2,"TUEZ-LES TOUS !!"]
[48,1,"DAMN !! ANOTHER 'FLAME HOLOCAUST ALERT' IN THE FORUM "]
[48,2,"BON SANG !! UNE AUTRE 'ALERTE D'HOLOCAUSTE FLAMBOYANTE' DANS LE FORUM "]
[48,1,"… ONLY MISSING THE LIPSTICK …"]
[48,2,"... IL NE LUI MANQUE QUE LE ROUGE À LÈVRES..."]
[48,1,"… I WANT BIGG BOOBS !!!!"]
[48,2,"... JE VEUX DES GROS SEINS !!!!"]
[48,1,"THIS IS AN INDECENCY I'LL RETURN TO FLAMESOFGUAR !!!"]
[48,2,"C'EST INDÉCENT, JE RETOURNERAI SI ÇA CONTINUE À FLAMESOFGUAR !!!"]
[48,1,"HOW CAN YOU SAY THAT !!"]
[48,2,"COMMENT PEUX-TU DIRE ÇA !!!!"]
[49,0,"http://i46.photobucket.com/albums/f109/Yasbir/BOSANDGIRALDEZ02.jpg"]
[49,1,"ONCE AGAIN, TO IMPOSE ORDER…"]
[49,2,"UNE FOIS ENCORE, À FAIRE RÉGNER L'ORDRE...."]
[49,1,"I ALREADY WARNED THE LEADER, WE ARE INTERESTED ONLY IN THE TOTAL SUBMISSION OF THE FANATIC PEAT, NOT IN THEIR ABSURD ALIENATING OPINIONS !!!"]
[49,2,"J'AI DÉJÀ PRÉVENU LE LEADER, NOUS NE NOUS INTÉRESSONS QU'À LA TOTALE SOUMISSION DES BOUSEUX FANATIQUES, PAS EN LEURS AVIS ABSURDES ET ALIÉNANTS !!!"]
[49,1,"BUT HE WAS TOO BUSY COUNTING MILLIONS AND NOW IS TOO LATE !"]
[49,2,"MAIS IL ÉTAIT TROP OCCUPÉ À COMPTER SES MILLIONS ET MAINTENANT IL EST TROP TARD !"]
[49,1,"I WANT A WULVERETTE WITH FOUR TEATS !!!"]
[49,2,"JE VEUX UNE WULVERETTE À QUATRE TÉTINES !!!"]
[49,1,"THAT POSE IS HISTORICALLY IMPLAUSIBLE !!!"]
[49,2,"CETTE POSE EST HISTORIQUEMENT INVRAISEMBLABLE !!!"]
[49,1,"BAAABY, YOU WILL SEE HOW TO RAISE A BRUSH !!!"]
[49,2,"BAAABY, VOUS ALLEZ VOIR COMMENT BRANDIR UN PINCEAU !!!"]
[49,1,"ALL RIGHT, NOW ! …"]
[49,2,"ÇA SUFFIT, MAINTENANT ! …"]
[49,1,"WHO HAD THE IDEA TO OPEN AGAIN A THREAD ABOUT 'THOSE POSES INN INFINITY\" ?!!!"]
[49,2,"QUI A EU L'IDÉE D'OUVRIR ENCORE UN THREAD AU SUJET \"DES POSES DANS INFINITY\" ?!!!"]
[49,1,"DAMN SEXISTS !!!"]
[49,2,"FOUTUS SEXISTES !!!"]
[49,1,"HOTTIEEEEEE GHP"]
[49,2,"CHAUDEEEEEEEEE GNÉÉÉ"]
[50,0,"http://i46.photobucket.com/albums/f109/Yasbir/GREATLIDER.jpg"]
[50,1,"CORVUS BELLI HEADQUARTERS"]
[50,2,"CORVUS BELLI SIÈGE SOCIAL"]
[50,1,"THRONE ROOM"]
[50,2,"SALLE DU TRÔNE"]
[50,1,"OH GREAT LEADER! WE FINISHED THE NEW RULEBOOK, THE STATS, THE NEW RELEASES OF THE MONTH AND ALL THE IMPOSED TASKS ! BUT AFTER THE EFFORT WE CAN'T THINK OF ANYTHING !!!"]
[50,2,"Ô GRAND LEADER ! NOUS AVONS TERMINÉ LE NOUVEAU LIVRE DE RÈGLES, LES STATS, LES NOUVELLES SORTIES DU MOIS ET TOUTES LES TÂCHES IMPOSÉES ! MAIS APRÈS TOUT CE TRAVAIL, NOUS N'AVONS PLUS D'IDÉE !!!!"]
[50,1,"WHAT CAN WE DO IN THIS DIFFICULT TIME ?"]
[50,2,"QUE POUVONS-NOUS FAIRE EN CES TEMPS DIFFICILES ?"]
[50,1,"SIMPLE …"]
[50,2,"FACILE ...."]
[50,1,"YOU HAVE TO SCRIBBLE SOME BULLSHIT AND UPLOAD IT IN THE WEB AND FORUM, THE FANATIC PEAT WILL ENTER INTO FRENZY AND DO THE REST"]
[50,2,"VOUS N'AVEZ QU'À GRIBOUILLER QUELQUES CONNERIES ET LES TÉLÉCHARGER SUR LE WEB ET LE FORUM, LES BOUSEUX FANATIQUES ENTRERONT EN ÉBULLITION ET FERONT LE RESTE."]
[50,1,"TRIGGER ANOTHER BRAINSTORMING OF ALIENATING ABSURD IDEAS, GREAT MASTER ?"]
[50,2,"DÉCLENCHER UN AUTRE BRAINSTORMING D'IDÉES ABSURDES ET ALIÉNANTES, GRAND MAÎTRE ?"]
[50,1,"THE ALIENATING ONES ARE THE BEST"]
[50,2,"LES ALIÉNANTES SONT LES MEILLEURS"]
[50,1,"YOUR WISDOM IS GREAT GREAT LEADER !!!"]
[50,2,"VOTRE SAGESSE EST REMARQUABLE, GRAND LEADER !!!"]
[50,1,"OF COURSE IT IS…"]
[50,2,"BIEN SÛR QU'ELLE L'EST...."]
[50,1,"BY THE WAY, GREAT LEADER, ABOUT THAT AMAZON RACE I PROPOSED …"]
[50,2,"AU FAIT, GRAND LEADER, À PROPOS DE LA RACE AMAZONIENNE QUE J'AI PROPOSÉ..."]
[50,1,"DON'T EVEN THINK ABOUT IT !!!!"]
[50,2,"N'Y PENSE MÊME PAS !!!!"]
[51,0,"http://i46.photobucket.com/albums/f109/Yasbir/AQUILESATALANTA_zps0995255b.jpg"]
[51,1,"SHAMELESS APOCALYPSE"]
[51,2,"APOCALYPSE ÉHONTÉE"]
[51,1,"ALEPH IS YOUR FRIEND (III)"]
[51,2,"ALEPH EST VOTRE AMI (III)"]
[51,1,"YES !!! YES !!! YEEEEESSSS !!!!!!"]
[51,2,"OUI ! OUI !! OUIIIIIIII !!!!!!"]
[51,1,"FOR ZEU'S SAKE !!! AQUILES IS IN 'IGOTHEPOWER' MODE, WHAT HAPPENED !?"]
[51,2,"POUR L'AMOUR DE ZEUS!!!! AQUILES EST EN MODE 'JEDÉTIENSLEPOUVOIR', QUE S'EST-IL PASSÉ !?"]
[51,1,"ALPEH PUBLISHED THE LIST OF UNITS IN PRODUCTION…"]
[51,2,"ALPEH A PUBLIÉE LA LISTE DES UNITÉS EN PRODUCTION...."]
[51,1,"STARTING WITH THE SPEC-OP WHICH IS 'SHE'…"]
[51,2,"COMMENÇANT PAR L'UNITÉ SPEC-OP DU TYPE \"ELLE\"...."]
[51,1,"AY!"]
[51,2,"OH NON !"]
[51,1,"… THEN COMES PENTESILEA …"]
[51,2,"... PUIS VIENDRA LA PENTHÉSILÉE..."]
[51,1,"AY!"]
[51,2,"OH NON !"]
[51,1,"… ENDING WITH ATALANTA AND …."]
[51,2,".... EN FINISSANT PAR L'ATALANTE ACCOMPAGNÉE ......"]
[51,1,"AY!"]
[51,2,"HO NO !"]
[51,1,"… HER 'CONEJITO' *!!!!"]
[51,2,"... PAR SON GOBEUR DE CAROTTES ('CONEJITO') * !!!!"]
[51,1,"HOLY VIRGIN !!!"]
[51,2,"SAINTE VIERGE !!!"]
[51,1,"I FEAR NOT FOR LONG"]
[51,2,"JE CRAINS QUE CELA NE SOIT PLUS TRÈS LONG"]
[51,1,"DAMN !!! WE WILL NEED MORE MISSILES !"]
[51,2,"BORDEL !!! NOUS AURONS BESOIN DE PLUS DE MISSILES !"]
[51,1,"HOW MANY UNITS ?"]
[51,2,"COMBIEN D'UNITÉS ?"]
[51,1,"UNITS ? REQUEST FOR TRUCKS !!! @#% !"]
[51,2,"UNITÉS ? DEMANDE EN DES CAMIONS !!! @#% !"]
[51,1,"* CONEJITO CAN BE TRANSLATED AS BUNNY … OR PUSSY"]
[51,2,"* CONEJITO PEUT ÊTRE TRADUIT PAR LAPIN ... OU MOULE/VAGIN"]
[52,0,"http://i46.photobucket.com/albums/f109/Yasbir/Chiste34-1.jpg"]
[52,1,"FIRST CONTACT"]
[52,2,"PREMIER CONTACT"]
[52,1,"ALEPH IS YOUR FRIEND (IV)"]
[52,2,"ALEPH EST VOTRE AMI (IV)"]
[52,1,"LANDING PAD C130, UNDER ALEPH CONTROL, PARADISO"]
[52,2,"PISTE D'ATTERRISSAGE C130, SOUS CONTRÔLE ALEPH, PARADISO"]
[52,1,"ATTENTION, HONOR GUARD !! THE CONSULAR SHIP DOOR IS OPENING, HERE IT COMES THE TOHAA AMBASSADOR !!"]
[52,2,"GARDE D'HONNEUR, ATTENTION !! LA PORTE DU VAISSEAU CONSULAIRE S'OUVRE, L'AMBASSADEUR TOHAA ARRIVE !!"]
[52,1,"I JUST HOPE THEY DO NOT RESEMBLE COCKROACHES, I HATE COCKROACHES !"]
[52,2,"J'ESPÈRE JUSTE QU'ILS NE RESSEMBLENT PAS À DES CAFARDS, JE HAIS LES CAFARDS !"]
[52,1,"GREETINGS, HUMAINS !! WE HAVE CROSSED THE VOID BETWEEN STARS TO … !!!"]
[52,2,"SALUTATIONS, HUMAINS !! NOUS AVONS TRAVERSÉ LE VIDE INTERSTELLAIRE POUR... !!!"]
[52,1,"… TO MEET THE STAR IN 'FILLING VOIDS' !!! … BABYYY"]
[52,2,".... POUR RENCONTRER L'ÉTOILE QUI \"COMBLE LES VIDES\" !!!!! .... BÉBÉÉÉÉ"]
[52,1,"I'LL SNIFF ALL YOUR PHEROMONES, MY LITTLE TOHAAAA !!!"]
[52,2,"J’HUMERAI TOUTES TES PHÉROMONES, MA PETITE TOHAAAAA !!!"]
[52,1,"TOHAA DECLARING TOTAL WAR AGAINST ALEPH IN 5,4,3…"]
[52,2,"DÉCLARATION DE GUERRE TOTALE CONTRE ALEPH DANS 5,4,3,…"]
[53,0,"http://i46.photobucket.com/albums/f109/Yasbir/Chiste37-B_zps06a1d37a.jpg"]
[53,1,"HAQQISLAMIC SCIENCE"]
[53,2,"SCIENCES HAQQISLAMIQUES"]
[53,1,"MANUAL FOR INFIDELS (V)"]
[53,2,"MANUEL POUR LES INFIDÈLES (V)"]
[53,1,"> WIND TUNNEL INSIDE THE MEDINA CENTER FOR ADVANCED STUDIES: INITIAL TESTINGS OF A FIDAY ATTACK MOTORCYCLE"]
[53,2,"> À L'INTÉRIEUR D'UN TUNNEL AÉRODYNAMIQUE DU CENTRE D'ÉTUDES AVANCÉES DE MÉDINA : PREMIERS ESSAIS D'UNE MOTO D'ATTAQUE FIDAY "]
[53,1,"GREAT, THAT'S THE MOST RIDICULOUS THING THE R&D GUYS HAVE EVER COME UP WITH! WHY THE HELL DO WE EVEN NEED MOTORIZED IMPERSONATORS, AND WITH THIS STUPID SEAT 2 METERS OVER GROUND, TO BOOT ?"]
[53,2,"SUPER, C'EST LA CHOSE LA PLUS RIDICULE QUE LES GARS DE LA R&D N’AIENT JAMAIS INVENTÉ ! POURQUOI DIABLE AVONS-NOUS MÊME BESOIN DE SUPPLANTATEURS MOTORISÉS... ET DE CE STUPIDE SIÈGE À 2 MÈTRES AU-DESSUS DU SOL, EN PLUS ?"]
[53,1,"CAMERA DRONE! GIMME AN F5!"]
[53,2,"DRONE CAMÉRA ! DONNE-MOI UN F5 !"]
[53,1,"\"PLEASE DEFINE\""]
[53,2,"VEUILLEZ PRÉCISER"]
[53,1,"\"FIRST AND FOREMOST FOCUS ON THIS FANTASTIC FANNY\""]
[53,2,"D'ABORD ET AVANT TOUT FOCUS SUR CETTE FANTASTIQUE CHATTE"]
[53,1,"I ASSUME YOU HAVE X-RAY VISION ?"]
[53,2,"JE SUPPOSE QUE TU AS UNE VISION AUX RAYONS X ?"]
[53,1,"\"NEGATIVE\""]
[53,2,"NÉGATIF"]
[53,1,"SERGEANT, HAVE THE DRONE DESIGNER HANGED BY HIS COCK FOR TEN MINUTES A DAY UNTIL IT'S FIXED"]
[53,2,"SERGENT, FAITES PENDRE LE CONCEPTEUR DU DRONE PAR SA BITE DIX MINUTES PAR JOUR JUSQU'À CE QU'IL SOIT CORRIGÉ."]
[53,1,"YES… SIR … RIGHT … AWAY"]
[53,2,"OUI... MONSIEUR... TOUT DE SUITE... C'EST PARTI."]
[54,0,"https://i.pinimg.com/564x/c8/2d/c7/c82dc74791f3e6d0ef00bff617e9aa0a.jpg"]
[54,1,"THE PROPHET'S DAUGHTERS : ALWAYS ALERT"]
[54,2,"LES FILLES DU PROPHÈTE : TOUJOURS EN ALERTE"]
[54,1,"MANUAL FOR INFIDELS (VII)"]
[54,2,"MANUEL POUR LES INFIDÈLES (VII)"]
[54,1,"WHEW! FINALLY, A LITTLE RELAXATION!"]
[54,2,"OUAH ! ENFIN, UN PEU DE REPOS !"]
[54,1,"A WHOLE DAY OF MANOUVERS, AND ON TOP OF THAT, I DON'T KNOW WHY BROTHER TARIK HAD US JUMPING ROPE FOR AN EXTRA HOUR, I'M EXHAUSTED!"]
[54,2,"TOUTE UNE JOURNÉE DE MANŒUVRES, ET POUR COURONNER LE TOUT, JE NE SAIS POURQUOI, FRÈRE TARIK NOUS A FAIT SAUTER À LA CORDE PENDANT UNE HEURE DE PLUS, JE SUIS ÉPUISÉE !"]
[54,1,"NOW JUST A SHOWER, A GOOD NANOPULSER MASSAGE, AND I'LL FEEL LIKE NEW…!"]
[54,2,"ALLEZ MAINTENANT, UNE DOUCHE, UN BON MASSAGE AUX NANOPULSEURS, ET JE ME SENTIRAI COMME NEUVE.... !"]
[54,1,"… AND YOUR MOTHER THAT SPAWNED THIS PLAGE OF GEHENNA!!"]
[54,2,"... ET POUR TA MÈRE QUI A ENGENDRÉ CETTE PESTE DE LA GÉHENNE !!"]
[54,1,"IT'S THE FOURTH TO CAMO INFLTRATOR IN THE SHOWERS THIS MONTH I'VE HAD IT WITH YOU !!"]
[54,2,"C'EST LE QUATRIÈME INFILTRATEUR CAMOUFLÉ DANS LES DOUCHES CE MOIS-CI, J'EN AI MARRE DE VOUS !"]
[54,1,"… AND SO YOU CAN IMAGINE HOW I CAME TO THE INFIRMARY LIEUTENIANT, YOU HAVE TO REMEMBER THAT THESE GIRLS LOOK LIKE ANGELS, BUT ARE BEASTS WITH A PESTY BAT IN THEIR HAND…"]
[54,2,"... ET DONC VOUS POUVEZ IMAGINER COMMENT JE SUIS ARRIVÉ À L'INFIRMERIE LIEUTENANT, IL FAUT SE RAPPELER QUE CES FILLES RESSEMBLENT À DES ANGES, MAIS CE SONT DES BÊTES AVEC UNE MAUDITE BATTE DANS LEUR MAIN...."]
[54,1,"I KNOW… I KNOW SERGEANT…"]
[54,2,"JE SAIS… JE SAIS SERGENT…"]
[54,1,"… I WAS THE FUCKING BAT !!"]
[54,2,"… J'ÉTAIS LA PUTAIN DE BATTE !!"]
[54,1,"WELL, LET'S LOOK AT THE BRIGHT SIDE… "]
[54,2,"BON, VOYONS LE BON CÔTÉ DES CHOSES... "]
[54,1,"… AT LEAST SHE GRABBED ME BY THE HANDLE…"]
[54,2,"... AU MOINS ELLE M'A ATTRAPÉ PAR LA POIGNÉE...."]
[55,0,"http://i46.photobucket.com/albums/f109/Yasbir/tarik_zpscf21be64.jpg"]
[55,1,"DAMN UNFAITHFUL DOGS AND THEIR INSIDIOUS DEFAMATIONS !!!"]
[55,2,"CES SATANÉS CHIENS INFIDÈLES ET LEURS DIFFAMATIONS INSIDIEUSES !!!"]
[55,1,"40 MILIMETERS ?!! IT'S 40 CENTIMETERS, LOWLY SLAG !"]
[55,2,"40 MILLIMÈTRES ?!! C'EST 40 CENTIMÈTRES, MISÉRABLE CRASSE !"]
[55,1,"BASES, TARIK! THEY SAID BASES !"]
[55,2,"SOCLES, TARIK ! ILS ONT DIT SOCLES !"]
[55,1,"AH, DAMN IT !"]
[55,2,"AH, BON SANG !"]
[55,1,"IT'S JUST THAT WHEN YOU WALK AROUND IN CIRCLES, ONE BEGINS TO DAY DREAM…"]
[55,2,"C'EST JUSTE QUE QUAND ON TOURNE EN ROND, ON COMMENCE À RÊVER..."]
[56,0,"http://i875.photobucket.com/albums/ab318/Hartmann71/Chistes/Impromptu0014-Subir_zpsjjuqod7g.jpg"]
[56,1,"NEVSKY!? SE PUEDE SABER A QUÉ PUNETAS NA VENIDO ESTO?"]
[56,2,"NEVSKY !? POUVEZ VOUS NOUS DIRE CE QUE C'EST QUE CE BORDEL ?"]
[56,1,"ES QUE ME OFRECEN UN PISO, IOU GRAN SZUZADOR DE TODAS LAS TURBAS !!"]
[56,2,"JE VEUX QU'ILS M'OFFRENT UN APPARTEMENT, Ô TOI GRAND SUZERAIN DE TOUTES LES FOULES !"]
[56,1,"SI YA TIENES UND !"]
[56,2,"BIEN, MAIS VOUS EN AVEZ DÉJÀ UN !"]
[56,1,"PUES OTRO !"]
[56,2,"ALORS UN AUTRE !"]
[56,1,"OFRECEMOS COJA DEL HAREN DE TARIK MANSURY ! MUCHAS ODAUSOAS !!"]
[56,2,"NOUS OFFRONS UNE BOÎTE HAREM DE TARIK MANSURY ! AVEC BEAUCOUP D'ODALISQUES !"]
[56,1,"NO CUELA !"]
[56,2,"PAS DE ÇA !"]
[56,1,"MONTADAS EN UN TAG ARIADNO PILOTADO POR LA FISCAL DE CRIMEA !!"]
[56,2,"MONTÉES SUR UN TAG D'ARIADNA PILOTÉ PAR LA PROCUREURE DE CRIMÉE* !   *S'AGIT DE NATALIA POKLONSKAÏA, DÉTOURNÉE PAR DES JAPONAIS COMME ÉGÉRIE MANGA"]
[56,1,"TUS DESFOS SON ORDENES, OH GRAND SZUZADOR !!"]
[56,2,"TES SOUHAITS SONT DES ORDRES, Ô GRAND SUZERAIN !"]
[56,1,"BIEN …"]
[56,2,"EXCELLENT ...."]
[56,1,"Y, POR CIERTO…"]
[56,2,"ET, SOIT DIT EN PASSANT...."]
[56,1,"PODRIAS DIEUJAR UN PAR DE SAGOS DE NUECES POR AQUI ?"]
[56,2,"POURRIEZ-VOUS DESSINER QUELQUES SACS DE NOIX PAR ICI ?"]
[57,0,"http://i875.photobucket.com/albums/ab318/Hartmann71/Chistes/CHISTE25B.jpg"]
[57,1,"SALUDOS, MAYANAUTAS! UNA VEZ MAS, EL DEBATE ESTA VIVO. REPRESENTANTES DEL ESTADO YU JING HAN VUELTO A LANZAR DURAS ACUSACIONES CONTRA EL GOBIERNO PANOCEANICO"]
[57,2,"SALUTATIONS, MAYANAUTES ! ENCORE UNE FOIS, LE DÉBAT EST ANIMÉ. LES REPRÉSENTANTS DE L'ETAT-EMPIRE YU JING ONT DE NOUVEAU LANCÉ DES ACCUSATIONS SÉVÈRES CONTRE LE GOUVERNEMENT PANOCÉANIEN."]
[57,1,"ES CIERTO QUE LOS CIUDADANOS DE LA PRIMERA POTENCIA HUMANA SON EXCESIVAMENTE ELITISTAS ? ANTE ESTA ACUSACION DE PIJERIO CONTUMAZ, HEMOS SALIDO A LA CALLE PARA CONOCER LA RESPUESTA DE LOS ALUDOS …"]
[57,2,"EST-IL VRAI QUE LES CITOYENS DE LA PREMIÈRE PUISSANCE HUMAINE SONT EXCESSIVEMENT ÉLITISTES ? FACE À CETTE ACCUSATION TENACE, NOUS SOMMES DESCENDUS DANS LA RUE POUR CHERCHER UNE RÉPONSE À CETTE ALLÉGATION ..."]
[57,1,"QUÉ OPINA DE LAS CRITICAS REALIZADAS POR LA DIPLOMACIA YU JING ?"]
[57,2,"QUE PENSEZ-VOUS DES CRITIQUES FAITES PAR LA DIPLOMATIE DE YU JING ?"]
[57,1,"MIRA TIOOOOO, O SEA, ESO ES ENVIDIA, ENVIDIA CO-CHINA! SABES ?!"]
[57,2,"ÉCOUTEZ MEC, JE VEUX DIRE, C'EST DE L'ENVIE, DE L'ENVIE PAN-CHINOISE ! VOUS SAVEZ ?!"]
[57,1,"AAAY, QUÉ BUENO LO DE \"CHINA\" BORJAMARIII! LO QUE PASA ES QUE NOS TIENEN TIRRIA PORQUE COMPRAR EN LOS CHINOS ES DE GENTE POBRE…"]
[57,2,"CE QUI EST UNE BONNE CHOSE POUR LA CHINE, BORJAMARIII ! EN FAIT, ILS VEULENT QU'ON ACHÈÈÈTE EN CHINE PARCE QUE CE SONT DES GENS PAUVRES..."]
[57,1,"MIRA, PASANDO DE ESOS CUUTRES, AHORA VANE Y YO OS PRESENTAMOS UNA COMPANA CHACHI GUAY QUE HEMOS MONTADOOOO…."]
[57,2,"REGARDEZ, HISTOIRE D'OUBLIER CES MISÉREUX, VANE ET MOI ALLONS VOUS PRÉSENTER MAINTENANT UNE ENTREPRISE MÉGA COOL QUE NOUS AVONS MONTÉÉÉÉS..."]
[57,1,"… Y NOSOTROS SOLO COMPRAMOS EN LA BOUTIIIIQUE, LA DEL CARAVASAR, JATE"]
[57,2,".... ET NOUS N'ACHETONS UNIQUEMENT QUE DANS LA BOUTIIIIQUE, DU CARAVANSÉRAIL"]
[57,1,"SSSSU-PEERRRR"]
[57,2,"SSSSU-PERRRR"]
[57,1,"SNOOPY GIRL NOW!!!"]
[57,2,"SNOOPY GIRL MAINTENANT !!!!"]
[57,1,"BUAAH, TIA COMO MOLAAA !!"]
[57,2,"WOW, C'EST TROP COOOOL !"]
[57,1,"Y NO COMO ESA GUARRA ESCOCESA SIN DEPLIAR, O SEA !"]
[57,2,"ET PAS COMME CETTE SALOPE D'ÉCOSSAISE MAL RASÉE, PAR EXEMPLE !"]
[57,1,"AY, CALLA TIO, QUE ME MAREOOO ! SABES ?!"]
[57,2,"OH, LA FERME, MEC, J'EN AI LE VEEEERTIGE ! TU SAIS ?!"]
[57,1,"MELAFO !!!"]
[57,2,"MELAFO !!!"]
[58,0,"http://i875.photobucket.com/albums/ab318/Hartmann71/Chistes/Pentesilea2_zps911558bd.jpg"]
[58,1,"POR HERA, ESOS MALDITOS FRIKIS DEGENERADOS, CADA VEZ PEOR, SI SUPIERAN LO QUE DE VERDAD IMPRTA !"]
[58,2,"PAR HERA, CES FOUTUS MONSTRES DÉGÉNÉRÉS, DE PIRE EN PIRE, S'ILS SAVAIENT CE QUI COMPTE VRAIMENT !"]
[58,1,"PERO !! QUÉ ESTAS DICIENDOOO ??! LA SPATHA DE CABALLERIA NO ESTA DOCUMENTADA HASTA EL LIBRO TERCERO DE HERODOTO Y ES POSTERIOR A …."]
[58,2,"MAIS ! QU'EST-CE QUE TU DIS ?! LA SPATHA DE LA CAVALERIE GREC N'EST PAS DOCUMENTÉE AVANT LE TROISIÈME LIVRE D'HÉRODOTE ET EST POSTÉRIEURE À ......"]
[58,1,"Y MIDE DOS MILIMETROS Y MEDIO MAS QUE LA DE LOS MIRMIDONES ! SI FUERA SOLO DOS, VALE, PERO ESE MEDIO MILIMETRO…"]
[58,2,"ET ELLE MESURE DEUX MILLIMÈTRES ET DEMI DE PLUS QUE CELLE DES MYRMIDONS ! SI C'ÉTAIT SEULEMENT DEUX, D'ACCORD, MAIS CE DEMI-MILLIMÈTRE..."]
[58,1,"Y UNA MIEEEERDA! LOS INDICIOS ARQUELOGICOS ESTUDIANOS POR SCHLIEMANN INDICAN QUE ERA PERFECTAMENTE POSIBLE QUE …."]
[58,2,"MERDIQUE ! LES INDICES ARCHÉOLOGIQUES ÉTUDIÉS PAR SCHLIEMANN INDIQUENT QU'IL ÉTAIT PARFAITEMENT POSSIBLE QUE ......."]
[58,1,"ADEMAS, QUE LOS GREGOS NO TENIAN MOTOS, MI CUNADOS ES MECANICO Y SABE MUCHO DE ESTO !"]
[58,2,"D'AILLEURS, LES GRECS N'AVAIENT PAS DE MOTOS, MON BEAU-FRÈRE EST MÉCANICIEN ET EN SAIT BEAUCOUP À CE SUJET !"]
[58,1,"CUATRO PAGINAS DE COMENTARIOS Y NI UNO SOBRE MI TRASERO !"]
[58,2,"QUATRE PAGES DE COMMENTAIRES ET PAS UNE SUR MON CUL !"]
[58,1,"HADES LES LLEVE A TODO…"]
[58,2,"QUE HADÈS VOUS EMMÈNE VOUS FAIRE FOU...."]
[59,0,"https://i875.photobucket.com/albums/ab318/Hartmann71/Chistes/Impromptu0005_zpsxvaeu0uk.jpg"]
[59,1,"COMO VA A TOMAR EL MARTINI, SENOR BOSTRIA ? MEZCLADO O AGITADO ?"]
[59,2,"COMMENT ALLEZ-VOUS PRENDRE LE MARTINI, MR BOSTRIA ? REMUÉ OU AGITÉ ?"]
[59,1,"AZUZADO, MUY AZUZADO "]
[59,2,"REMUÉ, TRÈS REMUÉ "]
[59,1,"SI SENOR"]
[59,2,"OUI, MONSIEUR. "]
[59,1,"… GÜENLOSPUTOSFRIKI ? Y SUS MANIAS YA, NOMBRE…. "]
[59,2,"... LES PUTAINS DE GEEKS ET LEURS MANIES ENCORE, .... "]
[59,1,"… ELEGI MAL DIA PARA DÉJÀ, DE METERME TITAS CITADEL EN VENA …"]
[59,2,"... J'AI CHOISI LE MAUVAIS JOUR POUR ARRÊTER DE M'INJECTER DES ENCRES CITADELLE DANS LES VEINES ...."]
[59,1,"NABEIS OIDO ?"]
[59,2,"VOUS AVEZ ENTENDU ?"]
[59,1,"QUE NA DI GNO ?"]
[59,2,"QUE DISAIT-IL ?"]
[59,1,"NO SE QUÉ DE \"ASESINOS FRIKI DE AVEPH \""]
[59,2,"JE NE SAIS PAS CE QUE SONT LES \"TUEURS DE MONSTRES D'ALEPH\"."]
[59,1,"NO, ERA \"MANIACOS DE RANCUNIN EN VENA \""]
[59,2,"NON, C'ÉTAIT \"DES MANIAQUES DANS LA VEINE BAKOUNINE\"."]
[59,1,"IDIOS, QUÉ IMPACIENCIA !"]
[59,2,"QUELS IDIOS, QUELLE IMPATIENCE !"]
[59,1,"QUE EL NUEVO GESTOR ES UN FRIKI!"]
[59,2,"LE NOUVEAU MANAGER EST UN MONSTRE !"]
[59,1,"CDIO! I QUEMADLO TODO!"]
[59,2,"LA HAINE ! TOUT BRÛLE !"]
[60,0,"http://www.toposolitario.com/infinity/tiracomica03.jpg"]
[60,1,"BIPRANDA, JUANCHO, RICO ! A MI SENAL… 5 SEGUNDOS Y ENTRAMOS JUNTAS, CARGA MAXIMA! IDOLOR EXTRAMO!"]
[60,2,"BIPRANDA, JUANCHO, RICO ! A MON SIGNAL.... 5 SECONDES ET NOUS ENTRONS ENSEMBLE, CHARGE MAXIMALE ! DOULEUR EXTRÊME !"]
[60,1,"MI ORDEN ES SUYA TENIENTE BEGO !"]
[60,2,"MON ORDRE EST LE VÔTRE, LIEUTENANT BEGO !"]
[60,1,"QUÉ OCURRE TENIENTE ?!"]
[60,2,"QU'EST-CE QUI SE PASSE LIEUTENANT ?!"]
[60,1,"MIRA QUE ME DA QUE NO"]
[60,2,"QU'EST CE QUE CELA VEUT DIRE."]
[60,1,"DEBE SER UN NUEVO Y COMPLEJO SISTEMA DE ANULACION NEURO-OPTICA DE LA IE !!"]
[60,2,"IL DOIT S'AGIR D'UN NOUVEAU SYSTÈME COMPLEXE D'ANNULATION NEURO-OPTIQUE DE L'IE !"]
[60,1,"NOOO !!"]
[60,2,"NOOON !"]
[60,1,"LO QUE PASA ES QUE … SE HA VUELTO A CAER LA PAGINA!"]
[60,2,"CE QUI SE PASSE, C'EST QUE... LE CALQUE EST ENCORE TOMBÉE !"]
[61,0,"https://i.imgur.com/UIvgTpv.jpg"]
[61,1,"SI NEVSKY, COMO LO OYES, TODOS LOS PUNTOS DE KARMA SON CANJEABLES POR SU VALOR EN PUNTOS DE TU EJERCITO FAVORITO!"]
[61,2,"SI NEVSKY, TEL QUE VOUS L'ENTENDEZ, TOUS LES POINTS DE KARMA SONT ÉCHANGEABLES POUR LEUR VALEUR EN POINTS DE VOTRE ARMÉE FAVORITE !"]
[61,1,"QUÉ OIGO !! ES POSSIBLE ?"]
[61,2,"QU'EST-CE QUE J'ENTENDS ! C'EST POSSIBLE ?"]
[61,1,"TE LO JURO POR MIS BILLETES DEL MONOPOLY! Y AL USUARIO CON MAS KARMA LE HAREMOS UN DIORAMA EN EXCLUSIVA … !"]
[61,2,"JE LE JURE SUR MES BILLETS DE MONOPOLY ! ET POUR L'UTILISATEUR AVEC PLUS DE KARMA, NOUS FERONS UN DIORAMA EXCLUSIF .... !"]
[61,1,"NO !!"]
[61,2,"NON !"]
[61,1,"SI! NO QUERIAS TU HAREN DE TARIK MONSURI ?"]
[61,2,"OUI ! VOUS NE VOULIEZ PAS DU HAREM DE TARIK MONSURI ?"]
[61,1,"AAAAAAHH… !"]
[61,2,"AAAAAAAAHH.... !"]
[61,1,"ESO ES UN SI ?"]
[61,2,"C'EST UN OUI ?"]
[61,1,"TU HAS VISTO QUE VACILADA ? QUÉ TIO ! I QUÉ MANEJO DE LOS RESORTES SI COLOGICOS, DE LA DICCION Y DE LAS CIRCUNSTANCIAS ! ES EL PUTO AMO !!"]
[61,2,"AS-TU VU DE QUOI HÉSITER ? QUEL GARS ! QUELLE MANIPULATION DES RESSORTS PSYCHOLOGIQUES, DE LA DICTION ET DES CIRCONSTANCES ! C'EST UN PUTAIN DE MAÎTRE !"]
[61,1,"LAS NUEVAS TECNOLOGIAS TIO, NOS HEMOS QUIEDAO ATRAS "]
[61,2,"LES NOUVELLES TECHNOLOGIES, MEC, ON EST RESTÉS EN RETARD. "]
[61,1,"NO SOMOS MA, Y O EMIGRO…"]
[61,2,"NOUS NE SOMMES PAS À LA HAUTEUR, J'ÉMIGRE...."]
[61,1,"I DELANTE DE MI TENGO EL FUTURO Y ES INEXORABLE !"]
[61,2,"ET DEVANT MOI, J'AI LE FUTUR ET IL EST INÉLUCTABLE !"]
[62,0,"https://i875.photobucket.com/albums/ab318/Hartmann71/Chistes/Impromptu0009_zpscdc7nwpw.jpg"]
[62,1,"IBUENAS NUEVAS, HIJO PREDILECTO! TRAS TU RECIENTE MEJORA HEMOS DECIDIDO DOTARTE DE UNA PROCEROSA MOTO DE COMBATE, LLAMADA BUCEFALO, EN HONOR A LA LEGENDARIA MONTURA DEL GRAND ALEJANDRO MAGNO!"]
[62,2,"BONNE NOUVELLE, MON FILS ADORÉ ! APRÈS TA RÉCENTE AMÉLIORATION, NOUS AVONS DÉCIDÉ DE T'ÉQUIPER D'UNE PUISSANTE MOTO DE COMBAT, APPELÉE BUCÉFALE, EN L'HONNEUR DE LA LÉGENDAIRE MONTURE D'ALEXANDRE LE GRAND !"]
[62,1,"COMO? QUE EL TIO TENIA UN CABALLO CON DOS CABEZAS ?"]
[62,2,"COMMENT ? IL AVAIT UN CHEVAL À DEUX TÊTES ?"]
[62,1,"BU-CEFALO!!! CON \"BU\", DE BURRO !!"]
[62,2,"PAS BICÉPHALE, BU-CÉFALE ! AVEC UN \"BU\" QUI VIENT DU GREC Boukephálas, BOURRIN !"]
[62,1,"EN QUÉ QUEDAMOS ? ERA UN BURRO O UN CABALLO ? Y CUANTAS CABEZAS TENIA ?"]
[62,2,"ET QUE RESTE T-IL POUR MOI ? EST-CE QUE C'EST UN BOURRIN OU UN CHEVAL ? ET COMBIEN DE TÊTES A T-IL ?"]
[62,1,"ADEMAS, YO LO QUE QUERIA ES PAQUETE MAS GRADE QUE EL DE DRAKIOS, CONTO…"]
[62,2,"EN PLUS, CE QUE JE VOULAIS, C'ÉTAIT UN PAQUET PLUS GRAND QUE CELUI DE DRAKIOS, JE COMPTE...."]
[62,1,"PERMISO PARA DISPARAR, GRAN ALEPH ?"]
[62,2,"PERMISSION DE TIRER, GRANDE ALEPH ?"]
[62,1,"YA-MISMO !"]
[62,2,"TOUT DE SUITE !\n*JEU DE MOT COMPLEXE BICÉPHALE/BUCÉPHALE + ENCORE UN JEU DE MOT AVEC L'ESPAGNOL D'ANE QUI À UNE BONNE PROXÉMIE ET SE PRONONCE BURRO "]
[63,0,"http://www.toposolitario.com/infinity/tiracomica02.jpg"]
[63,1,"EL GUERRERO FIDAY ES LA MAXIMA EXPRESSION DEL ESPIRITU COMBATIVO DE HAQUISLAM. UN SOLITARIO QUE PROFUNDIZA EN EL ARTE DE SIMULAR A LOS ADVERSARIOS DE LA FE… EN CADA MOVIMENTO, EN CADA GESTO PARA PODER ATTACAR DIRECTAMENTE EN LA YUGULAR DELENEMIGO USANDO SUS MISMAS ARMAS Y SUS MISMAS ESTRATEGIAS..."]
[63,2,"LE GUERRIER FIDAY EST L'EXPRESSION ULTIME DE L'ESPRIT COMBATIF DE HAQQISLAM. UN SOLITAIRE QUI SE PLONGE DANS L'ART DE SIMULER LES ADVERSAIRES DE LA FOI... DANS CHAQUE MOUVEMENT, DANS CHAQUE GESTE, POUR POUVOIR ATTAQUER DIRECTEMENT DANS LA JUGULAIRE DE L'ENNEMI, AVEC LES MÊMES ARMES ET LES MÊMES STRATÉGIES....."]
[63,1,"LISTO!! LA CULMINACION DE HORAS DE ESTIO DE LA FISIONOMIA Y ACTIACION DEL TAG PANOCEANICO. UNA SUPLANTACION PERFECTA, EL ARTE HECHO HOLOGRAMA… SI HASTA ME SALE EL NOIQUETE HIDRAULICO !! CHUIIIK, CHUIIIIK … CHUNK !! JEJEJE"]
[63,2,"PRÊT ! L'ABOUTISSEMENT D'HEURES D'ÉTUDE DE LA PHYSIONOMIE ET DE LA PERFORMANCE DES TAG PANOCÉANIENS. UNE SUPPLANTATION PARFAITE, UN HOLOGRAMME FAIT À LA MAIN... JEU PEUX MÊME OBTENIR LES SONS D'ARTICULATION ! CHUIIIK, CHUIIIIK, CHUIIIIK ....CHUNK ! HEHEHEHE"]
[63,1,"UNA HORA DESPUÉS…"]
[63,2,"UNE HEURE PLUS TARD...."]
[63,1,"SANTO MAHOMA… SI ME SACAS DE ESTRA PROMETO NO VOLVER A SALTARME UN BRIEFING, NO GASTAR BROMAS A LOS COLEGAS DE LA BASE, DÉJAR DE \"LEER\" EL PLAYKAZAK CON HOLOGRAMAS DE UXIA, NO VOLVER A CONSUMIR SEDA DE SERVICIO, DEJAR LAS …."]
[63,2,"SAINT MAHOMET... SI VOUS ME SORTEZ DE LÀ, JE PROMETS DE NE PLUS SAUTER UN BRIEFING, DE NE PLUS FAIRE DE BLAGUES AUX COLLÈGUES DE LA BASE, D'ARRÊTER DE \"LIRE\" LE PLAYKAZAK AVEC LES HOLOGRAMMES D'UXIA, DE NE PLUS CONSOMMER LE SERVICE EN SOIE, DE QUITTER LA....."]
[63,1,"VODKA!"]
[63,2,"VODKA !"]
[64,0,"http://i.imgur.com/rBWuI7q.png"]
[64,1,"ESTEEEE… M… ME PARECE QUE NA HABIDDO UNA UGERA CONFUSION…"]
[64,2,"HEUUU... J... JE CROIS QU'IL Y A EU UNE CERTAINE CONFUSION..."]
[64,1,"YA DECIA YO QUE ME PILLABA UN POCO LEJOS EL AVISO…"]
[64,2,"JE ME DISAIS BIEN QUE JE ME RENDAIS COMPTE QUE J'ALLAIS UN PEU LOIN..."]
[64,1,"MISIE COMISARIO…"]
[64,2,"VOYEZ LE COMMISSAIRE...."]
[64,1,"… O LE DICE AL OREJITOS CRUTE SE CAMBIE DE DIBUJO ! O LA VAMOS A TENER… !"]
[64,2,"... OU DITES AUX PETITS GÉNIES DE CHANGER LEUR DESSIN ! OU NOUS LES AURONS... !"]
[64,1,"SE NO IDO YA, ROBIN ?"]
[64,2,"IL N'EST PLUS LÀ, ROBIN ?"]
[64,1,"ICUIDADO BASMAN, SIGUE ANI !"]
[64,2,"ATTENTION BATMAN, RESTEZ CACHÉ !"]
[64,1,"I GLUPS!"]
[64,2,"JE GLISSE !"]
[65,0,"https://photobucket.com/gallery/user/Yasbir/media/cGF0aDovdHJvbGxpbmdfenBzNTFjYTJmY2QuanBn/?ref="]
[65,1,"CORVUS BELLI HQ"]
[65,2,"CORVUS BELLI HEADQUARTERS"]
[65,1,"THE ROOM OF INSIDIOUS RUMORS"]
[65,2,"LA CHAMBRE DES RUMEURS INSIDIEUSES"]
[65,1,"AND THEN I POSTED \"ALEPH'S ASSASSINS! \" AND THERE ARE ALREADY SEVEN PAGES OF NON-SENSE AND TWO USERS BANNED, HAHAHAHAA!"]
[65,2,"ET PUIS J'AI POSTÉ \"LES ASSASSINS D'ALEPH ! \"ET IL Y A DÉJÀ SEPT PAGES DE NON-SENS ET DEUX UTILISATEURS BANNIS, HAHAHAHAA !"]
[65,1,"THEY HADN'T RECOVERED FROM IT WHEN I SAID \"NEW RELEASES TOMORROW!\" FIVE TACHYCARDIAS AND FOURTEEN CASES OF INSOMIA !"]
[65,2,"ILS NE S'EN SONT PAS REVENUS QUAND JE LEUR AI DIT \" NOUVEAUTÉS DEMAIN \" ! PAS MOINS DE 5 TACHYCARDIES ET 14 CAS INSOMNIES !"]
[65,1,"AND WHEN THEY THINK THE WORST IS OVER, I POST \"WE HAVE A VIDEO CAMERA! THAT MAKES VIDEOS!\" AND HALF OF THEM WILL GRAB A SHOTGUN AND LEAVE CIVILAZATION!"]
[65,2,"ET QUAND ILS PENSERONT QUE LE PIRE EST PASSÉ, JE POSTERAI \"NOUS AVONS UNE CAMÉRA VIDÉO ! ÇA FAIT DES VIDÉOS !\" ET LA MOITIÉ D'ENTRE EUX PRENDRONT UN FUSIL ET QUITTERONT LA CIVILISATION !"]
[65,1,"GREAT! GREAT JOB, LACKEY!"]
[65,2,"GÉNIAL ! BEAU TRAVAIL, LAQUAIS !"]
[65,1,"AND THIS AFTERNOON I HIT THEM WITH: \"NEW FACTION! ASSAULT OF THE TELETUBBIES! \""]
[65,2,"ET CET APRÈS-MIDI, JE LEUR ENVOIE : \"NOUVELLE BOITE DE FACTION ! L'AGRESSION DES TÉLÉTUBBIES ! \""]
[65,1,"DO YOU HAVE A PROBLEM WITH THAT FACTION, PEON ?"]
[65,2,"AS-TU UN PROBLÈME AVEC CETTE FACTION, PÉON ?"]
[66,0,"http://i46.photobucket.com/albums/f109/Yasbir/WAvTM5O_zps739f4dd6.jpg"]
[66,1,"O GREAT LEADER! THE FANATIC PEAT IS DISTURBED BY OUR PREVENTION POLICY AND BY THE CLOSING OF THE FORUM (A WRETCHED HIVE OF SCUM AND VILLAINY)"]
[66,2,"Ô GRAND LEADER ! LES BOUSEUX FANATIQUES SONT TROUBLÉS PAR NOTRE POLITIQUE DE PRÉVENTION ET PAR LA FERMETURE DU FORUM (UNE MISÉRABLE RUCHE D'ORDURES ET DE VILENIES)."]
[66,1,"ARE THEY STILL BUYING ?"]
[66,2,"ILS ACHÈTENT TOUJOURS ?"]
[66,1,"YES, GREAT LEADER! BUT THEY SAY WE'VE STARTED TO RESEMBLE GAMES WORKSHOP!"]
[66,2,"OUI, GRAND LEADER! MAIS ILS DISENT QUE NOUS COMMENÇONS À RESSEMBLER À GAMES WORKSHOP !"]
[66,1,"HO HO HO, THOSE FOOLS! GAMES WORKSHOP, THEY SAY!! LET THEM CONTINUE TO UNDERESTIMATE OUR AMBITIONS …"]
[66,2,"HO HO HO, C'EST CRÉTINS! GAMES WORKSHOP, S'ILS SAVAIENT!! LAISSEZ LES CONTINUEZ À SOUS-ESTIMER NOS AMBITIONS …"]
[67,0,"http://i46.photobucket.com/albums/f109/Yasbir/AQUILESCADMUS.jpg"]
[67,1,"GREETINGS, MAYANAUTS !! A NEW MENACE LOOMS OVER ALL MANKIND, THE CADMUS SPECIAL AGENT NAISH SHKINN, MUCH HAS BEEN SAID ABOUT HER …"]
[67,2,"SALUTATIONS, MAYANAUTES ! UNE NOUVELLE MENACE PLANE SUR L'HUMANITÉ TOUTE ENTIÈRE, BEAUCOUP A ÉTÉ DIT SUR L'AGENT CADMUS SPÉCIAL NAISH SHKINN ..."]
[67,1,"… BUT DOUBTS ABOUT HER ORIGIN PERSIST, IS IT TRUE THAT SHE HAS BEEN ABLE TO MORPHO-SCAN ACHILLES ? HOW CAN IT HAPPEN ? IT WAS AN ALEPH DEFEAT OR THE GREATEST INTELLIGENCE OF THE SPHERE HAS A PLAN ?"]
[67,2,"... MAIS DES DOUTES PERSISTENT SUR SON ORIGINE, EST-IL VRAI QU'ELLE A PU RÉUSSIR À MORPHO-SCANNER ACHILLE ? COMMENT CELA A-T-IL PU ARRIVER ? ALEPH A T'ELLE ÉTÉ DÉFAITE OU EST-CE QUE LA PLUS GRANDE INTELLIGENCE DE LA SPHÈRE À UN PLAN ?"]
[67,1,"NAISH SHKIIN DOSSIER"]
[67,2,"DOSSIER DE NAISH SHKIIN"]
[67,1,"THE COMBINED ARMY LIES AHEAD (I)"]
[67,2,"L'ARMÉE COMBINÉE TROMPE EN AVANT (I)"]
[67,1,"EEEEEEYYYY, WHAT DO WE HAVE HERE ?!! WHAT SPAWN ARE YOU FROM, MY HORNY OVIPAROUS ?"]
[67,2,"HÉÉÉÉÉÉÉ, QU'AVONS NOUS LÀ ?!!! DE QUELLE ÉCLOSION VIENS-TU, MON OVIPARE EXCITÉ ?"]
[67,1,"MMM… IT TURNS ME ON TO SEE YOU SO IMPASSIVE … MY FAVOURITE MEAL IS HARD BOILED EGGS…"]
[67,2,"MMM... ÇA M'EXCITE DE TE VOIR SI IMPASSIBLE... MON PLAT PRÉFÉRÉ SONT LES OEUFS DURS À LA COQUE..."]
[67,1,"WE BELONG TO THE 'CA' NOW, WHAT IF WE COMBINE A WHILE ?"]
[67,2,"TU SAIS QUE NOUS APPARTENONS À L'ARMÉE COMBINÉE MAINTENANT ET SI NOUS COMBINIONS UN CERTAIN TEMPS ?"]
[67,1,"I WILL EAT YOU ALL THE YOLK… HOTTIE …"]
[67,2,"JE VAIS TE MANGER TOUT TON JAUNE D'OEUF.... BOMBASSE...."]
[67,1,"THAT'S THE LAST STRAW ! HUNDREDS OF HUMAN TROOPS REGISTERED, HUNDREDS ! BUT SHE HAS TO MORPHO-SCAN THIS ONE !!!!"]
[67,2,"C'EST LA GOUTTE D'EAU QUI A FAIT DÉBORDER LE VASE ! DES CENTAINES DE TROUPES HUMAINES RÉPERTORIÉES, DES CENTAINES ! MAIS IL FAUT QU'ELLE MORPHO-SCAN CELUI-LÀ !!!!"]
[67,1,"FFFF… WHO KNOWS WHAT SHE SAW IN THIS IDIOT ACHILLES !!"]
[67,2,"PFFFF... QUI SAIT CE QU'ELLE A BIEN PU VOIR DANS CET IDIOT D'ACHILLE !!"]
[67,1,"SEE TAKE AWAY HIS… HIS BLONDE HAIR AND HIS SQUARE JAW AND HIS POWERFULL MUSCLES … AND WHAT DO YOU HAVE ? HU? WHAT DO YOU HAVE ?"]
[67,2,"SI ON LUI RETIRE SES... SES CHEVEUX BLONDS, SA MÂCHOIRE CARRÉE ET SES MUSCLES SAILLANTS... QU'EST-CE QUE VOUS AVEZ ? HEIN ? QU'EST-CE QUE VOUS AVEZ ?"]
[67,1,"YOU ! "]
[67,2,"VOUS ! "]
[67,1,"BITCH !"]
[67,2,"PUTAIN !"]
[67,1,"NAISHHHHH, BABYYYY, SPEAKING YOUR FAVORITE DEMIGOD !! WOULD YOU LIKE ANOTHER LITTLE MORPHO-SCAN THIS WEEKEND OR DO YOU HAVE ONE OF 'THESE DAY' ?"]
[67,2,"NAISHHHHHHHH, BABYYYYYY, EN PARLANT DE TON DEMI-DIEU PRÉFÉRÉ ! AIMERAIS-TU UN AUTRE PETIT MORPHO-SCAN CE WEEK-END OU L'UN DE ‘CES JOURS' ?"]
[67,1,"AH OK, YOU HAVE TO GENOCIDE THEN… WOULD YOU LET ME HALF DOZEN OF YOUR SPAWN-EMBRYO ?"]
[67,2,"AH OK, VOUS DEVEZ GÉNOCIDER ALORS.... POURRAIS-TU ME LAISSER UNE PETITE DEMI-DOUZAINE DE TES EMBRYON-ŒUFS ?"]
[67,1,"HOW ? GO TO WHERE ?"]
[67,2,"COMMENT ? ALLER LÀ OÙ ?"]
[67,1,"AHHHH, I LIKE WHEN YOU SAY DIRTY THINGS…"]
[67,2,"AHHHHHH, J'AIME QUAND TU DIS DES CHOSES COCHONNES...."]
[67,1,"NOW !! HE IS DISTRACTED !!! BRING IT TO ME !"]
[67,2,"MAINTENANT !! IL EST DISTRAIT !!! APPORTE-LE-MOI !"]
[67,1,"BUT ALEPH WILL HAVE A COPY IN LITTLE TIME …"]
[67,2,"MAIS ALEPH LE RECRÉERA EN PEU DE TEMPS…"]
[67,1,"IT TAKES TWELVE HOURS, TWELVES HOURS OF CALM, PEACE GLORY …"]
[67,2,"IL LUI FAUT DOUZE HEURES, DOUZE HEURES DE CALME, DE PAIX, DE GRÂCES..."]
[67,1,"TWELVE ? SHUT UP AND AIM AT THE HEAD !"]
[67,2,"DOUZE ? TAIS-TOI ET VISE LA TÊTE !"]
[68,0,"http://sia1.subirimagenes.net/img/2013/09/15/13091504592463640.jpg"]
[68,1,"BLIND DATE"]
[68,2,"RENDEZ-VOUS ARRANGÉ"]
[68,1,"ALEPH IS YOUR FIREND (V)"]
[68,2,"ALEPH EST VOTRE AMIE (V)"]
[68,1,"VERY FUNNY, TRASIMEDES! YOU SAY YOU'VE FOUND ATALANTA'S \"BUNNY\", AND WHEN I GO TO GIVE HER MY HOMERIC SALAMI, SHE'S NOWHERE TO BE FOUND,"]
[68,2,"TRÈS DRÔLE, TRASIMEDES ! TU DIS QUE TU AS TROUVÉ LE \"TROU À CAROTTE\" D'ATALANTE ET QUE TANT QUE JE LUI OFFRIRAI MON SALAMI HOMÉRIQUE, ON NE LA TROUVERA NULLE PART..."]
[68,1,"NOW CAN YOU TELL ME, WHAT IS THIS SHI… ?"]
[68,2,"DIS-MOI DONC MAINTENANT, QU'EST-CE QUE C'EST QUE CETTE CONNER... ?"]
[68,1,"IT'S MY SPOTBOT, ASSHOLE !!!!"]
[68,2,"C'EST MON SPOTBOT, CONNARD !!!!"]
[68,1,"HEEEY, GIRL !!! LIKE PURE FIRE ! THAT'S HOW I LIKE YOU, HARD AND FIERCE AT FIRST, BEFORE DADDY ACHILLES SOFTENS YOU WITH HIS AMBROSIA DISPENSER!"]
[68,2,"HÉÉÉ, POUPÉE !!! UN VRAI BRASIER ! C'EST COMME ÇA QUE JE T'AIME, DUR ET FÉROCE AU DÉBUT, AVANT QUE PAPA ACHILLE NE T'AMADOUE AVEC SON DISTRIBUTEUR À NECTAR !"]
[68,1,"DAMN, LISTEN TO WHAT I TELL YOU! AIM AT THE VITALS, THE VITALS !"]
[68,2,"BON SANG, ÉCOUTE CE QUE JE DIS ! VISE LES ORGANES VITAUX, LES ORGANES VITAUX !"]
[68,1,"WAIT! … TRASIMEDES, TELL ME THE BITCH DIDN'T SIGE MY PERFECT \"OLYMPIC TEMPTATION\" HAIR"]
[68,2,"ATTENDS ! ... TRASIMEDES, DIS-MOI QUE LA SALOPE N'A PAS GRILLÉE MA PARFAITE COUPE \"TENTATION OLYMPIQUE\" ?"]
[69,0,"http://i46.photobucket.com/albums/f109/Yasbir/ariandaTAG_zps3c43cf30.jpg"]
[69,1,"CORVUS BELLI HEADQUARTERS"]
[69,2,"CORVUS BELLI SIÈGE SOCIAL"]
[69,1,"R+D DEPARTMENT"]
[69,2,"DÉPARTEMENT R&D"]
[69,1,"OH, GREAT LEADER ! I COME FROM THE FORUM, THE FANATIC PIAT IS DEMANDING THE PRODUCTION OF AN ARIADNA TAG AGAIN!"]
[69,2,"Ô GRAND LEADER ! JE M'EN VIENS DU FORUM ET LES BOUSEUX FANATIQUES RÉCLAMENT ENCORE LA PRODUCTION D'UN TAG ARIADNAIS !"]
[69,1,"HAVE THEY STARTED TALKING ABOUT A MANGA, SERIES, THEIR PRON-ACTOR NAMES, OR UPLOADING PICTURES OF HUMAN WOMEN IN G-STRINGS ?"]
[69,2,"ONT-ILS COMMENCÉ À PARLER D'UN MANGA, D'UNE SÉRIE, DE NOMS D'ACTRICES PORNOS, OU À TÉLÉCHARGER DES PHOTOS DE FEMMES HUMAINES EN G-STRING ?"]
[69,1,"NOT YET, OH GREAT LEADER, THERE ARE NO SIGNS OF ALIENATING ABSURD IDEAS !"]
[69,2,"PAS ENCORE, Ô GRAND LEADER, IL N'Y A AUCUN SIGNES D'IDÉES ABSURDES OU ALIÉNANTES !"]
[69,1,"THEN THEY'RE NOT YET RIPE, WE'LL LET THEM STEW A FEW MONTHS MORE …"]
[69,2,"ALORS ILS NE SONT PAS ENCORE À POINT, ON VA LES LAISSER MIJOTER ENCORE QUELQUES MOIS..."]
[69,1,"… AND WHEN THEY'RE AT THE LIMIT … THEY'LL FLIP OUT !"]
[69,2,"... ET QUAND ILS SERONT À BOUT DE SOUFFLE... ILS CRAQUERONT... !"]
[69,1,"YOU'RE FANTASTIC, O GREAT LEADER !!"]
[69,2,"VOUS ÊTES FANTASTIQUE, Ô GRAND LEADER !!"]
[69,1,"YOU CAN FLATTER ME LATER, LACKEY, NOW BRING ME A MARTINI"]
[69,2,"VOUS POURREZ TOUJOURS ME FLATTER PLUS TARD, LAQUAIS, MAINTENANT APPORTEZ MOI UN MARTINI"]
[69,1,"SHAKEN, NOT STIRRED"]
[69,2,"SECOUÉ, PAS REMUÉ"]
[70,0,"http://i46.photobucket.com/albums/f109/Yasbir/veteran_zps83967c30.jpg"]
[70,1,"MAYA CONFESSIONS"]
[70,2,"CONFESSIONS MAYAS"]
[70,1,"VOICES OF THE VETERANS"]
[70,2,"PAROLES DE VÉTÉRANS"]
[70,1,"I'VE BEEN ON THESE FORUMS SINCE THE BEGINNING …"]
[70,2,"JE SUIS SUR CES FORUMS DEPUIS LE DÉBUT..."]
[70,1,"I'VE SEEN THINGS YOU PEOPE WOULDN'T BELIEVE !"]
[70,2,"J'AI VU TANT DE CHOSE QUE VOUS AUTRES NE POURRIEZ PAS CROIRE !"]
[70,1,"ATTACK THREADS ON FIRE OFF THE SHOULDER OF ORION !!!"]
[70,2,"DE GRANDS THREADS EN FEU SURGISSANT DE L'ÉPAULE D'ORION !!"]
[70,1,"TWENTY PAGES OF ARGUMENT ABOUT MINIATURES AND SEXISM IN LESS THAN TWO HOURS "]
[70,2,"VINGT PAGES D'ARGUMENTS AUTOUR DES FIGURINES ET DU SEXISME EN MOINS DE DEUX HEURES "]
[70,1,"BOSTRIA BETTING HIS MONOPOLY MONEY FOR AN UPDATE DATE AND WINNING (GRANTED ONLY ONCE)"]
[70,2,"BOSTRIA PARIANT L'ARGENT DE SON MONOPOLE SUR UNE DATE DE MISE À JOUR ET REMPORTER LA MISE (ACCORDÉ UNE SEULE FOIS)"]
[70,1,"PAGES OF POSSIBLE PORN ACTOR NAMES IN A SPECULATION THREAD !!!"]
[70,2,"DES PAGES DE NOMS D'ACTEURS PORNOS POTENTIELS DANS UN THREAD SPÉCULATIF !!!"]
[70,1,"I WATCHED FLASH PULSES GLITTERING IN THE DARK NEAR THE TANNHÄUSER GATE"]
[70,2,"J'AI VU DES RAYONS FABULEUX, DES RAYONS C, BRILLER DANS L'OMBRE DE LA PORTE DE TANNAHAUSER."]
[70,1,"AND YU JING PLAYERS ENTHUSIASTICALLY PRAISING THEIR COMPETITIVE AND BALANCED UNIT PROFILES !"]
[70,2,"ET DES JOUEURS YU JING LOUANT AVEC ENTHOUSIASME LEURS PROFILS D'UNITÉS COMPÉTITIFS ET ÉQUILIBRÉS !"]
[70,1,"LISTEN, YOU CLOWN, THE MONOPOLY THING COULD BE TRUE, BUT THE LAST ONE, NO WAY IN HELL!"]
[70,2,"ÉCOUTE, ESPÈCE DE CLOWN, LE TRUC DU MONOPOLE POURRAIT ÊTRE VRAI, MAIS LE DERNIER, C'EST N'IMPORTE QUOI !"]
[70,1,"AH, WELL,… A LITTLE POETIC LICENSE ?"]
[70,2,"AH, EN FAIT,.... UN PEU DE LICENCE POÉTIQUE ?"]
[70,1,"HOW ABOUT A LITTLE SLICE WITH MY KATANA ?"]
[70,2,"QUE DIRAIS-TU D'UN PEU DE MON KATANA ?"]
[70,1,"LOOK, BIPANDRA, THE CHINESE ARE ALREADY CRYING "]
[70,2,"ÉCOUTE, BIPANDRA, LES CHINOIS SONT DÉJÀ EN TRAIN DE PLEURER. "]
[70,1,"WHAT A BUNCH OF SISSIES"]
[70,2,"QUELLE BANDE DE MAUVIETTES !"]
[70,1,"HE SAID WIP 12 HEH HEH"]
[70,2,"IL DIT VOL 12 HÉ HÉ HÉ"]
[70,1,"HAQQISLAMIC MOTHERFUCKER"]
[70,2,"HAQQISLAMIQUE MOTHERFUCKER."]
[71,0,"http://i46.photobucket.com/albums/f109/Yasbir/odaliscas.jpg"]
[71,1,"I, TARIK MANSURI, AMIR OF KHAWARIJS, HAVE SERVED GLORIOUSLY TO HAQQISLAM DURING 40 YEARS !"]
[71,2,"MOI, TARIK MANSURI, ÉMIR DES KHAWARIJS, J'AI GLORIEUSEMENT SERVI HAQQISLAM DURANT 40 ANS !"]
[71,1,"I'VE RELISH ONE HUNDRED VICTORIES IN THE FRONT OF THE SWORD OF ALLAH !!!"]
[71,2,"J'AI SAVOURÉ UNE CENTAINE DE VICTOIRES SOUS LE SABRE D'ALLAH !!!"]
[71,1,"I'VE FOUGHT ON BOARD THE MATUTANO AND I'VE SEEN ATTACK SHIPS ON FIRE OFF THE SHOULDER OF ORION !!"]
[71,2,"J'AI COMBATTU À BORD DU MATUTANO ET J'AI VU DES VAISSEAUX D'ATTAQUE EN FEU AU LARGE DE L'ÉPAULE D'ORION !!"]
[71,1,"AND FROM MY FIGHTS WITH THE ALIEN DEMONS I CONSERVE MY COLLECTION OF CASKUDA SHELLS !"]
[71,2,"ET DE MES COMBATS AVEC LES DÉMONS ALIENS, JE CONSERVE MA COLLECTION DE COQUILLAGES CASKUDA !"]
[71,1,"I ENVY YOU, SIR !"]
[71,2,"JE VOUS ENVIE, MONSIEUR !"]
[71,1,"CAN YOU BELIEVE, MY FAITHFULL HASSAN, THAT IN SPITE OF EVERYTHING WHAT I'VE LIVED, TODAY IS THE MOST EXCITING DAY OF ALL MY CARREED ?"]
[71,2,"POUVEZ-VOUS CROIRE, MON FIDÈLE HASSAN, QU'EN DÉPIT DE TOUT CE QUE J'AI VÉCU, QU'AUJOURD'HUI EST LA JOURNÉE LA PLUS EXCITANTE DE TOUTE MA CARRIÈRE ?"]
[71,1,"I ENVY YOU, SIR !"]
[71,2,"JE VOUS ENVIE, MONSIEUR !"]
[71,1,"I'VE BEEN THE CHOSEN ONE TO DECORATE THE THIRD SULTAN'S REGIMENT OF ODALISQUES …. !!!! AARGFFFSSSS, IIIINNSSSS … !!"]
[71,2,"J'AI ÉTÉ CHOISI POUR DÉCORER LE TROISIÈME RÉGIMENT D'ODALISQUES DU SULTAN… !!! AARGFFFSSSS, IIIINNSSSSSS ... !!"]
[71,1,"MEDALS TO THEIR BOSOMSSS … !!!"]
[71,2,"DES MÉDAILLES SUR LEURS POITRINEEES... !!!"]
[71,1,"I REALLY REALLY ENVY YOU, SIR !!"]
[71,2,"JE VOUS ENVIE TELLEMENT TELLEMENT, MONSIEUR !!"]
[71,1,"YOU WILL NOT HAVE PUT THE I-KHOL, MM, HASSENA ?"]
[71,2,"VOUS N'ALLEZ PAS APPLIQUER D'I-KHOL, MMMH, HASSENA ?"]
[71,1,"HA! THE I-KHOL IT'S NOT WHAT ARE THEY PAYING ATTENTION TO …"]
[71,2,"HA ! L'I-KHOL, CE N'EST PAS CE À QUOI ILS PRÊTENT ATTENTION POUR ..."]
[72,0,"http://i875.photobucket.com/albums/ab318/Hartmann71/Chistes/Chiste-Ingles.jpg"]
[72,1,"AAARGH, I WAS WOUNDED BY A GAKI !!"]
[72,2,"AAARGH, J'AI ÉTÉ BLESSÉ PAR UN GAKI !!"]
[72,1,"HOLD ON !! I'M SUCKING YOUR WOUND TO EXTRACT THE POISON !!"]
[72,2,"TENEZ BON !! JE VAIS SUCER VOTRE BLESSURE POUR EN EXTRAIRE LE POISON !!"]
[72,1,"AAAARGGGHH, I AM CYANIDE-BITTEN … !!!!"]
[72,2,"AAAAARGGGHH, J'AI EU UNE MORSURE AU CYANURE... !!!!!!!!"]
[72,1,"YEAH !"]
[72,2,"OUAIS !"]
[72,1,"YEAH !"]
[72,2,"OUAIS !"]
[72,1,"YEAH !"]
[72,2,"OUAIS !"]
[73,0,"http://i.imgur.com/dXud76X.jpg"]
[73,1,"WHAT'S A GIRL LIKE YOU DOING IN A PLACE LIKE THIS ? "]
[73,2,"QU'EST-CE QU'UNE FILLE COMME TOI FAIT DANS UN ENDROIT COMME CELUI-CI ? "]
[73,1,"ALEPH IS YOUR FRIEND (VI)"]
[73,2,"ALEPH EST VOTRE AMI (VI)"]
[73,1,"WELL, WELL, WHAT DO WE HAVE HEEEERE ? A TENDER,LITTLE ARIADNAN PROLET ARIAN, ALL ALONE IN THE FOREST, A CURVY SICKLE WITHOUT A HARD HAMMER ! YOU MAKE ME WANT TO BE YOUR COMRADE, BABY ! WHAT DO YOU DO ?"]
[73,2,"BIEN, BIEN, BIEN, QU'EST-CE QU'ON A LÀÀÀÀ ? UNE TENDRE ET PETITE PROLÉTARIENNE ARIADNAISE, TOUTE SEULE DANS LA FORÊT, UNE FAUCILLE COURBE SANS UN GROS MARTEAU ! TU ME DONNES ENVIE D'ÊTRE TON KAMARADE, BÉBÉ ! QU'EST-CE QUE TU FAIS ?"]
[73,1,"I'M AN ANTIPODES EXPERT"]
[73,2,"JE SUIS UNE EXPERTE EN ANTIPODES."]
[73,1,"ANTIPODES ? KMMMMH... NEVER HEARD OF THAT POSITION, I WAS GOING TO GIVE YOU A LITTLE OF THE 'TROJAN HORSE\", BUT BEFORE THAT, WOULD YOU TAKE A MOMENT TO EXPLAIN IT TO ME ?"]
[73,2,"ANTIPODES ? MMMMMMH.... JAMAIS ENTENDU PARLER DE CETTE POSITION, J'ALLAIS TE PROPOSER UN PETIT \" CHEVAL DE TROIE \", MAIS AVANT CELA, PRENDRAIS-TU UN MOMENT POUR ME L'EXPLIQUER ?"]
[73,1,"MMMMHHH ?"]
[73,2,"MMMMHHHH ?"]
[73,1,"SURE, I'LL SHOW YOU, CHAMP…."]
[73,2,"BIEN SÛR, JE VAIS TE LA MONTRER, CHAMP......"]
[73,1,"WOW! I HEAR THE ECHOS OF MY HOWLING AHEAD !"]
[73,2,"WOW ! J'ENTENDS LES ÉCHOS DE MON HURLEMENT DANS MA TÊTE !"]
[74,0,"http://i46.photobucket.com/albums/f109/Yasbir/tarik2_zps636d2463.jpg"]
[74,1,"THE SHADOW OF TARIK IS LENGTHENING"]
[74,2,"L'OMBRE DE TARIK S'ALLONGE"]
[74,1,"MANAL FOR INFIDELS (VIII)"]
[74,2,"MANUEL POUR LES INFIDÈLES (VIII)"]
[74,1,"WOW, SISTER AISHA, WITH THE NEW RUNIHURA TREATMENTS, AMIR TARIK HAS BECOME ENORMOUS!"]
[74,2,"WOW, SŒUR AISHA, AVEC LES NOUVEAUX TRAITEMENTS RUNIHURA, AMIR TARIK EST DEVENU ÉNORME !"]
[74,1,"NOT ENORMOUS, MAHSATI, IM-MEN-SE, MMMMM…"]
[74,2,"PAS ÉNORME, MAHSATI, IM-MEN-SE, MMMMM...."]
[74,1,"BAH IGNORANT WOMEN !! IT'S NOT THE SIZE THAT'S IMPORTANT…"]
[74,2,"BAH FEMMES IGNORANTES !! CE N'EST PAS LA TAILLE QUI EST IMPORTANTE..."]
[74,1,"AH, AND THE REST, HIS BODY TOO, OF COURSE…"]
[74,2,"AH, ET LE RESTE DE SON CORPS AUSSI, BIEN SÛR...."]
[74,1,"… BUT THE BRIGHTNESS OF THE HIGHLIGHTS !"]
[74,2,"... MAIS LA CLARTÉ DES REFLETS !"]
[74,1,"DAMN! ANOTHER BUZZING IN MY EAR… I'LL WAKE UP WITH A HEADACHE"]
[74,2,"BON SANG ! UN AUTRE BOURDONNEMENT DANS MON OREILLE.... JE VAS ME RÉVEILLER AVEC UN MAL DE TÊTE."]
[75,0,"http://i46.photobucket.com/albums/f109/Yasbir/EGG.jpg"]
[75,1,"COSSACK CUSTOMS"]
[75,2,"COUTUMES COSSACK"]
[75,1,"CHRONICLES OF THE DEEPEST ARIADNA (III)"]
[75,2,"CHRONIQUES DES PROFONDEURS DE L'ARIADNA (III)"]
[75,1,"TWO THINGS ! HATE ABOUT THE COSSACKS !! FIRST, THE DAMNED AIM OF THEIR TANKHUNTERS"]
[75,2,"DEUX CHOSES QUE JE DÉTESTE CHEZ LES COSSACKS !!! PREMIÈREMENT, LA MAUDITE VOCATION DE LEURS TANKHUNTERS."]
[75,1,"SECOND: THEIR STUPID SENS OF HUMOR !!"]
[75,2,"DEUXIÈMEMENT : LEUR STUPIDE SENS DE L'HUMOUR !!!"]
[75,1,"THE CASKUDA, THE CASKUDA, (OUNDUNDUN) CAN'T WALK ANYMORE !! "]
[75,2,"CASKUDA, CASKUDA, (OUNDUNDUN) NE PEUT PLUS MARCHER !!! "]
[75,1,"BECAUSE IT DOESN'T HAVE, BECAUSE IT 'S LACKING (OUNDUNDUN) A LEG TO WALK !"]
[75,2,"PARCE QU’IL N’A PAS, PARCE QU'IL LUI MANQUE (OUNDUNDUN) UNE JAMBE POUR MARCHER !"]
[75,1,"HA HAHA !!! VERY GOOD IGOR !"]
[75,2,"HA HA HAHA ! !!!!! EXCELLENT IGOR !"]
[75,1,"I KNOW ANOTHER !! HOW THEY SAY IN SHASVASTII DEPLOY REINFORCEMENTS ???"]
[75,2,"J'EN CONNAIS UNE AUTRE ! !!! COMMENT DIT-ON EN SHASVASTII \"DÉPLOYER DES RENFORTS\" ?"]
[75,1,"TELL ME "]
[75,2,"DIS-MOI "]
[75,1,"EGG ON !!"]
[75,2,"QUEL OEUF !! * ANCIENNE EXPRESSION POPULAIRE POUR IMBÉCILE"]
[76,0,"http://i46.photobucket.com/albums/f109/Yasbir/Infinity/Cosacos01.jpg"]
[76,1,"COSSACK CUSTOMS"]
[76,2,"COUTUMES COSSACK"]
[76,1,"CHRONICLES OF THE DEEPEST ARIADNA (IV)"]
[76,2,"CHRONIQUES DES PROFONDEURS DE L'ARIADNA (IV)"]
[76,1,"GREETINGS, TOBAPNWN !! YOU WERE CALLED FOR AN IMPORTANTE MISSION SEARCH AND CAPTURE AGAINST THE IE I'LL GIVE YOU DETAILS, PAY ATTENTION"]
[76,2,"SALUTATIONS, TOBAPNWN !!!! VOUS AVEZ ÉTÉ CONVOQUÉ POUR UNE MISSION IMPORTANTE DE RECHERCHE ET DE CAPTURE CONTRE L'IE, SOYEZ ATTENTIF, JE VAIS VOUS DONNER LES DÉTAILS DE MISSION."]
[76,1,"COMRADE VASSILY, TURN ON THE PROJECTOR !"]
[76,2,"KOMARRRADE VASSILI, ALLUMEZ LE PROJECTEUR !"]
[76,1,"YES, LIEUTNANT… ERM… DA COMRADE!"]
[76,2,"OUI LIOUTNANT… HEUM… DA KOMRADE !"]
[76,1,"LAST WEEK OUR EARLY WARNING SATELLITE DETECTED A SHAVASTII TROOP TRANSPORT, IN ROUTE TO COORDINATES NEAR TO OUR POSITION, PROBABLY WITH REINFORCEMENTS"]
[76,2,"LA SEMAINE DERNIÈRE, NOTRE SATELLITE D'ALERTE AVANCÉE A DÉTECTÉ UN TRANSPORT DE TROUPES SHASVASTII, EN ROUTE VERS DES COORDONNÉES PROCHES DE NOTRE POSITION, PROBABLEMENT AVEC DES RENFORTS."]
[76,1,"WTF ?!"]
[76,2,"WTF ?!"]
[76,1,"TO INTERCEPT THEM THE FIFTH TANKHUNTERS REGIMENT DEPLOYED IN VANGUARD, WILL BE EQUIPED WITH RECOILLESS CANNONS DEVELOPED BY THE R&D COMRADES"]
[76,2,"POUR LES INTERCEPTER, LE CINQUIÈME RÉGIMENT DE TANKHUNTERS, DÉPLOYÉ EN AVANT-GARDE, SERA ÉQUIPÉ DE CANONS SANS RECUL DÉVELOPPÉS PAR LES KOMARRRADES DE LA R&D"]
[77,0,"https://i.pinimg.com/564x/32/38/52/32385270b7db5f16dd4b54e362f633f2.jpg"]
[77,1,"SURRENDER YOUR WEAPON TO THE POWER OF THE VULTRAMARINERS. FOR THE GREATER GLORY OF THE UBEREMPEROR!"]
[77,2,"REMETTEZ VOTRE ARME À LA PUISSANCE DES VULTRAMARINERS. POUR LA PLUS GRANDE GLOIRE DE L'ÜBEREMPEROR !"]
[77,1,"YOU ARE SICK!"]
[77,2,"VOUS ÊTES MALADE !"]
[77,1,"LOOSER! …. HOHOHO"]
[77,2,"LOOSER! …. HOHOHO"]
[78,0,"http://i46.photobucket.com/albums/f109/Yasbir/sacredobjetctive_zpsdadb6c31.jpg"]
[78,1,"THE MOST SACRED OBJECTIVE"]
[78,2,"L'OBJECTIF LE PLUS SACRÉ"]
[78,1,"MANUAL FOR INFIDELS, PART IX"]
[78,2,"MANUEL POUR LES INFIDÈLES, PART IX"]
[78,1,"FIDAY SHOOL, MEDINA, LIEUTENANT-INSTRUCTOR YASBIR'S SPEECH OT THE CADETS"]
[78,2,"ÉCOLE FIDAY, MÉDINA, DISCOURS AUX CADETS PAR LE LIEUTENANT-INSTRUCTEUR YASBIR"]
[78,1,"DEAR DISCIPLES, NOW IS THE FINAL PHASE OF YOUR TRAINING "]
[78,2,"CHERS DISCIPLES, C'EST DÉSORMAIS LA PHASE FINALE DE VOTRE ENTRAINEMENT. "]
[78,1,"YOU SHOULD ALWAYS REMEMBER THAT YOU ARE THE CHOSEN ONES, ALLAH'S ANGELS OF DESTRUCTION HIS MOST LETHAL BLADES …"]
[78,2,"VOUS DEVEZ TOUJOURS VOUS RAPPELER QUE VOUS ÊTES LES ÉLUS, LES ANGES DE DESTRUCTION D'ALLAH, SES LAMES LES PLUS MORTELLES..."]
[78,1,"… AND THAT YOUR FAITH IN YOUR CAUSE IS EVEN MORE IMPORTANT THAN YOUR YEARS OF DIFFICULT TRAINING"]
[78,2,"... ET QUE VOTRE FOI EN VOTRE CAUSE EST ENCORE PLUS IMPORTANTE QUE VOS LONGUES ET DIFFICILES ANNÉES D'ENTRAÎNEMENT."]
[78,1,"AND SO EVEN THOUGH YOU'RE ALONE AMONG THE ENEMY AND THE ODDS SEEM INSURMONTABLE, NEVER FORGET THAT HAQQISLAM SEES YOU AS ITS BEST SONS"]
[78,2,"ET DONC MÊME SI VOUS ÊTES SEUL PARMI L'ENNEMI ET QUE VOS CHANCES SEMBLENT INVRAISEMBLABLES, SOUVENEZ-VOUS QUE HAQQISLAM VOUS CONSIDÈRE COMME SES MEILLEURS FILS."]
[78,1,"… AND IF YOU CARRY ON YOUR HIGH MORALS, AND BELIEVE ALLAH IS YOUR SIDE …"]
[78,2,"... ET SI VOUS MAINTENEZ VOS HAUTES VALEURS MORALES, ET QUE VOUS TENEZ ALLAH À VOS CÔTÉS ...."]
[78,1,"\"… NO OBJECTIVE WILL BE TOO HARD TO ACHIEVE !\""]
[78,2,".... ALORS AUCUN OBJECTIF NE SERA TROP DIFFICILE À ATTEINDRE !"]
[78,1,"YES! FINALLY, AFTER ALL THESE YEARS, I'VE MASTERED IMPERSONATION PLUS !"]
[78,2,"OUI ! ENFIN, APRÈS TOUTES CES ANNÉES, J'AI MAÎTRISÉ SUPPLANTATION PLUS !"]
[78,1,"I'M THE FUCKIN MAN!"]
[78,2,"JE SUIS UN PUTAIN D'HOMME !"]
[78,1,"LADIES, FEAR ME! MWAHAHAHAA …"]
[78,2,"MESDAMES, CRAIGNEZ-MOI ! MOUAHAHAHAHAA ...."]
[79,0,"http://i46.photobucket.com/albums/f109/Yasbir/pinandpom.jpg"]
[79,1,"I'M PIN !!"]
[79,2,"JE SUIS PIN !!"]
[79,1,"I'M POM !!"]
[79,2,"JE SUIS POM !!"]
[79,1,"HERE WE GO, PIN AND POM, PIN AND POM "]
[79,2,"NOUS Y VOILÀ, PIN ET POM, PIN ET POM "]
[79,1,"OH HOW CUTE !! MI DAUGHTER PLAYS WITH TWO TOYS LIKE YOU… !"]
[79,2,"OH COMME C'EST MIGNON !!! MA FILLE JOUE AVEC DEUX JOUETS COMME VOUS... !"]
[79,1,"BUT I'S NOT \"POM\", IT'S \"PON\" YOU ARE BADLY PROGRAMM…"]
[79,2,"MAIS CE N'EST PAS \"POM\", C'EST \"PON\" VOUS ÊTES MAL PROGRAMMÉS...."]
[79,1,"SON OF A BITCH, FUCKING NOMADS !!"]
[79,2,"FILS DE PUTE, DE PUTAIN DE NOMADES !!"]
[79,1,"ALLAH MAY CURSE YOU !!"]
[79,2,"QU'ALLAH VOUS MAUDISSE !"]
[79,1,"DOOOOOOCTOOORRR !!!"]
[79,2,"DOOOOOOOOCTEUUURRR !!!"]
[79,1,"WHAT HAPPENS ? DO YOU WANT \"ANOTHER RESCUE BREATH\" ?"]
[79,2,"QUE SE PASSE-T-IL ? VOUS VOULEZ \"UN AUTRE BOUCHE À BOUCHE\" ?"]
[79,1,"MASSAI MORAN ENJOYING HIS JOB"]
[79,2,"UN MASSAI MORAN AIMANT SON TRAVAIL"]
[80,0,"http://i875.photobucket.com/albums/ab318/Hartmann71/Chistes/Spetsnaz%20In%20Love2-jpg_zpso54dtgbt.jpg"]
[80,1,"SPETNAZ IN LOVE II"]
[80,2,"SPETNAZ IN LOVE II"]
[80,1,"\"NO ES PAIS PARA CUPIDOS\""]
[80,2,"CE N'EST PAS UN PAYS POUR CUPIDON"]
[80,1,"CRONICAS DE LA ARIADNA PROFUNDA (VI)"]
[80,2,"CHRONIQUES DES PROFONDEURS DE L'ARIADNA (VI)"]
[80,1,"PERO BUENO, CAMARADA CONTROLODORA ! SE PUEDE SABER A QUÉ VIENEN ESA CARA Y ESOS GRITOS ?!"]
[80,2,"ET BIEN, KAMARRRADE CONTRRRÔLEURR ! POURQUOI TU GRRRIMACES ET TU CRRRIES COMME ÇA ?!"]
[80,1,"SI ES QUE ESE MALDITO CABRONAZI ME ESTABA APUNTANDO CON UN ARCO TACTICO QUE LE HE PILLADO !!"]
[80,2,"SI CE SATANÉ PETIT BÂTARRRD POINTAIT SON ARC TACTIQUE SUR MOI, JE L'AI EU !"]
[80,1,"SUPLANTADORES A MI… !"]
[80,2,"IMPOSTEUR EST À MOI... !"]
[80,1,"Y EN EL PROXIMO CAPITULO…"]
[80,2,"ET DANS LE CHAPITRE SUIVANT...."]
[80,1,"\"I NO HAY COJONES, SAN VALENTIN!\""]
[80,2,"JE N'AI PAS DE COJONES, SAINT-VALENTIN !"]
[80,1,"VASSILY, CARINO POR FAVOR !! QUE CUANDO TE DIJE QUE ME COMPRADRAS FLORES \"PARA SAN VALENTIN\" ME REFERIA A OTRA COSA !"]
[80,2,"VASSILY, MON CHÉRI, S'IL TE PLAÎT ! QUE QUAND JE T'AI DIT DE M'ACHETER DES FLEURS \"POUR LA SAINT-VALENTIN\", JE VOULAIS DIRE AUTRE CHOSE !"]
[80,1,"YA YA, SEGUUUURO QUE HA SIDO ESO ! AHORA LE PREGUNTO YO AL VALENTIN ESE A QUE \"COSA\" TE REFERIAS, GRACIOSILLA!"]
[80,2,"OUAIS OUAIS, JE N'EN DOUUUTE PAS ! ET MAINTENANT, MOI DEMANDER À LA SAINT-VALENTIN CE QUE TU VEUX DIRRRE PAR \"CHOSE\", TRÈS DRRRÔLE !"]
[80,1,"YUJUUU, SAN VALENTIIIIN! SAL, RATITAAAA, SAL QUE TE VEAMOS LA COLITAAA…"]
[80,2,"YUYU, SAINT-VALENTIIIIN ! SORS, PETIT RRRRATON, SORS ET MONTRE-MOI TA QUUUEUE...."]
[81,0,"https://carlotakowalsky.files.wordpress.com/2010/06/rubiaparacaeng1.jpg","JAVIER VIDAL / BOSTRIA"]
[81,1,"A BLONDE PARATROOPER"]
[81,2,"UNE BLONDE PARACHUTISTE"]
[82,0,"http://i.imgur.com/2tJpU1x.jpg"]
[82,1,"LEUTENIENT !"]
[82,2,"LEUTENANT !"]
[82,1,"WOW! FIVE IMPACTS AND STILL HOLDING POSITION, THAT'S COURAGE, SIR"]
[82,2,"WOW ! CINQ IMPACTS ET TOUJOURS EN PLACE, QUEL COURAGE, MONSIEUR."]
[82,1,"MMM… MEN'S MORALE GETTING HIGHER…"]
[82,2,"HMM.... LE MORAL DES HOMMES S'AMÉLIORE...."]
[82,1,"I'D BETTER KEEP STANDING BEFORE THEY ALL KNOW THAT I SHAT MISELF"]
[82,2,"JE FERAIS MIEUX DE RESTER DEBOUT AVANT QU'ILS NE SE RENDENT COMPTE QUE JE ME SUIS CHIÉ DESSUS."]
[82,1,"THIS IS SO EMBARASSING…"]
[82,2,"C'EST TELLEMENT EMBARRASSANT...."]
[83,0,"http://i.imgur.com/lPDkK89.jpg"]
[83,1,"SAY HELLO TO 'RAMONA' SUCKERS !!!"]
[83,2,"DITES BONJOUR À \"RAMONA\", BANDE D'ENFOIRÉS !!!!!!"]
[83,1,"THAT'S THE WAY TO USE A SHOTGUN, CARLLO !"]
[83,2,"C'EST COMME ÇA QU'ON SE SERT D'UN FUSIL, LES PUCEAUX !"]
[83,1,"YOU ARE WRONG !!!"]
[83,2,"VOUS AVEZ TORT !!!!!!"]
[83,1,"W-WHO ARE YOU ?!"]
[83,2,"Q-QUI ÊTES-VOUS ?!"]
[83,1,"I AM MOLE"]
[83,2,"JE SUIS MOLE"]
[83,1,"I KNOW ALL"]
[83,2,"JE SAIS TOUT CE QU'IL Y A À SAVOIR"]
[84,0,"http://i.imgur.com/N20mc8R.jpg"]
[84,1,"YOU USE THE SHOTGUN WRONGLY"]
[84,2,"VOUS MANIEZ INCORRECTEMENT CE FUSIL À POMPE"]
[84,1,"WOW, DID YOU ASK THAT TO THE CORPSE ?"]
[84,2,"WOW, TU AS DEMANDÉ ÇA AUX CADAVRES ?"]
[84,1,"TOPO IS A LONELY MAN, UKIA"]
[84,2,"TOPO EST UN HOMME SEUL, UXIA"]
[84,1,"YOU'VE GOT NO CHANCES WITH ME"]
[84,2,"TU N'AS AUCUNE CHANCE AVEC MOI"]
[84,1,"LESSE…"]
[84,2,"BAH VOYONS ...."]
[84,1,"WHEN DO YOU LEAVE ?"]
[84,2,"QUAND DÉGAGE TU ?"]
[84,1,"YOU KNOW THAT THIS COULD BE YOUR LAST NIGHT, DON'T YOU ?"]
[84,2,"TU SAIS QUE ÇA POURRAIT ÊTRE TA DERNIÈRE NUIT, N'EST-CE PAS ?"]
[84,1,"YOU WANT ME"]
[84,2,"TU ME VEUX"]
[84,1,"I CAN FEEL IT"]
[84,2,"JE PEUX LE SENTIR"]
[85,0,"http://i.imgur.com/FN4sNU0.jpg"]
[85,1,"OK, THEY CAN'T SEE ME"]
[85,2,"OK, ILS NE PEUVENT PAS ME VOIR."]
[85,1,"MAYBE I COULD GET CLOSER AND SHOOT THEIR …"]
[85,2,"PEUT-ÊTRE QUE JE POURRAIS M'APPROCHER ET TIRER SUR LEUR..."]
[85,1,"TWO OPTIONS HERE … "]
[85,2,"DEUX OPTIONS ICI .... "]
[85,1,"… OR THIS GUY DIDN'T SEE ME…"]
[85,2,"... OU CE TYPE NE M'A PAS VU...."]
[85,1,"… OR HE'S THE BADDEST MOTHERFUKER EVER !!"]
[85,2,"... OU C'EST LE PLUS INFECT ENFOIRÉ DE TOUS LES TEMPS !!!"]
[86,0,"http://i.imgur.com/edEQp0j.jpg"]
[86,1,"… AND THEN I TOLD IM !"]
[86,2,"... ET PUIS JE LUI AI DIT !"]
[86,1,"YOU'LL NEVER ACHIEVE PEACE BY KILLING PEOPLE, SON"]
[86,2,"TU N'ARRIVERAS JAMAIS À FAIRE LA PAIX EN TUANT DES GENS, FISTON."]
[86,1,"TRUE"]
[86,2,"CORRECT"]
[86,1,"IT IS FAITH WHAT BRING US TOGETHER"]
[86,2,"C'EST LA FOI QUI NOUS RASSEMBLE"]
[86,1,"GOD IS GREAT AND OUR WILL IS STRONG"]
[86,2,"DIEU EST GRAND ET NOTRE VOLONTÉ EST FORTE"]
[86,1,"THAT'S WHY OUR ENEMIES WOULD NEVER HAVE A CHANCE"]
[86,2,"C'EST POURQUOI NOS ENNEMIS N'AURAIENT JAMAIS LA MOINDRE CHANCE"]
[86,1,"DO YOU WANT A CUP OF TEA ?"]
[86,2,"TU VEUX UNE TASSE DE THÉ ?"]
[86,1,"ARGH DAMN FANATICS!"]
[86,2,"ARGH FANATIQUES DE MERDE !"]
[87,0,"http://i.imgur.com/6Mm07XZ.jpg"]
[87,1,"WELL, I DIDN'T SEE THE UGLY CROCMAN AROUND HERE"]
[87,2,"BIEN, JE N'AI PAS VU LE VILAIN CROCMAN DANS LE COIN."]
[87,1,"I'M GOING BACK TO THE VILLAGE"]
[87,2,"JE M'EN REPARS AU VILLAGE."]
[87,1,"BUT IF YOU SEE HIM YOU'LL WARN IS THAT OK, KID ?"]
[87,2,"MAIS SI VOUS LE VOYEZ, VOUS LE PRÉVIENDREZ, C'EST D'ACCORD, LES ENFANTS ?"]
[87,1,"YYYYEEEEAAAAHHHHHHH !!!"]
[87,2,"OUIIIIIIIIIIII !!!"]
[87,1,"HE'S THERE !!"]
[87,2,"IL EST LÀ !!!!"]
[87,1,"HE'S COMING !!"]
[87,2,"IL ARRIVE !!!!"]
[87,1,"HE'S BAD !!"]
[87,2,"IL EST MÉCHANT !!!"]
[87,1,"HE'S GONNA BEAT YA !!"]
[87,2,"IL VA TE FRACASSER OUAIS !!!!"]
[87,1,"TAKE THIS UGLY CROCMAN !!"]
[87,2,"PRENDS ÇA, AFFREUX CROCMAN !!!"]
[87,1,"YYEEEAAAHH !!!"]
[87,2,"OUIIIIIIIIIIII !!!"]
[87,1,"TERMO-OPTICAL TROOPER JUST BEFORE REMEMBERING THE TRAUMA THAT SEND HIM AWAY FROM THE FRONT"]
[87,2,"UN SOLDAT EN THERMO-OPTIQUE JUSTE AVANT DE SE SOUVENIR DU TRAUMATISME QUI L'A ÉLOIGNÉ DU FRONT."]
[88,0,"http://i.imgur.com/MK0uWYf.jpg"]
[88,1,"… AND THAT'S WHY YOUR BUDDY HERE WILLY, IS SO HAIRY"]
[88,2,"... ET C'EST POUR ÇA QUE VOTRE PETIT CAMARADE, WILLY, EST SI POILU."]
[88,1,"WOULD YOU MIND COMING HERE A MOMENT, PLEASE ?"]
[88,2,"POURRIEZ-VOUS VENIR ICI UNE MINUTE, S'IL VOUS PLAÎT ?"]
[88,1,"OF COURSE"]
[88,2,"BIEN ENTENDU"]
[88,1,"W-WILLY"]
[88,2,"W-WILLY"]
[88,1,"IS THAT TRUE"]
[88,2,"EST CE VRAI ?"]
[88,1,"ARIADNA ASSIGNS ME A MISSION ?"]
[88,2,"ARIADNA ME CONFIE UNE MISSION ?"]
[88,1,"YES "]
[88,2,"OUI "]
[88,1,"TO THE MOST DANGEROUS FRONT ?"]
[88,2,"SUR LE FRONT LE PLUS DANGEREUX ?"]
[88,1,"YES"]
[88,2,"OUI"]
[88,1,"IS UXIA AROUND THERE ?"]
[88,2,"EST UXIA EST DANS LE COIN ?"]
[88,1,"GET OUT OF HERE, YOU DAMN GEEK"]
[88,2,"DÉGAGE D'ICI, FOUTU GEEK."]
[89,0,"http://i.imgur.com/Skif9n6.jpg"]
[89,1,"DUTCH"]
[89,2,"DUTCH"]
[89,1,"DILLON"]
[89,2,"DILLON"]
[89,1,"IT'S AN HONOR HAVING YOU HERE WITH US"]
[89,2,"C'EST UN HONNEUR DE VOUS AVOIR PARMI NOUS."]
[89,1,"WHAT'S UR DILLON ?"]
[89,2,"QU'EST-CE QU'IL Y A, DILLON ?"]
[89,1,"ARIADNA HAS SOFTEN YOU ?"]
[89,2,"ARIADNA VOUS A RAMOLLI ?"]
[89,1,"YOU FAGGOT"]
[89,2,"LOPETTE "]
[89,1,"BILLY!"]
[89,2,"BILLY !"]
[89,1,"WHAT GOING ON BILLY ?"]
[89,2,"QU'EST-CE QUI SE PASSE BILLY ?"]
[89,1,"THERE'S SOMETHING OUT THERE WAITING FOR US …"]
[89,2,"IL Y A QUELQUE CHOSE LÀ-BAS QUI NOUS ATTEND..."]
[89,1,"… AND IT'S NOT A MAN"]
[89,2,".... ET CE N'EST PAS UN HOMME"]
[89,1,"OF COURSE I'M A MAN !"]
[89,2,"BIEN SÛR QUE JE SUIS UN HOMME !"]
[89,1,"WHAT A BUNCH OF WEIRD, FOR GOD'S SAKE !"]
[89,2,"QUELLE BANDE DE TARÉS, POUR L'AMOUR DE DIEU !"]
[89,1,"WHERE DID THEY COME FROM ?"]
[89,2,"MAIS D'OÙ VIENNENT-ILS ?"]
[90,0,"http://i.imgur.com/nDsW43E.jpg"]
[90,1,"WHAT'S THE  MATTER, LITTLE REMY ?"]
[90,2,"QUE SE PASSE-T-IL, PETIT ROB ?"]
[90,1,"I'M AFRAID OF THE UGLY CROCMAN, HE WANT'S TO HURT ME"]
[90,2,"J'AI PEUR DU MÉCHANT CROCMAN, IL VEUT ME FAIRE DU MAL."]
[90,1,"OH, COME ON, REMY, TAKE IT EASY SWEETHEART"]
[90,2,"OH, ALLEZ, ROB, CALME-TOI, MON CŒUR."]
[90,1,"UGLY CROCMEN ARE JUST IN YOUR IMAGINATION"]
[90,2,"LES AFFREUX CROCMANS SONT JUSTE DANS TON IMAGINATION"]
[90,1,"SINCE WE LET OUR LITTLE HSIEN FRIEND COVER THIS AREA WITH HIS MULTISPECTRAL VISION"]
[90,2,"DEPUIS QUE NOUS AVONS CONFIÉ À NOTRE PETIT AMI HSIEN LA TÂCHE DE COUVRIR CETTE ZONE AVEC SON VISEUR MULTISPECTRALE"]
[90,1,"NO CROCMAN HAS EVER REACHED THAT CORNER"]
[90,2,"AUCUN CROCMAN N'A JAMAIS FRANCHI CE COIN."]
[90,1,"BECAUSE THEY'RE NOT STUPID ARE THEY ?"]
[90,2,"PARCE QU'ILS NE SONT PAS STUPIDES, PAS VRAIS ?"]
[91,0,"http://i.imgur.com/Xk5KuBk.jpg"]
[91,1,"RESIST SOLDIER"]
[91,2,"TENEZ BON SOLDAT"]
[91,1,"YOU'RE IN GOOD HANDS NOW"]
[91,2,"VOUS ÊTES DANS LES MAINS DE DIEU MAINTENANT"]
[91,1,"IN THE NAME OF ALLAH !!"]
[91,2,"AU NOM D'ALLAH !!"]
[91,1,"STAND UP AND WALK !!"]
[91,2,"LÈVE TOI ET MARCHE !!"]
[91,1,"IT'S AN ORDER !!"]
[91,2,"C'EST UN ORDRE !!"]
[91,1,"SORRY DOCTOR, I DON'T WANT TO DISSAPOINT YOU …"]
[91,2,"DÉSOLÉ DOCTEUR, JE NE VOUDRAIS PAS VOUS CONTREDIRE…"]
[91,1,"BUT I THINK THAT THIS ISN'T A LACK OF FAITH"]
[91,2,"MAIS JE PENSE QUE CE N'EST PAS UN MANQUE DE FOI"]
[92,0,"http://i.imgur.com/BxQ7LZi.jpg"]
[92,1,"ACCESSING ALEPH"]
[92,2,"ACCÉDEZ À ALEPH"]
[92,1,"THE MOST SOFISTICATED ARTICIAL INTELLIGENCE EVER CREATED"]
[92,2,"L'INTELLIGENCE ARTIFICIELLE LA PLUS SOPHISTIQUÉE JAMAIS CRÉÉE"]
[92,1,"ALAPH, MASTERPIECE OF MAN'S ACHIEVEMENTS"]
[92,2,"ALEPH, CHEF-D'ŒUVRE DES RÉALISATIONS DE L'HUMANITÉ"]
[92,1,"GREETINGS, I'M ALEPH"]
[92,2,"SALUTATIONS, JE SUIS ALEPH"]
[92,1,"I'M HERE TO"]
[92,2,"JE SUIS ICI POUR"]
[92,1,"WHAT THE FUCKING HELL IS THIS ?!"]
[92,2,"QU'EST-CE QUE C'EST QUE CE BORDEL ?!"]
[92,1,"IS THIS ALEPH ?!"]
[92,2,"C'EST ÇA ALEPH ?!"]
[92,1,"THIS DOESN'T LOOK ADVANCED AND SOFISTICATER"]
[92,2,"ÇA N'A PAS L'AIR SI AVANCÉ ET SOPHISTIQUÉ."]
[92,1,"GREETINGS, I'M ALEPH"]
[92,2,"SALUTATIONS, JE SUIS ALEPH"]
[92,1,"OH! YOU CAN SAY THAI"]
[92,2,"OH ! ON PEUT LE DIRE"]
[92,1,"PLEASE, TWIST MY RIGHT NIPPLE TO ACCESS MAYA, HI HI HI"]
[92,2,"S'IL VOUS PLAÎT, TOURNEZ MON TÉTONS DROIT POUR ACCÉDER À MAYA, HI HI HI HI"]
[92,1,"DAMN! I KWOW WHAT YOU LIKE"]
[92,2,"BON SANG ! JE SAIS CE QUE VOUS AIMEZ."]
[92,1,"FILTHY HUMANS"]
[92,2,"HUMAINS RÉPUGNANTS"]
[93,0,"http://i.imgur.com/A3FciRp.jpg"]
[93,1,"HEY GUY…"]
[93,2,"HÉ MEC...."]
[93,1,"HAVE YOU SEEN MI LAST PAINTED MINI"]
[93,2,"TU AS VU MA DERNIÈRE FIG PEINTE ?"]
[93,1,"IT LOOKS PRETTY SHITTY TO ME "]
[93,2,"ÇA M'A L'AIR PLUTÔT MERDIQUE. "]
[93,1,"NEW TROOP : THE INSENSIBLE"]
[93,2,"NOUVELLE TROUPE : L'INSENSIBLE"]
[93,1,"THAT GUY IS THE WORST"]
[93,2,"CE MEC EST PITOYABLE...."]
[93,1,"BUNCH OF NERDS"]
[93,2,"BANDE DE NERDS"]
[94,0,"http://i.imgur.com/MERA2Im.jpg"]
[94,1,"QUICK, SHATOSHI, WE'LL BURN IF YOU DON'T HACK THIS THING !!!!!"]
[94,2,"VITE, SHATOSHI, ON VA CRAMER SI TU NE PIRATES PAS CE TRUC !!!"]
[94,1,"I'M ON IT "]
[94,2,"JE SUIS DESSUS"]
[94,1,"YOU HAVE MAIL"]
[94,2,"VOUS AVEZ UN MAIL"]
[94,1,"I HAVE MAIL ?"]
[94,2,"J'AI UN MAIL"]
[94,1,"KIMOCHI …"]
[94,2,"KIMOCHI …"]
[94,1,"SHATOSHI, SHATOSHI, COME BACK !!"]
[94,2,"SHATOSHI, SHATOSHI, REVIENS !!"]
[94,1,"DESTROY"]
[94,2,"DÉTRUIRE"]
[94,1,"THIS ANTI-HACKER DEVICES ARE SWEET"]
[94,2,"CES DISPOSITIFS ANTI-HACKER SONT CHARMANTS."]
[95,0,"http://i.imgur.com/0c9HOQN.jpg"]
[95,1,"WHAT ARE YOU TRYING TO DO ? DON'T BE RIDICULOUS "]
[95,2,"QU'EST-CE QUE VOUS ESSAYEZ DE FAIRE ? NE SOYEZ PAS RIDICULE. "]
[95,1,"WHAT THE F… !!"]
[95,2,"WHAT THE F... !!"]
[95,1,"SLOW DOWN, DROP YOUR WEAPON"]
[95,2,"RALENTISSEZ, LÂCHEZ VOTRE ARME."]
[95,1,"I'M RIGHT HERE, THERE'S NOTHING YOU CAN DO NOW"]
[95,2,"JE SUIS LÀ, IL N'Y A RIEN QUE TU PUISSES FAIRE MAINTENANT."]
[95,1,"BUT… WE ARE STILL NOT IN CONTACT…"]
[95,2,"MAIS... NOUS NE SOMMES PAS EN CONTACT...."]
[95,1,"BUT WE ARE NOW "]
[95,2,"NOUS LE SOMMES MAINTENANT "]
[95,1,"I SEE"]
[95,2,"JE VOIS"]
[95,1,"IT'S CLOBBERUV TIME, DO YOU KNOW THAT 'IM MARTIAL ARTIST ?"]
[95,2,"C'EST L'HEURE DE LA POUTRE, TU SAIS QUE JE SUIS \"ARTISTE EN ARTS MARTIAUX\" ?"]
[95,1,"LEVEL TWO ?"]
[95,2,"NIVEAU DEUX ?"]
[95,1,"THREE"]
[95,2,"TROIS"]
[95,1,"HOLY SHIT !!"]
[95,2,"MERDE ALORS !!!"]
[95,1,"W-WHAT IS YOUR CC ?"]
[95,2,"QUE-QUEL EST VOTRE CC ?"]
[95,1,"NINETEEN"]
[95,2,"DIX-NEUF"]
[95,1,"YOU DON'T"]
[95,2,"VOUS N'ALLEZ PAS LE FAIRE"]
[95,1,"I DO"]
[95,2,"HO QUE SI "]
[95,1,"SHIT HAPPENS"]
[95,2,"C'EST LA TUILE"]
[96,0,"http://i.imgur.com/yzvdwOM.jpg"]
[96,1,"HERE'S YOUR RICE, GAYLANG"]
[96,2,"VOILÀ TON RIZ, GAYLANG."]
[96,1,"IT IS GUILANG"]
[96,2,"C'EST GUILANG"]
[96,1,"MI APOLOGIES"]
[96,2,"MES EXCUSES"]
[96,1,"GAYLANG"]
[96,2,"... GAYLANG"]
[96,1,"YOU ARE WRONG, GAYLANG "]
[96,2,"TU TE TROMPES, GAYLANG. "]
[96,1,"GUILANG"]
[96,2,"GUILANG"]
[96,1,"THIS TABLE IS FOR SHAOLIN MONKS ONLY"]
[96,2,"CETTE TABLE EST RÉSERVÉE AUX MOINES SHAOLING"]
[96,1,"WHERE IS THAT WRITTEN"]
[96,2,"OÙ EST-CE ÉCRIT ?"]
[96,1,"RIGHT HERE"]
[96,2,"JUSTE ICI"]
[96,1,"WANNA A SEE IT CLOSER ?"]
[96,2,"TU VEUX VOIR ÇA DE PLUS PRÈS ?"]
[96,1,"I TRIED TO BE GENTLE"]
[96,2,"J'AI ESSAYÉ D'ÊTRE GENTIL."]
[96,1,"I TRIED TO FIT IN"]
[96,2,"J'AI ESSAYÉ DE M'INTÉGRER"]
[96,1,"THEY DESERVE THIS "]
[96,2,"ILS LE MÉRITENT BIEN. "]
[96,1,"NO MORE MR NICE GAY… GUILANG !!"]
[96,2,"PLUS DE M. GAY SYMPA... GUILANG !!"]
[97,0,"http://i.imgur.com/7JAEhYK.jpg"]
[97,1,"HI HI HI"]
[97,2,"HI HI HI HI HI"]
[97,1,"WHAT'S UP ? WHAT'S SO FUNNY ?"]
[97,2,"QU'EST-CE QU'IL Y A ? QU'EST-CE QU'IL Y A DE SI DRÔLE ?"]
[97,1,"YOU'VE DONE SOMETHING"]
[97,2,"T'AS FAIT QUELQUE CHOSE"]
[97,1,"YA YAA YA WHAHAH HAHA"]
[97,2,"YA YAA YA MOUAHAHAH HAHA"]
[97,1,"WHAT HAVE YOU DONE WITH THAT ?"]
[97,2,"QU’AS TU FAIS AVEC ÇA ?"]
[97,1,"THAT SON OF A BITCH !!"]
[97,2,"QUEL FILS DE PUTE !!"]
[98,0,"http://i.imgur.com/ffaphah.jpg"]
[98,1,"HEY A A LEUTENIENT"]
[98,2,"HÉ HEEU LIEUTENIANTT"]
[98,1,"WHAT THE HELL IS NOW ? BAGH MARI"]
[98,2,"C'EST QUOI LE BORDEL MAINTENANT ? BAGH MARI"]
[98,1,"I THINK I'VE JUST SEEN SOME ARIADNAN PARATROOPERS, SIR"]
[98,2,"JE CROIS QUE JE VIENS DE VOIR DES PARACHUTISTES ARIADNAIS, MONSIEUR."]
[98,1,"YEAH, SURE, PINK ELEPHANTS TOO, RIGHT ?"]
[98,2,"OUAIS, BIEN SÛR ET DES ÉLÉPHANTS ROSES AUSSI, NON ?"]
[98,1,"SIR, I REMIND THAT I HAVE A MULTISPECTRAL VISION LEVEL 1, SIR"]
[98,2,"MONSIEUR, JE VOUS RAPPELLE QUE J'AI UN VISEUR MULTISPECTRAL DE NIVEAU 1, MONSIEUR."]
[98,1,"THAT'S FUCKING USELESS, YOU DAMN UGLY JUNGLE RAT"]
[98,2,"C'EST DE LA BAGATELLE, MAUDIT VILAIN RAT DE LA JUNGLE."]
[98,1,"HUGGY UR…"]
[98,2,"ON SE BOUGE ..."]
[98,1,"WE'LL ARRIVE AT NIGHT IF WE'RE LUCKY"]
[98,2,"NOUS ARRIVERONS DANS LA NUIT SI ON A DE LA CHANCE."]
[98,1,"ALÉ ALÉ"]
[98,2,"ALÉ ALÉ ALÉ"]
[99,0,"http://i.imgur.com/Ai6NZbp.jpg"]
[99,1,"HEY… HAVE YOU NOTICE SOMETHING WEIRD ABOUT LARRY ?"]
[99,2,"HÉ.... AS-TU REMARQUÉ QUELQUE CHOSE DE BIZARRE CHEZ LARRY ?"]
[99,1,"HMMM… IT IS POSSIBLE"]
[99,2,"HMMMM.... IL EST POSSIBLE QUE"]
[99,1,"MAYBE IS THAT EXTRANGE ACCENT THAT I'VE HEARD THIS LAST TEN MINUTES …"]
[99,2,"CE SOIT PEUT ÊTRE QUE CET ACCENT ÉTRANGE QUE J'AI ENTENDU CES DIX DERNIÈRES MINUTES..."]
[99,1,"I MEAN …"]
[99,2,"EN FAIT, JE VEUX DIRE..."]
[99,1,"LARRY DIDN'T USED TO PRAY ON HIS KNEES, DOES HE ?"]
[99,2,"LARRY N'AVAIT PAS L'HABITUDE DE PRIER À GENOUX, NON ?"]
[99,1,"AND THIS SMOKE GRENADE LAUNCHING IS ALSO NEW, RIGHT ?"]
[99,2,"ET CE JET DE GRENADE FUMIGÈNE EST NOUVEAU AUSSI, NON ?"]
[99,1,"YES"]
[99,2,"CERTES"]
[99,1,"LISTEN DO YOU ALSO SMELL A KEBAB OR IT'S JUST ME ?"]
[99,2,"ÉCOUTE, EST-CE QUE TU SENS AUSSI UN KEBAB OU C'EST JUSTE MOI ?"]
[100,0,"http://i.imgur.com/0tkWmqX.jpg"]
[100,1,"DIE, IMPERIALIST DOG !!"]
[100,2,"MEURT, CHIEN D'IMPÉRIALISTE !!"]
[100,1,"YOU'LL LICK MY BOOTS, ANIMAL !"]
[100,2,"TU LÈCHERAS MES BOTTES, ANIMAL !"]
[100,1,"!"]
[100,2,"!"]
[100,1,"?"]
[100,2,"?"]
[100,1,"MUST BE THE LAST RETOUCHING FOR THE BOOK"]
[100,2,"ÇA DOIT ÊTRE LA DERNIÈRE RETOUCHE POUR LE LIVRE"]
[100,1,"YER"]
[100,2,"OUAIS"]
[101,0,"http://i.imgur.com/n7SOhyR.jpg"]
[101,1,"OLDMEIER !!"]
[101,2,"OLDMEIER !!"]
[101,1,"TAKE YOUR BOOTS, YOUR UNIFORM AND YOUR BERET"]
[101,2,"PRENEZ VOS BOTTES, VOTRE UNIFORME ET VOTRE BÉRET"]
[101,1,"SIR!"]
[101,2,"OUI MONSIEUR !"]
[101,1,"1-800 FUSILLER"]
[101,2,"FUSILLIER MATRICULE 1-800"]
[101,1,"STICKWELL !!"]
[101,2,"STICKWELL !!"]
[101,1,"TAKE YOUR ARMOR, YOUR HELMET AND YOUR SLIPS"]
[101,2,"PRENEZ VOTRE ARMURE, VOTRE CASQUE ET VOS SLIPS"]
[101,1,"1-83 ORC TROOP "]
[101,2,"TROUPE ORC MATRICULE 1-83"]
[101,1,"SIR!"]
[101,2,"OUI MONSIEUR !"]
[101,1,"LOREZO !!"]
[101,2,"… LOREZO !!"]
[101,1,"TAKE…"]
[101,2,"PRENEZ …"]
[101,1,"1-790 CROCMAN"]
[101,2,"CROCMAN MATRICULE 1-790"]
[101,1,"SIR!"]
[101,2,"OUI MONSIEUR !"]
[101,1,"… TAKE A DEEP BREATH"]
[101,2,"… PRENEZ UNE GRANDE RESPIRATION"]
[102,0,"http://i.imgur.com/WglSczx.jpg"]
[102,1,"NEW TROOP: THE REGULAR"]
[102,2,"NOUVELLE TROUPE : LE RÉGULIER"]
[102,1,"COST - 1 SHITTY POINT\nFUNCTION - LEND HIS ORDER TO HIS PARTNERS SELF ESTEEM-. GETTING LOWER"]
[102,2,"\"COÛT - 1 PUTAIN DE POINT\nFONCTION - PRÊTE SON ORDRE D'ESTIME DE SOI, À SES PARTENAIRES -. BAISSEZ LE NIVEAU\""]
[102,1,"TAKE MI LUNCH, I DON'T NEED IT"]
[102,2,"PRENEZ MON DÉJEUNER, JE N'EN AI PAS BESOIN."]
[102,1,"GET LOST!! SCUM"]
[102,2,"DÉGAGE !! VAURIEN"]
[102,1,"THANK YOU "]
[102,2,"MERCI "]
[102,1,"YOU'RE PATHETIC"]
[102,2,"TU ES PATHÉTIQUE"]
[103,0,"http://i.imgur.com/Ymp0YgS.jpg"]
[103,1,"… BLERGSFX… … CAUSE I THINK THAT THE SHOTGUN RULE IS BADLY RESOLVED…"]
[103,2,".... BLERGSFX.... ... PARCE QUE JE PENSE QUE LA RÈGLE DU FUSIL À POMPE A ÉTÉ MAL RÉSOLUE...."]
[103,1,"… THIS MINIATURE IS AN INSULT TO MI EXPERT EYES…"]
[103,2,".... CETTE FIGURINE EST UNE INSULTE À MES YEUX D'EXPERT...."]
[103,1,"NO,NO,NO … YOU'RE WRONG I HAVE A SPECIAL BONUS FOR HIDING…"]
[103,2,"NON, NON, NON, NON... TU AS TORT, J'AI UN BONUS SPÉCIAL POUR ME CACHER..."]
[103,1,"HOLY SHIT …"]
[103,2,"PUTAIN DE MERDE..."]
[103,1,"WHY DON'T THEY TRY TO GET A GIRLFRIEND OR SOMETHING ?"]
[103,2,"POURQUOI ILS ESSAIENT PAS D'AVOIR UNE COPINE OU QUELQUE CHOSE ?"]
[103,1,"… I'D LIKE TO SEND THIS NERDS TO WAR AND WATCH"]
[103,2,"... J'AIMERAIS ENVOYER CES NERDS À LA GUERRE ET LES REGARDER..."]
[104,0,"http://i.imgur.com/iCsFOt1.jpg"]
[104,1,"WHICH ONE OF THIS FUSILLIERS WAS A FORMER CROCMAN ?"]
[104,2,"QUI PARMI CES FUSILIERS A EU UNE FORMATION CROCMAN ?"]
[104,1,"ATT-TEN-TION !!"]
[104,2,"ATT-TEN-TION !!"]
[105,0,"http://i.imgur.com/8IzQtw0.jpg"]
[105,1,"INCLUDES MULTISPECTRAL VISOR N3 INSIDE !!"]
[105,2,"INCLUS UN VISEUR MULTISPECTRAL N3 A L'INTERIEUR !!"]
[106,0,"http://i.imgur.com/yxAvu4U.jpg"]
[106,1,"NEW MINIATURE: THE PARANOID "]
[106,2,"NOUVELLE FIGURINE : LE PARANOÏAQUE"]
[106,1,"HIS BIZARRE POSE CREATES A CONFUSING DISCUSSION ABOUT WHAT THE HELL IS HE LOOKING AT, SO THE PLAYER CAN TAKE ADVANTAGE OF THE SITUATION BY CHOOSING THE BETTER LINE OF SHOT"]
[106,2,"SA POSE BIZARRE ARRIVE À AMENER PAR L'ENFER, À DES DÉBATS CONFUS AU SUJET D'OÙ IL PEUT BIEN REGARDER, SI BIEN QUE SON JOUEUR PEUT EN TIRER PROFIT DE CETTE SITUATION, EN CHOISISSANT LA MEILLEURE LIGNE DE TIR"]
[107,0,"http://i.imgur.com/3fOrV4Y.jpg"]
[107,1,"EARTH, A NAIVE PACK OF FUSILLIERS REFRESHING THEMSELVES FORM THE HEAT OF THE SABANA"]
[107,2,"TERRE, NOUS APERCEVONS ICI UNE HORDE NAÏVE DE FUSILIERS SE RAFRAICHISSANT SOUS LA CHALEUR DE LA SAVANE."]
[107,1,"… EXPOSED TO THE STEALTHY THREAT THAT KO DALI, THE EASTERN TIGER, MEANS,"]
[107,2,"... CEUX-CI SE SONT EXPOSÉS À LA MENACE FURTIVE QUE REPRÉSENTE KO DALI, LA TIGRESSE DE L'EST,"]
[107,1,"ONCE AGAIN THE FASCINATING VIOLENCE OF NATURE TAKES OUR BREATH"]
[107,2,"UNE FOIS DE PLUS, LA VIOLENCE FASCINANTE DE LA NATURE EST À COUPER LE SOUFFLE"]
[107,1,"THE STYLIZED SILOUETTE OF THE PREDATOR BEHAVES AS AN EXTRAORDINARY EFFECTIVE DEADLY ASSAULT CREATURE"]
[107,2,"LA SILHOUETTE STYLISÉE DE CETTE PRÉDATRICE SE COMPORTE COMME UNE CRÉATURE D'ASSAUT MORTELLE EXTRAORDINAIREMENT EFFICACE"]
[107,1,"… IT IS A CRUEL ENDING FOR THE FUSILLIER, A NATURE FACT, BEAUTIFUL  IN HIS OWN WAY"]
[107,2,"... C'EST UNE FIN CRUELLE POUR CE FUSILIER, UN ÉVÉNEMENT DE LA NATURE, MAGNIFIQUE À SA MANIÈRE"]
[107,1,"OTHER ALLIED SPECIES LOOMES ONCE THE OBJECTIVE IS DOWN, BUT THE PREDATOR BEHAVES DISTRUSTHUL"]
[107,2,"UNE FOIS L'OBJECTIF ATTEINT, D'AUTRES ESPÈCES ALLIÉES SE PROFILENT À L'HORIZON, MAIS LA PRÉDATRICE FAIT PREUVE DE MÉFIANCE."]
[107,1,"COMING SOON : ALEPH GEOGRAPHIC PRESENTS : BEING A CROCMAN"]
[107,2,"À VENIR : ALEPH GEOGRAPHIC PRÉSENTE : ÊTRE UN CROCMAN"]
[108,0,"http://i.imgur.com/Yk3Ve8P.jpg"]
[108,1,"WELCOME TO THE GOGO MARLENE SHOW !!"]
[108,2,"BIENVENUE AU GOGO MARLENE SHOW !"]
[108,1,"WE HAVE THE UGLY CROCMAN WITH US TONIGHT …"]
[108,2,"NOUS AVONS L'AFFREUX CROCMAN AVEC NOUS CE SOIR..."]
[108,1,"… WHO SEEMS TO HAVE FOUND TRUE LOVE"]
[108,2,"... QUI SEMBLE AVOIR TROUVÉ LE GRAND AMOUR."]
[108,1,"THAT'S RIGHT"]
[108,2,"C'EST EXACT"]
[108,1,"I'M SO HAPPY WITH FUSILLIER BIPANDRA"]
[108,2,"JE SUIS SI HEUREUX AVEC LA FUSILIÈRE BIPANDRA."]
[108,1,"SEX WITH HER IT'S JUST GREAT"]
[108,2,"COUCHER AVEC ELLE, C'EST GÉNIAL."]
[108,1,"HE HAS NO IDEA"]
[108,2,"IL N'EN A AUCUNE IDÉE"]
[108,1,"AND WE ARE SO HAPPY TO KNOW IT…"]
[108,2,"ET NOUS SOMMES SI HEUREUX DE LE SAVOIR....."]
[108,1,"… BUT I THINK THAT BIPANDRA HAS SOMETHING TO TELL YOU, DON'T YOU ?"]
[108,2,"... MAIS JE PENSE QUE BIPANDRA A QUELQUE CHOSE À VOUS DIRE... N'EST-CE PAS ?"]
[108,1,"YES GOGO"]
[108,2,"OUI GOGO"]
[108,1,"I'M A HASSASSIN FIDAY"]
[108,2,"JE SUIS UN HASSASSIN FIDAY."]
[108,1,"ECS"]
[108,2,"ERK"]
[108,1,"WOOOOOOOO!!"]
[108,2,"OOOOOOOOOH !!!"]
[108,1,"OH GOD…"]
[108,2,"OH MON DIEU....."]
[108,1,"… I FEEL EMBARASSED !!"]
[108,2,"... C'EST VRAIMENT EMBARRASSANT !!"]
[109,0,"http://i.imgur.com/nlRGXlX.jpg"]
[109,1,"HEY ! YOH! WATCH YOUR BACK !!"]
[109,2,"HÉ ! HO ! ATTENTION À TES ARRIÈRES !"]
[109,1,"DON'T YOU SEE HIM ?!"]
[109,2,"TU NE LE VOIS PAS ?!"]
[109,1,"THIS IS A WORLD RECORD"]
[109,2,"C'EST UN RECORD DU MONDE"]
[109,1,"DAMN, FAFAR"]
[109,2,"BORDEL, JAFAR."]
[109,1,"SHUT UR, DON'T DISTRACT ME, KHALER"]
[109,2,"FERME-LA, NE ME DISTRAIS PAS, KHALER."]
[109,1,"YOU'RE REALLY MAKING MAD THAT FUSILLIER"]
[109,2,"TU RENDS VRAIMENT DINGUE CE FUSILLIER."]
[110,0,"http://i.imgur.com/uvVZn5X.jpg"]
[110,1,"LOL"]
[110,2,"LOL"]
[110,1,"I AM A TOTAL FLAMER !!"]
[110,2,"JE SUIS UN VRAI FLAMBEUR !!"]
[110,1,"RUN!!"]
[110,2,"FUYEZ !!"]
[110,1,"OH MY GOD !!"]
[110,2,"OH MON DIEU !!!!"]
[110,1,"REMOTE PRESENCE TAGS !!!"]
[110,2,"DES TAGS COMMANDÉS À DISTANCE !!!!"]
[110,1,"DIE SCUM … HEHE… OWNED !"]
[110,2,"CREVEZ RACAILLES... HÉHÉ... VOUS ÊTES À MOI !"]
[110,1,"OMG ! LOOK AT THIS !"]
[110,2,"OMG ! REGARDE ÇA !"]
[110,1,"I'LL WIN A CUTTER FOR THIS"]
[110,2,"JE VAIS GAGNER UN CUTTER POUR ÇA."]
[110,1,"SOMEONE IS DISCUSSING YOU IN THE FORUM"]
[110,2,"QUELQU'UN DISCUTE DE TOI DANS LE FORUM"]
[110,1,"WHAT IS HE SAYING ?"]
[110,2,"QU'EST-CE QU'IL DIT ?"]
[110,1,"DAMN ! FUCK HIS OPINION"]
[110,2,"BORDEL DE MERDE ! ON EMMERDE SON OPINION"]
[110,1,"DO WE BAN HIM !"]
[110,2,"EST-CE QU'ON LE BANNIT !"]
[110,1,"NO, THIS MEANS FLAME WARS"]
[110,2,"NON, ÇA ENTRAÎNE UNE GUERRE ORATOIRE INCENDIAIRE"]
[110,1,"I'M PROVIDING DISTRACTION"]
[110,2,"JE LES DISTRAIS."]
[110,1,"GET OUT OF THERE COMMRADES !"]
[110,2,"SORTEZ DE LÀ, CAMARADES !"]
[111,0,"http://i.imgur.com/WV0FjDE.jpg"]
[111,1,"THE ADVENTURES OF TARIK MANSURI AND HIS SIDEKICK IZZAT BEG"]
[111,2,"LES AVENTURES DE TARIK MANSURI ET DE SON ACOLYTE IZZAT BEG"]
[111,1,"HOLY MAGHARIBA, TARIK"]
[111,2,"SAINT MAGHARIBA, TARIK !"]
[111,1,"COVER YOUR FACE SLUT !!"]
[111,2,"COUVRE TON VISAGE, SALOPE !!"]
[111,1,"YOU'RE GONNA LEARN THE WHOLE CORAN, SON OF A BITCH !"]
[111,2,"TU VAS APPRENDRE TOUT LE CORAN, FILS DE PUTE !"]
[111,1,"HAHA ! YOU DIDN'T SEE THAT COMING, INFIDEL !"]
[111,2,"HAHA ! TU NE L’AS PAS VU VENIR, INFIDÈLE !"]
[111,1,"SURRENDER ?! SURRENDER ?!"]
[111,2,"REDDITION ?! REDDITION ?!"]
[111,1,"DO YOU THINK THAT THIS SIMBOL I'M WEARING IN MY FOREHEAD MEANS IRAK ?!"]
[111,2,"EST-CE QUE TU CROIS QUE CE SYMBOLE QUE JE PORTE SUR MON FRONT SIGNIFIE IRAK ?!"]
[112,0,"http://i.imgur.com/D1MT34r.jpg"]
[112,1,"THE ADVENTURES OF TARIK MANSURI - TONIGHT'S EPISODE : MORALITY"]
[112,2,"LES AVENTURES DE TARIK MANSURI - L'ÉPISODE DE CE SOIR : MORALITÉ"]
[112,1,"OH! TARIK, YOU'RE THE BEST"]
[112,2,"OH ! TARIK, VOUS ÊTES LE MEILLEUR."]
[112,1,"WHAT THE … ?!"]
[112,2,"QU'EST-CE QUE... ?!"]
[112,1,"SHAMELESS BITCH !!"]
[112,2,"SALOPE ÉHONTÉE !!"]
[112,1,"YOU'RE INSULTING YOUR FAMILY WITH YOUR NOUGHTY BEHAVIOUR !!"]
[112,2,"TU INSULTES TA FAMILLE AVEC TON COMPORTEMENT ABJECT !!"]
[112,1,"BITCH, SLUT WHORE !"]
[112,2,"PUTE, SALOPE, TRAÎNÉE !"]
[112,1,"NICE EXPLOSIVE BELT, IZZAT"]
[112,2,"JOLIE CEINTURE EXPLOSIVE, IZZAT"]
[112,1,"THANKS, TARIK, I'VE PUT STEEL BALLS IN IT AS YOU RECOMMEND "]
[112,2,"MERCI, TARIK, J'Y AI MIS DES BALLES D'ACIER COMME TU ME L'AS RECOMMANDÉ. "]
[112,1,"CAN'T WAIT FOR REACHING THAT VIRGIN FULL HEAVEN YOU TOLD ME ABOUT"]
[112,2,"J'AI HÂTE D'ATTEINDRE CE PARADIS PLEIN DE VIERGES DONT TU M'AS PARLÉ."]
[113,0,"http://i.imgur.com/ibK5fma.jpg"]
[113,1,"THERMO-OPTICAL CAMMO"]
[113,2,"CAMOUFLAGE THERMO-OPTIQUE"]
[113,1,"CAN YOU SEE HIM ?"]
[113,2,"POUVEZ-VOUS LE VOIR ?"]
[113,1,"RIGHT THERE ROOFTOR"]
[113,2,"DROIT ICI SUR LE TOIT"]
[113,1,"EH? … EHHH…"]
[113,2,"EUH ? .... EHHHH....."]
[113,1,"… NO I CAN'T"]
[113,2,".... NON, JE NE LE VOIS PAS."]
[113,1,"UNFORGIVABLE"]
[113,2,"IMPARDONNABLE"]
[113,1,"YOU'LL NEVER BECOME AN AQUILA GUARD THIS WAY"]
[113,2,"VOUS NE DEVIENDREZ JAMAIS UN GARDE D'AQUILA AINSI."]
[113,1,"DESTROY THAT NINJA"]
[113,2,"DÉTRUISEZ CE NINJA"]
[113,1,"BE USEFUL FOR A CHANGE"]
[113,2,"HISTOIRE D'ÊTRE UTILE POUR UNE FOIS"]
[113,1,"AQUILA GUARD IS SUCH A BAD LOSER"]
[113,2,"LE GARDE AQUILA EST UN MAUVAIS PERDANT."]
[113,1,"DAMN I JUST OWNED HIM AT POKER AND HE GOT MAD"]
[113,2,"MERDE, JE L'AI JUSTE POSSÉDÉ AU POKER ET IL S'EST ÉNERVÉ."]
[113,1,"AND WHY DID HE ORDER ME TO STAY HERE WITH CAMMO ON ?"]
[113,2,"ET POURQUOI M'A-T-IL ORDONNÉ DE RESTER ICI EN CAMOUFLÉ ?"]
[114,0,"http://i.imgur.com/iTbqMJj.jpg"]
[114,1,"TWO MINUTES FOR GREEN LIGHT"]
[114,2,"DEUX MINUTES AVANT GREEN LIGHT"]
[114,1,"WE'LL GET DOWN OF THE CHICKENHAWK RIGHT AFTER THE TRUSTERS…"]
[114,2,"ON DESCENDRA DU CHICKENHAWK JUSTE APRÈS LE JET DES PLOPULSEURS..."]
[114,1,"IT IS \"THRUSTERS\"…"]
[114,2,"C'EST LES \"PROPULSEURS\"..."]
[114,1,"YOU DON'T NEED TO THANK"]
[114,2,"NE ME REMERCIEZ PAS"]
[115,0,"http://i.imgur.com/TNAGVOK.jpg"]
[115,1,"WADDFUCK!"]
[115,2,"SA MÈRE !"]
[115,1,"SHE HAS A NICE ASS BUT SHE'S SO MANLY"]
[115,2,"ELLE A UN JOLI CUL, MAIS ELLE EST TROP MASCULINE."]
[115,1,"PROVISIONS ARRIVING WICKED"]
[115,2,"DES PROVISIONS QUI ARRIVENT À POINT NOMMÉ."]
[115,1,"MAYBE THEY ARE BRINGING SOM…"]
[115,2,"PEUT-ÊTRE QU'ILS APPORTENT QUELQU...."]
[115,1,"… SHIT"]
[115,2,"... MERDE"]
[115,1,"EH! HEY !"]
[115,2,"EH ! HÉ !"]
[115,1,"UXIA!"]
[115,2,"UXIA !"]
[115,1,"I'M HERE"]
[115,2,"JE SUIS ICI"]
[115,1,"UXIA, THAT CHUBBY NERD HAS SQUISHED THE ANTIPODES FOOD"]
[115,2,"UXIA, CE NERD GRASSOUILLET A ÉCRASÉ LES VIVRES DES ANTIPODES."]
[115,1,"THEY'RE GONNA EAT HIM UNLESS YOU STOP IT"]
[115,2,"ILS VONT LE MANGER SI TU NE L'ARRÊTES PAS."]
[115,1,"HEY UXIA…"]
[115,2,"HÉ UXIA....."]
[115,1,"DO SOMETHING"]
[115,2,"FAIRE QUELQUE CHOSE"]
[116,0,"http://i.imgur.com/9cgxIFc.jpg"]
[116,1,"LAST BAKUNIN'S FASHION : SUICIDE"]
[116,2,"DERNIÈRE MODE DE BAKOUNINE : LE SUICIDE"]
[116,1,"GREETINGS, I'M GOGO MARLENE AND THIS IS THE QUESTION EVERYBODY IS ASKING:"]
[116,2,"BONJOUR, JE SUIS GOGO MARLENE ET VOICI LA QUESTION QUE TOUT LE MONDE SE POSE :"]
[116,1,"DOES METHACHIMISTRY AFFECT GROWTH?"]
[116,2,"LA MÉTHACHIMIE AFFECTE-T-ELLE LA SANTÉ ?"]
[116,1,"MI BOYFRIEND HAS TOURET SINDROM BECAUSE OF THAT"]
[116,2,"MON PETIT AMI A LE SYNDROME DE TOURET À CAUSE DE ÇA."]
[116,1,"BITCH!"]
[116,2,"SALOPE !"]
[116,1,"I'LL ABORT CAUSE I THINK DRUGS WOULD AFFECT MY BABY"]
[116,2,"J'AVORTERAI PARCE QUE JE PENSE QUE LES MÉDICAMENTS AFFECTERAIENT MON BÉBÉ."]
[116,1,"ABORTION IS SO COOL"]
[116,2,"L'AVORTEMENT C’EST TELLEMENT COOL"]
[116,1,"CAN WE DANCE ?"]
[116,2,"POUVONS-NOUS DANSER ?"]
[116,1,"MANY PEOPLE BELIEVE THAT THE MORLOCK'S LIFESTYLE IS TOO EXTREME "]
[116,2,"BEAUCOUP DE GENS PENSENT QUE LE MODE DE VIE DES MORLOCKS EST TROP EXTRÊME "]
[116,1,"BUT, WHO CAN RESIST THEIR GLAMOUR ?"]
[116,2,"MAIS, QUI PEUT RÉSISTER À LEUR GLAMOUR ?"]
[117,0,"http://i.imgur.com/JVsoxgy.jpg"]
[117,1,"HI, I DID NOT SEE YOU BEFORE, ARE YOU NEW HERE?"]
[117,2,"SALUT, JE NE T'AVAIS PAS VU AVANT, TU ES NOUVELLE ICI ?"]
[117,1,"FREELANCE, IS THAT A VISOR ONE, HONEY ?"]
[117,2,"FREELANCE, ÇA C'EST UN VISOR 1, CHÉRI ?"]
[117,1,"YES… WITH THIS … I CAN SEE ALL"]
[117,2,"OUI... AVEC ÇA... JE PEUX VOIR TOUT CE QU'IL Y A"]
[117,1,"WHAT ELSE CAN YOU DO MARIMAR?"]
[117,2,"QUE PEUX-TU FAIRE D'AUTRE, MA PUCE ?"]
[117,1,"YEAH… LESSE… I CAN INFILTRATE!"]
[117,2,"OUAIS... BAH VOYONS.... JE PEUX M'INFILTRER !"]
[117,1,"SURE ?"]
[117,2,"CERTAIN ?"]
[117,1,"YES"]
[117,2,"OUI"]
[117,1,"COULD YOU INFILTRATE THERE, SUGAR?"]
[117,2,"TU PEUX T'INFILTRER LÀ, MON SUCRE ?"]
[117,1,"…"]
[117,2,"…"]
[117,1,"YOU DON'T KNOW HOW EXCITED I GET WHEN I SEE SOMEONE INFILTRATING"]
[117,2,"TU NE PEUX PAS SAVOIR À QUEL POINT ÇA M'EXCITE QUAND JE VOIS QUELQU'UN S'INFILTRER"]
[117,1,"OK, HERE I GO!!"]
[117,2,"OK, J'Y VAIS !!"]
[117,1,"THREE, TWO, ONE…"]
[117,2,"TROIS, DEUX, UN...."]
[117,1,"YUANITA, GET THE LOOT AND LET'S GO !!"]
[117,2,"YUANITA, PRENDS LE BUTIN ET ALLONS-Y !!!!"]
[117,1,"AAARGH !!!"]
[117,2,"AAARGH ! !!!!!"]
[117,1,"ESTUPID CLIENTS"]
[117,2,"CLIENTS IDIOTS"]
[117,1,"NOW I HAVE A VISIOR"]
[117,2,"MAINTENANT, J'AI UN VISEUR."]
[118,0,"http://i.imgur.com/QdX6LwA.jpg"]
[118,1,"DANIEL STEEL'S IMPERSONATED LOVE"]
[118,2,"DANIEL STEEL L'AMOUR SUPPLANTÉ"]
[118,1,"OH MY GOD ! TRAGEDY !!!"]
[118,2,"OH MON DIEU ! QUELLE TRAGÉDIE !!!"]
[118,1,"MY RELOVED FUSILLIER BIPANDRA KILLED BY A LETHAL MINE !!!"]
[118,2,"MA FUSILIÈRE BIPANDRA BIEN-AIMÉE TUÉE PAR UNE MINE MORTELLE !!!"]
[118,1,"DOESN'T LOOK LIKE BIPANDRA TO ME…"]
[118,2,"ÇA N'A PAS L'AIR D'ÊTRE BIPANDRA POUR MOI...."]
[118,1,"… OR HUMAN"]
[118,2,"... OU D'UN HUMAIN"]
[118,1,"OH! BUT … WHAT IS THIS ?!"]
[118,2,"OH ! MAIS... QU'EST-CE QUE C'EST QUE ÇA ?!"]
[118,1,"CRUEL DESTINY… BIPANDRA WAS… PREGNANT !!!"]
[118,2,"CRUEL DESTIN.... BIPANDRA ÉTAIT... ENCEINTE !!!!!!"]
[118,1,"THE FRUIT OF OUR LOVE"]
[118,2,"LE FRUIT DE NOTRE AMOUR"]
[118,1,"FIFTEEN YEARS LATER"]
[118,2,"QUINZE ANS PLUS TARD"]
[118,1,"GIMME MONEY!!"]
[118,2,"DONNE-MOI ARGENT !!"]
[118,1,"SON, YOU ARE JUST LIKE YOUR MOTHER"]
[118,2,"FILS, TU ES LE PORTRAIT DE TA MÈRE."]
[118,1,"GIMME MONEY, FILTHY HUMAN !!"]
[118,2,"DONNE-MOI ARGENT, SALE HUMAIN !!!"]
[119,0,"http://i.imgur.com/gJGkQYo.jpg"]
[119,1,"HOW IS BEING A MORAT PRISIIONER? WELL... DEFINITYVELY NOT FUNNY"]
[119,2,"COMMENT C'EST D'ÊTRE PRISONNIER D'UN MORAT ? EH BIEN... CE N'EST VRAIMENT PAS DRÔLE."]
[119,1,"WE ARE RECORDING THYI, TELL US ALL"]
[119,2,"NOUS SOMMES EN TRAIN D'ENREGISTRER ÇA, DITES-NOUS TOUS"]
[119,1,"WE WERE ALL ACONTECIMENTO REGULARS THERE, TOUGH GUYS, WE DIDN'T CARE ABOUT MUD, STINK, EAT,… WHATEVER IT WAS WHAT THEY WERE GIVING US AS FOOD, WHICH HAPPENED TO HAD SURNAME USUALLY…"]
[119,2,"NOUS ÉTIONS LÀ-BAS, TOUS DES RÉGULIERS D'ACONTECIMENTO , DES CORIACES, ON SE FICHAIT DE LA BOUE, DE L'ODEUR, DE LA NOURRITURE,... QUOI QU'ILS NOUS DONNAIENT COMME NOURRITURE, QUI AVAIT TOUJOURS CE SURNOM HABITUEL..."]
[119,1,"… KNOW WHAT I MEAN ?"]
[119,2,"... VOYEZ CE QUE JE VEUX DIRE ?"]
[119,1,"GO ON"]
[119,2,"CONTINUER"]
[119,1,"BUT THERE BETWEEN US, THERE WAS A GUY… HE WAS NOT FROM OUR UNIT, HE WAS WITH US BECAUSE SOME TRANSPORT ISSUE AND … WELL … HE WAS NOT AN ACONTECIMENTO REGULAR"]
[119,2,"MAIS ENTRE NOUS, IL Y AVAIT UN TYPE... IL N'ÉTAIT PAS DE NOTRE UNITÉ, IL ÉTAIT AVEC NOUS PARCE QU'UN PROBLÈME DE TRANSPORT ET QUE... ENFIN... IL N'ÉTAIT PAS UN RÉGULIER D'ACONTECIMENTO..."]
[119,1,"HEY, BABOON !! THIS CUP IS DIRTY, GIVE ME A CLEAN ONE !"]
[119,2,"HÉ, BABOUIN !! CETTE COUPE EST SALE, DONNE-M’EN UNE PROPRE !"]
[119,1,"HE WAS AN AUXILIA FROM NEOTERRA"]
[119,2,"IL ÉTAIT UN AUXILIA DE NÉOTERRA."]
[120,0,"http://i.imgur.com/Cgq0fxO.jpg"]
[120,1,"THE AUXILIA DIDN'T FIT WELL AMOUG US… HOW CAN I TELL YOU ?"]
[120,2,"L'AUXILIA FAISAIT MAUVAIS MÉNAGE AVEC NOUS... COMMENT VOUS LE DIRE ?"]
[120,1,"AAAAH !! MY AUXBOT CAN'T ADVANCE IN THIS MUD !"]
[120,2,"AAAAAH ! !! MON AUXBOT NE PEUT PLUS AVANCER DANS CETTE BOUE !"]
[120,1,"RETREAT !!"]
[120,2,"RETRAITE ! !!"]
[120,1,"I'M SURE THAT THE AUXILIA ARE A PRETTY EFFICIENT UNIT … WHEN THE BATTLE HAPPENS IN A SPA, WITH THE ENEMY SHOOTING PERFUME AND THEY COULD HAVE FULL EQUIPMENT, SUPPORT AND THOSE SMART GUNS THINKING INSTEAD OF THEM"]
[120,2,"JE SUIS SÛR QUE LES AUXILIA SONT UNE UNITÉ ASSEZ EFFICACE... QUAND LA BATAILLE SE DÉROULE DANS UN SPA, AVEC L'ENNEMI TIRANT DU PARFUM ET EN AYANT TOUT CET ÉQUIPEMENT, SOUTIEN ET ARMES INTELLIGENTES PENSANT POUR EUX."]
[120,1,"HAHA!"]
[120,2,"HAHA !"]
[120,1,"YOU DO THINK THIS IS A JOKE, RIGHT ? I CAN TELL YOU THAT SIX MONTHS IN A MORAT GULAG WITH THAT GUY… THAT WAS NOT A JOKE"]
[120,2,"VOUS PENSEZ QUE C'EST UNE BLAGUE, N'EST-CE PAS ? JE PEUX VOUS DIRE QUE SIX MOIS DANS UN GOULAG MORAT AVEC CE TYPE... CE N'ÉTAIT PAS UNE BLAGUE."]
[120,1,"\"CLEAN THE LATRINES !! \""]
[120,2,"NETTOYEZ LES LATRINES !! "]
[120,1,"HOW WAS I SUPPOSED TO KNOW ?!"]
[120,2,"COMMENT J'ÉTAIS CENSÉ LE SAVOIR ?!"]
[120,1,"FOR THOSE RACIST MORATS WE ARE ALL EQUAL, THEY DO NOT DISTINGUISH ONE HUMAN FROM ANOTHER, IF SOMEONE MESSES UP THEY PUNISH THE WHOLE GROUR"]
[120,2,"POUR CES MORATS RACISTES, NOUS SOMMES TOUS PAREILS, ILS NE DISTINGUENT PAS UN HUMAIN D'UN AUTRE, SI QUELQU'UN FOIRE, ILS PUNISSENT L'ENSEMBLE DU GROUPE"]
[120,1,"THE AUXILIA SCREW THINGS UP EVERY DAY"]
[120,2,"ET L'AUXILIA FOIRAIT TOUS LES JOURS."]
[121,0,"http://i.imgur.com/HFwQHmU.jpg"]
[121,1,"ONE DAY WE SAW A MORAT HOBBY, SOME KIND OF INCREDIBLY SUTPID STRATEGY GAME, ANYONE OF US COULD WIN A MATCH AT THAT SILLY CHESS THING, FOR SURE …"]
[121,2,"UN JOUR NOUS AVONS VU UN HOBBY MORAT, UNE SORTE DE JEU DE STRATÉGIE INCROYABLEMENT STUPIDE, N'IMPORTE QUI PARMI NOUS POUVAIT GAGNER UN MATCH À CE JEU D'ÉCHECS IDIOT, POUR SÛR..."]
[121,1,"THE STUPID AUXILIA DID IT"]
[121,2,"CE STUPIDE AUXILIA L'A FAIT."]
[121,1,"HAHA ! EAT DUST BABOON !"]
[121,2,"HAHA ! MANGEZ LA POUSSIÈRE BABOUIN !"]
[121,1,"\"KUSIT!\"!"]
[121,2,"QUOI!!"]
[121,1,"WITH THE PREDICTABLE CONSECUENCES"]
[121,2,"AVEC SES CONSÉQUENCES PRÉVISIBLES"]
[121,1,"\"SLEEP IN THE LATRINES!\""]
[121,2," DORMIREZ DANS LES LATRINES !"]
[121,1,"YOU BAD LOOSERS! I WON'T PLAY AT YOUR STUPID GAME EVER AGAIN !"]
[121,2,"MAUVAIS PERDANTS ! JE NE JOUERAI PLUS JAMAIS À VOTRE JEU STUPIDE !"]
[122,0,"https://img.fireden.net/tg/image/1452/48/1452482044047.png","PIERZASTY"]
[122,1,"PANOCEANIAN ORC TROOPS ! THE BASIC HEAVY INFANTRY IN FACTION WITH LOADS OF INTERESTING ONES"]
[122,2,"TROUPES ORC PANOCÉANIENNES ! L'INFANTERIE LOURDE DE BASE EN GÉNÉRALISTE AVEC DES TAS DE TRUCS INTÉRESSANTS."]
[122,1,"BORING AND RELIABLE, THAT IS OUR MOTTO !"]
[122,2,"ENNUYEUX ET FIABLE, C'EST NOTRE DEVISE !"]
[122,1,"SAY, IS THIS A NOMAD MARKER ? LIKE THE ONE THEY USE FOR HACK"]
[122,2,"DIS, C'EST UN MARQUEUR NOMADE ? COMME CELUI QU'ILS UTILISENT POUR PIRATER"]
[122,1,"GAAAH! WHAT IS THIS FILTH ?!"]
[122,2,"GAAAH ! C'EST QUOI CETTE SALETÉ ?!"]
[122,1,"BAKUNIN REVEREND CUSTODIER: NUN, HACKER AND A NOMAD, I.E. DEGENERATE"]
[122,2,"RÉVÉRENDE GARDIENNE DE BAKOUNINE : NONNE, HACKER ET NOMADE, C'EST-À-DIRE DÉGÉNÉRÉ."]
[122,1,"NOMAD PORN HACK, I WROTE IT MYSELF !"]
[122,2,"HACK PORNO NOMADE, JE L'AI ÉCRIT MOI-MÊME !"]
[122,1,"I NEED A PRIEST !"]
[122,2,"J'AI BESOIN D'UN PRÊTRE !"]
[123,0,"https://i.warosu.org/data/tg/img/0464/58/1459894371528.png"]
[123,1,"GAH! NOMAD PORN HACK AGAIN ?!"]
[123,2,"GAH ! PIRATAGE PORNO NOMADE ENCORE ?!"]
[123,1,"HEE HEE"]
[123,2,"HÉ HÉ "]
[123,1,"WAIT, ARE THOSE NUDE SELFIES ?"]
[123,2,"ATTENDEZ, EST-CE QUE CE SONT DES SELFIES NUS ?"]
[123,1,"HUH ?"]
[123,2,"HEIN ?"]
[123,1,"DAYYYYYUM!"]
[123,2,"WOOOHAAA !"]
[123,1,"SHIT SHIT SHIT SHIT WRONG FILE!"]
[123,2,"MERDE MERDE MERDE MERDE MAUVAIS FICHIER !"]
[124,0,"https://img.fireden.net/tg/image/1452/90/1452900103591.png"]
[124,1,"AND I'M IN ! EASIER THAN A LONELY GIRL IN VALID"]
[124,2,"ET J'Y SUIS ! PLUS FACILE QU'UNE FILLE SEULE DANS UNE BOITE."]
[124,1,"WHAT'S THIS ?! A FILTHY NOMAD HACKER IN OUR BASE ?!"]
[124,2,"QU'EST-CE QUE C'EST ?! UNE SALE HACKEUSE NOMADE DANS NOTRE BASE ?!"]
[124,1,"SCHEISSE !"]
[124,2,"SCHEISSE !"]
[124,1,"I HAVE YOU NOW, NOMAD SCUM! I DON'T CARE FOR YOUR DIRTY TRICKS !"]
[124,2,"JE VOUS TIENS, ORDURE NOMADE ! JE N'AIME PAS VOS SALES TOURS !"]
[124,1,"… LIKE PORN-HACKING ME WHEN MY BACK IS TURNED ! WHOOPS !"]
[124,2,"... COMME LE PIRATAGE PORNO QUAND J'AI LE DOS TOURNÉ ! OUPS !"]
[124,1,"I BROKE HIM…"]
[124,2,"JE L'AI CASSÉ..."]
[125,0,"https://i.warosu.org/data/tg/img/0464/58/1459894521042.png"]
[125,1,"SO THIS GUY IS JOINING US, HUH ?"]
[125,2,"ALORS CE TYPE SE JOINT À NOUS, HEIN ?"]
[125,1,"HEY BUDDY, IF YOU GET HIT BY A NOMAD PORN HACK, SAVE EVERYTHING AND LATER WE CAN COMPARE OUR COLLECTIONS !"]
[125,2,"HÉ MON POTE, SI TU TE FAIS TOUCHER PAR UN PIRATAGE PORNO NOMADE, SAUVEGARDE TOUT ET PLUS TARD ON POURRA COMPARER NOS COLLECTIONS !"]
[125,1,"EXCUSE ME ?!"]
[125,2,"EXCUSEZ MOI ?!"]
[125,1,"AAH!"]
[125,2,"AAH !"]
[125,1,"MILITARY ORDERS FATHER-KNIGHT !\nIMPREGNABLE ARMOUR \nINDOMITABLE FAITH\nIMPARIED SENSE OF HUMOUR"]
[125,2,"\"PÈRE-CHEVALIER DES ORDRE MILITAIRES !\nARMURE INVIOLABLE \nFOI INDOMPTABLE\nSENS DE L'HUMOUR IMPÉRIEUX\""]
[125,1,"I-I MEANT TO SAY BLESS ME FATHER, FOR I HAVE SINNED !"]
[125,2,"JE-JE VOULAIS DIRE BÉNIS MON PÈRE, CAR J'AI PÉCHÉ !"]
[125,1,"… AH"]
[125,2,"... AH"]
[126,0,"https://img.fireden.net/tg/image/1459/64/1459640023392.png"]
[126,1,"EEE! IT'S YOU ! IT'S REALLY YOU !"]
[126,2,"HÉÉÉÉ ! C'EST VOUS ! C'EST VRAIMENT VOUS !"]
[126,1,"I LOVE WHAT YOU DO !\nI FEEL SAFER ALREADY !"]
[126,2,"\"J'ADORE CE QUE VOUS FAITES !\nJE ME SENS DÉJÀ PLUS EN SÉCURITÉ !\""]
[126,1,"HAH! NICE TO KNOW SOMEONE APPRECIATES THE GOOD OLD ORC !"]
[126,2,"HAH ! C'EST BON DE SAVOIR QUE QUELQU'UN APPRÉCIE LE BON VIEUX ORC !"]
[126,1,"WAIT, YOU ARE ACTUALLY AN ORC ?"]
[126,2,"ATTENDEZ, VOUS ÊTES EN FAIT UN ORC ?"]
[126,1,"AWW, I THOUGHT YOU WERE ONE OF THOSE ORC-LIKE SWISS GUARDS, NOT A USELESS ORC…"]
[126,2,"AWW, JE PENSAIS QUE VOUS ÉTIEZ UN DE CES GARDES SUISSES DE TYPE ORC, PAS UN ORC INUTILE....."]
[126,1,"… I'M NOT USELESS…"]
[126,2,"... JE NE SUIS PAS INUTILE...."]
[127,0,"https://img.fireden.net/tg/image/1459/64/1459646509708.png"]
[127,1,"FUSILLIERS DO THAT BETTER"]
[127,2,"LES FUSILIERS FONT ÇA MIEUX"]
[127,1,"YO NEOTERRANS! ORC IS HERE !"]
[127,2,"YO LES NÉOTERRANS ! L'ORC EST ICI !"]
[127,1,"GOOD'DAY, WHO ARE YA MATE ?"]
[127,2,"SALUT, QUI ES-TU MON POTE ?"]
[127,1,"I'M THE ORC TROOPER ! THE HMG HI WITH NO FRENZY !"]
[127,2,"JE SUIS LE SOLDAT ORC ! LA MITRAILLEUSE ILO SANS FRÉNÉSIE !"]
[127,1,"THE MSV3 BLOKE ?"]
[127,2,"LE MEC AU VMS3 ?"]
[127,1,"NO…"]
[127,2,"NON...."]
[127,1,"THE TO CAMO ONE ?"]
[127,2,"CELUI AVEC UN CAMOUFLAGE TO ?"]
[127,1,"NO!"]
[127,2,"NON !"]
[127,1,"WHAT YOU DO MATE ?"]
[127,2,"QUE FAIS-TU ALORS, MON POTE ?"]
[127,1,"I CAN LINK!"]
[127,2,"JE PEUX FAIRE FIRETEAM !"]
[127,1,"WE DO THAT MATE, AND WE'RE SHITE"]
[127,2,"ON SE FAIT ÇA MEC ET NOUS SERONS MERDIQUES"]
[127,1,"SCREW IT, I'M GOING TO ACONTECIMENTO !"]
[127,2,"OUBLIE ÇA, JE VAIS À ACONTECIMENTO !"]
[127,1,"GOOD ON YA MATE! THEY'RE ALL SHITE !"]
[127,2,"BIEN JOUÉ, MON POTE ! ILS SONT TOUS MERDIQUES !"]
[127,1,"I SHOULD HAVE JOINED THE KNIGHTS…"]
[127,2,"J'AURAIS DÛ REJOINDRE LES CHEVALIERS...."]
[128,0,"http://i.imgur.com/06I7u6t.png"]
[128,1,"CHECK IT"]
[128,2,"CONTRÔLE ÇA"]
[128,1,"MAN, THOSE PANO GWAILOS HAVE IT EASY WITH MSVS, AQUILAS, NISSES, BLACK FRIARS, SO MUCH OF IT"]
[128,2,"MEC, CES GWAILOS PANO ONT LA VIE FACILE AVEC TOUT CES VMS, AQUILAS, NISSES, BLACK FRIARS, TOUT ÇA."]
[128,1,"YEAH, MUST BE WHITEY PRIVILEDGE! THEY HAVE IT EASY! "]
[128,2,"OUAIS, ÇA DOIT ÊTRE LE PRIVILÈGE DES BLANCS ! C'EST FACILE POUR EUX ! "]
[128,1,"HEY JAGUAR! WE NEED SOME SMOKE HERE !"]
[128,2,"HÉ, JAGUAR ! ON A BESOIN D'UN PEU DE FUMÉE ICI !"]
[128,1,"USING SMOKE SCREEN WITH MULTISPECTRAL VISOR IS SIN"]
[128,2,"L'UTILISATION D'UN ÉCRAN DE FUMIGÈNE AVEC VISEUR MULTISPECTRAL EST UN PÉCHÉ"]
[129,0,"https://i.warosu.org/data/tg/img/0464/58/1459893701861.png"]
[129,1,"HELLO ! I AM HASSASSIN FIDAY AND TODAY I WILL SHOW YOU …"]
[129,2,"BONJOUR ! JE SUIS HASSASSIN FIDAY ET AUJOURD'HUI JE VAIS VOUS MONTRER..."]
[129,1,"IMPRESONATION! OUR UNBEATABLE WEAPON IN WAR AGAINST INFIDELS !"]
[129,2,"LA SUPPLANTATION ! NOTRE ARME IMBATTABLE DANS LA GUERRE CONTRE LES INFIDÈLES !"]
[129,1,"WITH THIS DISGUISE-TECH WE CAN EASILY REMOVE THEIR \"CHEERLEADERS\"…"]
[129,2,"AVEC CETTE TECHNOLOGIE DE DÉGUISEMENT NOUS POUVONS FACILEMENT ÉLIMINER LEURS \"CHEERLEADERS\"...."]
[129,1,"… THEIR SUBPAR SPECIALISTS …"]
[129,2,"... LEURS DIVERS SOUS-SPÉCIALISTES ...."]
[129,1,"… EVEN THOSE PESKY SNIPERS !"]
[129,2,"... MÊME CES FICHUS SNIPERS !"]
[129,1,"NOT AGAIN !"]
[129,2,"PAS ENCORE !"]
[129,1,"BUT WAIT, THERE'S MORE ! THIS TOOL IS ALSO GREAT FOR INTEL GATHERING !"]
[129,2,"MAIS ATTENDEZ, IL Y A PLUS ! CET OUTIL EST ÉGALEMENT IDÉAL POUR LA COLLECTE D'INFORMATIONS !"]
[129,1,"A-HEM !"]
[129,2,"A-HEM !"]
[129,1,"LIKE THIS !"]
[129,2,"COMME CECI !"]
[129,1,"HELLO FELLOW INFIDEL ! SAY, YOU LOOK NEW!"]
[129,2,"BONJOUR CAMARADE INFIDÈLE ! DIS, TU AS L'AIR NOUVEAU !"]
[129,1,"I'M A BLACK FRIAR"]
[129,2,"JE SUIS UN BLACK FRIAR"]
[129,1,"OH! AND WHAT DO YOU DO ?"]
[129,2,"OH ! ET QUE FAIS-TU ?"]
[129,1,"SEE THROUGH  IMPRESONATION"]
[129,2,"VOIR À TRAVERS LA SUPPLANTATION"]
[130,0,"https://img.fireden.net/tg/image/1460/14/1460141460456.png"]
[130,1,"AH! IT'S BLACK FRIAR !"]
[130,2,"AH ! C'EST LE BLACK FRIAR !"]
[130,1,"THAT'S RIGHT, IT'S BALCK FRIAR! "]
[130,2,"C'EST VRAI, C'EST LE BLACK FRIAR ! "]
[130,1,"EH! BLACK FRIAR !"]
[130,2,"HÉ ! BLACK FRIAR !"]
[130,1,"GOOD MORNING BLACK FRIAR!"]
[130,2,"BONJOUR, BLACK FRIAR !"]
[130,1,"KEEP US SAFE BLACK FRIAR !"]
[130,2,"GARDEZ-NOUS EN SÉCURITÉ BLACK FRIAR !"]
[130,1,"HELLO BLACK FRIAR!"]
[130,2,"BONJOUR BLACK FRIAR !"]
[130,1,"HI! BLACK FRIAR!"]
[130,2,"SALUT ! BLACK FRIAR !"]
[130,1,"SHUP UP! YOU ARE GETTING SO ANNOYING!"]
[130,2,"TAISEZ-VOUS ! TU COMMENCES À M'ENNUYER !"]
[130,1,"DA MIHI REQUIEM…"]
[130,2,"DA MIHI REQUIEM....."]
[130,1,"YAAA! HE TALKED TO ME!"]
[130,2,"YAAAA ! IL M'A PARLÉ !"]
[130,1,"NO, TO ME!"]
[130,2,"NON, C'ÉTAIT À MOI !"]
[131,0,"http://assets.infinitytheforums.com/en/monthly_2016_04/570959c4ae99c_-6anon.png.5a04cb4912a1d838913499ebc37bfa53.png"]
[131,1,"6 TO DISCOVER"]
[131,2,"6 POUR DÉTECTER"]
[131,1,"SURPRISE INSPECTION, SERGEANT! ARE THOSE SINFUL MAGAZINEES ?"]
[131,2,"INSPECTION SURPRISE, SERGENT ! EST-CE QUE CE SONT DES REVUES PÉCHERESSES ?"]
[131,1,"WHAT THE … IS THIS JUST BLANK PAGES ?"]
[131,2,"QU'EST-CE... QUE C'EST QUE CES PAGES BLANCHES ?"]
[131,1,"Y-YES, I GOT FROM A NISEE ON OUR LAST MISSION …"]
[131,2,"OU-OUI, JE L'AI EU D'UN NISSE LORS DE NOTRE DERNIÈRE MISSION..."]
[131,1,"LOOKING AT THE … BLANK PAGES HELPS ME EMPTY MY MIND… DESTRESS AFTER MISSION …"]
[131,2,"REGARDER CES PAGES... BLANCHES M'AIDE À VIDER MON ESPRIT…DÉSTRESSER APRÈS UNE MISSION...."]
[131,1,"HM, I SEE, JUST DON'T REPLACE EVERYDAY PRAYER WITH THIS "]
[131,2,"HUM, JE VOIS, NE REMPLACEZ PAS LA PRIÈRE DE TOUS LES JOURS PAR CECI. "]
[131,1,"DON'T WORRY FATHER, I WON'T!"]
[131,2,"NE VOUS INQUIÉTEZ PAS MON PÈRE, JE NE LE FERAI PAS !"]
[131,1,"NO WORRIES AT ALL…"]
[131,2,"PAS DE SOUCIS DU TOUT....."]
[132,0,"https://i.imgur.com/l4MURhv.png"]
[132,1,"BANDIT BEGINS"]
[132,2,"BANDIT BEGINS"]
[132,1,"CRIMINALS AND THE HELPESS, DESERTERS AND REFUGEES"]
[132,2,"LES CRIMINELS ET LES SANS-ABRI, LES DÉSERTEURS ET LES RÉFUGIÉS"]
[132,1,"CORREGIDOR LAZZARETTO"]
[132,2,"CORREGIDOR LAZZARETTO"]
[132,1,"WHERE A FEW SKENDER IS ENOUGH TO BE ORPHANED"]
[132,2,"UN LIEU OÙ IL SUFFIT QUE DE QUELQUES CINGLÉS POUR SE RETROUVER ORPHELIN."]
[132,1,"BUT EVEN THOUGH WE LEFT THE SAVANNAH, IT'S SPIRITS HAVE NOT ABANDONNED US"]
[132,2,"MALGRÉ QUE NOUS AYONS QUITTÉ LA SAVANE, SES ESPRITS NE NOUS ONT JAMAIS ABANDONNÉS."]
[132,1,"AND SOMETIMES THEY HEAR THE PLEAS OF THE POOR"]
[132,2,"ET PARFOIS ILS ENTENDENT LES SUPPLICATIONS DES NÉCESSITEUX."]
[132,1,"THE WISE MEN HAVE HARDENED MY SOUL"]
[132,2,"LES SAGES ENDURCIRENT MON ÂME"]
[132,1,"AND THE BLACK HAND HAS HARDENED MY BODY"]
[132,2,"ET LA MAIN NOIRE ENDURCIT MON CORPS"]
[132,1,"THEY TAUGHT ME HOW TO FIGHT AND HOW TO HIDE AND SET ME FREE UNTIL THEY HAVE NEED OF ME"]
[132,2,"ILS M'ONT APPRIS À ME BATTRE, À ME CACHER ET À M'AFFRANCHIR JUSQU'À CE QU'ILS AIENT BESOIN DE MOI."]
[132,1,"BUT FOR NOW …"]
[132,2,"MAIS POUR L'INSTANT..."]
[132,1,"LAZARETTO HAS A NEW GUARDIAN"]
[132,2,"LAZARETTO A UN NOUVEAU GARDIEN."]
[132,1,"SO WHEN THE LOWEST SCUM COMES OUT TO PREY ON THE POOR AND THE HELPESS…"]
[132,2,"AINSI, QUAND LA MOINDRE ORDURE SORT POUR S'EN PRENDRE AUX PAUVRES ET AUX SANS-ABRIS..."]
[132,1,"I STRIKE FROM THE SHADOWS !"]
[132,2,"JE FRAPPE DES OMBRES !"]
[132,1,"FOR I AM VENGEANCE!"]
[132,2,"CAR JE SUIS LA VENGEANCE !"]
[132,1,"I AM THE NIGHT !"]
[132,2,"JE SUIS LA NUIT !"]
[132,1,"I AM … THE BANDIT!"]
[132,2,"JE SUIS... LE BANDIT !"]
[132,1,"DAYUM! 200 SKENDER ?! DIS FOO' LOADED !"]
[132,2,"PUT' ! 200 SKENDER ?! ALLEZ C'EST EMBARQUÉ DE SA MÈRE !"]
[132,1,"NIGGA'S GOTTA EAT, YO"]
[132,2,"IL FAUT BIEN QUE LES NÉGROS MANGENT, YO."]
[133,0,"https://i.imgur.com/7yMzCVT.png"]
[133,1,"MADE FOR FIGHTIN AN WINNIN"]
[133,2,"FAIT POUR SE BATTRE ET GAGNER"]
[133,1,"LIEUTENANT RAO ?"]
[133,2,"LIEUTENANT RAO ?"]
[133,1,"REPORT"]
[133,2,"RAPPORT"]
[133,1,"THE ENNEMY IS DIGGING IN MORATS ARE BUILDING DEFENSES AND INCREASING PATROLS"]
[133,2,"L'ENNEMI S'ENFONCE, LES MORATS CONSTRUISENT DES DÉFENSES ET MULTIPLIENT LES PATROUILLES."]
[133,1,"MARK THEM ON THE MAP, I SHALL ISSUE ORDERS SHORTLY"]
[133,2,"MARQUEZ-LES SUR LA CARTE, JE DONNERAI DES ORDRES SOUS PEU"]
[133,1,"HEY BOSS! IS IT TIME FOR KRUMPIN' ?! SEND ME TO DA FIGHT ! MORE DAKKA!"]
[133,2,"HÉ BOSS ! C'EST L'HEURE DE BOURRER ?! ENVOYEZ-MOI AU COMBAT ! ON VA FAIRE PLUS DE DAKKA !"]
[133,1,"WHAT TH- NO, NO DAKKA! WE'RE DOING RECON HERE!"]
[133,2,"QUOI ? NON, PAS DE DAKKA ! ON FAIT DE LA RECONNAISSANCE ICI !"]
[133,1,"GOOD GOD, WHY DID WE GET ASSIGNED THESE IDIOTS!"]
[133,2,"BON DIEU, POURQUOI ON NOUS A ASSIGNÉ CES IDIOTS !"]
[133,1,"EXCUSE ME LIEUTENANT, DID YOU NOT REQUEST \"ANY HELP FOR THE SHOCK ARMY\" ?"]
[133,2,"EXCUSEZ-MOI LIEUTENANT, N'AVIEZ-VOUS PAS DEMANDÉ \"DE L'AIDE POUR L'ARMÉE DE CHOC\" ?"]
[133,1,"DON'T START, DOLL-MAN!"]
[133,2,"NE COMMENCE PAS, L'HOMME-POUPÉE !"]
[134,0,"https://i.imgur.com/ohiJfzD.png"]
[134,1,"SPOOKY SCARY CAMO TROOPS"]
[134,2,"TROUPES CAMO SINISTREMENT EFFRAYANTES "]
[134,1,"DIAZ FERNANDEZ… AND THE SPOOK"]
[134,2,"DIAZ FERNANDEZ... ET LE SPECTRE."]
[134,1,"SAY WHAAAAT ?!"]
[134,2,"WHAT QUOI ?!"]
[134,1,"WHAT YO CALL ME, ASSHOLE ?! I SHOULD SHANK YO BITCH ASS YO-"]
[134,2,"YO COMMENT TU M'APPELLES, TROUDUC ?! JE DEVRAIS TE TIGER LE CUL, SALOPE."]
[134,1,"BOO!"]
[134,2,"BOUH !"]
[134,1,"YOOOW!"]
[134,2,"OUAAAH !"]
[134,1,"REPORTING, BUT IS NOT \"SPOCK\", IS CTTEKTP"]
[134,2,"À PROPOS, CE N'EST PAS \"SPECTRE\", C'EST CTTEKTP"]
[134,1,"SPEKTR, RIGHT "]
[134,2,"SPEKTR, OK ? "]
[134,1,"HANDS OFF MY WALLET, KID"]
[134,2,"ENLÈVE TES MAINS DE MON PORTEFEUILLE, GAMIN."]
[134,1,"SORRY"]
[134,2,"DÉSOLÉ"]
[135,0,"https://i.imgur.com/5aRZmxg.png"]
[135,1,"DAILY DOSE (OF TRAUMA)"]
[135,2,"DOSE QUOTIDIENNE (DE TRAUMATISME)"]
[135,1,"MR NISSE! I'M HERE ! HOLD ON!"]
[135,2,"M. NISSE ! JE SUIS ICI ! TENEZ BON !"]
[135,1,"AIM AND …"]
[135,2,"VISER ET ...."]
[135,1,"\"BANG\" ? WAIT, WAIT, WAIT …"]
[135,2,"BANG ? ATTENDEZ, ATTENDEZ, ATTENDEZ, ..."]
[135,1,"I DIDN'T MEAN TO ! WHY DOES IT KEEP HAPPENING ?!"]
[135,2,"JE NE VOULAIS PAS ! POURQUOI ÇA CONTINUE D'ARRIVER ?!"]
[135,1,"THERE, THERE, HAPPENS TO THE BEST OF US, A LOT, ACTUALLY"]
[135,2,"ÇA ARRIVE SOUVENT AUX MEILLEURS D'ENTRE NOUS, EN FAIT."]
[135,1,"HE NEEDED SOME RER ANYMAY"]
[135,2,"IL AVAIT BESOIN DE QUELQU'UN D'AUTRE DE TOUTE FAÇON."]
[135,1,"AT LEAST IT 'S NOT A TEUTON"]
[135,2,"AU MOINS CE N’ÉTAIT PAS UN TEUTON"]
[136,0,"https://66.media.tumblr.com/096a0fdd615d9de78c2e9ba008209ed1/tumblr_o6d1t2EwwO1rkfs5go1_500.png"]
[136,1,"GO! GO ! PANO!"]
[136,2,"GO! GO ! PANO!"]
[136,1,"\" … AND THEY SHALL KNOW I AM THE … \""]
[136,2,"... ET ILS SAURONT QUE JE SUIS LE..."]
[136,1,"B! L! A-C-K! BLACK FRIAR WILL SAVE THE DAY!"]
[136,2,"B ! L ! L ! A-C-C-K ! LE BLACK FRIAR VA SAUVER LA JOURNÉE !"]
[136,1,"HUM?! WHAT ?!"]
[136,2,"HEU ?! QUOI ?!"]
[137,0,"https://66.media.tumblr.com/a38e616ed5cb44c461c842046250e8b7/tumblr_o6d1t2EwwO1rkfs5go2_500.png"]
[137,1,"SHIEET!"]
[137,2,"MIERDE !"]
[137,1,"F! R! I-A-R! YOU SHOULD HAVE ANOTHER TRY!"]
[137,2,"F ! R ! I-A-R ! VOUS DEVRIEZ RÉESSAYER !"]
[137,1,"MISSED ME, BITCH !"]
[137,2,"TU M'AS MANQUÉ, SALOPE !"]
[137,1,"DA MIHI REQUIEM …"]
[137,2,"DA MIHI REQUIEM..."]
[138,0,"https://img.fireden.net/tg/image/1453/51/1453511331420.png"]
[138,1,"THE FUCK IS THAT CHIEF ?! THAT'S NOT MY EVIL RAM! IS THIS A FUCKING JOKE ?!"]
[138,2,"C'EST QUOI CE BORDEL, CHEF ?! CE N'EST PAS MON BÉLIER MALÉFIQUE ! C'EST UNE PUTAIN DE BLAGUE ?!"]
[138,1,"WELL VIXEN, IT SAYS HERE SHE WAS TRANSFERRED FROM… \"/CO/RREGIDOR\"? WAIT, THIS CAN'T BE, RIGHT…"]
[138,2,"ET BIEN VIXEN, IL EST DIT ICI QU'ELLE A ÉTÉ TRANSFÉRÉE DE... \"/CO/RREGIDOR\" ? ATTENDS, CE N'EST PAS POSSIBLE...."]
[139,0,"https://img.fireden.net/tg/image/1480/86/1480869279756.png"]
[139,1,"PROXY-FRIENDLY"]
[139,2,"PROXY-FRIENDLY"]
[139,1,"OKAY, WE NEED TO SETTLE THIS PANOCEANIAN HEAVY INFANTRY DOES NOT ALL LOOK THE SAME !"]
[139,2,"OK, NOUS DEVONS RÉGLER ÇA : LES INFANTERIES LOURDES PANOCÉANIENNES NE SE RESSEMBLENT PAS TOUTES !"]
[139,1,"TAKE A LOOK AT THIS ORC TROOP AND SWISS GUARD, COMPLETELY DIFFERENT UNITS AND ARMOUR DESIGN!"]
[139,2,"JETEZ UN COUP D'OEIL À CETTE TROUPE ORC ET À CE GARDE SUISSE, DES UNITÉS ET DES DESIGNS D'ARMURE COMPLÈTEMENT DIFFÉRENTES !"]
[139,1,"UH, I'M ACTUALLY AN AQUILA GUARD"]
[139,2,"HEU, EN FAIT JE SUIS UN GARDE AQUILA"]
[139,1,"IMPOSSIBLE ! WHERE'S YOUR COAT ?!"]
[139,2,"IMPOSSIBLE ! OÙ EST VOTRE MANTEAU ?!"]
[139,1,"IN THE WASH"]
[139,2,"AU LAVAGE"]
[139,1,"HUH"]
[139,2,"HEU"]
[139,1,"I'M SORRY, FATHER-KNIGHT"]
[139,2,"JE SUIS DÉSOLÉ, PÈRE-CHEVALIER"]
[139,1,"I'M A MONTESA KNIGHT !"]
[139,2,"JE SUIS CHEVALIER DE MONTESA"]
[139,1,"NOTE THE CROSS! THE CROSS!"]
[139,2,"NOTEZ LA CROIX ! LA CROIX !"]
[139,1,"AT LEAST I KNOW I'M NOT SWISS GUARD TODAY"]
[139,2,"AU MOINS AUJOURD'HUI JE SAIS QUE JE NE SUIS PAS UN GARDE SUISSE"]
[140,0,"https://orig00.deviantart.net/8108/f/2018/085/1/3/rg_28__trolling_is_a_art_by_adhadh-dc7055t.png"]
[140,1,"TROLLING IS A ART"]
[140,2,"TROLLER EST UN ART"]
[140,1,"ANYONE CAN RUN A SCRIPT AND CALL HIMSELF HACKER"]
[140,2,"N'IMPORTE QUI PEUT EXÉCUTER UN SCRIPT ET SE FAIRE APPELER HACKER"]
[140,1,"I MAKE SURE MY ATTACKS ARE PERSONALIZED"]
[140,2,"JE M'ASSURE PERSONNELLEMENT QUE MES ATTAQUES SOIENT TOUJOURS PERSONNALISÉES."]
[140,1,"HECKLER, TUNGUSKAN HACKER"]
[140,2,"HECKLER, HACKER DE TUNGUSKAN"]
[140,1,"HEY BUDDY, I DIDN'T CATCH YOUR NAME!"]
[140,2,"HÉ MON POTE, J'AI PAS SAISI TON NOM !"]
[140,1,"SO HOW ABOUT THOSE CHOIR BOYS ?"]
[140,2,"ALORS QUE DITES-VOUS DE CES ENFANTS DE CHŒUR ?"]
[140,1,"L-LIES AND SLANDER ! IT'S JUST A STEREOTYPE !"]
[140,2,"MEN-MENSONGES ET CALOMNIES ! C'EST UN STÉRÉOTYPE !"]
[140,1,"JAPAN"]
[140,2,"JAPONAIS"]
[141,0,"https://img.fireden.net/tg/image/1484/57/1484572081301.png"]
[141,1,"I MAY NOT BE THE SMARTEST GIRL AROUND, BUT CALLING PEOPLE \"THICK\" IS JUST PLAIN RUDE"]
[141,2,"JE NE SUIS PEUT-ÊTRE PAS LA FILLE LA PLUS BRILLANTE DU COIN, MAIS TRAITER LES GENS DE \" BOMBASSE\" EST TOUT SIMPLEMENT IMPOLI."]
[142,0,"https://img.fireden.net/tg/image/1479/17/1479172213364.png"]
[142,1,"TRUTH IN ADVERTISING"]
[142,2,"VÉRITÉ EN PUBLICITÉ"]
[142,1,"YOWZA!"]
[142,2,"WOW!"]
[142,1,"SIBELLA, BOOK ME A FLIGHT TO CLAUSEWITZ! I'M ENLISTING!"]
[142,2,"SIBELLA, RÉSERVE-MOI UN VOL POUR CLAUSEWITZ ! JE M'ENGAGE !"]
[142,1,"WANT A CAREER ? JOINT THE MAINTENANCE BATAILLON!"]
[142,2,"VOUS VOULEZ UNE CARRIÈRE ? REJOINGNEZ LE BATAILLON DE MAINTENANCE !"]
[142,1,"MUCH TIME AND GRUELING TRAINING LATER …"]
[142,2,"BEAUCOUP DE TEMPS ET UN ENTRAÎNEMENT EXTÉNUANT PLUS TARD..."]
[142,1,"CONGRATULATIONS, RECRUITS !"]
[142,2,"FÉLICITATIONS, RECRUES !"]
[142,1,"WELCOME TO THE MAINTENANCE BATTAILLON !"]
[142,2,"BIENVENUE AU BATAILLON DE MAINTENANCE !"]
[142,1,"I DID NOT THING THIS THROUGH"]
[142,2,"J'AVAIS PAS RÉFLÉCHI À TOUT ÇA."]
[143,0,"https://img.fireden.net/tg/image/1489/60/1489607824119.png"]
[143,1,"TACTICAL DECISIONS"]
[143,2,"DÉCISIONS TACTIQUES"]
[143,1,"DIOMEDES, COME IN! WHAT HAPPENED?"]
[143,2,"DIOMÈDES, RÉPONDEZ ! QUE S'EST-IL PASSÉ ?"]
[143,1,"YOU HAE CAPTAIN DIOMEDES!"]
[143,2,"ICI LE CAPITAINE DIOMÈDE !"]
[143,1,"NOMADS HAVE HACKED MY TRANSPORT!"]
[143,2,"LES NOMADES ONT PIRATÉ MON TRANSPORT !"]
[143,1,"I LANDED IN L.O.F OF A SIN-EATER AND TWO REAKTIONS!"]
[143,2,"J'AI ATTERRI DANS LA L.D.T D'UN SIN-EATER ET DE DEUX REAKTIONS !"]
[143,1,"WELL, NOMADS ARE A REACTIONARY MOVEMENT…"]
[143,2,"EN EFFET, LES NOMADES SONT UN MOUVEMENT RÉACTIONNAIRE...."]
[143,1,"VERY FUNNY, PATCH ME TO ACHILLES"]
[143,2,"TRÈS DRÔLE, METTEZ-MOI EN CONTACT AVEC ACHILLE."]
[143,1,"ACHILLES, WHERE ARE YOU ?!"]
[143,2,"ACHILLE, OÙ ES-TU ?!"]
[143,1,"DIOMEDES! JUST WHOM I NEEDED!"]
[143,2,"HA DIOMÈDES ! JUSTEMENT CELUI QUE J'AVAIS BESOIN !"]
[143,1,"DOES ANY OF MY ARMOURS MAKE MY BUTT LOOK BIG ?"]
[143,2,"EST-CE QUE L'UNE DE MES ARMURES ME DONNE UN GROS CUL ?"]
[143,1,"BROTHER, I AM PINNED HERE !"]
[143,2,"MON FRÈRE, JE SUIS COINCÉ ICI !"]
[144,0,"https://img.fireden.net/tg/image/1463/25/1463257093762.png"]
[144,1,"HOW ABOUT ME AND YOU LADIES SHOW THE WORLD HOW \"TERRIBLE\" ORC TROOPS REALLY ARE ?"]
[144,2,"QUE DIRIEZ-VOUS QUE VOUS ET MOI, MESDAMES, MONTRIONS AU MONDE COMBIEN LES TROUPES ORCS SONT VRAIMENT \"TERRIBLES\" ?"]
[145,0,"https://img.fireden.net/tg/image/1491/57/1491573115927.png"]
[145,1,"FANTASTIC CREATURES AND HOW TO AVOID THEM"]
[145,2,"CRÉATURES FANTASTIQUES ET COMMENT LES ÉVITER"]
[145,1,"WHEW! THEY ARE RELOCATING ME TO HUMAN EDGE! I AM SO DONE WITH PARADISO!"]
[145,2,"OUF ! ILS ME TRANSFÈRENT ENFIN DANS LES CONFINS DE L'HUMANITÉ ! J'EN AI FINI AVEC PARADISO !"]
[145,1,"WHAT, ARE YOU TIRED OF FREE BREATHING AIR ?"]
[145,2,"QUOI, TU EN AS MARRE DE RESPIRER DE L'AIR GRATUIT ?"]
[145,1,"IT'S THE WILDLIFE! TREE-SIZED SPIDERS, MAN-HUNTING SCORPIONS, MAN-EATING PLANTS… I'D RATHER HANDLE SOME ANGRY MINERS THAN MORE ANIMALS!"]
[145,2,"C'EST LA FAUNE ! DES ARAIGNÉES DE LA TAILLE D'UN ARBRE, DES SCORPIONS CHASSEURS D'HOMMES, DES PLANTES MANGEUSES D'HOMMES... JE PRÉFÈRE CÔTOYER DES MINEURS EN COLÈRE QUE PLUS DE CES ANIMAUX !"]
[145,1,"SO YOU'VE NEVER HEARD OF THE SHIKE TARDIGRADE?"]
[145,2,"DONC T'AS JAMAIS ENTENDU PARLER DU SHRIKE TARDIGRADE ?"]
[145,1,"THE WHAT ?"]
[145,2,"DU QUOI ?"]
[145,1,"THEY'RE DOG SIZED MOLES THAT ARE SOMETIMES FOUND BY PROSPECTORS, HARD TO KILL, ALWAYS HUNGRY, THEIR CLAWS CAN TEAR THROUGH SPACESHIP HULLS, BETTER NOT WAKE THEM UP, THAT'S HOW I LOST MORIARTY MK4"]
[145,2,"CE SONT DES TAUPES DE LA TAILLE D'UN CHIEN QUI SONT PARFOIS TROUVÉES PAR LES PROSPECTEURS, DURES À TUER, TOUJOURS AFFAMÉES, LEURS GRIFFES PEUVENT DÉCHIRER LA COQUE D'UN VAISSEAU SPATIAL, MIEUX VAUT NE PAS LES RÉVEILLER, C'EST DE LÀ QUE J'AI PERDU MON MORIARTY MK4"]
[145,1,"I-IS THAT WHY TOMCATS ALWAYS HAVE FLAMETHROWER MODS ON COMBIS ?"]
[145,2,"CE-C'EST POUR ÇA QUE LES TOMCATS ONT TOUJOURS UN LANCE-FLAMMES SUR LEURS COMBIS ?"]
[145,1,"OH, THEY'RE IMMUNE TO FIRE, YOUR BEST BET IS TO AIRLOCK IT AND HOPE IT DOES NOT BURROW BACK IN"]
[145,2,"OH, ILS SONT IMMUNISÉS CONTRE LE FEU, TA MEILLEURE OPTION EST DE L'ENFERMER DANS UN SAS ET ESPÉRER QU'IL NE VA PAS S'EN ENFUIR ET REVENIR."]
[145,1,"I COULD USE SOME MORE FREE AIR …"]
[145,2,"J'AURAIS BIEN BESOIN DE PLUS D'AIR GRATUIT..."]
[146,0,"https://img.fireden.net/tg/image/1447/61/1447618398616.png"]
[146,1,"HEAVENS ABOVE ! WE HAVE SPEKTRS ?"]
[146,2,"DIEU DU CIEL ! NOUS AVONS DES SPEKTRS ?"]
[147,0,"https://66.media.tumblr.com/6abbe9b5293e03e03443f0f6894f2ea8/tumblr_o66p97O0Qi1rkfs5go1_r1_500.png"]
[147,1,"HEY, OFFICER FERNADEZ! HAVE YOU SEEN THOSE \"USELESS ORC\" COMICS ? THEY'RE REALLY FUNNY !"]
[147,2,"HÉ, OFFICIER FERNADEZ ! AVEZ-VOUS VU CES COMICS \" ORCS INUTILES \" ? ELLES SONT VRAIMENT DRÔLES !"]
[147,1,"WHAT ? DO WE KNOW EACH OTHER ?"]
[147,2,"QUOI ? QU'EST-CE QUE C'EST ? EST-CE QU'ON SE CONNAÎT ?"]
[147,1,"WHA- I'M THE TUNKUSKA SECURITATE ! WE USED TO GO ON MISSIONS TOGETHER!"]
[147,2,"QUOI ? JE SUIS LA SECURITATE DE TUNKUSKA ! NOUS AVIONS L'HABITUDE D'ALLER EN MISSION ENSEMBLE !"]
[147,1,"SORRY, I DON'T REALLY RECALL …"]
[147,2,"DÉSOLÉ, JE NE M'EN SOUVIENS PAS VRAIMENT..."]
[148,0,"https://66.media.tumblr.com/916027045f1b7292eb0ca2aca5b26125/tumblr_o66p97O0Qi1rkfs5go2_500.png"]
[148,1,"HEY , GRENZER, HELP ME OUT HERE ! YOU REPLACED ME IN THE COMBINED MISSIONS ROSTER, REMEMBER ?"]
[148,2,"HÉ, GRENZER, AIDE-MOI ! TU M'AS REMPLACÉ DANS LA LISTE DES MISSIONS COMBINÉES, TU TE SOUVIENS ?"]
[148,1,"HUH? WHY ARE YOU TALKING TO ME, STRANGE WOMAN ?"]
[148,2,"HEIN ? POURQUOI ME PARLES-TU, ÉTRANGE FEMME ?"]
[148,1,"WELL, NICE TO MEET YOU, CHICA! YOU HAD SOME FUNNY COMICS ?"]
[148,2,"ET BIEN, RAVI DE TE RENCONTRER, MA BELLE ! TU AVAIS DES BD MARRANTES ?"]
[148,1,"SUDDENLY I DON'T REALLY FIND THEM FUNNY ANYMORE"]
[148,2,"SOUDAINEMENT, JE NE LES TROUVE PLUS VRAIMENT DRÔLES."]
[149,0,"https://img.fireden.net/tg/image/1480/87/1480876128220.png"]
[149,1,"STRANGER IN A STRANGE SPACESHIP"]
[149,2,"ÉTRANGER DANS UN VAISSEAU SPATIAL ÉTRANGE"]
[149,1,"THANK YOU FOR CHOOSING OUR SERVICES, MR WONG WE ARE ABOUT READY TO STRIKE"]
[149,2,"MERCI D'AVOIR CHOISI NOS SERVICES, M. WONG, NOUS SOMMES PRÊTS POUR LE COMBAT."]
[149,1,"GOOD TO HEAR MR BUKOVAC, AND REMEMBER IT'S ALL OFF THE REC-"]
[149,2,"C'EST BON D'ENTENDRE M. BUKOVAC, ET RAPPELEZ-VOUS QUE TOUT CELA EST CONFIDENTIEL."]
[149,1,"WAIT, WHAT IS THAT ALIEN DOING HERE ?!"]
[149,2,"ATTENDEZ, QU'EST-CE-QUE CES ALIENS FONT LÀ ?!"]
[149,1,"YOU'RE AN ALIEN ?"]
[149,2,"VOUS ÊTES UNE ALIEN ?"]
[149,1,"NO, I THOUGHT YOU WERE !"]
[149,2,"NON, EN FAIT, JE CROYAIS QUE TU L'ÉTAIS !"]
[149,1,"I'M FROM BORNEO"]
[149,2,"JE SUIS DE BORNÉO"]
[149,1,"BAKUNIN TROOPS MAY LOOK A LITTLE… UNORTHODOX BUT I ASSURE YOU THEY ARE HARDY SOLDIERS"]
[149,2,"LES TROUPES DE BAKOUNINE PEUVENT PARAÎTRE UN PEU... NON ORTHODOXES, MAIS JE VOUS GARANTIS QUE CE SONT DES SOLDATS ROBUSTES."]
[149,1,"IT'S IMPOLITE TO STARE, MR WONG"]
[149,2,"C'EST IMPOLI DE DÉVISAGER, M. WONG."]
[149,1,"BUT BUT BUT"]
[149,2,"MAIS MAIS MAIS"]
[150,0,"https://www.deviantart.com/adhadh/art/RG-29-What-s-The-Motto-With-You-743006018"]
[150,1,"WHAT'S THE MOTTO WITH YOU"]
[150,2,"QUELLE EST LA DEVISE QUI VOUS CARACTÉRISE ?"]
[150,1,"THE SOUL IS A LOT LIKE THE LAW…"]
[150,2,"L'ÂME EST UN PEU COMME LA LOI...."]
[150,1,"STRAIGHT MAKE-BELIEVE"]
[150,2," UNE PURE ILLUSION"]
[150,1,"CONCILIUM CONVENTIONS ARE A LOT LIKE MORALITY…"]
[150,2,"LES CONVENTIONS DE CONCILIUM SONT UN PEU COMME LA MORALITÉ...."]
[150,1,"STRAIGHT MAKE-BELIEVE"]
[150,2,"UNE PURE ILLUSION"]
[150,1,"HUMAN RIGHTS ARE LIKE KAZAK SECTORIAL…"]
[150,2,"LES DROITS DE L'HOMME SONT COMME LA SECTORIELLE KAZAK ..."]
[150,1,"STRAIGHT MAKE-BELIEVE !"]
[150,2,"UNE PURE ILLUSION"]
[150,1,"EH ? EH ?"]
[150,2,"HEIN ? HEIN ?"]
[150,1,"LIKE A NOMAD VIRGIN ! STRAIGHT MAKE OOF !"]
[150,2,"COMME LA VIGINITÉ D'UNE NOMADE ! UNE PURE ILLUSI-OUF !"]
[150,1,"SHOULD HAVE LEFT YOU BACK ON EARTH"]
[150,2,"AURAIT DÛ TE LAISSER SUR TERRE"]
[151,0,"https://www.deviantart.com/adhadh/art/RG-27-Double-Standards-715538374"]
[151,1,"DOUBLE STANDARDS"]
[151,2,"DEUX POIDS, DEUX MESURES"]
[151,1,"NU, MCDONALDS"]
[151,2,"NU, MCDONALDS"]
[151,1,"MCDOUGALL"]
[151,2,"MCDOUGALL"]
[151,1,"WHATEVER. ORDERS"]
[151,2,"PEUT IMPORTE. VOS ORDRES"]
[151,1,"ACH! IT'S A BLOODY DISGRACE! AN INSULT TO ALL PROUD SCOTS! IT'S ALMOST AS BAD AS LOSING A WAR TO THE ENGLISH!"]
[151,2,"\nACH ! MAIS C'EST UNE VÉRITABLE HONTE ! UNE INSULTE À TOUS LES FIERS ÉCOSSAIS ! C'EST PRESQUE AUSSI GRAVE QUE DE PERDRE UNE GUERRE CONTRE LES ANGLAIS !"]
[151,1,"YOU LOST WAR TO RODINA NOW. EXECUTE ORDER, MCDOUBLE ! 6bICTO!"]
[151,2,"VOUS AVEZ PERDU LA GUERRE CONTRE RODINA CETTE FOIS. EXÉCUTEZ L'ORDRE, MCDOUBLE ! 6bICTO !"]
[151,1,"… DID YE GO TA USARIADNA RECENTLY ?"]
[151,2,".... T'ÊTES-VOUS EMMENÉ EN USARIADNA RÉCEMMENT ?"]
[151,1,"OCH! SO TIGHT ROUND ME ARSE!"]
[151,2,"OUCH ! C'EST BEAUCOUP TROP SERRÉ AUTOUR DE MON CUL !"]
[151,1,"WHY CANNAE WE WEAR KILTS, LIKE THE LADS ?"]
[151,2,"POURQUOI ON NE PEUT PAS PORTER DES KILTS, COMME LES GARÇONS ?"]
[151,1,"BLOODY SEXIST KAZAKS…"]
[151,2,"FOUTUS KAZAKS SEXISTES...."]
[152,0,"https://www.deviantart.com/adhadh/art/RG-26-Hit-and-Swiss-715211420"]
[152,1,"HIT AND SWISS"]
[152,2,"HIT ET SUISSE"]
[152,1,"ACRITER ET FIDELITER"]
[152,2,"ACRITER ET FIDELITER"]
[152,1,"RRRRAAAAAAAAA!!"]
[152,2,"RRRRAAAAAAAAAAAAAA !!!"]
[152,1,"EN GARDE, ALIEN CUNT !"]
[152,2,"EN GARDE, CONNARD D'ALIEN !"]
[152,1,"GGROOOAH!"]
[152,2,"GGROOOOAH !"]
[152,1,"THAT'S… PAINFUL TO WATCH"]
[152,2,"C'EST... DOULOUREUX À VOIR."]
[152,1,"I CONCUR, FELLOW EARTH PRIMATE"]
[152,2,"JE SUIS D'ACCORD, CAMARADE PRIMATE TERRIEN."]
[153,0,"https://www.deviantart.com/adhadh/art/RG-25-Wants-and-Needs-714956173"]
[153,1,"WANTS AND NEEDS"]
[153,2,"ENVIES ET BESOINS"]
[153,1,"YO, AQUILA!"]
[153,2,"YO, AQUILA!"]
[153,1,"I WANTED TO ASK… DIDN'T YOU GUYS HAVE SWORDS ,"]
[153,2,"JE VOULAIS TE DEMANDER... N'AVIEZ-VOUS PAS DES ÉPÉES ?"]
[153,1,"SUP, MATE ,"]
[153,2," QUOI DE NEUF MON POTE ?"]
[153,1,"THEY TOOK THEM BACK DUE TO BUDGET CUTS, WE GOT THOSE KNIVES INSTEAD, BUT IT'S COOL, I'M NOT A KNIGHT AND SWISS HAS A DAGGER AS-"]
[153,2,"ILS LES ONT REPRIS À CAUSE DE COUPES BUDGÉTAIRES, ON A EU CES COUTEAUX À LA PLACE, MAIS C'EST COOL, JE NE SUIS PAS UN CHEVALIER ET LES SUISSES ONT UNE DAGUE COMME-"]
[153,1,"HEY CUNTS, CHECK THIS BITCHING ZWEIHANDER THEY MADE STANDARD ISSUE FOR US SWISS! EVEN THE BUCKETHEADS DON'T HAVE THOSE!"]
[153,2,"HÉ LES MAUVIETTES, REGARDEZ CETTE PUTAIN DE ZWEIHANDER, ILS ONT FAIT UNE ÉDITION STANDARD POUR NOUS LES SUISSES ! MÊME LES TÊTES DE NŒUD N'EN ONT PAS !"]
[153,1,"I'M GONNA WASTE SO MANY ALIEN CUNTS WITH THIS HEY DO YOU THINK I COULD GET A HALBERD HALBERDS ARE WHAT SWISS GUARD IS REALLY ABOUT"]
[153,2,"J'VAIS BUTER TANT DE CES CONNARDS D'EXTRATERRESTRES AVEC ÇA, HÉ VOUS PENSEZ QUE JE POURRAIS AVOIR UNE HALLEBARDE, LES HALLEBARDES, C'EST ÇA LE VRAI TRUC DU GARDE SUISSE"]
[153,1,"SO, 'CUTS BUDGET' ?"]
[153,2,"DONC, \"COUPE BUDGÉTAIRE\" ?"]
[153,1,"I'M ABOUT TO MAKE SOME CUTS ALRIGHT…"]
[153,2,"JE SUIS SUR LE POINT D'ALLER FAIRE QUELQUES COUPES...."]
[154,0,"https://www.deviantart.com/adhadh/art/RG-23-I-Love-You-You-Love-Me-673444744"]
[154,1,"I LOVE YOU, YOU LOVE ME"]
[154,2,"JE T'AIME, TU M'AIMES"]
[154,1,"PARADISO IS AN EMERALD HELL, BUT IT HAS SOME GOOD PARTS"]
[154,2,"PARADISO EST UN ENFER VERT, MAIS IL A QUELQUES BONS CÔTÉS"]
[154,1,"COME ON, A METEOR HEAD LIKE YOU LIKING IT HERE ?"]
[154,2,"VOYONS, UNE TÊTE DE MÉTÉORE COMME TOI SE PLAIT ICI ?"]
[154,1,"WELL…"]
[154,2,"ET BIEN...."]
[154,1,"I FOUND THE PERFECT GIRL, HERE § SHE'S CARING, NICE, HAS A PRETTY SMILE…"]
[154,2,"J'AI TROUVÉ LA FILLE PARFAITE, ICI ! ELLE EST ATTENTIONNÉE, GENTILLE, A UN JOLI SOURIRE...."]
[154,1,"HERE, LET ME SHARE HER PIC !"]
[154,2,"LÀ, JE TE PARTAGE SA PHOTO !"]
[154,1,"UH, NOT THAT I AM JUDGING OR ANYTHING…"]
[154,2,"EUH, NON PAS QUE JE JUGE OU QUOI QUE CE SOIT...."]
[154,1,"… SHE'S AN ALEPH CONSTRUCT"]
[154,2,"... MAIS C'EST UNE CONSTRUCT D'ALEPH"]
[154,1,"NOBODY'S PERFECT"]
[154,2,"PERSONNE N'EST PARFAIT"]
[155,0,"https://www.deviantart.com/adhadh/art/RG-22-No-True-Scopes-Man-669346904"]
[155,1,"NO TRUE SCOPES MAN"]
[155,2,"PAS DE VÉRITABLES VISEURS D'HOMME"]
[155,1,"I HATE CALEDONIA. ALWAYS SO WINDY HERE"]
[155,2,"JE HAIS LA CALÉDONIE. IL Y A TOUJOURS TROP DE VENT ICI"]
[155,1,"WHAT, IT MESSES YOUR 'PERFECT HOMERIC HAIR' ?"]
[155,2,"QUOI, ÇA SALIT TA \"PARFAITE CHEVELURE HOMÉRIQUE\" ?"]
[155,1,"YOU'RE THE ONE TO TALK! CAN'T EVEN SHOOT THAT TRAITOR WALLACE WHEN IT'S WINDY! SOME MARKSWOMAN!"]
[155,2,"C'EST TOI QUI PARLES ! TU NE PEUX MÊME PAS TIRER SUR CE TRAÎTRE DE WALLACE QUAND IL Y A DU VENT ! TU PARLE D'UNE TIREUSE D'ÉLITE !"]
[155,1,"I WILL NOT HAVE MY SKILLS QUESTIONED!"]
[155,2,"JE NE LAISSERAI PAS MES COMPÉTENCES ÊTRE REMISES EN QUESTION !"]
[155,1,"STUPID ACHILLES ! I NEVER MISS !"]
[155,2,"IMBÉCILE D’ACHILLE ! JE NE RATE JAMAIS !"]
[155,1,"I WOULDN'T MISS THIS FOR THE WORLD!"]
[155,2,"JE NE RATERAIS PAS ÇA POUR RIEN AU MONDE !"]
[155,1,"SO INSPIRING…"]
[155,2,"TELLEMENT INSPIRANT…"]
[156,0,"https://www.deviantart.com/adhadh/art/RG-20-Love-is-a-Battlefield-quote-658416289"]
[156,1,"WE ARE STRONG, NO ONE CAN TELL US WE'RE WRONG"]
[156,2,"NOUS SOMMES FORTS, PERSONNE NE PEUT NOUS DIRE QUE NOUS AVONS TORT"]
[156,1,"HEY, WHAT SONG YOU LISTEN TO BEFORE MISSION ? I THINK YOU CAN'T GO WRONG WITH CLASSICS LIKE 'CRUSADER' FROM SAXON"]
[156,2,"HÉ, QUELLE CHANSON ÉCOUTES-TU AVANT UNE MISSION ? JE PENSE QU'ON NE PEUT PAS SE TROMPER AVEC DES CLASSIQUES COMME 'CRUSADER' DE SAXON."]
[156,1,"PSH, THAT'S NOT CLASSIC ! TRY PALASTINALIED! (IN EXTREMEMO VERSION)"]
[156,2,"PSSST, CE N'EST PAS UN CLASSIQUE ! ESSAIEZ PALASTINALIED ! (EN VERSION EXTRÊME)"]
[156,1,"WICKED CHIVALROUS"]
[156,2,"DU MÉCHANT CHEVALERESQUE !"]
[156,1,"HEY, WHAT DO YOU THINK BROTHER KONSTANTINOS IS LISTENING TO ? HE ALWAYS LOOKS SO INTENSE !"]
[156,2,"HÉ, QU'EST-CE QUE TU CROIS QUE FRÈRE KONSTANTINOS ÉCOUTE ? IL A TOUJOURS L'AIR SI INTENSE !"]
[156,1,"LET'S PATCH UP TO HIS FEED !"]
[156,2,"ON VA SE CONNECTER À SON FLUX !"]
[156,1,"NEVER GONNA GIVE YOU UP, NEVER GONNA LET YOU DOWN"]
[156,2,"NE T'ABANDONNERA JAMAIS, NE TE LAISSERA JAMAIS TOMBER."]
[156,1,"WHAAAAT ? WHAT IS THAT ?"]
[156,2,"QUHAAAA ? QU'EST-CE QUE C'EST QUE ÇA ?"]
[156,1,"I THINK HE IS PRANKING US!"]
[156,2,"JE CROIS QU'IL SE MOQUE DE NOUS !"]
[156,1,"NICE ONE, KONSTANTINOS! GOOD TO KNOW YOU HAVE A SENSE OF HUMOUR!"]
[156,2,"BIEN JOUÉ, KONSTANTINOS ! C'EST BON DE SAVOIR QUE T'AS LE SENS DE L'HUMOUR !"]
[157,0,"https://image.noelshack.com/fichiers/2019/11/5/1552640419-picture-11.jpg","YEN KATARN"]
[157,1,"FROM MY PERSONNAL EXPERIENCE THE MOST LETHAL WEAPON ON MY PERSONNAL ARSENAL IS THE FLASH PULSE…"]
[157,2,"DE MON EXPÉRIENCE PERSONNELLE, L'ARME LA PLUS MEURTRIÈRE DE MON ARSENAL PERSONNEL EST LA PULSATION FLASH...."]
[157,1,"LET ME DEMONSTRATE"]
[157,2,"LAISSEZ-MOI VOUS MONTRER"]
[157,1,"JUST POINT AT YOUR ENEMY…"]
[157,2,"IL SUFFIT DE POINTER VERS VOTRE ENNEMI...."]
[157,1,"WHAT IS THIS SHINY SPECLE ON MY DIVINE BRILLIANCE ?"]
[157,2,"QUELLE EST CETTE ÉTINCELLE BRILLANTE SUR MA DIVINE BEAUTÉ ?"]
[157,1,"OH MY HAIR! MY DIVINELY BEAUTIFUL HAIR"]
[157,2,"OH MES CHEVEUX ! MES CHEVEUX DIVINEMENT BEAUX"]
[157,1,"I LOVE THIS DEVICE…"]
[157,2,"J'ADORE CET APPAREIL...."]
[158,0,"http://i.imgur.com/mQ7uP9j.jpg","ARAPHAN"]
[158,1,"OH MY ALLAH! TRIPANDRA, YOU SEEM EXHAUSTED WHAT HAPPENED TO YOU ?"]
[158,2,"OH PAR ALLAH ! TRIPANDRA, TU AS L'AIR ÉPUISÉE, QU'EST-CE QUI T'EST ARRIVÉ ?"]
[158,1,"IT'S BEEN A VERY LONG DAY, ANGUS"]
[158,2,"ÇA A ÉTÉ UNE TRÈS LONGUE JOURNÉE, ANGUS."]
[158,1,"OH, MY! SIT HERE AND TELL ME ALL ABOUT IT"]
[158,2,"OH, MON DIEU ! ASSIS-TOI ICI ET RACONTE-MOI TOUT."]
[158,1,"EVERYTHING BEGUN WHEN THE TEUTONIC RELIC ACTIVATED ITSELF, WE WENT TO EXPLORE THE AREA MARKED BY THE PROVIDED COORDINATES, THAT GAVE US THE POSITION OF A CERTAIN LOCATION…"]
[158,2,"TOUT A COMMENCÉ LORSQUE LA RELIQUE TEUTONIQUE S'EST ACTIVÉE, NOUS SOMMES ALLÉS EXPLORER LA ZONE MARQUÉE PAR LES COORDONNÉES FOURNIES, QUI NOUS ONT DONNÉ LA POSITION D'UN CERTAIN ENDROIT...."]
[158,1,"… AND IN THAT LOCATION WE HAD TO ACTIVATE SOME TECHNO-CHIT MAKING A PARTICULAR SEQUENCE IN ORDER TO TRIANGULATE THE LOCATION OF A SPACE SHIP, AND THERE WAS A BOX INSIDE THE SHIP…"]
[158,2,"... ET À CET ENDROIT, NOUS AVONS DÛ ACTIVER UNE TECHNO-MERDE FAISANT UNE SÉQUENCE PARTICULIÈRE, AFIN DE TRIANGULER L'EMPLACEMENT D'UN VAISSEAU SPATIAL, ET IL Y AVAIT UNE BOÎTE À L'INTÉRIEUR DU VAISSEAU...."]
[158,1,"AND THEY WILL HAVE TO CROSS SOME NASTY RIVER WITH THAT BOX! AND ON THE OTHER SIDE THEY WILL FIND A NOTE HTAT WILL GUIDE THEM BACK TO THE STARTING POINT, BUT THIS TIME THEY WILL FIND A NEW BOX THERE !"]
[158,2,"ET ILS DEVRONT TRAVERSER UN FLEUVE VICIEUX AVEC CETTE BOÎTE ! ET DE L'AUTRE CÔTÉ, ILS TROUVERONT UNE NOTE QUI LES GUIDERA JUSQU'AU POINT DE DÉPART, MAIS CETTE FOIS-CI, ILS Y TROUVERONT UNE NOUVELLE BOÎTE !"]
[158,1,"AHM.. I'M NOT 100% AGREE WITH THIS PLAN …"]
[158,2,"AHM... JE NE SUIS PAS D'ACCORD À 100% AVEC CE PLAN..."]
[158,1,"WELL… THE GOOD POINT IS THAT HUMAN WILL NEVER GUESS THAT WE ARE BEHIND ALL THIS BULLSHIT"]
[158,2,"EH BIEN... LE BON POINT EST QUE LES HUMAINS NE DEVINERONT JAMAIS QUE NOUS SOMMES DERRIÈRE TOUTES CES CONNERIES."]
[159,0,"https://image.noelshack.com/fichiers/2019/11/5/1552640752-picture-16.jpg","VERTOR"]
[159,1,"KATAME-SAN, MAY I ASK YOU SOMETHING ?"]
[159,2,"KATAME-SAN, PUIS-JE VOUS DEMANDER QUELQUE CHOSE ?"]
[159,1,"OH"]
[159,2,"OH"]
[159,1,"SURE, ASK AWAY!"]
[159,2,"BIEN SÛR, DEMANDEZ-LE !"]
[159,1,"HOW COME YOU'RE WEARING VORTEX SPEC OPS SUIT"]
[159,2,"COMMENT SE FAIT-IL QUE VOUS PORTIEZ UN COSTUME SPÉC.OPS VORTEX"]
[159,1,"INSTEAD OF GUIFENG SPEC OPS SUIT ? YOU FANCY DRESSING UP AS TRAITORS OR WHAT "]
[159,2,"AU LIEU D'UN COSTUME DE SPÉC OPS GUIFENG ? VOUS JOUEZ LES TRAÎTRES OU QUOI ? "]
[159,1,"WELL, I-"]
[159,2,"EH BIEN, JE-"]
[159,1,"IT'S JUST THAT THIS SUIT DOESN'T HAVE THAT HINDERING CRAP ON THE BACK "]
[159,2,"C'EST JUSTE QUE CE COSTUME N'A PAS CETTE CONNERIE GÊNANTE À L'ARRIÈRE. "]
[159,1,"RANDOM STUFF WOULD HOOK ONTO IT"]
[159,2,"ET DES TRUCS AU HASARD QUI S'ACCROCHAIENT DESSUS"]
[159,1,"PFFFT, NEVER HAPPENED TO ME "]
[159,2,"PFFFT, JAMAIS ARRIVÉ À MOI. "]
[159,1,"HAVE YOU EVEN EVEN BEEN YOUR BACK"]
[159,2,"AVEZ VOUS DÉJÀ ÉTÉ DERRIÈRE VOUS"]
[160,0,"http://i.imgur.com/ydWSJlK.jpg","ARFN"]
[160,1,"KOALA"]
[160,2,"KOALA"]
[160,1,"IF I DON'T MOVE IT CAN'T SEE ME IF I DON'T…"]
[160,2,"SI JE NE BOUGE PAS, IL NE ME VOIT PAS, SI JE NE …"]
[161,0,"https://image.noelshack.com/fichiers/2019/11/5/1552641390-picture-19.jpg"]
[161,1,"MOVING MINIS"]
[161,2,"DÉMÉNAGEMENT DE FIGURINES"]
[161,1,"EACH TIME YOU GO TO PLAY…"]
[161,2,"CHAQUE FOIS QUE VOUS VOUS DÉPLACEZ POUR JOUER...."]
[161,1,"SOMEONE MISSING A BLUE ANTENNA ?"]
[161,2,"IL MANQUE UNE ANTENNE BLEUE À QUELQU'UN ?"]
[161,1,"HAVE YOU SEEN A RIGHT ARM AROUND ?"]
[161,2,"AVEZ-VOUS VU UN BRAS DROIT AUTOUR DE VOUS ?"]
[161,1,"HMMMM, I'M SURE IT HAD A POINTY END …"]
[161,2,"HMMMM, JE SUIS SÛR QU'IL Y AVAIT UNE EXTRÉMITÉ POINTUE..."]
[161,1,"…. YOU'RE NOT THE ONLY ONE WORRIED ABOUT PIECES BEING WHERE THEY SHOULD !"]
[161,2,"…. VOUS N'ÊTES PAS LE SEUL À VOUS INQUIÉTER QUE LES PIÈCES NE SOIENT PAS LÀ OÙ ELLES DEVRAIENT ÊTRE !"]
[162,0,"https://image.noelshack.com/fichiers/2019/11/5/1552641428-picture-22.jpg"]
[162,1,"MARGOT AND DUROC ADVENTURES"]
[162,2,"MARGOT AND DUROC ADVENTURES"]
[162,1,"WHAT'RE YA DOING ?"]
[162,2,"QU'EST-CE QUE TU FAIS ?"]
[162,1,"SHAVING, MARGOT"]
[162,2,"ME RASE, MARGOT"]
[162,1,"I'M STICK OF PEOPLE CALLING DOG WARRIORS FILTHY FURBALLS, I'M GONNA SHOW THEM"]
[162,2,"JE SUIS COINCÉ AVEC DES GENS QUI TRAITENT LES DOG WARRIORS DE SALES BOULES DE POILS, JE VAIS LEUR MONTRER."]
[162,1,"EVERYTHING ALRIGHT IN THERE ?"]
[162,2,"TOUT VA BIEN LÀ-DEDANS ?"]
[162,1,"YEAH!"]
[162,2,"OUAIS!"]
[162,1,"I JUST CUT MYSELF"]
[162,2,"JE VIENS DE ME COUPER"]
[162,1,"USE A VIRAL BLADE NEXT TIME"]
[162,2,"UTILISE UNE LAME VIRALE LA PROCHAINE FOIS"]
[163,0,"https://image.noelshack.com/fichiers/2019/11/5/1552641545-picture-24.jpg"]
[163,1,"IS THAT GUY OK ? A SHASVATII NOT FINISHING ITS LUNCH IS … UNUSUAL "]
[163,2,"EST-CE QUE CE TYPE VA BIEN ? UN SHASVASTII QUI NE FINIT PAS SON DÉJEUNER EST... INHABITUEL... "]
[163,1,"HIS EMBRYO DIED AND HE HAD TO HAVE IT REMOVED. NOW HE IS DEPRESSED BECAUSE HE FEELS EMPTY"]
[163,2,"SON EMBRYON EST MORT ET IL A DÛ SE LE FAIRE ENLEVER. MAINTENANT, IL EST DÉPRIMÉ PARCE QU'IL SE SENT VIDE."]
[163,1,"I COULD BE WRONG …"]
[163,2,"JE POURRAIS ME TROMPER..."]
[163,1,"I'M JUST SPECULATING"]
[163,2,"JE NE FAIS QUE SPÉCULER"]
[164,0,"https://i.pinimg.com/564x/58/e7/f7/58e7f72b3f86fedecbf5b550bf9893cd.jpg","KILLEET"]
[164,1,"PANOCEANIAN NAVY CORVETTE 'VIGILANT' LOCATION: PARADISO WARZONE"]
[164,2,"CORVETTE 'VIGILANTE' DE LA FLOTTE PANOCÉANIENNE, LOCALISATION : THÉÂTRE DE GUERRE DE PARADISO"]
[164,1,"STATUS: BOARDED BY HOSTILE FORCES"]
[164,2,"STATUT : ABORDÉ PAR DES FORCES HOSTILES"]
[164,1,"JUMP SISTER !!!"]
[164,2,"SAUTER SŒUR !!!"]
[164,1,"HAAAH!!!!"]
[164,2,"HAAAH !!!!"]
[164,1,"I CAN HELP MYSELF UP THANK YOU VERY MUCH BROTHER GERHARDT"]
[164,2,"JE PEUX ME RELEVER MOI-MÊME, MERCI BEAUCOUP, FRÈRE GERHARDT."]
[164,1,"OF COURSE SISTER RONA"]
[164,2,"BIEN SÛR, SŒUR RONA."]
[164,1,"HOW LONG DO YOU THINK THAT WILL DELAY THEM ?"]
[164,2,"COMBIEN DE TEMPS PENSEZ-VOUS QUE ÇA VA LES RETARDER ?"]
[164,1,"FIVE, TEN MINUTES PERHAPS ?"]
[164,2,"CINQ, DIX MINUTES PEUT-ÊTRE ?"]
[165,0,"https://i.pinimg.com/564x/ee/36/c6/ee36c6f824865882a88740852ebb0fe0.jpg"]
[165,1,"IS THAT ENOUGH ?"]
[165,2,"C'EST ASSEZ ?"]
[165,1,"MORE THAN ENOUGH"]
[165,2,"PLUS QUE NÉCESSAIRE"]
[165,1,"LAUDEMUS CHRISTUS, I'LL BE DAMNED BEFORE I LET THIS VESSEL FALL TO THIS FILTH"]
[165,2,"LAUDEMUS CHRISTUS, J'AURAI ÉTÉ DAMNÉ BIEN AVANT DE LAISSER CE VAISSEAU TOMBER AUX MAINS DE CETTE VERMINE."]
[165,1,"AT LAST, SOMETHING WE CAN AGREE ON"]
[165,2,"ENFIN, QUELQUE CHOSE SUR LEQUEL NOUS POUVONS NOUS METTRE D'ACCORD"]
[165,1,"A PITY WE CAN'T AGREE ON MORE"]
[165,2,"QUEL REGRET QUE NOUS NE SOYONS PAS D'ACCORD SUR PLUS"]
[165,1,"INDEED, BUT I HAVE A HARD TIME AGREEING WITH ANYONE WHO BENDS KNEE TO AN A.I"]
[165,2,"EN EFFET, MAIS J'AI DE LA DIFFICULTÉ À M'ACCORDER AVEC QUELQU'UN QUI PLIE LE GENOU FACE À UNE IA."]
[165,1,"HOW MANY TIMES MUST I EXPLAIN THAT THAT IS NOT SO ?"]
[165,2,"COMBIEN DE FOIS DEVRAIS-JE EXPLIQUER QUE CE N'EST PAS LE CAS ?"]
[165,1,"AS MANY AS YOU WISH BROTHER, BUT I CAUTION YOU, WE MAY NOT HAVE MANY BREATHS LEFT, TAKE CARE WHAT YOU WASTE THEM ON "]
[165,2,"FRÈRE, AUTANT QUE VOUS LE SOUHAITEZ, MAIS JE VOUS PRÉVIENS, NOUS N'AVONS PLUS BEAUCOUP DE TEMPS À RESPIRER, PRENEZ GARDE DE NE PAS LE GÂCHER AVEC ÇA. "]
[165,1,"THERE, TIS DONE, THE ENGINES ARE SET TO OVERLOAD"]
[165,2,"VOILÀ, C'EST TERMINÉ, LES MOTEURS SONT PRÊTS À ÊTRE SURCHARGÉS."]
[165,1,"EXEMPLARY WORK SISTER, WE MAY YET TURN TODAY'S MISFORTUNE ON ITS HEAD"]
[165,2,"UN TRAVAIL EXEMPLAIRE, SŒUR, NOUS POURRIONS ENCORE RETOURNER CETTE MÉSAVENTURE D'AUJOURD'HUI DANS L'AUTRE SENS"]
[166,0,"https://i.pinimg.com/564x/f2/4a/03/f24a03fb388bef8f81a32223afe653ce.jpg"]
[166,1,"SPARE ME YOUR HOLLOW PRAISES! THE CODING IS FLAWED, THE OVERRIDE MUST BE ENGAGED MANUALLY"]
[166,2,"ÉPARGNEZ-MOI DE VOS VAINES LOUANGES ! CE CODAGE EST ERRONÉ, LA SURCHARGE DEVRA ÊTRE ENGAGÉE MANUELLEMENT."]
[166,1,"WHICH MEANS … ?"]
[166,2,"CE QUI VEUT DIRE... ?"]
[166,1,"WHICH MEANS BROTHER GERHARDT…"]
[166,2,"CE QUI VEUT DIRE FRÈRE GERHARDT...."]
[166,1,"… THAT WE WILL NOT BE SEEING HOME UNTIL CHRIST'S RETURN"]
[166,2,"... QUE NOUS NE REVERRONS PAS NOS FOYERS AVANT LE RETOUR DU CHRIST."]
[166,1,"I KNEW THIS DAY WOULD COME, I'VE MADE MY PEACE WITH THE ONE TRUE GOD"]
[166,2,"JE SAVAIS QUE CE JOUR VIENDRAIT, J'AI FAIT LA PAIX AVEC LE SEUL VRAI DIEU."]
[166,1,"I SUGGEST YOU SEEK SOLACE WITH WHOMEVER YOU CLAIM TO SERVE"]
[166,2,"JE VOUS SUGGÈRE DE RECHERCHER DU RÉCONFORT AUPRÈS DE QUI VOUS PRÉTENDEZ SERVIR."]
[166,1,"BECAUSE WE'RE ABOUT TO FIND OUT WHOSE DOCTRINE WAS …"]
[166,2,"PARCE QUE NOUS SOMMES SUR LE POINT DE DÉCOUVRIR QUELLE ÉTAIT LA DOCTRINE QUI ÉTAIT..."]
[166,1,"… FLAWED !?"]
[166,2,"... ERRONÉE !?"]
[167,0,"https://i.pinimg.com/564x/b3/63/e9/b363e9566ca420332355b84f25f48d87.jpg"]
[167,1,"WHAT IN GOD'S NAME ARE YOU DOING !!? I DEMAND YOU OPEN THIS DOOR !!!"]
[167,2,"AU NOM DU CIEL, QU'EST-CE QUE VOUS FAITES !!? J'EXIGE QUE VOUS OUVRIEZ CETTE PORTE !!!"]
[167,1,"HUSH NOW SISTER, YOU'RE STILL YOUNG, NAIVE, CAUGHT IN THE EDICTS OF DOCTRINE AND DOGMA"]
[167,2,"TAISEZ-VOUS MAINTENANT MA SŒUR, VOUS ÊTES ENCORE JEUNE, NAÏVE, PRISE DANS LES ÉDITS DE LA DOCTRINE ET DU DOGME."]
[167,1,"FULL OF JUDGEMENT FOR THOSE WHOSE BELIEFS DIFFER FROM YOUR OWN"]
[167,2,"PLEINE DE JUGEMENT POUR CEUX DONT LES CROYANCES DIFFÈRENT DES VÔTRES"]
[167,1,"GO SISTER, LIVE, SERVE"]
[167,2,"ALLER SŒUR, VIVREZ, SERVEZ"]
[167,1,"SOFTEN YOU HEART SO YOUR SPIRIT MAY GROW"]
[167,2,"APAISEZ VOTRE CŒUR AFIN QUE VOTRE ESPRIT PUISSE GRANDIR"]
[168,0,"https://i.pinimg.com/564x/ff/fa/ed/fffaed183ffc5b8ba6c746c6ab964b5c.jpg"]
[168,1,"YOU'LL MEET THE GOD WE BOTH SERVE ANOTHER DAY"]
[168,2,"VOUS RENCONTREREZ LE DIEU QUE NOUS SERVONS TOUS LES DEUX UN AUTRE JOUR."]
[168,1,"CHRIST'S PEACE BE WITH YOU SISTER"]
[168,2,"QUE LA PAIX DU CHRIST SOIT AVEC VOUS MA SŒUR."]
[168,1,"MAY THE GOD WE BOTH SERVE ACCEPT YOUR SOUL INTO HEAVEN BROTHER GERHARDT …"]
[168,2,"PUISSE LE DIEU QUE NOUS SERVONS TOUS LES DEUX ACCEPTER VOTRE ÂME AU PARADIS FRÈRE GERHARDT..."]
[169,0,"https://img.fireden.net/co/image/1535/27/1535273458107.png","BENN"]
[169,1,"THAT'S GREAT NEWS FOR THE ALIENS …"]
[169,2,"C'EST UNE BONNE NOUVELLE POUR LES EXTRATERRESTRES..."]
[169,1,"B-BUT WHEN DO WE REGULAR FACTIONS GET SOME NEW RULES ?"]
[169,2,"MAIS QUAND EST-CE QUE NOUS, LES FACTIONS RÉGULIÈRES, AURONS DE NOUVELLES RÈGLES ?"]
[169,1,"OUT OF THIS WORLD TOO"]
[169,2,"HORS DE CE MONDE AUSSI"]
[169,1,"DEPRIVED HYPERPOWER"]
[169,2,"HYPERPUISSANCE DÉMUNIE"]
[169,1,"ALIEN-ATING YOUR PLAYERBASE"]
[169,2,"ALIEN-ATION DE VOTRE BASE DE JOUEURS"]
[170,0,"https://img.fireden.net/co/image/1535/27/1535273521138.png"]
[170,1,"DO YOU HAVE A FACTION IDENTITY ?"]
[170,2,"AVEZ-VOUS UNE IDENTITÉ DE FACTION ?"]
[170,1,"SURE DO , ONLY ONE I'LL EVER NEED"]
[170,2,"BIEN SÛR, UNE SEULE DONT JE N'AURAI JAMAIS DE BESOIN."]
[170,1,"I AM PANOCEANIAN, ENTITLED TO … EVERYTHING"]
[170,2,"JE SUIS PANOCÉANIEN, J'AI DROIT À ... TOUT."]
[170,1,"PROUD PANOCEANIANS"]
[170,2,"FIERS PANOCÉANIENS"]
[170,1,"KNOW NOTHING PLAYER"]
[170,2,"JOUEUR NE SACHANT RIEN"]
[170,1,"OUR PRECIOUS BALLISTIC SKILL"]
[170,2,"NOTRE PRÉCIEUSE COMPÉTENCE BALISTIQUE"]
[170,1,"1ER WORLD PERKS"]
[170,2,"1ER ATOUTS DU MONDE "]
[171,0,"https://img.fireden.net/tg/image/1455/55/1455553573149.png","BRIAN SOLOMON"]
[171,1,"MISFIRE!"]
[171,2,"MISFIRE !"]
[171,1,"OKAY, SO, THIS GUY UP HERE IS CALLED AN 'INTRUDER'"]
[171,2,"OKAY, DONC, CE TYPE LÀ-HAUT EST APPELÉ L'INTRUDER'."]
[171,1,"RIGHT"]
[171,2,"COMPRIS"]
[171,1,"YOU'LL WANT TO LOOK OUT FOR HIM"]
[171,2,"VOUS DEVREZ VEILLER SUR LUI."]
[171,1,"SEE, HE'S GOT THIS CRAZY MULTI-PURPOSE SNIPER FIFLE…"]
[171,2,"VOYEZ, IL A CE FUSIL DE TIREUR D'ÉLITE MULTI-USAGES DE FOU...."]
[171,1,"LET ME GUESS HOW THIS ENDS:"]
[171,2,"LAISSEZ-MOI DEVINER COMMENT ÇA FINIT :"]
[171,1,"THAT GUN COMBINES WITH A DIFFERENT WARGEAR ITEM IN YOUR ARMY, RIGHT?"]
[171,2,"CE FUSIL VA S'ASSOCIER AVEC UN AUTRE ITEM DE VOTRE ARMÉE, NON ?"]
[171,1,"THEN THOSE ITEMS COMBINE WITH A SPECIAL ABILITY THAT SOME OTHER MODEL, HAS …"]
[171,2,"PUIS CES ITEMS SE COMBINENT AVEC UNE CAPACITÉ SPÉCIALE QU'UN AUTRE MODÈLE, A..."]
[171,1,"CREATING SOME UNHOLY, UNKILLABLE, UNDEFEATABLE HELL-DEMON OF A DEATHSTAR…"]
[171,2,"CRÉANT UN DÉMON IMPIE, INVINCIBLE, ET IMBATTABLE, UN DÉMON DE L'ENFER DE ÉTOILE DE LA MORT...."]
[171,1,"THAT WIPES MY ARMY OFF THE TABLE BEFORE I CAN SO MUCH AS BREATHE"]
[171,2,"QUI RASERA MON ARMÉE DE LA TABLE AVANT MÊME QUE JE PUISSE RESPIRER."]
[171,1,"RIGHT ?"]
[171,2,"BON ?"]
[171,1,"RIGHT ?!!?!"]
[171,2,"BON ?!!?!!"]
[171,1,"THIS IS A DEMO GAME SO… NO"]
[171,2,"C'EST UNE DEMO, DONC... NON."]
[171,1,"CAN I SUGGEST YOU STOP PLAYING IN 40K TOURNAMENTS FOR A BIT ?"]
[171,2,"PUIS-JE VOUS SUGGÉRER D'ARRÊTER DE JOUER DANS DES TOURNOIS 40K PENDANT UN MOMENT ?"]
[171,1,"GOD, THIS MUST BE WHAT PTSD FEELS LIKE…"]
[171,2,"MON DIEU, ÇA DOIT ÊTRE À ÇA QUE DOIT RESSEMBLER LE TSPT...."]

{"sheet":"LECTEUR","index":1,"n_rows":400,"n_cols":7,"rows_kept":400,"cut":false,"hidden":false,"merged":[[0,3,0,4]]}
[null,null,null,"       Aide en comm. cellule\n\nBarre de défilement comic\n Attendre 10s après clic"]
["","Comics Scripts VO / VF",null,null,null,"Index lu \nen cours",1]
[{"$f":"IF($G$2=INDEX(SCRIPTS!$A$3:$A$1048576,MATCH($G$2,SCRIPTS!$A$3:$A$1048576,0)+ROW(A3)-3),INDEX(SCRIPTS!$B$3:$B$1048576,MATCH($G$2,SCRIPTS!$A$3:$A$1048576,0)+ROW(A3)-3),\"\")","v":0},{"$f":"IF($G$2=INDEX(SCRIPTS!$A$3:$A$1048576,MATCH($G$2,SCRIPTS!$A$3:$A$1048576,0)+ROW(A3)-3),INDEX(SCRIPTS!$C$3:$C$1048576,MATCH($G$2,SCRIPTS!$A$3:$A$1048576,0)+ROW(A3)-3),\"\")","v":"http://i19.photobucket.com/albums/b187/wgallen/Misc/Infinity01.jpg"}]
[{"$f":"IF($G$2=INDEX(SCRIPTS!$A$3:$A$1048576,MATCH($G$2,SCRIPTS!$A$3:$A$1048576,0)+ROW(A4)-3),INDEX(SCRIPTS!$B$3:$B$1048576,MATCH($G$2,SCRIPTS!$A$3:$A$1048576,0)+ROW(A4)-3),\"\")","v":1},{"$f":"IF($G$2=INDEX(SCRIPTS!$A$3:$A$1048576,MATCH($G$2,SCRIPTS!$A$3:$A$1048576,0)+ROW(A4)-3),INDEX(SCRIPTS!$C$3:$C$1048576,MATCH($G$2,SCRIPTS!$A$3:$A$1048576,0)+ROW(A4)-3),\"\")","v":"… A SPEKTR, A NINJA, A CROCMAN…"}]
[{"$f":"IF($G$2=INDEX(SCRIPTS!$A$3:$A$1048576,MATCH($G$2,SCRIPTS!$A$3:$A$1048576,0)+ROW(A5)-3),INDEX(SCRIPTS!$B$3:$B$1048576,MATCH($G$2,SCRIPTS!$A$3:$A$1048576,0)+ROW(A5)-3),\"\")","v":2},{"$f":"IF($G$2=INDEX(SCRIPTS!$A$3:$A$1048576,MATCH($G$2,SCRIPTS!$A$3:$A$1048576,0)+ROW(A5)-3),INDEX(SCRIPTS!$C$3:$C$1048576,MATCH($G$2,SCRIPTS!$A$3:$A$1048576,0)+ROW(A5)-3),\"\")","v":"… UN SPEKTR, UN NINJA, UN CROCMAN ...."}]
[{"$f":"IF($G$2=INDEX(SCRIPTS!$A$3:$A$1048576,MATCH($G$2,SCRIPTS!$A$3:$A$1048576,0)+ROW(A6)-3),INDEX(SCRIPTS!$B$3:$B$1048576,MATCH($G$2,SCRIPTS!$A$3:$A$1048576,0)+ROW(A6)-3),\"\")","v":1},{"$f":"IF($G$2=INDEX(SCRIPTS!$A$3:$A$1048576,MATCH($G$2,SCRIPTS!$A$3:$A$1048576,0)+ROW(A6)-3),INDEX(SCRIPTS!$C$3:$C$1048576,MATCH($G$2,SCRIPTS!$A$3:$A$1048576,0)+ROW(A6)-3),\"\")","v":"AS MASTERS OF STEALTH SOMETIMES…"}]
[{"$f":"IF($G$2=INDEX(SCRIPTS!$A$3:$A$1048576,MATCH($G$2,SCRIPTS!$A$3:$A$1048576,0)+ROW(A7)-3),INDEX(SCRIPTS!$B$3:$B$1048576,MATCH($G$2,SCRIPTS!$A$3:$A$1048576,0)+ROW(A7)-3),\"\")","v":2},{"$f":"IF($G$2=INDEX(SCRIPTS!$A$3:$A$1048576,MATCH($G$2,SCRIPTS!$A$3:$A$1048576,0)+ROW(A7)-3),INDEX(SCRIPTS!$C$3:$C$1048576,MATCH($G$2,SCRIPTS!$A$3:$A$1048576,0)+ROW(A7)-3),\"\")","v":"SONT PARFOIS CONNUS COMME DES MAÎTRES DE LA FURTIVITÉ ...."}]
[{"$f":"IF($G$2=INDEX(SCRIPTS!$A$3:$A$1048576,MATCH($G$2,SCRIPTS!$A$3:$A$1048576,0)+ROW(A8)-3),INDEX(SCRIPTS!$B$3:$B$1048576,MATCH($G$2,SCRIPTS!$A$3:$A$1048576,0)+ROW(A8)-3),\"\")","v":1},{"$f":"IF($G$2=INDEX(SCRIPTS!$A$3:$A$1048576,MATCH($G$2,SCRIPTS!$A$3:$A$1048576,0)+ROW(A8)-3),INDEX(SCRIPTS!$C$3:$C$1048576,MATCH($G$2,SCRIPTS!$A$3:$A$1048576,0)+ROW(A8)-3),\"\")","v":"HIGHLANDER DAUGHTERS"}]
[{"$f":"IF($G$2=INDEX(SCRIPTS!$A$3:$A$1048576,MATCH($G$2,SCRIPTS!$A$3:$A$1048576,0)+ROW(A9)-3),INDEX(SCRIPTS!$B$3:$B$1048576,MATCH($G$2,SCRIPTS!$A$3:$A$1048576,0)+ROW(A9)-3),\"\")","v":2},{"$f":"IF($G$2=INDEX(SCRIPTS!$A$3:$A$1048576,MATCH($G$2,SCRIPTS!$A$3:$A$1048576,0)+ROW(A9)-3),INDEX(SCRIPTS!$C$3:$C$1048576,MATCH($G$2,SCRIPTS!$A$3:$A$1048576,0)+ROW(A9)-3),\"\")","v":"FILLES HIGHLANDER"}]
[{"$f":"IF($G$2=INDEX(SCRIPTS!$A$3:$A$1048576,MATCH($G$2,SCRIPTS!$A$3:$A$1048576,0)+ROW(A10)-3),INDEX(SCRIPTS!$B$3:$B$1048576,MATCH($G$2,SCRIPTS!$A$3:$A$1048576,0)+ROW(A10)-3),\"\")","v":1},{"$f":"IF($G$2=INDEX(SCRIPTS!$A$3:$A$1048576,MATCH($G$2,SCRIPTS!$A$3:$A$1048576,0)+ROW(A10)-3),INDEX(SCRIPTS!$C$3:$C$1048576,MATCH($G$2,SCRIPTS!$A$3:$A$1048576,0)+ROW(A10)-3),\"\")","v":"CREAK!"}]
[{"$f":"IF($G$2=INDEX(SCRIPTS!$A$3:$A$1048576,MATCH($G$2,SCRIPTS!$A$3:$A$1048576,0)+ROW(A11)-3),INDEX(SCRIPTS!$B$3:$B$1048576,MATCH($G$2,SCRIPTS!$A$3:$A$1048576,0)+ROW(A11)-3),\"\")","v":2},{"$f":"IF($G$2=INDEX(SCRIPTS!$A$3:$A$1048576,MATCH($G$2,SCRIPTS!$A$3:$A$1048576,0)+ROW(A11)-3),INDEX(SCRIPTS!$C$3:$C$1048576,MATCH($G$2,SCRIPTS!$A$3:$A$1048576,0)+ROW(A11)-3),\"\")","v":"CRAQUE !"}]
[{"$f":"IF($G$2=INDEX(SCRIPTS!$A$3:$A$1048576,MATCH($G$2,SCRIPTS!$A$3:$A$1048576,0)+ROW(A12)-3),INDEX(SCRIPTS!$B$3:$B$1048576,MATCH($G$2,SCRIPTS!$A$3:$A$1048576,0)+ROW(A12)-3),\"\")","v":1},{"$f":"IF($G$2=INDEX(SCRIPTS!$A$3:$A$1048576,MATCH($G$2,SCRIPTS!$A$3:$A$1048576,0)+ROW(A12)-3),INDEX(SCRIPTS!$C$3:$C$1048576,MATCH($G$2,SCRIPTS!$A$3:$A$1048576,0)+ROW(A12)-3),\"\")","v":"OUS ERE !!!"}]
[{"$f":"IF($G$2=INDEX(SCRIPTS!$A$3:$A$1048576,MATCH($G$2,SCRIPTS!$A$3:$A$1048576,0)+ROW(A13)-3),INDEX(SCRIPTS!$B$3:$B$1048576,MATCH($G$2,SCRIPTS!$A$3:$A$1048576,0)+ROW(A13)-3),\"\")","v":2},{"$f":"IF($G$2=INDEX(SCRIPTS!$A$3:$A$1048576,MATCH($G$2,SCRIPTS!$A$3:$A$1048576,0)+ROW(A13)-3),INDEX(SCRIPTS!$C$3:$C$1048576,MATCH($G$2,SCRIPTS!$A$3:$A$1048576,0)+ROW(A13)-3),\"\")","v":"QUI EST LÀ !!!"}]
[{"$f":"IF($G$2=INDEX(SCRIPTS!$A$3:$A$1048576,MATCH($G$2,SCRIPTS!$A$3:$A$1048576,0)+ROW(A14)-3),INDEX(SCRIPTS!$B$3:$B$1048576,MATCH($G$2,SCRIPTS!$A$3:$A$1048576,0)+ROW(A14)-3),\"\")","v":1},{"$f":"IF($G$2=INDEX(SCRIPTS!$A$3:$A$1048576,MATCH($G$2,SCRIPTS!$A$3:$A$1048576,0)+ROW(A14)-3),INDEX(SCRIPTS!$C$3:$C$1048576,MATCH($G$2,SCRIPTS!$A$3:$A$1048576,0)+ROW(A14)-3),\"\")","v":"… A QUICK MIND IS JUST AS IMPORTANT AS TO CAMO…"}]
[{"$f":"IF($G$2=INDEX(SCRIPTS!$A$3:$A$1048576,MATCH($G$2,SCRIPTS!$A$3:$A$1048576,0)+ROW(A15)-3),INDEX(SCRIPTS!$B$3:$B$1048576,MATCH($G$2,SCRIPTS!$A$3:$A$1048576,0)+ROW(A15)-3),\"\")","v":2},{"$f":"IF($G$2=INDEX(SCRIPTS!$A$3:$A$1048576,MATCH($G$2,SCRIPTS!$A$3:$A$1048576,0)+ROW(A15)-3),INDEX(SCRIPTS!$C$3:$C$1048576,MATCH($G$2,SCRIPTS!$A$3:$A$1048576,0)+ROW(A15)-3),\"\")","v":"... UN ESPRIT VIF EST TOUT AUSSI IMPORTANT QU'UN CAMOUFLAGE…."}]
[{"$f":"IF($G$2=INDEX(SCRIPTS!$A$3:$A$1048576,MATCH($G$2,SCRIPTS!$A$3:$A$1048576,0)+ROW(A16)-3),INDEX(SCRIPTS!$B$3:$B$1048576,MATCH($G$2,SCRIPTS!$A$3:$A$1048576,0)+ROW(A16)-3),\"\")","v":1},{"$f":"IF($G$2=INDEX(SCRIPTS!$A$3:$A$1048576,MATCH($G$2,SCRIPTS!$A$3:$A$1048576,0)+ROW(A16)-3),INDEX(SCRIPTS!$C$3:$C$1048576,MATCH($G$2,SCRIPTS!$A$3:$A$1048576,0)+ROW(A16)-3),\"\")","v":"MIAW!"}]
[{"$f":"IF($G$2=INDEX(SCRIPTS!$A$3:$A$1048576,MATCH($G$2,SCRIPTS!$A$3:$A$1048576,0)+ROW(A17)-3),INDEX(SCRIPTS!$B$3:$B$1048576,MATCH($G$2,SCRIPTS!$A$3:$A$1048576,0)+ROW(A17)-3),\"\")","v":2},{"$f":"IF($G$2=INDEX(SCRIPTS!$A$3:$A$1048576,MATCH($G$2,SCRIPTS!$A$3:$A$1048576,0)+ROW(A17)-3),INDEX(SCRIPTS!$C$3:$C$1048576,MATCH($G$2,SCRIPTS!$A$3:$A$1048576,0)+ROW(A17)-3),\"\")","v":"MIAOU !"}]
[{"$f":"IF($G$2=INDEX(SCRIPTS!$A$3:$A$1048576,MATCH($G$2,SCRIPTS!$A$3:$A$1048576,0)+ROW(A18)-3),INDEX(SCRIPTS!$B$3:$B$1048576,MATCH($G$2,SCRIPTS!$A$3:$A$1048576,0)+ROW(A18)-3),\"\")","v":1},{"$f":"IF($G$2=INDEX(SCRIPTS!$A$3:$A$1048576,MATCH($G$2,SCRIPTS!$A$3:$A$1048576,0)+ROW(A18)-3),INDEX(SCRIPTS!$C$3:$C$1048576,MATCH($G$2,SCRIPTS!$A$3:$A$1048576,0)+ROW(A18)-3),\"\")","v":"MIAW!"}]
[{"$f":"IF($G$2=INDEX(SCRIPTS!$A$3:$A$1048576,MATCH($G$2,SCRIPTS!$A$3:$A$1048576,0)+ROW(A19)-3),INDEX(SCRIPTS!$B$3:$B$1048576,MATCH($G$2,SCRIPTS!$A$3:$A$1048576,0)+ROW(A19)-3),\"\")","v":2},{"$f":"IF($G$2=INDEX(SCRIPTS!$A$3:$A$1048576,MATCH($G$2,SCRIPTS!$A$3:$A$1048576,0)+ROW(A19)-3),INDEX(SCRIPTS!$C$3:$C$1048576,MATCH($G$2,SCRIPTS!$A$3:$A$1048576,0)+ROW(A19)-3),\"\")","v":"MIAOU !"}]
[{"$f":"IF($G$2=INDEX(SCRIPTS!$A$3:$A$1048576,MATCH($G$2,SCRIPTS!$A$3:$A$1048576,0)+ROW(A20)-3),INDEX(SCRIPTS!$B$3:$B$1048576,MATCH($G$2,SCRIPTS!$A$3:$A$1048576,0)+ROW(A20)-3),\"\")","v":1},{"$f":"IF($G$2=INDEX(SCRIPTS!$A$3:$A$1048576,MATCH($G$2,SCRIPTS!$A$3:$A$1048576,0)+ROW(A20)-3),INDEX(SCRIPTS!$C$3:$C$1048576,MATCH($G$2,SCRIPTS!$A$3:$A$1048576,0)+ROW(A20)-3),\"\")","v":"THE CAT !"}]
[{"$f":"IF($G$2=INDEX(SCRIPTS!$A$3:$A$1048576,MATCH($G$2,SCRIPTS!$A$3:$A$1048576,0)+ROW(A21)-3),INDEX(SCRIPTS!$B$3:$B$1048576,MATCH($G$2,SCRIPTS!$A$3:$A$1048576,0)+ROW(A21)-3),\"\")","v":2},{"$f":"IF($G$2=INDEX(SCRIPTS!$A$3:$A$1048576,MATCH($G$2,SCRIPTS!$A$3:$A$1048576,0)+ROW(A21)-3),INDEX(SCRIPTS!$C$3:$C$1048576,MATCH($G$2,SCRIPTS!$A$3:$A$1048576,0)+ROW(A21)-3),\"\")","v":"C'EST LE CHAT !"}]
[{"$f":"IF($G$2=INDEX(SCRIPTS!$A$3:$A$1048576,MATCH($G$2,SCRIPTS!$A$3:$A$1048576,0)+ROW(A22)-3),INDEX(SCRIPTS!$B$3:$B$1048576,MATCH($G$2,SCRIPTS!$A$3:$A$1048576,0)+ROW(A22)-3),\"\")","v":""},{"$f":"IF($G$2=INDEX(SCRIPTS!$A$3:$A$1048576,MATCH($G$2,SCRIPTS!$A$3:$A$1048576,0)+ROW(A22)-3),INDEX(SCRIPTS!$C$3:$C$1048576,MATCH($G$2,SCRIPTS!$A$3:$A$1048576,0)+ROW(A22)-3),\"\")","v":""}]
[{"$f":"IF($G$2=INDEX(SCRIPTS!$A$3:$A$1048576,MATCH($G$2,SCRIPTS!$A$3:$A$1048576,0)+ROW(A23)-3),INDEX(SCRIPTS!$B$3:$B$1048576,MATCH($G$2,SCRIPTS!$A$3:$A$1048576,0)+ROW(A23)-3),\"\")","v":""},{"$f":"IF($G$2=INDEX(SCRIPTS!$A$3:$A$1048576,MATCH($G$2,SCRIPTS!$A$3:$A$1048576,0)+ROW(A23)-3),INDEX(SCRIPTS!$C$3:$C$1048576,MATCH($G$2,SCRIPTS!$A$3:$A$1048576,0)+ROW(A23)-3),\"\")","v":""}]
[{"$f":"IF($G$2=INDEX(SCRIPTS!$A$3:$A$1048576,MATCH($G$2,SCRIPTS!$A$3:$A$1048576,0)+ROW(A24)-3),INDEX(SCRIPTS!$B$3:$B$1048576,MATCH($G$2,SCRIPTS!$A$3:$A$1048576,0)+ROW(A24)-3),\"\")","v":""},{"$f":"IF($G$2=INDEX(SCRIPTS!$A$3:$A$1048576,MATCH($G$2,SCRIPTS!$A$3:$A$1048576,0)+ROW(A24)-3),INDEX(SCRIPTS!$C$3:$C$1048576,MATCH($G$2,SCRIPTS!$A$3:$A$1048576,0)+ROW(A24)-3),\"\")","v":""}]
[{"$f":"IF($G$2=INDEX(SCRIPTS!$A$3:$A$1048576,MATCH($G$2,SCRIPTS!$A$3:$A$1048576,0)+ROW(A25)-3),INDEX(SCRIPTS!$B$3:$B$1048576,MATCH($G$2,SCRIPTS!$A$3:$A$1048576,0)+ROW(A25)-3),\"\")","v":""},{"$f":"IF($G$2=INDEX(SCRIPTS!$A$3:$A$1048576,MATCH($G$2,SCRIPTS!$A$3:$A$1048576,0)+ROW(A25)-3),INDEX(SCRIPTS!$C$3:$C$1048576,MATCH($G$2,SCRIPTS!$A$3:$A$1048576,0)+ROW(A25)-3),\"\")","v":""}]
[{"$f":"IF($G$2=INDEX(SCRIPTS!$A$3:$A$1048576,MATCH($G$2,SCRIPTS!$A$3:$A$1048576,0)+ROW(A26)-3),INDEX(SCRIPTS!$B$3:$B$1048576,MATCH($G$2,SCRIPTS!$A$3:$A$1048576,0)+ROW(A26)-3),\"\")","v":""},{"$f":"IF($G$2=INDEX(SCRIPTS!$A$3:$A$1048576,MATCH($G$2,SCRIPTS!$A$3:$A$1048576,0)+ROW(A26)-3),INDEX(SCRIPTS!$C$3:$C$1048576,MATCH($G$2,SCRIPTS!$A$3:$A$1048576,0)+ROW(A26)-3),\"\")","v":""}]
[{"$f":"IF($G$2=INDEX(SCRIPTS!$A$3:$A$1048576,MATCH($G$2,SCRIPTS!$A$3:$A$1048576,0)+ROW(A27)-3),INDEX(SCRIPTS!$B$3:$B$1048576,MATCH($G$2,SCRIPTS!$A$3:$A$1048576,0)+ROW(A27)-3),\"\")","v":""},{"$f":"IF($G$2=INDEX(SCRIPTS!$A$3:$A$1048576,MATCH($G$2,SCRIPTS!$A$3:$A$1048576,0)+ROW(A27)-3),INDEX(SCRIPTS!$C$3:$C$1048576,MATCH($G$2,SCRIPTS!$A$3:$A$1048576,0)+ROW(A27)-3),\"\")","v":""}]
[{"$f":"IF($G$2=INDEX(SCRIPTS!$A$3:$A$1048576,MATCH($G$2,SCRIPTS!$A$3:$A$1048576,0)+ROW(A28)-3),INDEX(SCRIPTS!$B$3:$B$1048576,MATCH($G$2,SCRIPTS!$A$3:$A$1048576,0)+ROW(A28)-3),\"\")","v":""},{"$f":"IF($G$2=INDEX(SCRIPTS!$A$3:$A$1048576,MATCH($G$2,SCRIPTS!$A$3:$A$1048576,0)+ROW(A28)-3),INDEX(SCRIPTS!$C$3:$C$1048576,MATCH($G$2,SCRIPTS!$A$3:$A$1048576,0)+ROW(A28)-3),\"\")","v":""}]
[{"$f":"IF($G$2=INDEX(SCRIPTS!$A$3:$A$1048576,MATCH($G$2,SCRIPTS!$A$3:$A$1048576,0)+ROW(A29)-3),INDEX(SCRIPTS!$B$3:$B$1048576,MATCH($G$2,SCRIPTS!$A$3:$A$1048576,0)+ROW(A29)-3),\"\")","v":""},{"$f":"IF($G$2=INDEX(SCRIPTS!$A$3:$A$1048576,MATCH($G$2,SCRIPTS!$A$3:$A$1048576,0)+ROW(A29)-3),INDEX(SCRIPTS!$C$3:$C$1048576,MATCH($G$2,SCRIPTS!$A$3:$A$1048576,0)+ROW(A29)-3),\"\")","v":""}]
[{"$f":"IF($G$2=INDEX(SCRIPTS!$A$3:$A$1048576,MATCH($G$2,SCRIPTS!$A$3:$A$1048576,0)+ROW(A30)-3),INDEX(SCRIPTS!$B$3:$B$1048576,MATCH($G$2,SCRIPTS!$A$3:$A$1048576,0)+ROW(A30)-3),\"\")","v":""},{"$f":"IF($G$2=INDEX(SCRIPTS!$A$3:$A$1048576,MATCH($G$2,SCRIPTS!$A$3:$A$1048576,0)+ROW(A30)-3),INDEX(SCRIPTS!$C$3:$C$1048576,MATCH($G$2,SCRIPTS!$A$3:$A$1048576,0)+ROW(A30)-3),\"\")","v":""}]
[{"$f":"IF($G$2=INDEX(SCRIPTS!$A$3:$A$1048576,MATCH($G$2,SCRIPTS!$A$3:$A$1048576,0)+ROW(A31)-3),INDEX(SCRIPTS!$B$3:$B$1048576,MATCH($G$2,SCRIPTS!$A$3:$A$1048576,0)+ROW(A31)-3),\"\")","v":""},{"$f":"IF($G$2=INDEX(SCRIPTS!$A$3:$A$1048576,MATCH($G$2,SCRIPTS!$A$3:$A$1048576,0)+ROW(A31)-3),INDEX(SCRIPTS!$C$3:$C$1048576,MATCH($G$2,SCRIPTS!$A$3:$A$1048576,0)+ROW(A31)-3),\"\")","v":""}]
[{"$f":"IF($G$2=INDEX(SCRIPTS!$A$3:$A$1048576,MATCH($G$2,SCRIPTS!$A$3:$A$1048576,0)+ROW(A32)-3),INDEX(SCRIPTS!$B$3:$B$1048576,MATCH($G$2,SCRIPTS!$A$3:$A$1048576,0)+ROW(A32)-3),\"\")","v":""},{"$f":"IF($G$2=INDEX(SCRIPTS!$A$3:$A$1048576,MATCH($G$2,SCRIPTS!$A$3:$A$1048576,0)+ROW(A32)-3),INDEX(SCRIPTS!$C$3:$C$1048576,MATCH($G$2,SCRIPTS!$A$3:$A$1048576,0)+ROW(A32)-3),\"\")","v":""}]
[{"$f":"IF($G$2=INDEX(SCRIPTS!$A$3:$A$1048576,MATCH($G$2,SCRIPTS!$A$3:$A$1048576,0)+ROW(A33)-3),INDEX(SCRIPTS!$B$3:$B$1048576,MATCH($G$2,SCRIPTS!$A$3:$A$1048576,0)+ROW(A33)-3),\"\")","v":""},{"$f":"IF($G$2=INDEX(SCRIPTS!$A$3:$A$1048576,MATCH($G$2,SCRIPTS!$A$3:$A$1048576,0)+ROW(A33)-3),INDEX(SCRIPTS!$C$3:$C$1048576,MATCH($G$2,SCRIPTS!$A$3:$A$1048576,0)+ROW(A33)-3),\"\")","v":""}]
[{"$f":"IF($G$2=INDEX(SCRIPTS!$A$3:$A$1048576,MATCH($G$2,SCRIPTS!$A$3:$A$1048576,0)+ROW(A34)-3),INDEX(SCRIPTS!$B$3:$B$1048576,MATCH($G$2,SCRIPTS!$A$3:$A$1048576,0)+ROW(A34)-3),\"\")","v":""},{"$f":"IF($G$2=INDEX(SCRIPTS!$A$3:$A$1048576,MATCH($G$2,SCRIPTS!$A$3:$A$1048576,0)+ROW(A34)-3),INDEX(SCRIPTS!$C$3:$C$1048576,MATCH($G$2,SCRIPTS!$A$3:$A$1048576,0)+ROW(A34)-3),\"\")","v":""}]
[{"$f":"IF($G$2=INDEX(SCRIPTS!$A$3:$A$1048576,MATCH($G$2,SCRIPTS!$A$3:$A$1048576,0)+ROW(A35)-3),INDEX(SCRIPTS!$B$3:$B$1048576,MATCH($G$2,SCRIPTS!$A$3:$A$1048576,0)+ROW(A35)-3),\"\")","v":""},{"$f":"IF($G$2=INDEX(SCRIPTS!$A$3:$A$1048576,MATCH($G$2,SCRIPTS!$A$3:$A$1048576,0)+ROW(A35)-3),INDEX(SCRIPTS!$C$3:$C$1048576,MATCH($G$2,SCRIPTS!$A$3:$A$1048576,0)+ROW(A35)-3),\"\")","v":""}]
[{"$f":"IF($G$2=INDEX(SCRIPTS!$A$3:$A$1048576,MATCH($G$2,SCRIPTS!$A$3:$A$1048576,0)+ROW(A36)-3),INDEX(SCRIPTS!$B$3:$B$1048576,MATCH($G$2,SCRIPTS!$A$3:$A$1048576,0)+ROW(A36)-3),\"\")","v":""},{"$f":"IF($G$2=INDEX(SCRIPTS!$A$3:$A$1048576,MATCH($G$2,SCRIPTS!$A$3:$A$1048576,0)+ROW(A36)-3),INDEX(SCRIPTS!$C$3:$C$1048576,MATCH($G$2,SCRIPTS!$A$3:$A$1048576,0)+ROW(A36)-3),\"\")","v":""}]
[{"$f":"IF($G$2=INDEX(SCRIPTS!$A$3:$A$1048576,MATCH($G$2,SCRIPTS!$A$3:$A$1048576,0)+ROW(A37)-3),INDEX(SCRIPTS!$B$3:$B$1048576,MATCH($G$2,SCRIPTS!$A$3:$A$1048576,0)+ROW(A37)-3),\"\")","v":""},{"$f":"IF($G$2=INDEX(SCRIPTS!$A$3:$A$1048576,MATCH($G$2,SCRIPTS!$A$3:$A$1048576,0)+ROW(A37)-3),INDEX(SCRIPTS!$C$3:$C$1048576,MATCH($G$2,SCRIPTS!$A$3:$A$1048576,0)+ROW(A37)-3),\"\")","v":""}]
[{"$f":"IF($G$2=INDEX(SCRIPTS!$A$3:$A$1048576,MATCH($G$2,SCRIPTS!$A$3:$A$1048576,0)+ROW(A38)-3),INDEX(SCRIPTS!$B$3:$B$1048576,MATCH($G$2,SCRIPTS!$A$3:$A$1048576,0)+ROW(A38)-3),\"\")","v":""},{"$f":"IF($G$2=INDEX(SCRIPTS!$A$3:$A$1048576,MATCH($G$2,SCRIPTS!$A$3:$A$1048576,0)+ROW(A38)-3),INDEX(SCRIPTS!$C$3:$C$1048576,MATCH($G$2,SCRIPTS!$A$3:$A$1048576,0)+ROW(A38)-3),\"\")","v":""}]
[{"$f":"IF($G$2=INDEX(SCRIPTS!$A$3:$A$1048576,MATCH($G$2,SCRIPTS!$A$3:$A$1048576,0)+ROW(A39)-3),INDEX(SCRIPTS!$B$3:$B$1048576,MATCH($G$2,SCRIPTS!$A$3:$A$1048576,0)+ROW(A39)-3),\"\")","v":""},{"$f":"IF($G$2=INDEX(SCRIPTS!$A$3:$A$1048576,MATCH($G$2,SCRIPTS!$A$3:$A$1048576,0)+ROW(A39)-3),INDEX(SCRIPTS!$C$3:$C$1048576,MATCH($G$2,SCRIPTS!$A$3:$A$1048576,0)+ROW(A39)-3),\"\")","v":""}]
[{"$f":"IF($G$2=INDEX(SCRIPTS!$A$3:$A$1048576,MATCH($G$2,SCRIPTS!$A$3:$A$1048576,0)+ROW(A40)-3),INDEX(SCRIPTS!$B$3:$B$1048576,MATCH($G$2,SCRIPTS!$A$3:$A$1048576,0)+ROW(A40)-3),\"\")","v":""},{"$f":"IF($G$2=INDEX(SCRIPTS!$A$3:$A$1048576,MATCH($G$2,SCRIPTS!$A$3:$A$1048576,0)+ROW(A40)-3),INDEX(SCRIPTS!$C$3:$C$1048576,MATCH($G$2,SCRIPTS!$A$3:$A$1048576,0)+ROW(A40)-3),\"\")","v":""}]
[{"$f":"IF($G$2=INDEX(SCRIPTS!$A$3:$A$1048576,MATCH($G$2,SCRIPTS!$A$3:$A$1048576,0)+ROW(A41)-3),INDEX(SCRIPTS!$B$3:$B$1048576,MATCH($G$2,SCRIPTS!$A$3:$A$1048576,0)+ROW(A41)-3),\"\")","v":""},{"$f":"IF($G$2=INDEX(SCRIPTS!$A$3:$A$1048576,MATCH($G$2,SCRIPTS!$A$3:$A$1048576,0)+ROW(A41)-3),INDEX(SCRIPTS!$C$3:$C$1048576,MATCH($G$2,SCRIPTS!$A$3:$A$1048576,0)+ROW(A41)-3),\"\")","v":""}]
[{"$f":"IF($G$2=INDEX(SCRIPTS!$A$3:$A$1048576,MATCH($G$2,SCRIPTS!$A$3:$A$1048576,0)+ROW(A42)-3),INDEX(SCRIPTS!$B$3:$B$1048576,MATCH($G$2,SCRIPTS!$A$3:$A$1048576,0)+ROW(A42)-3),\"\")","v":""},{"$f":"IF($G$2=INDEX(SCRIPTS!$A$3:$A$1048576,MATCH($G$2,SCRIPTS!$A$3:$A$1048576,0)+ROW(A42)-3),INDEX(SCRIPTS!$C$3:$C$1048576,MATCH($G$2,SCRIPTS!$A$3:$A$1048576,0)+ROW(A42)-3),\"\")","v":""}]
[{"$f":"IF($G$2=INDEX(SCRIPTS!$A$3:$A$1048576,MATCH($G$2,SCRIPTS!$A$3:$A$1048576,0)+ROW(A43)-3),INDEX(SCRIPTS!$B$3:$B$1048576,MATCH($G$2,SCRIPTS!$A$3:$A$1048576,0)+ROW(A43)-3),\"\")","v":""},{"$f":"IF($G$2=INDEX(SCRIPTS!$A$3:$A$1048576,MATCH($G$2,SCRIPTS!$A$3:$A$1048576,0)+ROW(A43)-3),INDEX(SCRIPTS!$C$3:$C$1048576,MATCH($G$2,SCRIPTS!$A$3:$A$1048576,0)+ROW(A43)-3),\"\")","v":""}]
[{"$f":"IF($G$2=INDEX(SCRIPTS!$A$3:$A$1048576,MATCH($G$2,SCRIPTS!$A$3:$A$1048576,0)+ROW(A44)-3),INDEX(SCRIPTS!$B$3:$B$1048576,MATCH($G$2,SCRIPTS!$A$3:$A$1048576,0)+ROW(A44)-3),\"\")","v":""},{"$f":"IF($G$2=INDEX(SCRIPTS!$A$3:$A$1048576,MATCH($G$2,SCRIPTS!$A$3:$A$1048576,0)+ROW(A44)-3),INDEX(SCRIPTS!$C$3:$C$1048576,MATCH($G$2,SCRIPTS!$A$3:$A$1048576,0)+ROW(A44)-3),\"\")","v":""}]
[{"$f":"IF($G$2=INDEX(SCRIPTS!$A$3:$A$1048576,MATCH($G$2,SCRIPTS!$A$3:$A$1048576,0)+ROW(A45)-3),INDEX(SCRIPTS!$B$3:$B$1048576,MATCH($G$2,SCRIPTS!$A$3:$A$1048576,0)+ROW(A45)-3),\"\")","v":""},{"$f":"IF($G$2=INDEX(SCRIPTS!$A$3:$A$1048576,MATCH($G$2,SCRIPTS!$A$3:$A$1048576,0)+ROW(A45)-3),INDEX(SCRIPTS!$C$3:$C$1048576,MATCH($G$2,SCRIPTS!$A$3:$A$1048576,0)+ROW(A45)-3),\"\")","v":""}]
[{"$f":"IF($G$2=INDEX(SCRIPTS!$A$3:$A$1048576,MATCH($G$2,SCRIPTS!$A$3:$A$1048576,0)+ROW(A46)-3),INDEX(SCRIPTS!$B$3:$B$1048576,MATCH($G$2,SCRIPTS!$A$3:$A$1048576,0)+ROW(A46)-3),\"\")","v":""},{"$f":"IF($G$2=INDEX(SCRIPTS!$A$3:$A$1048576,MATCH($G$2,SCRIPTS!$A$3:$A$1048576,0)+ROW(A46)-3),INDEX(SCRIPTS!$C$3:$C$1048576,MATCH($G$2,SCRIPTS!$A$3:$A$1048576,0)+ROW(A46)-3),\"\")","v":""}]
[{"$f":"IF($G$2=INDEX(SCRIPTS!$A$3:$A$1048576,MATCH($G$2,SCRIPTS!$A$3:$A$1048576,0)+ROW(A47)-3),INDEX(SCRIPTS!$B$3:$B$1048576,MATCH($G$2,SCRIPTS!$A$3:$A$1048576,0)+ROW(A47)-3),\"\")","v":""},{"$f":"IF($G$2=INDEX(SCRIPTS!$A$3:$A$1048576,MATCH($G$2,SCRIPTS!$A$3:$A$1048576,0)+ROW(A47)-3),INDEX(SCRIPTS!$C$3:$C$1048576,MATCH($G$2,SCRIPTS!$A$3:$A$1048576,0)+ROW(A47)-3),\"\")","v":""}]
[{"$f":"IF($G$2=INDEX(SCRIPTS!$A$3:$A$1048576,MATCH($G$2,SCRIPTS!$A$3:$A$1048576,0)+ROW(A48)-3),INDEX(SCRIPTS!$B$3:$B$1048576,MATCH($G$2,SCRIPTS!$A$3:$A$1048576,0)+ROW(A48)-3),\"\")","v":""},{"$f":"IF($G$2=INDEX(SCRIPTS!$A$3:$A$1048576,MATCH($G$2,SCRIPTS!$A$3:$A$1048576,0)+ROW(A48)-3),INDEX(SCRIPTS!$C$3:$C$1048576,MATCH($G$2,SCRIPTS!$A$3:$A$1048576,0)+ROW(A48)-3),\"\")","v":""}]
[{"$f":"IF($G$2=INDEX(SCRIPTS!$A$3:$A$1048576,MATCH($G$2,SCRIPTS!$A$3:$A$1048576,0)+ROW(A49)-3),INDEX(SCRIPTS!$B$3:$B$1048576,MATCH($G$2,SCRIPTS!$A$3:$A$1048576,0)+ROW(A49)-3),\"\")","v":""},{"$f":"IF($G$2=INDEX(SCRIPTS!$A$3:$A$1048576,MATCH($G$2,SCRIPTS!$A$3:$A$1048576,0)+ROW(A49)-3),INDEX(SCRIPTS!$C$3:$C$1048576,MATCH($G$2,SCRIPTS!$A$3:$A$1048576,0)+ROW(A49)-3),\"\")","v":""}]
[{"$f":"IF($G$2=INDEX(SCRIPTS!$A$3:$A$1048576,MATCH($G$2,SCRIPTS!$A$3:$A$1048576,0)+ROW(A50)-3),INDEX(SCRIPTS!$B$3:$B$1048576,MATCH($G$2,SCRIPTS!$A$3:$A$1048576,0)+ROW(A50)-3),\"\")","v":""},{"$f":"IF($G$2=INDEX(SCRIPTS!$A$3:$A$1048576,MATCH($G$2,SCRIPTS!$A$3:$A$1048576,0)+ROW(A50)-3),INDEX(SCRIPTS!$C$3:$C$1048576,MATCH($G$2,SCRIPTS!$A$3:$A$1048576,0)+ROW(A50)-3),\"\")","v":""}]
[{"$f":"IF($G$2=INDEX(SCRIPTS!$A$3:$A$1048576,MATCH($G$2,SCRIPTS!$A$3:$A$1048576,0)+ROW(A51)-3),INDEX(SCRIPTS!$B$3:$B$1048576,MATCH($G$2,SCRIPTS!$A$3:$A$1048576,0)+ROW(A51)-3),\"\")","v":""},{"$f":"IF($G$2=INDEX(SCRIPTS!$A$3:$A$1048576,MATCH($G$2,SCRIPTS!$A$3:$A$1048576,0)+ROW(A51)-3),INDEX(SCRIPTS!$C$3:$C$1048576,MATCH($G$2,SCRIPTS!$A$3:$A$1048576,0)+ROW(A51)-3),\"\")","v":""}]
[{"$f":"IF($G$2=INDEX(SCRIPTS!$A$3:$A$1048576,MATCH($G$2,SCRIPTS!$A$3:$A$1048576,0)+ROW(A52)-3),INDEX(SCRIPTS!$B$3:$B$1048576,MATCH($G$2,SCRIPTS!$A$3:$A$1048576,0)+ROW(A52)-3),\"\")","v":""},{"$f":"IF($G$2=INDEX(SCRIPTS!$A$3:$A$1048576,MATCH($G$2,SCRIPTS!$A$3:$A$1048576,0)+ROW(A52)-3),INDEX(SCRIPTS!$C$3:$C$1048576,MATCH($G$2,SCRIPTS!$A$3:$A$1048576,0)+ROW(A52)-3),\"\")","v":""}]
[{"$f":"IF($G$2=INDEX(SCRIPTS!$A$3:$A$1048576,MATCH($G$2,SCRIPTS!$A$3:$A$1048576,0)+ROW(A53)-3),INDEX(SCRIPTS!$B$3:$B$1048576,MATCH($G$2,SCRIPTS!$A$3:$A$1048576,0)+ROW(A53)-3),\"\")","v":""},{"$f":"IF($G$2=INDEX(SCRIPTS!$A$3:$A$1048576,MATCH($G$2,SCRIPTS!$A$3:$A$1048576,0)+ROW(A53)-3),INDEX(SCRIPTS!$C$3:$C$1048576,MATCH($G$2,SCRIPTS!$A$3:$A$1048576,0)+ROW(A53)-3),\"\")","v":""}]
[{"$f":"IF($G$2=INDEX(SCRIPTS!$A$3:$A$1048576,MATCH($G$2,SCRIPTS!$A$3:$A$1048576,0)+ROW(A54)-3),INDEX(SCRIPTS!$B$3:$B$1048576,MATCH($G$2,SCRIPTS!$A$3:$A$1048576,0)+ROW(A54)-3),\"\")","v":""},{"$f":"IF($G$2=INDEX(SCRIPTS!$A$3:$A$1048576,MATCH($G$2,SCRIPTS!$A$3:$A$1048576,0)+ROW(A54)-3),INDEX(SCRIPTS!$C$3:$C$1048576,MATCH($G$2,SCRIPTS!$A$3:$A$1048576,0)+ROW(A54)-3),\"\")","v":""}]
[{"$f":"IF($G$2=INDEX(SCRIPTS!$A$3:$A$1048576,MATCH($G$2,SCRIPTS!$A$3:$A$1048576,0)+ROW(A55)-3),INDEX(SCRIPTS!$B$3:$B$1048576,MATCH($G$2,SCRIPTS!$A$3:$A$1048576,0)+ROW(A55)-3),\"\")","v":""},{"$f":"IF($G$2=INDEX(SCRIPTS!$A$3:$A$1048576,MATCH($G$2,SCRIPTS!$A$3:$A$1048576,0)+ROW(A55)-3),INDEX(SCRIPTS!$C$3:$C$1048576,MATCH($G$2,SCRIPTS!$A$3:$A$1048576,0)+ROW(A55)-3),\"\")","v":""}]
[{"$f":"IF($G$2=INDEX(SCRIPTS!$A$3:$A$1048576,MATCH($G$2,SCRIPTS!$A$3:$A$1048576,0)+ROW(A56)-3),INDEX(SCRIPTS!$B$3:$B$1048576,MATCH($G$2,SCRIPTS!$A$3:$A$1048576,0)+ROW(A56)-3),\"\")","v":""},{"$f":"IF($G$2=INDEX(SCRIPTS!$A$3:$A$1048576,MATCH($G$2,SCRIPTS!$A$3:$A$1048576,0)+ROW(A56)-3),INDEX(SCRIPTS!$C$3:$C$1048576,MATCH($G$2,SCRIPTS!$A$3:$A$1048576,0)+ROW(A56)-3),\"\")","v":""}]
[{"$f":"IF($G$2=INDEX(SCRIPTS!$A$3:$A$1048576,MATCH($G$2,SCRIPTS!$A$3:$A$1048576,0)+ROW(A57)-3),INDEX(SCRIPTS!$B$3:$B$1048576,MATCH($G$2,SCRIPTS!$A$3:$A$1048576,0)+ROW(A57)-3),\"\")","v":""},{"$f":"IF($G$2=INDEX(SCRIPTS!$A$3:$A$1048576,MATCH($G$2,SCRIPTS!$A$3:$A$1048576,0)+ROW(A57)-3),INDEX(SCRIPTS!$C$3:$C$1048576,MATCH($G$2,SCRIPTS!$A$3:$A$1048576,0)+ROW(A57)-3),\"\")","v":""}]
[{"$f":"IF($G$2=INDEX(SCRIPTS!$A$3:$A$1048576,MATCH($G$2,SCRIPTS!$A$3:$A$1048576,0)+ROW(A58)-3),INDEX(SCRIPTS!$B$3:$B$1048576,MATCH($G$2,SCRIPTS!$A$3:$A$1048576,0)+ROW(A58)-3),\"\")","v":""},{"$f":"IF($G$2=INDEX(SCRIPTS!$A$3:$A$1048576,MATCH($G$2,SCRIPTS!$A$3:$A$1048576,0)+ROW(A58)-3),INDEX(SCRIPTS!$C$3:$C$1048576,MATCH($G$2,SCRIPTS!$A$3:$A$1048576,0)+ROW(A58)-3),\"\")","v":""}]
[{"$f":"IF($G$2=INDEX(SCRIPTS!$A$3:$A$1048576,MATCH($G$2,SCRIPTS!$A$3:$A$1048576,0)+ROW(A59)-3),INDEX(SCRIPTS!$B$3:$B$1048576,MATCH($G$2,SCRIPTS!$A$3:$A$1048576,0)+ROW(A59)-3),\"\")","v":""},{"$f":"IF($G$2=INDEX(SCRIPTS!$A$3:$A$1048576,MATCH($G$2,SCRIPTS!$A$3:$A$1048576,0)+ROW(A59)-3),INDEX(SCRIPTS!$C$3:$C$1048576,MATCH($G$2,SCRIPTS!$A$3:$A$1048576,0)+ROW(A59)-3),\"\")","v":""}]
[{"$f":"IF($G$2=INDEX(SCRIPTS!$A$3:$A$1048576,MATCH($G$2,SCRIPTS!$A$3:$A$1048576,0)+ROW(A60)-3),INDEX(SCRIPTS!$B$3:$B$1048576,MATCH($G$2,SCRIPTS!$A$3:$A$1048576,0)+ROW(A60)-3),\"\")","v":""},{"$f":"IF($G$2=INDEX(SCRIPTS!$A$3:$A$1048576,MATCH($G$2,SCRIPTS!$A$3:$A$1048576,0)+ROW(A60)-3),INDEX(SCRIPTS!$C$3:$C$1048576,MATCH($G$2,SCRIPTS!$A$3:$A$1048576,0)+ROW(A60)-3),\"\")","v":""}]
[{"$f":"IF($G$2=INDEX(SCRIPTS!$A$3:$A$1048576,MATCH($G$2,SCRIPTS!$A$3:$A$1048576,0)+ROW(A61)-3),INDEX(SCRIPTS!$B$3:$B$1048576,MATCH($G$2,SCRIPTS!$A$3:$A$1048576,0)+ROW(A61)-3),\"\")","v":""},{"$f":"IF($G$2=INDEX(SCRIPTS!$A$3:$A$1048576,MATCH($G$2,SCRIPTS!$A$3:$A$1048576,0)+ROW(A61)-3),INDEX(SCRIPTS!$C$3:$C$1048576,MATCH($G$2,SCRIPTS!$A$3:$A$1048576,0)+ROW(A61)-3),\"\")","v":""}]
[{"$f":"IF($G$2=INDEX(SCRIPTS!$A$3:$A$1048576,MATCH($G$2,SCRIPTS!$A$3:$A$1048576,0)+ROW(A62)-3),INDEX(SCRIPTS!$B$3:$B$1048576,MATCH($G$2,SCRIPTS!$A$3:$A$1048576,0)+ROW(A62)-3),\"\")","v":""},{"$f":"IF($G$2=INDEX(SCRIPTS!$A$3:$A$1048576,MATCH($G$2,SCRIPTS!$A$3:$A$1048576,0)+ROW(A62)-3),INDEX(SCRIPTS!$C$3:$C$1048576,MATCH($G$2,SCRIPTS!$A$3:$A$1048576,0)+ROW(A62)-3),\"\")","v":""}]
[{"$f":"IF($G$2=INDEX(SCRIPTS!$A$3:$A$1048576,MATCH($G$2,SCRIPTS!$A$3:$A$1048576,0)+ROW(A63)-3),INDEX(SCRIPTS!$B$3:$B$1048576,MATCH($G$2,SCRIPTS!$A$3:$A$1048576,0)+ROW(A63)-3),\"\")","v":""},{"$f":"IF($G$2=INDEX(SCRIPTS!$A$3:$A$1048576,MATCH($G$2,SCRIPTS!$A$3:$A$1048576,0)+ROW(A63)-3),INDEX(SCRIPTS!$C$3:$C$1048576,MATCH($G$2,SCRIPTS!$A$3:$A$1048576,0)+ROW(A63)-3),\"\")","v":""}]
[{"$f":"IF($G$2=INDEX(SCRIPTS!$A$3:$A$1048576,MATCH($G$2,SCRIPTS!$A$3:$A$1048576,0)+ROW(A64)-3),INDEX(SCRIPTS!$B$3:$B$1048576,MATCH($G$2,SCRIPTS!$A$3:$A$1048576,0)+ROW(A64)-3),\"\")","v":""},{"$f":"IF($G$2=INDEX(SCRIPTS!$A$3:$A$1048576,MATCH($G$2,SCRIPTS!$A$3:$A$1048576,0)+ROW(A64)-3),INDEX(SCRIPTS!$C$3:$C$1048576,MATCH($G$2,SCRIPTS!$A$3:$A$1048576,0)+ROW(A64)-3),\"\")","v":""}]
[{"$f":"IF($G$2=INDEX(SCRIPTS!$A$3:$A$1048576,MATCH($G$2,SCRIPTS!$A$3:$A$1048576,0)+ROW(A65)-3),INDEX(SCRIPTS!$B$3:$B$1048576,MATCH($G$2,SCRIPTS!$A$3:$A$1048576,0)+ROW(A65)-3),\"\")","v":""},{"$f":"IF($G$2=INDEX(SCRIPTS!$A$3:$A$1048576,MATCH($G$2,SCRIPTS!$A$3:$A$1048576,0)+ROW(A65)-3),INDEX(SCRIPTS!$C$3:$C$1048576,MATCH($G$2,SCRIPTS!$A$3:$A$1048576,0)+ROW(A65)-3),\"\")","v":""}]
[{"$f":"IF($G$2=INDEX(SCRIPTS!$A$3:$A$1048576,MATCH($G$2,SCRIPTS!$A$3:$A$1048576,0)+ROW(A66)-3),INDEX(SCRIPTS!$B$3:$B$1048576,MATCH($G$2,SCRIPTS!$A$3:$A$1048576,0)+ROW(A66)-3),\"\")","v":""},{"$f":"IF($G$2=INDEX(SCRIPTS!$A$3:$A$1048576,MATCH($G$2,SCRIPTS!$A$3:$A$1048576,0)+ROW(A66)-3),INDEX(SCRIPTS!$C$3:$C$1048576,MATCH($G$2,SCRIPTS!$A$3:$A$1048576,0)+ROW(A66)-3),\"\")","v":""}]
[{"$f":"IF($G$2=INDEX(SCRIPTS!$A$3:$A$1048576,MATCH($G$2,SCRIPTS!$A$3:$A$1048576,0)+ROW(A67)-3),INDEX(SCRIPTS!$B$3:$B$1048576,MATCH($G$2,SCRIPTS!$A$3:$A$1048576,0)+ROW(A67)-3),\"\")","v":""},{"$f":"IF($G$2=INDEX(SCRIPTS!$A$3:$A$1048576,MATCH($G$2,SCRIPTS!$A$3:$A$1048576,0)+ROW(A67)-3),INDEX(SCRIPTS!$C$3:$C$1048576,MATCH($G$2,SCRIPTS!$A$3:$A$1048576,0)+ROW(A67)-3),\"\")","v":""}]
[{"$f":"IF($G$2=INDEX(SCRIPTS!$A$3:$A$1048576,MATCH($G$2,SCRIPTS!$A$3:$A$1048576,0)+ROW(A68)-3),INDEX(SCRIPTS!$B$3:$B$1048576,MATCH($G$2,SCRIPTS!$A$3:$A$1048576,0)+ROW(A68)-3),\"\")","v":""},{"$f":"IF($G$2=INDEX(SCRIPTS!$A$3:$A$1048576,MATCH($G$2,SCRIPTS!$A$3:$A$1048576,0)+ROW(A68)-3),INDEX(SCRIPTS!$C$3:$C$1048576,MATCH($G$2,SCRIPTS!$A$3:$A$1048576,0)+ROW(A68)-3),\"\")","v":""}]
[{"$f":"IF($G$2=INDEX(SCRIPTS!$A$3:$A$1048576,MATCH($G$2,SCRIPTS!$A$3:$A$1048576,0)+ROW(A69)-3),INDEX(SCRIPTS!$B$3:$B$1048576,MATCH($G$2,SCRIPTS!$A$3:$A$1048576,0)+ROW(A69)-3),\"\")","v":""},{"$f":"IF($G$2=INDEX(SCRIPTS!$A$3:$A$1048576,MATCH($G$2,SCRIPTS!$A$3:$A$1048576,0)+ROW(A69)-3),INDEX(SCRIPTS!$C$3:$C$1048576,MATCH($G$2,SCRIPTS!$A$3:$A$1048576,0)+ROW(A69)-3),\"\")","v":""}]
[{"$f":"IF($G$2=INDEX(SCRIPTS!$A$3:$A$1048576,MATCH($G$2,SCRIPTS!$A$3:$A$1048576,0)+ROW(A70)-3),INDEX(SCRIPTS!$B$3:$B$1048576,MATCH($G$2,SCRIPTS!$A$3:$A$1048576,0)+ROW(A70)-3),\"\")","v":""},{"$f":"IF($G$2=INDEX(SCRIPTS!$A$3:$A$1048576,MATCH($G$2,SCRIPTS!$A$3:$A$1048576,0)+ROW(A70)-3),INDEX(SCRIPTS!$C$3:$C$1048576,MATCH($G$2,SCRIPTS!$A$3:$A$1048576,0)+ROW(A70)-3),\"\")","v":""}]
[{"$f":"IF($G$2=INDEX(SCRIPTS!$A$3:$A$1048576,MATCH($G$2,SCRIPTS!$A$3:$A$1048576,0)+ROW(A71)-3),INDEX(SCRIPTS!$B$3:$B$1048576,MATCH($G$2,SCRIPTS!$A$3:$A$1048576,0)+ROW(A71)-3),\"\")","v":""},{"$f":"IF($G$2=INDEX(SCRIPTS!$A$3:$A$1048576,MATCH($G$2,SCRIPTS!$A$3:$A$1048576,0)+ROW(A71)-3),INDEX(SCRIPTS!$C$3:$C$1048576,MATCH($G$2,SCRIPTS!$A$3:$A$1048576,0)+ROW(A71)-3),\"\")","v":""}]
[{"$f":"IF($G$2=INDEX(SCRIPTS!$A$3:$A$1048576,MATCH($G$2,SCRIPTS!$A$3:$A$1048576,0)+ROW(A72)-3),INDEX(SCRIPTS!$B$3:$B$1048576,MATCH($G$2,SCRIPTS!$A$3:$A$1048576,0)+ROW(A72)-3),\"\")","v":""},{"$f":"IF($G$2=INDEX(SCRIPTS!$A$3:$A$1048576,MATCH($G$2,SCRIPTS!$A$3:$A$1048576,0)+ROW(A72)-3),INDEX(SCRIPTS!$C$3:$C$1048576,MATCH($G$2,SCRIPTS!$A$3:$A$1048576,0)+ROW(A72)-3),\"\")","v":""}]
[{"$f":"IF($G$2=INDEX(SCRIPTS!$A$3:$A$1048576,MATCH($G$2,SCRIPTS!$A$3:$A$1048576,0)+ROW(A73)-3),INDEX(SCRIPTS!$B$3:$B$1048576,MATCH($G$2,SCRIPTS!$A$3:$A$1048576,0)+ROW(A73)-3),\"\")","v":""},{"$f":"IF($G$2=INDEX(SCRIPTS!$A$3:$A$1048576,MATCH($G$2,SCRIPTS!$A$3:$A$1048576,0)+ROW(A73)-3),INDEX(SCRIPTS!$C$3:$C$1048576,MATCH($G$2,SCRIPTS!$A$3:$A$1048576,0)+ROW(A73)-3),\"\")","v":""}]
[{"$f":"IF($G$2=INDEX(SCRIPTS!$A$3:$A$1048576,MATCH($G$2,SCRIPTS!$A$3:$A$1048576,0)+ROW(A74)-3),INDEX(SCRIPTS!$B$3:$B$1048576,MATCH($G$2,SCRIPTS!$A$3:$A$1048576,0)+ROW(A74)-3),\"\")","v":""},{"$f":"IF($G$2=INDEX(SCRIPTS!$A$3:$A$1048576,MATCH($G$2,SCRIPTS!$A$3:$A$1048576,0)+ROW(A74)-3),INDEX(SCRIPTS!$C$3:$C$1048576,MATCH($G$2,SCRIPTS!$A$3:$A$1048576,0)+ROW(A74)-3),\"\")","v":""}]
[{"$f":"IF($G$2=INDEX(SCRIPTS!$A$3:$A$1048576,MATCH($G$2,SCRIPTS!$A$3:$A$1048576,0)+ROW(A75)-3),INDEX(SCRIPTS!$B$3:$B$1048576,MATCH($G$2,SCRIPTS!$A$3:$A$1048576,0)+ROW(A75)-3),\"\")","v":""},{"$f":"IF($G$2=INDEX(SCRIPTS!$A$3:$A$1048576,MATCH($G$2,SCRIPTS!$A$3:$A$1048576,0)+ROW(A75)-3),INDEX(SCRIPTS!$C$3:$C$1048576,MATCH($G$2,SCRIPTS!$A$3:$A$1048576,0)+ROW(A75)-3),\"\")","v":""}]
[{"$f":"IF($G$2=INDEX(SCRIPTS!$A$3:$A$1048576,MATCH($G$2,SCRIPTS!$A$3:$A$1048576,0)+ROW(A76)-3),INDEX(SCRIPTS!$B$3:$B$1048576,MATCH($G$2,SCRIPTS!$A$3:$A$1048576,0)+ROW(A76)-3),\"\")","v":""},{"$f":"IF($G$2=INDEX(SCRIPTS!$A$3:$A$1048576,MATCH($G$2,SCRIPTS!$A$3:$A$1048576,0)+ROW(A76)-3),INDEX(SCRIPTS!$C$3:$C$1048576,MATCH($G$2,SCRIPTS!$A$3:$A$1048576,0)+ROW(A76)-3),\"\")","v":""}]
[{"$f":"IF($G$2=INDEX(SCRIPTS!$A$3:$A$1048576,MATCH($G$2,SCRIPTS!$A$3:$A$1048576,0)+ROW(A77)-3),INDEX(SCRIPTS!$B$3:$B$1048576,MATCH($G$2,SCRIPTS!$A$3:$A$1048576,0)+ROW(A77)-3),\"\")","v":""},{"$f":"IF($G$2=INDEX(SCRIPTS!$A$3:$A$1048576,MATCH($G$2,SCRIPTS!$A$3:$A$1048576,0)+ROW(A77)-3),INDEX(SCRIPTS!$C$3:$C$1048576,MATCH($G$2,SCRIPTS!$A$3:$A$1048576,0)+ROW(A77)-3),\"\")","v":""}]
[{"$f":"IF($G$2=INDEX(SCRIPTS!$A$3:$A$1048576,MATCH($G$2,SCRIPTS!$A$3:$A$1048576,0)+ROW(A78)-3),INDEX(SCRIPTS!$B$3:$B$1048576,MATCH($G$2,SCRIPTS!$A$3:$A$1048576,0)+ROW(A78)-3),\"\")","v":""},{"$f":"IF($G$2=INDEX(SCRIPTS!$A$3:$A$1048576,MATCH($G$2,SCRIPTS!$A$3:$A$1048576,0)+ROW(A78)-3),INDEX(SCRIPTS!$C$3:$C$1048576,MATCH($G$2,SCRIPTS!$A$3:$A$1048576,0)+ROW(A78)-3),\"\")","v":""}]
[{"$f":"IF($G$2=INDEX(SCRIPTS!$A$3:$A$1048576,MATCH($G$2,SCRIPTS!$A$3:$A$1048576,0)+ROW(A79)-3),INDEX(SCRIPTS!$B$3:$B$1048576,MATCH($G$2,SCRIPTS!$A$3:$A$1048576,0)+ROW(A79)-3),\"\")","v":""},{"$f":"IF($G$2=INDEX(SCRIPTS!$A$3:$A$1048576,MATCH($G$2,SCRIPTS!$A$3:$A$1048576,0)+ROW(A79)-3),INDEX(SCRIPTS!$C$3:$C$1048576,MATCH($G$2,SCRIPTS!$A$3:$A$1048576,0)+ROW(A79)-3),\"\")","v":""}]
[{"$f":"IF($G$2=INDEX(SCRIPTS!$A$3:$A$1048576,MATCH($G$2,SCRIPTS!$A$3:$A$1048576,0)+ROW(A80)-3),INDEX(SCRIPTS!$B$3:$B$1048576,MATCH($G$2,SCRIPTS!$A$3:$A$1048576,0)+ROW(A80)-3),\"\")","v":""},{"$f":"IF($G$2=INDEX(SCRIPTS!$A$3:$A$1048576,MATCH($G$2,SCRIPTS!$A$3:$A$1048576,0)+ROW(A80)-3),INDEX(SCRIPTS!$C$3:$C$1048576,MATCH($G$2,SCRIPTS!$A$3:$A$1048576,0)+ROW(A80)-3),\"\")","v":""}]
[{"$f":"IF($G$2=INDEX(SCRIPTS!$A$3:$A$1048576,MATCH($G$2,SCRIPTS!$A$3:$A$1048576,0)+ROW(A81)-3),INDEX(SCRIPTS!$B$3:$B$1048576,MATCH($G$2,SCRIPTS!$A$3:$A$1048576,0)+ROW(A81)-3),\"\")","v":""},{"$f":"IF($G$2=INDEX(SCRIPTS!$A$3:$A$1048576,MATCH($G$2,SCRIPTS!$A$3:$A$1048576,0)+ROW(A81)-3),INDEX(SCRIPTS!$C$3:$C$1048576,MATCH($G$2,SCRIPTS!$A$3:$A$1048576,0)+ROW(A81)-3),\"\")","v":""}]
[{"$f":"IF($G$2=INDEX(SCRIPTS!$A$3:$A$1048576,MATCH($G$2,SCRIPTS!$A$3:$A$1048576,0)+ROW(A82)-3),INDEX(SCRIPTS!$B$3:$B$1048576,MATCH($G$2,SCRIPTS!$A$3:$A$1048576,0)+ROW(A82)-3),\"\")","v":""},{"$f":"IF($G$2=INDEX(SCRIPTS!$A$3:$A$1048576,MATCH($G$2,SCRIPTS!$A$3:$A$1048576,0)+ROW(A82)-3),INDEX(SCRIPTS!$C$3:$C$1048576,MATCH($G$2,SCRIPTS!$A$3:$A$1048576,0)+ROW(A82)-3),\"\")","v":""}]
[{"$f":"IF($G$2=INDEX(SCRIPTS!$A$3:$A$1048576,MATCH($G$2,SCRIPTS!$A$3:$A$1048576,0)+ROW(A83)-3),INDEX(SCRIPTS!$B$3:$B$1048576,MATCH($G$2,SCRIPTS!$A$3:$A$1048576,0)+ROW(A83)-3),\"\")","v":""},{"$f":"IF($G$2=INDEX(SCRIPTS!$A$3:$A$1048576,MATCH($G$2,SCRIPTS!$A$3:$A$1048576,0)+ROW(A83)-3),INDEX(SCRIPTS!$C$3:$C$1048576,MATCH($G$2,SCRIPTS!$A$3:$A$1048576,0)+ROW(A83)-3),\"\")","v":""}]
[{"$f":"IF($G$2=INDEX(SCRIPTS!$A$3:$A$1048576,MATCH($G$2,SCRIPTS!$A$3:$A$1048576,0)+ROW(A84)-3),INDEX(SCRIPTS!$B$3:$B$1048576,MATCH($G$2,SCRIPTS!$A$3:$A$1048576,0)+ROW(A84)-3),\"\")","v":""},{"$f":"IF($G$2=INDEX(SCRIPTS!$A$3:$A$1048576,MATCH($G$2,SCRIPTS!$A$3:$A$1048576,0)+ROW(A84)-3),INDEX(SCRIPTS!$C$3:$C$1048576,MATCH($G$2,SCRIPTS!$A$3:$A$1048576,0)+ROW(A84)-3),\"\")","v":""}]
[{"$f":"IF($G$2=INDEX(SCRIPTS!$A$3:$A$1048576,MATCH($G$2,SCRIPTS!$A$3:$A$1048576,0)+ROW(A85)-3),INDEX(SCRIPTS!$B$3:$B$1048576,MATCH($G$2,SCRIPTS!$A$3:$A$1048576,0)+ROW(A85)-3),\"\")","v":""},{"$f":"IF($G$2=INDEX(SCRIPTS!$A$3:$A$1048576,MATCH($G$2,SCRIPTS!$A$3:$A$1048576,0)+ROW(A85)-3),INDEX(SCRIPTS!$C$3:$C$1048576,MATCH($G$2,SCRIPTS!$A$3:$A$1048576,0)+ROW(A85)-3),\"\")","v":""}]
[{"$f":"IF($G$2=INDEX(SCRIPTS!$A$3:$A$1048576,MATCH($G$2,SCRIPTS!$A$3:$A$1048576,0)+ROW(A86)-3),INDEX(SCRIPTS!$B$3:$B$1048576,MATCH($G$2,SCRIPTS!$A$3:$A$1048576,0)+ROW(A86)-3),\"\")","v":""},{"$f":"IF($G$2=INDEX(SCRIPTS!$A$3:$A$1048576,MATCH($G$2,SCRIPTS!$A$3:$A$1048576,0)+ROW(A86)-3),INDEX(SCRIPTS!$C$3:$C$1048576,MATCH($G$2,SCRIPTS!$A$3:$A$1048576,0)+ROW(A86)-3),\"\")","v":""}]
[{"$f":"IF($G$2=INDEX(SCRIPTS!$A$3:$A$1048576,MATCH($G$2,SCRIPTS!$A$3:$A$1048576,0)+ROW(A87)-3),INDEX(SCRIPTS!$B$3:$B$1048576,MATCH($G$2,SCRIPTS!$A$3:$A$1048576,0)+ROW(A87)-3),\"\")","v":""},{"$f":"IF($G$2=INDEX(SCRIPTS!$A$3:$A$1048576,MATCH($G$2,SCRIPTS!$A$3:$A$1048576,0)+ROW(A87)-3),INDEX(SCRIPTS!$C$3:$C$1048576,MATCH($G$2,SCRIPTS!$A$3:$A$1048576,0)+ROW(A87)-3),\"\")","v":""}]
[{"$f":"IF($G$2=INDEX(SCRIPTS!$A$3:$A$1048576,MATCH($G$2,SCRIPTS!$A$3:$A$1048576,0)+ROW(A88)-3),INDEX(SCRIPTS!$B$3:$B$1048576,MATCH($G$2,SCRIPTS!$A$3:$A$1048576,0)+ROW(A88)-3),\"\")","v":""},{"$f":"IF($G$2=INDEX(SCRIPTS!$A$3:$A$1048576,MATCH($G$2,SCRIPTS!$A$3:$A$1048576,0)+ROW(A88)-3),INDEX(SCRIPTS!$C$3:$C$1048576,MATCH($G$2,SCRIPTS!$A$3:$A$1048576,0)+ROW(A88)-3),\"\")","v":""}]
[{"$f":"IF($G$2=INDEX(SCRIPTS!$A$3:$A$1048576,MATCH($G$2,SCRIPTS!$A$3:$A$1048576,0)+ROW(A89)-3),INDEX(SCRIPTS!$B$3:$B$1048576,MATCH($G$2,SCRIPTS!$A$3:$A$1048576,0)+ROW(A89)-3),\"\")","v":""},{"$f":"IF($G$2=INDEX(SCRIPTS!$A$3:$A$1048576,MATCH($G$2,SCRIPTS!$A$3:$A$1048576,0)+ROW(A89)-3),INDEX(SCRIPTS!$C$3:$C$1048576,MATCH($G$2,SCRIPTS!$A$3:$A$1048576,0)+ROW(A89)-3),\"\")","v":""}]
[{"$f":"IF($G$2=INDEX(SCRIPTS!$A$3:$A$1048576,MATCH($G$2,SCRIPTS!$A$3:$A$1048576,0)+ROW(A90)-3),INDEX(SCRIPTS!$B$3:$B$1048576,MATCH($G$2,SCRIPTS!$A$3:$A$1048576,0)+ROW(A90)-3),\"\")","v":""},{"$f":"IF($G$2=INDEX(SCRIPTS!$A$3:$A$1048576,MATCH($G$2,SCRIPTS!$A$3:$A$1048576,0)+ROW(A90)-3),INDEX(SCRIPTS!$C$3:$C$1048576,MATCH($G$2,SCRIPTS!$A$3:$A$1048576,0)+ROW(A90)-3),\"\")","v":""}]
[{"$f":"IF($G$2=INDEX(SCRIPTS!$A$3:$A$1048576,MATCH($G$2,SCRIPTS!$A$3:$A$1048576,0)+ROW(A91)-3),INDEX(SCRIPTS!$B$3:$B$1048576,MATCH($G$2,SCRIPTS!$A$3:$A$1048576,0)+ROW(A91)-3),\"\")","v":""},{"$f":"IF($G$2=INDEX(SCRIPTS!$A$3:$A$1048576,MATCH($G$2,SCRIPTS!$A$3:$A$1048576,0)+ROW(A91)-3),INDEX(SCRIPTS!$C$3:$C$1048576,MATCH($G$2,SCRIPTS!$A$3:$A$1048576,0)+ROW(A91)-3),\"\")","v":""}]
[{"$f":"IF($G$2=INDEX(SCRIPTS!$A$3:$A$1048576,MATCH($G$2,SCRIPTS!$A$3:$A$1048576,0)+ROW(A92)-3),INDEX(SCRIPTS!$B$3:$B$1048576,MATCH($G$2,SCRIPTS!$A$3:$A$1048576,0)+ROW(A92)-3),\"\")","v":""},{"$f":"IF($G$2=INDEX(SCRIPTS!$A$3:$A$1048576,MATCH($G$2,SCRIPTS!$A$3:$A$1048576,0)+ROW(A92)-3),INDEX(SCRIPTS!$C$3:$C$1048576,MATCH($G$2,SCRIPTS!$A$3:$A$1048576,0)+ROW(A92)-3),\"\")","v":""}]
[{"$f":"IF($G$2=INDEX(SCRIPTS!$A$3:$A$1048576,MATCH($G$2,SCRIPTS!$A$3:$A$1048576,0)+ROW(A93)-3),INDEX(SCRIPTS!$B$3:$B$1048576,MATCH($G$2,SCRIPTS!$A$3:$A$1048576,0)+ROW(A93)-3),\"\")","v":""},{"$f":"IF($G$2=INDEX(SCRIPTS!$A$3:$A$1048576,MATCH($G$2,SCRIPTS!$A$3:$A$1048576,0)+ROW(A93)-3),INDEX(SCRIPTS!$C$3:$C$1048576,MATCH($G$2,SCRIPTS!$A$3:$A$1048576,0)+ROW(A93)-3),\"\")","v":""}]
[{"$f":"IF($G$2=INDEX(SCRIPTS!$A$3:$A$1048576,MATCH($G$2,SCRIPTS!$A$3:$A$1048576,0)+ROW(A94)-3),INDEX(SCRIPTS!$B$3:$B$1048576,MATCH($G$2,SCRIPTS!$A$3:$A$1048576,0)+ROW(A94)-3),\"\")","v":""},{"$f":"IF($G$2=INDEX(SCRIPTS!$A$3:$A$1048576,MATCH($G$2,SCRIPTS!$A$3:$A$1048576,0)+ROW(A94)-3),INDEX(SCRIPTS!$C$3:$C$1048576,MATCH($G$2,SCRIPTS!$A$3:$A$1048576,0)+ROW(A94)-3),\"\")","v":""}]
[{"$f":"IF($G$2=INDEX(SCRIPTS!$A$3:$A$1048576,MATCH($G$2,SCRIPTS!$A$3:$A$1048576,0)+ROW(A95)-3),INDEX(SCRIPTS!$B$3:$B$1048576,MATCH($G$2,SCRIPTS!$A$3:$A$1048576,0)+ROW(A95)-3),\"\")","v":""},{"$f":"IF($G$2=INDEX(SCRIPTS!$A$3:$A$1048576,MATCH($G$2,SCRIPTS!$A$3:$A$1048576,0)+ROW(A95)-3),INDEX(SCRIPTS!$C$3:$C$1048576,MATCH($G$2,SCRIPTS!$A$3:$A$1048576,0)+ROW(A95)-3),\"\")","v":""}]
[{"$f":"IF($G$2=INDEX(SCRIPTS!$A$3:$A$1048576,MATCH($G$2,SCRIPTS!$A$3:$A$1048576,0)+ROW(A96)-3),INDEX(SCRIPTS!$B$3:$B$1048576,MATCH($G$2,SCRIPTS!$A$3:$A$1048576,0)+ROW(A96)-3),\"\")","v":""},{"$f":"IF($G$2=INDEX(SCRIPTS!$A$3:$A$1048576,MATCH($G$2,SCRIPTS!$A$3:$A$1048576,0)+ROW(A96)-3),INDEX(SCRIPTS!$C$3:$C$1048576,MATCH($G$2,SCRIPTS!$A$3:$A$1048576,0)+ROW(A96)-3),\"\")","v":""}]
[{"$f":"IF($G$2=INDEX(SCRIPTS!$A$3:$A$1048576,MATCH($G$2,SCRIPTS!$A$3:$A$1048576,0)+ROW(A97)-3),INDEX(SCRIPTS!$B$3:$B$1048576,MATCH($G$2,SCRIPTS!$A$3:$A$1048576,0)+ROW(A97)-3),\"\")","v":""},{"$f":"IF($G$2=INDEX(SCRIPTS!$A$3:$A$1048576,MATCH($G$2,SCRIPTS!$A$3:$A$1048576,0)+ROW(A97)-3),INDEX(SCRIPTS!$C$3:$C$1048576,MATCH($G$2,SCRIPTS!$A$3:$A$1048576,0)+ROW(A97)-3),\"\")","v":""}]
[{"$f":"IF($G$2=INDEX(SCRIPTS!$A$3:$A$1048576,MATCH($G$2,SCRIPTS!$A$3:$A$1048576,0)+ROW(A98)-3),INDEX(SCRIPTS!$B$3:$B$1048576,MATCH($G$2,SCRIPTS!$A$3:$A$1048576,0)+ROW(A98)-3),\"\")","v":""},{"$f":"IF($G$2=INDEX(SCRIPTS!$A$3:$A$1048576,MATCH($G$2,SCRIPTS!$A$3:$A$1048576,0)+ROW(A98)-3),INDEX(SCRIPTS!$C$3:$C$1048576,MATCH($G$2,SCRIPTS!$A$3:$A$1048576,0)+ROW(A98)-3),\"\")","v":""}]
[{"$f":"IF($G$2=INDEX(SCRIPTS!$A$3:$A$1048576,MATCH($G$2,SCRIPTS!$A$3:$A$1048576,0)+ROW(A99)-3),INDEX(SCRIPTS!$B$3:$B$1048576,MATCH($G$2,SCRIPTS!$A$3:$A$1048576,0)+ROW(A99)-3),\"\")","v":""},{"$f":"IF($G$2=INDEX(SCRIPTS!$A$3:$A$1048576,MATCH($G$2,SCRIPTS!$A$3:$A$1048576,0)+ROW(A99)-3),INDEX(SCRIPTS!$C$3:$C$1048576,MATCH($G$2,SCRIPTS!$A$3:$A$1048576,0)+ROW(A99)-3),\"\")","v":""}]
[{"$f":"IF($G$2=INDEX(SCRIPTS!$A$3:$A$1048576,MATCH($G$2,SCRIPTS!$A$3:$A$1048576,0)+ROW(A100)-3),INDEX(SCRIPTS!$B$3:$B$1048576,MATCH($G$2,SCRIPTS!$A$3:$A$1048576,0)+ROW(A100)-3),\"\")","v":""},{"$f":"IF($G$2=INDEX(SCRIPTS!$A$3:$A$1048576,MATCH($G$2,SCRIPTS!$A$3:$A$1048576,0)+ROW(A100)-3),INDEX(SCRIPTS!$C$3:$C$1048576,MATCH($G$2,SCRIPTS!$A$3:$A$1048576,0)+ROW(A100)-3),\"\")","v":""}]
[{"$f":"IF($G$2=INDEX(SCRIPTS!$A$3:$A$1048576,MATCH($G$2,SCRIPTS!$A$3:$A$1048576,0)+ROW(A101)-3),INDEX(SCRIPTS!$B$3:$B$1048576,MATCH($G$2,SCRIPTS!$A$3:$A$1048576,0)+ROW(A101)-3),\"\")","v":""},{"$f":"IF($G$2=INDEX(SCRIPTS!$A$3:$A$1048576,MATCH($G$2,SCRIPTS!$A$3:$A$1048576,0)+ROW(A101)-3),INDEX(SCRIPTS!$C$3:$C$1048576,MATCH($G$2,SCRIPTS!$A$3:$A$1048576,0)+ROW(A101)-3),\"\")","v":""}]
[{"$f":"IF($G$2=INDEX(SCRIPTS!$A$3:$A$1048576,MATCH($G$2,SCRIPTS!$A$3:$A$1048576,0)+ROW(A102)-3),INDEX(SCRIPTS!$B$3:$B$1048576,MATCH($G$2,SCRIPTS!$A$3:$A$1048576,0)+ROW(A102)-3),\"\")","v":""},{"$f":"IF($G$2=INDEX(SCRIPTS!$A$3:$A$1048576,MATCH($G$2,SCRIPTS!$A$3:$A$1048576,0)+ROW(A102)-3),INDEX(SCRIPTS!$C$3:$C$1048576,MATCH($G$2,SCRIPTS!$A$3:$A$1048576,0)+ROW(A102)-3),\"\")","v":""}]
[{"$f":"IF($G$2=INDEX(SCRIPTS!$A$3:$A$1048576,MATCH($G$2,SCRIPTS!$A$3:$A$1048576,0)+ROW(A103)-3),INDEX(SCRIPTS!$B$3:$B$1048576,MATCH($G$2,SCRIPTS!$A$3:$A$1048576,0)+ROW(A103)-3),\"\")","v":""},{"$f":"IF($G$2=INDEX(SCRIPTS!$A$3:$A$1048576,MATCH($G$2,SCRIPTS!$A$3:$A$1048576,0)+ROW(A103)-3),INDEX(SCRIPTS!$C$3:$C$1048576,MATCH($G$2,SCRIPTS!$A$3:$A$1048576,0)+ROW(A103)-3),\"\")","v":""}]
[{"$f":"IF($G$2=INDEX(SCRIPTS!$A$3:$A$1048576,MATCH($G$2,SCRIPTS!$A$3:$A$1048576,0)+ROW(A104)-3),INDEX(SCRIPTS!$B$3:$B$1048576,MATCH($G$2,SCRIPTS!$A$3:$A$1048576,0)+ROW(A104)-3),\"\")","v":""},{"$f":"IF($G$2=INDEX(SCRIPTS!$A$3:$A$1048576,MATCH($G$2,SCRIPTS!$A$3:$A$1048576,0)+ROW(A104)-3),INDEX(SCRIPTS!$C$3:$C$1048576,MATCH($G$2,SCRIPTS!$A$3:$A$1048576,0)+ROW(A104)-3),\"\")","v":""}]
[{"$f":"IF($G$2=INDEX(SCRIPTS!$A$3:$A$1048576,MATCH($G$2,SCRIPTS!$A$3:$A$1048576,0)+ROW(A105)-3),INDEX(SCRIPTS!$B$3:$B$1048576,MATCH($G$2,SCRIPTS!$A$3:$A$1048576,0)+ROW(A105)-3),\"\")","v":""},{"$f":"IF($G$2=INDEX(SCRIPTS!$A$3:$A$1048576,MATCH($G$2,SCRIPTS!$A$3:$A$1048576,0)+ROW(A105)-3),INDEX(SCRIPTS!$C$3:$C$1048576,MATCH($G$2,SCRIPTS!$A$3:$A$1048576,0)+ROW(A105)-3),\"\")","v":""}]
[{"$f":"IF($G$2=INDEX(SCRIPTS!$A$3:$A$1048576,MATCH($G$2,SCRIPTS!$A$3:$A$1048576,0)+ROW(A106)-3),INDEX(SCRIPTS!$B$3:$B$1048576,MATCH($G$2,SCRIPTS!$A$3:$A$1048576,0)+ROW(A106)-3),\"\")","v":""},{"$f":"IF($G$2=INDEX(SCRIPTS!$A$3:$A$1048576,MATCH($G$2,SCRIPTS!$A$3:$A$1048576,0)+ROW(A106)-3),INDEX(SCRIPTS!$C$3:$C$1048576,MATCH($G$2,SCRIPTS!$A$3:$A$1048576,0)+ROW(A106)-3),\"\")","v":""}]
[{"$f":"IF($G$2=INDEX(SCRIPTS!$A$3:$A$1048576,MATCH($G$2,SCRIPTS!$A$3:$A$1048576,0)+ROW(A107)-3),INDEX(SCRIPTS!$B$3:$B$1048576,MATCH($G$2,SCRIPTS!$A$3:$A$1048576,0)+ROW(A107)-3),\"\")","v":""},{"$f":"IF($G$2=INDEX(SCRIPTS!$A$3:$A$1048576,MATCH($G$2,SCRIPTS!$A$3:$A$1048576,0)+ROW(A107)-3),INDEX(SCRIPTS!$C$3:$C$1048576,MATCH($G$2,SCRIPTS!$A$3:$A$1048576,0)+ROW(A107)-3),\"\")","v":""}]
[{"$f":"IF($G$2=INDEX(SCRIPTS!$A$3:$A$1048576,MATCH($G$2,SCRIPTS!$A$3:$A$1048576,0)+ROW(A108)-3),INDEX(SCRIPTS!$B$3:$B$1048576,MATCH($G$2,SCRIPTS!$A$3:$A$1048576,0)+ROW(A108)-3),\"\")","v":""},{"$f":"IF($G$2=INDEX(SCRIPTS!$A$3:$A$1048576,MATCH($G$2,SCRIPTS!$A$3:$A$1048576,0)+ROW(A108)-3),INDEX(SCRIPTS!$C$3:$C$1048576,MATCH($G$2,SCRIPTS!$A$3:$A$1048576,0)+ROW(A108)-3),\"\")","v":""}]
[{"$f":"IF($G$2=INDEX(SCRIPTS!$A$3:$A$1048576,MATCH($G$2,SCRIPTS!$A$3:$A$1048576,0)+ROW(A109)-3),INDEX(SCRIPTS!$B$3:$B$1048576,MATCH($G$2,SCRIPTS!$A$3:$A$1048576,0)+ROW(A109)-3),\"\")","v":""},{"$f":"IF($G$2=INDEX(SCRIPTS!$A$3:$A$1048576,MATCH($G$2,SCRIPTS!$A$3:$A$1048576,0)+ROW(A109)-3),INDEX(SCRIPTS!$C$3:$C$1048576,MATCH($G$2,SCRIPTS!$A$3:$A$1048576,0)+ROW(A109)-3),\"\")","v":""}]
[{"$f":"IF($G$2=INDEX(SCRIPTS!$A$3:$A$1048576,MATCH($G$2,SCRIPTS!$A$3:$A$1048576,0)+ROW(A110)-3),INDEX(SCRIPTS!$B$3:$B$1048576,MATCH($G$2,SCRIPTS!$A$3:$A$1048576,0)+ROW(A110)-3),\"\")","v":""},{"$f":"IF($G$2=INDEX(SCRIPTS!$A$3:$A$1048576,MATCH($G$2,SCRIPTS!$A$3:$A$1048576,0)+ROW(A110)-3),INDEX(SCRIPTS!$C$3:$C$1048576,MATCH($G$2,SCRIPTS!$A$3:$A$1048576,0)+ROW(A110)-3),\"\")","v":""}]
[{"$f":"IF($G$2=INDEX(SCRIPTS!$A$3:$A$1048576,MATCH($G$2,SCRIPTS!$A$3:$A$1048576,0)+ROW(A111)-3),INDEX(SCRIPTS!$B$3:$B$1048576,MATCH($G$2,SCRIPTS!$A$3:$A$1048576,0)+ROW(A111)-3),\"\")","v":""},{"$f":"IF($G$2=INDEX(SCRIPTS!$A$3:$A$1048576,MATCH($G$2,SCRIPTS!$A$3:$A$1048576,0)+ROW(A111)-3),INDEX(SCRIPTS!$C$3:$C$1048576,MATCH($G$2,SCRIPTS!$A$3:$A$1048576,0)+ROW(A111)-3),\"\")","v":""}]
[{"$f":"IF($G$2=INDEX(SCRIPTS!$A$3:$A$1048576,MATCH($G$2,SCRIPTS!$A$3:$A$1048576,0)+ROW(A112)-3),INDEX(SCRIPTS!$B$3:$B$1048576,MATCH($G$2,SCRIPTS!$A$3:$A$1048576,0)+ROW(A112)-3),\"\")","v":""},{"$f":"IF($G$2=INDEX(SCRIPTS!$A$3:$A$1048576,MATCH($G$2,SCRIPTS!$A$3:$A$1048576,0)+ROW(A112)-3),INDEX(SCRIPTS!$C$3:$C$1048576,MATCH($G$2,SCRIPTS!$A$3:$A$1048576,0)+ROW(A112)-3),\"\")","v":""}]
[{"$f":"IF($G$2=INDEX(SCRIPTS!$A$3:$A$1048576,MATCH($G$2,SCRIPTS!$A$3:$A$1048576,0)+ROW(A113)-3),INDEX(SCRIPTS!$B$3:$B$1048576,MATCH($G$2,SCRIPTS!$A$3:$A$1048576,0)+ROW(A113)-3),\"\")","v":""},{"$f":"IF($G$2=INDEX(SCRIPTS!$A$3:$A$1048576,MATCH($G$2,SCRIPTS!$A$3:$A$1048576,0)+ROW(A113)-3),INDEX(SCRIPTS!$C$3:$C$1048576,MATCH($G$2,SCRIPTS!$A$3:$A$1048576,0)+ROW(A113)-3),\"\")","v":""}]
[{"$f":"IF($G$2=INDEX(SCRIPTS!$A$3:$A$1048576,MATCH($G$2,SCRIPTS!$A$3:$A$1048576,0)+ROW(A114)-3),INDEX(SCRIPTS!$B$3:$B$1048576,MATCH($G$2,SCRIPTS!$A$3:$A$1048576,0)+ROW(A114)-3),\"\")","v":""},{"$f":"IF($G$2=INDEX(SCRIPTS!$A$3:$A$1048576,MATCH($G$2,SCRIPTS!$A$3:$A$1048576,0)+ROW(A114)-3),INDEX(SCRIPTS!$C$3:$C$1048576,MATCH($G$2,SCRIPTS!$A$3:$A$1048576,0)+ROW(A114)-3),\"\")","v":""}]
[{"$f":"IF($G$2=INDEX(SCRIPTS!$A$3:$A$1048576,MATCH($G$2,SCRIPTS!$A$3:$A$1048576,0)+ROW(A115)-3),INDEX(SCRIPTS!$B$3:$B$1048576,MATCH($G$2,SCRIPTS!$A$3:$A$1048576,0)+ROW(A115)-3),\"\")","v":""},{"$f":"IF($G$2=INDEX(SCRIPTS!$A$3:$A$1048576,MATCH($G$2,SCRIPTS!$A$3:$A$1048576,0)+ROW(A115)-3),INDEX(SCRIPTS!$C$3:$C$1048576,MATCH($G$2,SCRIPTS!$A$3:$A$1048576,0)+ROW(A115)-3),\"\")","v":""}]
[{"$f":"IF($G$2=INDEX(SCRIPTS!$A$3:$A$1048576,MATCH($G$2,SCRIPTS!$A$3:$A$1048576,0)+ROW(A116)-3),INDEX(SCRIPTS!$B$3:$B$1048576,MATCH($G$2,SCRIPTS!$A$3:$A$1048576,0)+ROW(A116)-3),\"\")","v":""},{"$f":"IF($G$2=INDEX(SCRIPTS!$A$3:$A$1048576,MATCH($G$2,SCRIPTS!$A$3:$A$1048576,0)+ROW(A116)-3),INDEX(SCRIPTS!$C$3:$C$1048576,MATCH($G$2,SCRIPTS!$A$3:$A$1048576,0)+ROW(A116)-3),\"\")","v":""}]
[{"$f":"IF($G$2=INDEX(SCRIPTS!$A$3:$A$1048576,MATCH($G$2,SCRIPTS!$A$3:$A$1048576,0)+ROW(A117)-3),INDEX(SCRIPTS!$B$3:$B$1048576,MATCH($G$2,SCRIPTS!$A$3:$A$1048576,0)+ROW(A117)-3),\"\")","v":""},{"$f":"IF($G$2=INDEX(SCRIPTS!$A$3:$A$1048576,MATCH($G$2,SCRIPTS!$A$3:$A$1048576,0)+ROW(A117)-3),INDEX(SCRIPTS!$C$3:$C$1048576,MATCH($G$2,SCRIPTS!$A$3:$A$1048576,0)+ROW(A117)-3),\"\")","v":""}]
[{"$f":"IF($G$2=INDEX(SCRIPTS!$A$3:$A$1048576,MATCH($G$2,SCRIPTS!$A$3:$A$1048576,0)+ROW(A118)-3),INDEX(SCRIPTS!$B$3:$B$1048576,MATCH($G$2,SCRIPTS!$A$3:$A$1048576,0)+ROW(A118)-3),\"\")","v":""},{"$f":"IF($G$2=INDEX(SCRIPTS!$A$3:$A$1048576,MATCH($G$2,SCRIPTS!$A$3:$A$1048576,0)+ROW(A118)-3),INDEX(SCRIPTS!$C$3:$C$1048576,MATCH($G$2,SCRIPTS!$A$3:$A$1048576,0)+ROW(A118)-3),\"\")","v":""}]
[{"$f":"IF($G$2=INDEX(SCRIPTS!$A$3:$A$1048576,MATCH($G$2,SCRIPTS!$A$3:$A$1048576,0)+ROW(A119)-3),INDEX(SCRIPTS!$B$3:$B$1048576,MATCH($G$2,SCRIPTS!$A$3:$A$1048576,0)+ROW(A119)-3),\"\")","v":""},{"$f":"IF($G$2=INDEX(SCRIPTS!$A$3:$A$1048576,MATCH($G$2,SCRIPTS!$A$3:$A$1048576,0)+ROW(A119)-3),INDEX(SCRIPTS!$C$3:$C$1048576,MATCH($G$2,SCRIPTS!$A$3:$A$1048576,0)+ROW(A119)-3),\"\")","v":""}]
[{"$f":"IF($G$2=INDEX(SCRIPTS!$A$3:$A$1048576,MATCH($G$2,SCRIPTS!$A$3:$A$1048576,0)+ROW(A120)-3),INDEX(SCRIPTS!$B$3:$B$1048576,MATCH($G$2,SCRIPTS!$A$3:$A$1048576,0)+ROW(A120)-3),\"\")","v":""},{"$f":"IF($G$2=INDEX(SCRIPTS!$A$3:$A$1048576,MATCH($G$2,SCRIPTS!$A$3:$A$1048576,0)+ROW(A120)-3),INDEX(SCRIPTS!$C$3:$C$1048576,MATCH($G$2,SCRIPTS!$A$3:$A$1048576,0)+ROW(A120)-3),\"\")","v":""}]
[{"$f":"IF($G$2=INDEX(SCRIPTS!$A$3:$A$1048576,MATCH($G$2,SCRIPTS!$A$3:$A$1048576,0)+ROW(A121)-3),INDEX(SCRIPTS!$B$3:$B$1048576,MATCH($G$2,SCRIPTS!$A$3:$A$1048576,0)+ROW(A121)-3),\"\")","v":""},{"$f":"IF($G$2=INDEX(SCRIPTS!$A$3:$A$1048576,MATCH($G$2,SCRIPTS!$A$3:$A$1048576,0)+ROW(A121)-3),INDEX(SCRIPTS!$C$3:$C$1048576,MATCH($G$2,SCRIPTS!$A$3:$A$1048576,0)+ROW(A121)-3),\"\")","v":""}]
[{"$f":"IF($G$2=INDEX(SCRIPTS!$A$3:$A$1048576,MATCH($G$2,SCRIPTS!$A$3:$A$1048576,0)+ROW(A122)-3),INDEX(SCRIPTS!$B$3:$B$1048576,MATCH($G$2,SCRIPTS!$A$3:$A$1048576,0)+ROW(A122)-3),\"\")","v":""},{"$f":"IF($G$2=INDEX(SCRIPTS!$A$3:$A$1048576,MATCH($G$2,SCRIPTS!$A$3:$A$1048576,0)+ROW(A122)-3),INDEX(SCRIPTS!$C$3:$C$1048576,MATCH($G$2,SCRIPTS!$A$3:$A$1048576,0)+ROW(A122)-3),\"\")","v":""}]
[{"$f":"IF($G$2=INDEX(SCRIPTS!$A$3:$A$1048576,MATCH($G$2,SCRIPTS!$A$3:$A$1048576,0)+ROW(A123)-3),INDEX(SCRIPTS!$B$3:$B$1048576,MATCH($G$2,SCRIPTS!$A$3:$A$1048576,0)+ROW(A123)-3),\"\")","v":""},{"$f":"IF($G$2=INDEX(SCRIPTS!$A$3:$A$1048576,MATCH($G$2,SCRIPTS!$A$3:$A$1048576,0)+ROW(A123)-3),INDEX(SCRIPTS!$C$3:$C$1048576,MATCH($G$2,SCRIPTS!$A$3:$A$1048576,0)+ROW(A123)-3),\"\")","v":""}]
[{"$f":"IF($G$2=INDEX(SCRIPTS!$A$3:$A$1048576,MATCH($G$2,SCRIPTS!$A$3:$A$1048576,0)+ROW(A124)-3),INDEX(SCRIPTS!$B$3:$B$1048576,MATCH($G$2,SCRIPTS!$A$3:$A$1048576,0)+ROW(A124)-3),\"\")","v":""},{"$f":"IF($G$2=INDEX(SCRIPTS!$A$3:$A$1048576,MATCH($G$2,SCRIPTS!$A$3:$A$1048576,0)+ROW(A124)-3),INDEX(SCRIPTS!$C$3:$C$1048576,MATCH($G$2,SCRIPTS!$A$3:$A$1048576,0)+ROW(A124)-3),\"\")","v":""}]
[{"$f":"IF($G$2=INDEX(SCRIPTS!$A$3:$A$1048576,MATCH($G$2,SCRIPTS!$A$3:$A$1048576,0)+ROW(A125)-3),INDEX(SCRIPTS!$B$3:$B$1048576,MATCH($G$2,SCRIPTS!$A$3:$A$1048576,0)+ROW(A125)-3),\"\")","v":""},{"$f":"IF($G$2=INDEX(SCRIPTS!$A$3:$A$1048576,MATCH($G$2,SCRIPTS!$A$3:$A$1048576,0)+ROW(A125)-3),INDEX(SCRIPTS!$C$3:$C$1048576,MATCH($G$2,SCRIPTS!$A$3:$A$1048576,0)+ROW(A125)-3),\"\")","v":""}]
[{"$f":"IF($G$2=INDEX(SCRIPTS!$A$3:$A$1048576,MATCH($G$2,SCRIPTS!$A$3:$A$1048576,0)+ROW(A126)-3),INDEX(SCRIPTS!$B$3:$B$1048576,MATCH($G$2,SCRIPTS!$A$3:$A$1048576,0)+ROW(A126)-3),\"\")","v":""},{"$f":"IF($G$2=INDEX(SCRIPTS!$A$3:$A$1048576,MATCH($G$2,SCRIPTS!$A$3:$A$1048576,0)+ROW(A126)-3),INDEX(SCRIPTS!$C$3:$C$1048576,MATCH($G$2,SCRIPTS!$A$3:$A$1048576,0)+ROW(A126)-3),\"\")","v":""}]
[{"$f":"IF($G$2=INDEX(SCRIPTS!$A$3:$A$1048576,MATCH($G$2,SCRIPTS!$A$3:$A$1048576,0)+ROW(A127)-3),INDEX(SCRIPTS!$B$3:$B$1048576,MATCH($G$2,SCRIPTS!$A$3:$A$1048576,0)+ROW(A127)-3),\"\")","v":""},{"$f":"IF($G$2=INDEX(SCRIPTS!$A$3:$A$1048576,MATCH($G$2,SCRIPTS!$A$3:$A$1048576,0)+ROW(A127)-3),INDEX(SCRIPTS!$C$3:$C$1048576,MATCH($G$2,SCRIPTS!$A$3:$A$1048576,0)+ROW(A127)-3),\"\")","v":""}]
[{"$f":"IF($G$2=INDEX(SCRIPTS!$A$3:$A$1048576,MATCH($G$2,SCRIPTS!$A$3:$A$1048576,0)+ROW(A128)-3),INDEX(SCRIPTS!$B$3:$B$1048576,MATCH($G$2,SCRIPTS!$A$3:$A$1048576,0)+ROW(A128)-3),\"\")","v":""},{"$f":"IF($G$2=INDEX(SCRIPTS!$A$3:$A$1048576,MATCH($G$2,SCRIPTS!$A$3:$A$1048576,0)+ROW(A128)-3),INDEX(SCRIPTS!$C$3:$C$1048576,MATCH($G$2,SCRIPTS!$A$3:$A$1048576,0)+ROW(A128)-3),\"\")","v":""}]
[{"$f":"IF($G$2=INDEX(SCRIPTS!$A$3:$A$1048576,MATCH($G$2,SCRIPTS!$A$3:$A$1048576,0)+ROW(A129)-3),INDEX(SCRIPTS!$B$3:$B$1048576,MATCH($G$2,SCRIPTS!$A$3:$A$1048576,0)+ROW(A129)-3),\"\")","v":""},{"$f":"IF($G$2=INDEX(SCRIPTS!$A$3:$A$1048576,MATCH($G$2,SCRIPTS!$A$3:$A$1048576,0)+ROW(A129)-3),INDEX(SCRIPTS!$C$3:$C$1048576,MATCH($G$2,SCRIPTS!$A$3:$A$1048576,0)+ROW(A129)-3),\"\")","v":""}]
[{"$f":"IF($G$2=INDEX(SCRIPTS!$A$3:$A$1048576,MATCH($G$2,SCRIPTS!$A$3:$A$1048576,0)+ROW(A130)-3),INDEX(SCRIPTS!$B$3:$B$1048576,MATCH($G$2,SCRIPTS!$A$3:$A$1048576,0)+ROW(A130)-3),\"\")","v":""},{"$f":"IF($G$2=INDEX(SCRIPTS!$A$3:$A$1048576,MATCH($G$2,SCRIPTS!$A$3:$A$1048576,0)+ROW(A130)-3),INDEX(SCRIPTS!$C$3:$C$1048576,MATCH($G$2,SCRIPTS!$A$3:$A$1048576,0)+ROW(A130)-3),\"\")","v":""}]
[{"$f":"IF($G$2=INDEX(SCRIPTS!$A$3:$A$1048576,MATCH($G$2,SCRIPTS!$A$3:$A$1048576,0)+ROW(A131)-3),INDEX(SCRIPTS!$B$3:$B$1048576,MATCH($G$2,SCRIPTS!$A$3:$A$1048576,0)+ROW(A131)-3),\"\")","v":""},{"$f":"IF($G$2=INDEX(SCRIPTS!$A$3:$A$1048576,MATCH($G$2,SCRIPTS!$A$3:$A$1048576,0)+ROW(A131)-3),INDEX(SCRIPTS!$C$3:$C$1048576,MATCH($G$2,SCRIPTS!$A$3:$A$1048576,0)+ROW(A131)-3),\"\")","v":""}]
[{"$f":"IF($G$2=INDEX(SCRIPTS!$A$3:$A$1048576,MATCH($G$2,SCRIPTS!$A$3:$A$1048576,0)+ROW(A132)-3),INDEX(SCRIPTS!$B$3:$B$1048576,MATCH($G$2,SCRIPTS!$A$3:$A$1048576,0)+ROW(A132)-3),\"\")","v":""},{"$f":"IF($G$2=INDEX(SCRIPTS!$A$3:$A$1048576,MATCH($G$2,SCRIPTS!$A$3:$A$1048576,0)+ROW(A132)-3),INDEX(SCRIPTS!$C$3:$C$1048576,MATCH($G$2,SCRIPTS!$A$3:$A$1048576,0)+ROW(A132)-3),\"\")","v":""}]
[{"$f":"IF($G$2=INDEX(SCRIPTS!$A$3:$A$1048576,MATCH($G$2,SCRIPTS!$A$3:$A$1048576,0)+ROW(A133)-3),INDEX(SCRIPTS!$B$3:$B$1048576,MATCH($G$2,SCRIPTS!$A$3:$A$1048576,0)+ROW(A133)-3),\"\")","v":""},{"$f":"IF($G$2=INDEX(SCRIPTS!$A$3:$A$1048576,MATCH($G$2,SCRIPTS!$A$3:$A$1048576,0)+ROW(A133)-3),INDEX(SCRIPTS!$C$3:$C$1048576,MATCH($G$2,SCRIPTS!$A$3:$A$1048576,0)+ROW(A133)-3),\"\")","v":""}]
[{"$f":"IF($G$2=INDEX(SCRIPTS!$A$3:$A$1048576,MATCH($G$2,SCRIPTS!$A$3:$A$1048576,0)+ROW(A134)-3),INDEX(SCRIPTS!$B$3:$B$1048576,MATCH($G$2,SCRIPTS!$A$3:$A$1048576,0)+ROW(A134)-3),\"\")","v":""},{"$f":"IF($G$2=INDEX(SCRIPTS!$A$3:$A$1048576,MATCH($G$2,SCRIPTS!$A$3:$A$1048576,0)+ROW(A134)-3),INDEX(SCRIPTS!$C$3:$C$1048576,MATCH($G$2,SCRIPTS!$A$3:$A$1048576,0)+ROW(A134)-3),\"\")","v":""}]
[{"$f":"IF($G$2=INDEX(SCRIPTS!$A$3:$A$1048576,MATCH($G$2,SCRIPTS!$A$3:$A$1048576,0)+ROW(A135)-3),INDEX(SCRIPTS!$B$3:$B$1048576,MATCH($G$2,SCRIPTS!$A$3:$A$1048576,0)+ROW(A135)-3),\"\")","v":""},{"$f":"IF($G$2=INDEX(SCRIPTS!$A$3:$A$1048576,MATCH($G$2,SCRIPTS!$A$3:$A$1048576,0)+ROW(A135)-3),INDEX(SCRIPTS!$C$3:$C$1048576,MATCH($G$2,SCRIPTS!$A$3:$A$1048576,0)+ROW(A135)-3),\"\")","v":""}]
[{"$f":"IF($G$2=INDEX(SCRIPTS!$A$3:$A$1048576,MATCH($G$2,SCRIPTS!$A$3:$A$1048576,0)+ROW(A136)-3),INDEX(SCRIPTS!$B$3:$B$1048576,MATCH($G$2,SCRIPTS!$A$3:$A$1048576,0)+ROW(A136)-3),\"\")","v":""},{"$f":"IF($G$2=INDEX(SCRIPTS!$A$3:$A$1048576,MATCH($G$2,SCRIPTS!$A$3:$A$1048576,0)+ROW(A136)-3),INDEX(SCRIPTS!$C$3:$C$1048576,MATCH($G$2,SCRIPTS!$A$3:$A$1048576,0)+ROW(A136)-3),\"\")","v":""}]
[{"$f":"IF($G$2=INDEX(SCRIPTS!$A$3:$A$1048576,MATCH($G$2,SCRIPTS!$A$3:$A$1048576,0)+ROW(A137)-3),INDEX(SCRIPTS!$B$3:$B$1048576,MATCH($G$2,SCRIPTS!$A$3:$A$1048576,0)+ROW(A137)-3),\"\")","v":""},{"$f":"IF($G$2=INDEX(SCRIPTS!$A$3:$A$1048576,MATCH($G$2,SCRIPTS!$A$3:$A$1048576,0)+ROW(A137)-3),INDEX(SCRIPTS!$C$3:$C$1048576,MATCH($G$2,SCRIPTS!$A$3:$A$1048576,0)+ROW(A137)-3),\"\")","v":""}]
[{"$f":"IF($G$2=INDEX(SCRIPTS!$A$3:$A$1048576,MATCH($G$2,SCRIPTS!$A$3:$A$1048576,0)+ROW(A138)-3),INDEX(SCRIPTS!$B$3:$B$1048576,MATCH($G$2,SCRIPTS!$A$3:$A$1048576,0)+ROW(A138)-3),\"\")","v":""},{"$f":"IF($G$2=INDEX(SCRIPTS!$A$3:$A$1048576,MATCH($G$2,SCRIPTS!$A$3:$A$1048576,0)+ROW(A138)-3),INDEX(SCRIPTS!$C$3:$C$1048576,MATCH($G$2,SCRIPTS!$A$3:$A$1048576,0)+ROW(A138)-3),\"\")","v":""}]
[{"$f":"IF($G$2=INDEX(SCRIPTS!$A$3:$A$1048576,MATCH($G$2,SCRIPTS!$A$3:$A$1048576,0)+ROW(A139)-3),INDEX(SCRIPTS!$B$3:$B$1048576,MATCH($G$2,SCRIPTS!$A$3:$A$1048576,0)+ROW(A139)-3),\"\")","v":""},{"$f":"IF($G$2=INDEX(SCRIPTS!$A$3:$A$1048576,MATCH($G$2,SCRIPTS!$A$3:$A$1048576,0)+ROW(A139)-3),INDEX(SCRIPTS!$C$3:$C$1048576,MATCH($G$2,SCRIPTS!$A$3:$A$1048576,0)+ROW(A139)-3),\"\")","v":""}]
[{"$f":"IF($G$2=INDEX(SCRIPTS!$A$3:$A$1048576,MATCH($G$2,SCRIPTS!$A$3:$A$1048576,0)+ROW(A140)-3),INDEX(SCRIPTS!$B$3:$B$1048576,MATCH($G$2,SCRIPTS!$A$3:$A$1048576,0)+ROW(A140)-3),\"\")","v":""},{"$f":"IF($G$2=INDEX(SCRIPTS!$A$3:$A$1048576,MATCH($G$2,SCRIPTS!$A$3:$A$1048576,0)+ROW(A140)-3),INDEX(SCRIPTS!$C$3:$C$1048576,MATCH($G$2,SCRIPTS!$A$3:$A$1048576,0)+ROW(A140)-3),\"\")","v":""}]
[{"$f":"IF($G$2=INDEX(SCRIPTS!$A$3:$A$1048576,MATCH($G$2,SCRIPTS!$A$3:$A$1048576,0)+ROW(A141)-3),INDEX(SCRIPTS!$B$3:$B$1048576,MATCH($G$2,SCRIPTS!$A$3:$A$1048576,0)+ROW(A141)-3),\"\")","v":""},{"$f":"IF($G$2=INDEX(SCRIPTS!$A$3:$A$1048576,MATCH($G$2,SCRIPTS!$A$3:$A$1048576,0)+ROW(A141)-3),INDEX(SCRIPTS!$C$3:$C$1048576,MATCH($G$2,SCRIPTS!$A$3:$A$1048576,0)+ROW(A141)-3),\"\")","v":""}]
[{"$f":"IF($G$2=INDEX(SCRIPTS!$A$3:$A$1048576,MATCH($G$2,SCRIPTS!$A$3:$A$1048576,0)+ROW(A142)-3),INDEX(SCRIPTS!$B$3:$B$1048576,MATCH($G$2,SCRIPTS!$A$3:$A$1048576,0)+ROW(A142)-3),\"\")","v":""},{"$f":"IF($G$2=INDEX(SCRIPTS!$A$3:$A$1048576,MATCH($G$2,SCRIPTS!$A$3:$A$1048576,0)+ROW(A142)-3),INDEX(SCRIPTS!$C$3:$C$1048576,MATCH($G$2,SCRIPTS!$A$3:$A$1048576,0)+ROW(A142)-3),\"\")","v":""}]
[{"$f":"IF($G$2=INDEX(SCRIPTS!$A$3:$A$1048576,MATCH($G$2,SCRIPTS!$A$3:$A$1048576,0)+ROW(A143)-3),INDEX(SCRIPTS!$B$3:$B$1048576,MATCH($G$2,SCRIPTS!$A$3:$A$1048576,0)+ROW(A143)-3),\"\")","v":""},{"$f":"IF($G$2=INDEX(SCRIPTS!$A$3:$A$1048576,MATCH($G$2,SCRIPTS!$A$3:$A$1048576,0)+ROW(A143)-3),INDEX(SCRIPTS!$C$3:$C$1048576,MATCH($G$2,SCRIPTS!$A$3:$A$1048576,0)+ROW(A143)-3),\"\")","v":""}]
[{"$f":"IF($G$2=INDEX(SCRIPTS!$A$3:$A$1048576,MATCH($G$2,SCRIPTS!$A$3:$A$1048576,0)+ROW(A144)-3),INDEX(SCRIPTS!$B$3:$B$1048576,MATCH($G$2,SCRIPTS!$A$3:$A$1048576,0)+ROW(A144)-3),\"\")","v":""},{"$f":"IF($G$2=INDEX(SCRIPTS!$A$3:$A$1048576,MATCH($G$2,SCRIPTS!$A$3:$A$1048576,0)+ROW(A144)-3),INDEX(SCRIPTS!$C$3:$C$1048576,MATCH($G$2,SCRIPTS!$A$3:$A$1048576,0)+ROW(A144)-3),\"\")","v":""}]
[{"$f":"IF($G$2=INDEX(SCRIPTS!$A$3:$A$1048576,MATCH($G$2,SCRIPTS!$A$3:$A$1048576,0)+ROW(A145)-3),INDEX(SCRIPTS!$B$3:$B$1048576,MATCH($G$2,SCRIPTS!$A$3:$A$1048576,0)+ROW(A145)-3),\"\")","v":""},{"$f":"IF($G$2=INDEX(SCRIPTS!$A$3:$A$1048576,MATCH($G$2,SCRIPTS!$A$3:$A$1048576,0)+ROW(A145)-3),INDEX(SCRIPTS!$C$3:$C$1048576,MATCH($G$2,SCRIPTS!$A$3:$A$1048576,0)+ROW(A145)-3),\"\")","v":""}]
[{"$f":"IF($G$2=INDEX(SCRIPTS!$A$3:$A$1048576,MATCH($G$2,SCRIPTS!$A$3:$A$1048576,0)+ROW(A146)-3),INDEX(SCRIPTS!$B$3:$B$1048576,MATCH($G$2,SCRIPTS!$A$3:$A$1048576,0)+ROW(A146)-3),\"\")","v":""},{"$f":"IF($G$2=INDEX(SCRIPTS!$A$3:$A$1048576,MATCH($G$2,SCRIPTS!$A$3:$A$1048576,0)+ROW(A146)-3),INDEX(SCRIPTS!$C$3:$C$1048576,MATCH($G$2,SCRIPTS!$A$3:$A$1048576,0)+ROW(A146)-3),\"\")","v":""}]
[{"$f":"IF($G$2=INDEX(SCRIPTS!$A$3:$A$1048576,MATCH($G$2,SCRIPTS!$A$3:$A$1048576,0)+ROW(A147)-3),INDEX(SCRIPTS!$B$3:$B$1048576,MATCH($G$2,SCRIPTS!$A$3:$A$1048576,0)+ROW(A147)-3),\"\")","v":""},{"$f":"IF($G$2=INDEX(SCRIPTS!$A$3:$A$1048576,MATCH($G$2,SCRIPTS!$A$3:$A$1048576,0)+ROW(A147)-3),INDEX(SCRIPTS!$C$3:$C$1048576,MATCH($G$2,SCRIPTS!$A$3:$A$1048576,0)+ROW(A147)-3),\"\")","v":""}]
[{"$f":"IF($G$2=INDEX(SCRIPTS!$A$3:$A$1048576,MATCH($G$2,SCRIPTS!$A$3:$A$1048576,0)+ROW(A148)-3),INDEX(SCRIPTS!$B$3:$B$1048576,MATCH($G$2,SCRIPTS!$A$3:$A$1048576,0)+ROW(A148)-3),\"\")","v":""},{"$f":"IF($G$2=INDEX(SCRIPTS!$A$3:$A$1048576,MATCH($G$2,SCRIPTS!$A$3:$A$1048576,0)+ROW(A148)-3),INDEX(SCRIPTS!$C$3:$C$1048576,MATCH($G$2,SCRIPTS!$A$3:$A$1048576,0)+ROW(A148)-3),\"\")","v":""}]
[{"$f":"IF($G$2=INDEX(SCRIPTS!$A$3:$A$1048576,MATCH($G$2,SCRIPTS!$A$3:$A$1048576,0)+ROW(A149)-3),INDEX(SCRIPTS!$B$3:$B$1048576,MATCH($G$2,SCRIPTS!$A$3:$A$1048576,0)+ROW(A149)-3),\"\")","v":""},{"$f":"IF($G$2=INDEX(SCRIPTS!$A$3:$A$1048576,MATCH($G$2,SCRIPTS!$A$3:$A$1048576,0)+ROW(A149)-3),INDEX(SCRIPTS!$C$3:$C$1048576,MATCH($G$2,SCRIPTS!$A$3:$A$1048576,0)+ROW(A149)-3),\"\")","v":""}]
[{"$f":"IF($G$2=INDEX(SCRIPTS!$A$3:$A$1048576,MATCH($G$2,SCRIPTS!$A$3:$A$1048576,0)+ROW(A150)-3),INDEX(SCRIPTS!$B$3:$B$1048576,MATCH($G$2,SCRIPTS!$A$3:$A$1048576,0)+ROW(A150)-3),\"\")","v":""},{"$f":"IF($G$2=INDEX(SCRIPTS!$A$3:$A$1048576,MATCH($G$2,SCRIPTS!$A$3:$A$1048576,0)+ROW(A150)-3),INDEX(SCRIPTS!$C$3:$C$1048576,MATCH($G$2,SCRIPTS!$A$3:$A$1048576,0)+ROW(A150)-3),\"\")","v":""}]
[{"$f":"IF($G$2=INDEX(SCRIPTS!$A$3:$A$1048576,MATCH($G$2,SCRIPTS!$A$3:$A$1048576,0)+ROW(A151)-3),INDEX(SCRIPTS!$B$3:$B$1048576,MATCH($G$2,SCRIPTS!$A$3:$A$1048576,0)+ROW(A151)-3),\"\")","v":""},{"$f":"IF($G$2=INDEX(SCRIPTS!$A$3:$A$1048576,MATCH($G$2,SCRIPTS!$A$3:$A$1048576,0)+ROW(A151)-3),INDEX(SCRIPTS!$C$3:$C$1048576,MATCH($G$2,SCRIPTS!$A$3:$A$1048576,0)+ROW(A151)-3),\"\")","v":""}]
[{"$f":"IF($G$2=INDEX(SCRIPTS!$A$3:$A$1048576,MATCH($G$2,SCRIPTS!$A$3:$A$1048576,0)+ROW(A152)-3),INDEX(SCRIPTS!$B$3:$B$1048576,MATCH($G$2,SCRIPTS!$A$3:$A$1048576,0)+ROW(A152)-3),\"\")","v":""},{"$f":"IF($G$2=INDEX(SCRIPTS!$A$3:$A$1048576,MATCH($G$2,SCRIPTS!$A$3:$A$1048576,0)+ROW(A152)-3),INDEX(SCRIPTS!$C$3:$C$1048576,MATCH($G$2,SCRIPTS!$A$3:$A$1048576,0)+ROW(A152)-3),\"\")","v":""}]
[{"$f":"IF($G$2=INDEX(SCRIPTS!$A$3:$A$1048576,MATCH($G$2,SCRIPTS!$A$3:$A$1048576,0)+ROW(A153)-3),INDEX(SCRIPTS!$B$3:$B$1048576,MATCH($G$2,SCRIPTS!$A$3:$A$1048576,0)+ROW(A153)-3),\"\")","v":""},{"$f":"IF($G$2=INDEX(SCRIPTS!$A$3:$A$1048576,MATCH($G$2,SCRIPTS!$A$3:$A$1048576,0)+ROW(A153)-3),INDEX(SCRIPTS!$C$3:$C$1048576,MATCH($G$2,SCRIPTS!$A$3:$A$1048576,0)+ROW(A153)-3),\"\")","v":""}]
[{"$f":"IF($G$2=INDEX(SCRIPTS!$A$3:$A$1048576,MATCH($G$2,SCRIPTS!$A$3:$A$1048576,0)+ROW(A154)-3),INDEX(SCRIPTS!$B$3:$B$1048576,MATCH($G$2,SCRIPTS!$A$3:$A$1048576,0)+ROW(A154)-3),\"\")","v":""},{"$f":"IF($G$2=INDEX(SCRIPTS!$A$3:$A$1048576,MATCH($G$2,SCRIPTS!$A$3:$A$1048576,0)+ROW(A154)-3),INDEX(SCRIPTS!$C$3:$C$1048576,MATCH($G$2,SCRIPTS!$A$3:$A$1048576,0)+ROW(A154)-3),\"\")","v":""}]
[{"$f":"IF($G$2=INDEX(SCRIPTS!$A$3:$A$1048576,MATCH($G$2,SCRIPTS!$A$3:$A$1048576,0)+ROW(A155)-3),INDEX(SCRIPTS!$B$3:$B$1048576,MATCH($G$2,SCRIPTS!$A$3:$A$1048576,0)+ROW(A155)-3),\"\")","v":""},{"$f":"IF($G$2=INDEX(SCRIPTS!$A$3:$A$1048576,MATCH($G$2,SCRIPTS!$A$3:$A$1048576,0)+ROW(A155)-3),INDEX(SCRIPTS!$C$3:$C$1048576,MATCH($G$2,SCRIPTS!$A$3:$A$1048576,0)+ROW(A155)-3),\"\")","v":""}]
[{"$f":"IF($G$2=INDEX(SCRIPTS!$A$3:$A$1048576,MATCH($G$2,SCRIPTS!$A$3:$A$1048576,0)+ROW(A156)-3),INDEX(SCRIPTS!$B$3:$B$1048576,MATCH($G$2,SCRIPTS!$A$3:$A$1048576,0)+ROW(A156)-3),\"\")","v":""},{"$f":"IF($G$2=INDEX(SCRIPTS!$A$3:$A$1048576,MATCH($G$2,SCRIPTS!$A$3:$A$1048576,0)+ROW(A156)-3),INDEX(SCRIPTS!$C$3:$C$1048576,MATCH($G$2,SCRIPTS!$A$3:$A$1048576,0)+ROW(A156)-3),\"\")","v":""}]
[{"$f":"IF($G$2=INDEX(SCRIPTS!$A$3:$A$1048576,MATCH($G$2,SCRIPTS!$A$3:$A$1048576,0)+ROW(A157)-3),INDEX(SCRIPTS!$B$3:$B$1048576,MATCH($G$2,SCRIPTS!$A$3:$A$1048576,0)+ROW(A157)-3),\"\")","v":""},{"$f":"IF($G$2=INDEX(SCRIPTS!$A$3:$A$1048576,MATCH($G$2,SCRIPTS!$A$3:$A$1048576,0)+ROW(A157)-3),INDEX(SCRIPTS!$C$3:$C$1048576,MATCH($G$2,SCRIPTS!$A$3:$A$1048576,0)+ROW(A157)-3),\"\")","v":""}]
[{"$f":"IF($G$2=INDEX(SCRIPTS!$A$3:$A$1048576,MATCH($G$2,SCRIPTS!$A$3:$A$1048576,0)+ROW(A158)-3),INDEX(SCRIPTS!$B$3:$B$1048576,MATCH($G$2,SCRIPTS!$A$3:$A$1048576,0)+ROW(A158)-3),\"\")","v":""},{"$f":"IF($G$2=INDEX(SCRIPTS!$A$3:$A$1048576,MATCH($G$2,SCRIPTS!$A$3:$A$1048576,0)+ROW(A158)-3),INDEX(SCRIPTS!$C$3:$C$1048576,MATCH($G$2,SCRIPTS!$A$3:$A$1048576,0)+ROW(A158)-3),\"\")","v":""}]
[{"$f":"IF($G$2=INDEX(SCRIPTS!$A$3:$A$1048576,MATCH($G$2,SCRIPTS!$A$3:$A$1048576,0)+ROW(A159)-3),INDEX(SCRIPTS!$B$3:$B$1048576,MATCH($G$2,SCRIPTS!$A$3:$A$1048576,0)+ROW(A159)-3),\"\")","v":""},{"$f":"IF($G$2=INDEX(SCRIPTS!$A$3:$A$1048576,MATCH($G$2,SCRIPTS!$A$3:$A$1048576,0)+ROW(A159)-3),INDEX(SCRIPTS!$C$3:$C$1048576,MATCH($G$2,SCRIPTS!$A$3:$A$1048576,0)+ROW(A159)-3),\"\")","v":""}]
[{"$f":"IF($G$2=INDEX(SCRIPTS!$A$3:$A$1048576,MATCH($G$2,SCRIPTS!$A$3:$A$1048576,0)+ROW(A160)-3),INDEX(SCRIPTS!$B$3:$B$1048576,MATCH($G$2,SCRIPTS!$A$3:$A$1048576,0)+ROW(A160)-3),\"\")","v":""},{"$f":"IF($G$2=INDEX(SCRIPTS!$A$3:$A$1048576,MATCH($G$2,SCRIPTS!$A$3:$A$1048576,0)+ROW(A160)-3),INDEX(SCRIPTS!$C$3:$C$1048576,MATCH($G$2,SCRIPTS!$A$3:$A$1048576,0)+ROW(A160)-3),\"\")","v":""}]
[{"$f":"IF($G$2=INDEX(SCRIPTS!$A$3:$A$1048576,MATCH($G$2,SCRIPTS!$A$3:$A$1048576,0)+ROW(A161)-3),INDEX(SCRIPTS!$B$3:$B$1048576,MATCH($G$2,SCRIPTS!$A$3:$A$1048576,0)+ROW(A161)-3),\"\")","v":""},{"$f":"IF($G$2=INDEX(SCRIPTS!$A$3:$A$1048576,MATCH($G$2,SCRIPTS!$A$3:$A$1048576,0)+ROW(A161)-3),INDEX(SCRIPTS!$C$3:$C$1048576,MATCH($G$2,SCRIPTS!$A$3:$A$1048576,0)+ROW(A161)-3),\"\")","v":""}]
[{"$f":"IF($G$2=INDEX(SCRIPTS!$A$3:$A$1048576,MATCH($G$2,SCRIPTS!$A$3:$A$1048576,0)+ROW(A162)-3),INDEX(SCRIPTS!$B$3:$B$1048576,MATCH($G$2,SCRIPTS!$A$3:$A$1048576,0)+ROW(A162)-3),\"\")","v":""},{"$f":"IF($G$2=INDEX(SCRIPTS!$A$3:$A$1048576,MATCH($G$2,SCRIPTS!$A$3:$A$1048576,0)+ROW(A162)-3),INDEX(SCRIPTS!$C$3:$C$1048576,MATCH($G$2,SCRIPTS!$A$3:$A$1048576,0)+ROW(A162)-3),\"\")","v":""}]
[{"$f":"IF($G$2=INDEX(SCRIPTS!$A$3:$A$1048576,MATCH($G$2,SCRIPTS!$A$3:$A$1048576,0)+ROW(A163)-3),INDEX(SCRIPTS!$B$3:$B$1048576,MATCH($G$2,SCRIPTS!$A$3:$A$1048576,0)+ROW(A163)-3),\"\")","v":""},{"$f":"IF($G$2=INDEX(SCRIPTS!$A$3:$A$1048576,MATCH($G$2,SCRIPTS!$A$3:$A$1048576,0)+ROW(A163)-3),INDEX(SCRIPTS!$C$3:$C$1048576,MATCH($G$2,SCRIPTS!$A$3:$A$1048576,0)+ROW(A163)-3),\"\")","v":""}]
[{"$f":"IF($G$2=INDEX(SCRIPTS!$A$3:$A$1048576,MATCH($G$2,SCRIPTS!$A$3:$A$1048576,0)+ROW(A164)-3),INDEX(SCRIPTS!$B$3:$B$1048576,MATCH($G$2,SCRIPTS!$A$3:$A$1048576,0)+ROW(A164)-3),\"\")","v":""},{"$f":"IF($G$2=INDEX(SCRIPTS!$A$3:$A$1048576,MATCH($G$2,SCRIPTS!$A$3:$A$1048576,0)+ROW(A164)-3),INDEX(SCRIPTS!$C$3:$C$1048576,MATCH($G$2,SCRIPTS!$A$3:$A$1048576,0)+ROW(A164)-3),\"\")","v":""}]
[{"$f":"IF($G$2=INDEX(SCRIPTS!$A$3:$A$1048576,MATCH($G$2,SCRIPTS!$A$3:$A$1048576,0)+ROW(A165)-3),INDEX(SCRIPTS!$B$3:$B$1048576,MATCH($G$2,SCRIPTS!$A$3:$A$1048576,0)+ROW(A165)-3),\"\")","v":""},{"$f":"IF($G$2=INDEX(SCRIPTS!$A$3:$A$1048576,MATCH($G$2,SCRIPTS!$A$3:$A$1048576,0)+ROW(A165)-3),INDEX(SCRIPTS!$C$3:$C$1048576,MATCH($G$2,SCRIPTS!$A$3:$A$1048576,0)+ROW(A165)-3),\"\")","v":""}]
[{"$f":"IF($G$2=INDEX(SCRIPTS!$A$3:$A$1048576,MATCH($G$2,SCRIPTS!$A$3:$A$1048576,0)+ROW(A166)-3),INDEX(SCRIPTS!$B$3:$B$1048576,MATCH($G$2,SCRIPTS!$A$3:$A$1048576,0)+ROW(A166)-3),\"\")","v":""},{"$f":"IF($G$2=INDEX(SCRIPTS!$A$3:$A$1048576,MATCH($G$2,SCRIPTS!$A$3:$A$1048576,0)+ROW(A166)-3),INDEX(SCRIPTS!$C$3:$C$1048576,MATCH($G$2,SCRIPTS!$A$3:$A$1048576,0)+ROW(A166)-3),\"\")","v":""}]
[{"$f":"IF($G$2=INDEX(SCRIPTS!$A$3:$A$1048576,MATCH($G$2,SCRIPTS!$A$3:$A$1048576,0)+ROW(A167)-3),INDEX(SCRIPTS!$B$3:$B$1048576,MATCH($G$2,SCRIPTS!$A$3:$A$1048576,0)+ROW(A167)-3),\"\")","v":""},{"$f":"IF($G$2=INDEX(SCRIPTS!$A$3:$A$1048576,MATCH($G$2,SCRIPTS!$A$3:$A$1048576,0)+ROW(A167)-3),INDEX(SCRIPTS!$C$3:$C$1048576,MATCH($G$2,SCRIPTS!$A$3:$A$1048576,0)+ROW(A167)-3),\"\")","v":""}]
[{"$f":"IF($G$2=INDEX(SCRIPTS!$A$3:$A$1048576,MATCH($G$2,SCRIPTS!$A$3:$A$1048576,0)+ROW(A168)-3),INDEX(SCRIPTS!$B$3:$B$1048576,MATCH($G$2,SCRIPTS!$A$3:$A$1048576,0)+ROW(A168)-3),\"\")","v":""},{"$f":"IF($G$2=INDEX(SCRIPTS!$A$3:$A$1048576,MATCH($G$2,SCRIPTS!$A$3:$A$1048576,0)+ROW(A168)-3),INDEX(SCRIPTS!$C$3:$C$1048576,MATCH($G$2,SCRIPTS!$A$3:$A$1048576,0)+ROW(A168)-3),\"\")","v":""}]
[{"$f":"IF($G$2=INDEX(SCRIPTS!$A$3:$A$1048576,MATCH($G$2,SCRIPTS!$A$3:$A$1048576,0)+ROW(A169)-3),INDEX(SCRIPTS!$B$3:$B$1048576,MATCH($G$2,SCRIPTS!$A$3:$A$1048576,0)+ROW(A169)-3),\"\")","v":""},{"$f":"IF($G$2=INDEX(SCRIPTS!$A$3:$A$1048576,MATCH($G$2,SCRIPTS!$A$3:$A$1048576,0)+ROW(A169)-3),INDEX(SCRIPTS!$C$3:$C$1048576,MATCH($G$2,SCRIPTS!$A$3:$A$1048576,0)+ROW(A169)-3),\"\")","v":""}]
[{"$f":"IF($G$2=INDEX(SCRIPTS!$A$3:$A$1048576,MATCH($G$2,SCRIPTS!$A$3:$A$1048576,0)+ROW(A170)-3),INDEX(SCRIPTS!$B$3:$B$1048576,MATCH($G$2,SCRIPTS!$A$3:$A$1048576,0)+ROW(A170)-3),\"\")","v":""},{"$f":"IF($G$2=INDEX(SCRIPTS!$A$3:$A$1048576,MATCH($G$2,SCRIPTS!$A$3:$A$1048576,0)+ROW(A170)-3),INDEX(SCRIPTS!$C$3:$C$1048576,MATCH($G$2,SCRIPTS!$A$3:$A$1048576,0)+ROW(A170)-3),\"\")","v":""}]
[{"$f":"IF($G$2=INDEX(SCRIPTS!$A$3:$A$1048576,MATCH($G$2,SCRIPTS!$A$3:$A$1048576,0)+ROW(A171)-3),INDEX(SCRIPTS!$B$3:$B$1048576,MATCH($G$2,SCRIPTS!$A$3:$A$1048576,0)+ROW(A171)-3),\"\")","v":""},{"$f":"IF($G$2=INDEX(SCRIPTS!$A$3:$A$1048576,MATCH($G$2,SCRIPTS!$A$3:$A$1048576,0)+ROW(A171)-3),INDEX(SCRIPTS!$C$3:$C$1048576,MATCH($G$2,SCRIPTS!$A$3:$A$1048576,0)+ROW(A171)-3),\"\")","v":""}]
[{"$f":"IF($G$2=INDEX(SCRIPTS!$A$3:$A$1048576,MATCH($G$2,SCRIPTS!$A$3:$A$1048576,0)+ROW(A172)-3),INDEX(SCRIPTS!$B$3:$B$1048576,MATCH($G$2,SCRIPTS!$A$3:$A$1048576,0)+ROW(A172)-3),\"\")","v":""},{"$f":"IF($G$2=INDEX(SCRIPTS!$A$3:$A$1048576,MATCH($G$2,SCRIPTS!$A$3:$A$1048576,0)+ROW(A172)-3),INDEX(SCRIPTS!$C$3:$C$1048576,MATCH($G$2,SCRIPTS!$A$3:$A$1048576,0)+ROW(A172)-3),\"\")","v":""}]
[{"$f":"IF($G$2=INDEX(SCRIPTS!$A$3:$A$1048576,MATCH($G$2,SCRIPTS!$A$3:$A$1048576,0)+ROW(A173)-3),INDEX(SCRIPTS!$B$3:$B$1048576,MATCH($G$2,SCRIPTS!$A$3:$A$1048576,0)+ROW(A173)-3),\"\")","v":""},{"$f":"IF($G$2=INDEX(SCRIPTS!$A$3:$A$1048576,MATCH($G$2,SCRIPTS!$A$3:$A$1048576,0)+ROW(A173)-3),INDEX(SCRIPTS!$C$3:$C$1048576,MATCH($G$2,SCRIPTS!$A$3:$A$1048576,0)+ROW(A173)-3),\"\")","v":""}]
[{"$f":"IF($G$2=INDEX(SCRIPTS!$A$3:$A$1048576,MATCH($G$2,SCRIPTS!$A$3:$A$1048576,0)+ROW(A174)-3),INDEX(SCRIPTS!$B$3:$B$1048576,MATCH($G$2,SCRIPTS!$A$3:$A$1048576,0)+ROW(A174)-3),\"\")","v":""},{"$f":"IF($G$2=INDEX(SCRIPTS!$A$3:$A$1048576,MATCH($G$2,SCRIPTS!$A$3:$A$1048576,0)+ROW(A174)-3),INDEX(SCRIPTS!$C$3:$C$1048576,MATCH($G$2,SCRIPTS!$A$3:$A$1048576,0)+ROW(A174)-3),\"\")","v":""}]
[{"$f":"IF($G$2=INDEX(SCRIPTS!$A$3:$A$1048576,MATCH($G$2,SCRIPTS!$A$3:$A$1048576,0)+ROW(A175)-3),INDEX(SCRIPTS!$B$3:$B$1048576,MATCH($G$2,SCRIPTS!$A$3:$A$1048576,0)+ROW(A175)-3),\"\")","v":""},{"$f":"IF($G$2=INDEX(SCRIPTS!$A$3:$A$1048576,MATCH($G$2,SCRIPTS!$A$3:$A$1048576,0)+ROW(A175)-3),INDEX(SCRIPTS!$C$3:$C$1048576,MATCH($G$2,SCRIPTS!$A$3:$A$1048576,0)+ROW(A175)-3),\"\")","v":""}]
[{"$f":"IF($G$2=INDEX(SCRIPTS!$A$3:$A$1048576,MATCH($G$2,SCRIPTS!$A$3:$A$1048576,0)+ROW(A176)-3),INDEX(SCRIPTS!$B$3:$B$1048576,MATCH($G$2,SCRIPTS!$A$3:$A$1048576,0)+ROW(A176)-3),\"\")","v":""},{"$f":"IF($G$2=INDEX(SCRIPTS!$A$3:$A$1048576,MATCH($G$2,SCRIPTS!$A$3:$A$1048576,0)+ROW(A176)-3),INDEX(SCRIPTS!$C$3:$C$1048576,MATCH($G$2,SCRIPTS!$A$3:$A$1048576,0)+ROW(A176)-3),\"\")","v":""}]
[{"$f":"IF($G$2=INDEX(SCRIPTS!$A$3:$A$1048576,MATCH($G$2,SCRIPTS!$A$3:$A$1048576,0)+ROW(A177)-3),INDEX(SCRIPTS!$B$3:$B$1048576,MATCH($G$2,SCRIPTS!$A$3:$A$1048576,0)+ROW(A177)-3),\"\")","v":""},{"$f":"IF($G$2=INDEX(SCRIPTS!$A$3:$A$1048576,MATCH($G$2,SCRIPTS!$A$3:$A$1048576,0)+ROW(A177)-3),INDEX(SCRIPTS!$C$3:$C$1048576,MATCH($G$2,SCRIPTS!$A$3:$A$1048576,0)+ROW(A177)-3),\"\")","v":""}]
[{"$f":"IF($G$2=INDEX(SCRIPTS!$A$3:$A$1048576,MATCH($G$2,SCRIPTS!$A$3:$A$1048576,0)+ROW(A178)-3),INDEX(SCRIPTS!$B$3:$B$1048576,MATCH($G$2,SCRIPTS!$A$3:$A$1048576,0)+ROW(A178)-3),\"\")","v":""},{"$f":"IF($G$2=INDEX(SCRIPTS!$A$3:$A$1048576,MATCH($G$2,SCRIPTS!$A$3:$A$1048576,0)+ROW(A178)-3),INDEX(SCRIPTS!$C$3:$C$1048576,MATCH($G$2,SCRIPTS!$A$3:$A$1048576,0)+ROW(A178)-3),\"\")","v":""}]
[{"$f":"IF($G$2=INDEX(SCRIPTS!$A$3:$A$1048576,MATCH($G$2,SCRIPTS!$A$3:$A$1048576,0)+ROW(A179)-3),INDEX(SCRIPTS!$B$3:$B$1048576,MATCH($G$2,SCRIPTS!$A$3:$A$1048576,0)+ROW(A179)-3),\"\")","v":""},{"$f":"IF($G$2=INDEX(SCRIPTS!$A$3:$A$1048576,MATCH($G$2,SCRIPTS!$A$3:$A$1048576,0)+ROW(A179)-3),INDEX(SCRIPTS!$C$3:$C$1048576,MATCH($G$2,SCRIPTS!$A$3:$A$1048576,0)+ROW(A179)-3),\"\")","v":""}]
[{"$f":"IF($G$2=INDEX(SCRIPTS!$A$3:$A$1048576,MATCH($G$2,SCRIPTS!$A$3:$A$1048576,0)+ROW(A180)-3),INDEX(SCRIPTS!$B$3:$B$1048576,MATCH($G$2,SCRIPTS!$A$3:$A$1048576,0)+ROW(A180)-3),\"\")","v":""},{"$f":"IF($G$2=INDEX(SCRIPTS!$A$3:$A$1048576,MATCH($G$2,SCRIPTS!$A$3:$A$1048576,0)+ROW(A180)-3),INDEX(SCRIPTS!$C$3:$C$1048576,MATCH($G$2,SCRIPTS!$A$3:$A$1048576,0)+ROW(A180)-3),\"\")","v":""}]
[{"$f":"IF($G$2=INDEX(SCRIPTS!$A$3:$A$1048576,MATCH($G$2,SCRIPTS!$A$3:$A$1048576,0)+ROW(A181)-3),INDEX(SCRIPTS!$B$3:$B$1048576,MATCH($G$2,SCRIPTS!$A$3:$A$1048576,0)+ROW(A181)-3),\"\")","v":""},{"$f":"IF($G$2=INDEX(SCRIPTS!$A$3:$A$1048576,MATCH($G$2,SCRIPTS!$A$3:$A$1048576,0)+ROW(A181)-3),INDEX(SCRIPTS!$C$3:$C$1048576,MATCH($G$2,SCRIPTS!$A$3:$A$1048576,0)+ROW(A181)-3),\"\")","v":""}]
[{"$f":"IF($G$2=INDEX(SCRIPTS!$A$3:$A$1048576,MATCH($G$2,SCRIPTS!$A$3:$A$1048576,0)+ROW(A182)-3),INDEX(SCRIPTS!$B$3:$B$1048576,MATCH($G$2,SCRIPTS!$A$3:$A$1048576,0)+ROW(A182)-3),\"\")","v":""},{"$f":"IF($G$2=INDEX(SCRIPTS!$A$3:$A$1048576,MATCH($G$2,SCRIPTS!$A$3:$A$1048576,0)+ROW(A182)-3),INDEX(SCRIPTS!$C$3:$C$1048576,MATCH($G$2,SCRIPTS!$A$3:$A$1048576,0)+ROW(A182)-3),\"\")","v":""}]
[{"$f":"IF($G$2=INDEX(SCRIPTS!$A$3:$A$1048576,MATCH($G$2,SCRIPTS!$A$3:$A$1048576,0)+ROW(A183)-3),INDEX(SCRIPTS!$B$3:$B$1048576,MATCH($G$2,SCRIPTS!$A$3:$A$1048576,0)+ROW(A183)-3),\"\")","v":""},{"$f":"IF($G$2=INDEX(SCRIPTS!$A$3:$A$1048576,MATCH($G$2,SCRIPTS!$A$3:$A$1048576,0)+ROW(A183)-3),INDEX(SCRIPTS!$C$3:$C$1048576,MATCH($G$2,SCRIPTS!$A$3:$A$1048576,0)+ROW(A183)-3),\"\")","v":""}]
[{"$f":"IF($G$2=INDEX(SCRIPTS!$A$3:$A$1048576,MATCH($G$2,SCRIPTS!$A$3:$A$1048576,0)+ROW(A184)-3),INDEX(SCRIPTS!$B$3:$B$1048576,MATCH($G$2,SCRIPTS!$A$3:$A$1048576,0)+ROW(A184)-3),\"\")","v":""},{"$f":"IF($G$2=INDEX(SCRIPTS!$A$3:$A$1048576,MATCH($G$2,SCRIPTS!$A$3:$A$1048576,0)+ROW(A184)-3),INDEX(SCRIPTS!$C$3:$C$1048576,MATCH($G$2,SCRIPTS!$A$3:$A$1048576,0)+ROW(A184)-3),\"\")","v":""}]
[{"$f":"IF($G$2=INDEX(SCRIPTS!$A$3:$A$1048576,MATCH($G$2,SCRIPTS!$A$3:$A$1048576,0)+ROW(A185)-3),INDEX(SCRIPTS!$B$3:$B$1048576,MATCH($G$2,SCRIPTS!$A$3:$A$1048576,0)+ROW(A185)-3),\"\")","v":""},{"$f":"IF($G$2=INDEX(SCRIPTS!$A$3:$A$1048576,MATCH($G$2,SCRIPTS!$A$3:$A$1048576,0)+ROW(A185)-3),INDEX(SCRIPTS!$C$3:$C$1048576,MATCH($G$2,SCRIPTS!$A$3:$A$1048576,0)+ROW(A185)-3),\"\")","v":""}]
[{"$f":"IF($G$2=INDEX(SCRIPTS!$A$3:$A$1048576,MATCH($G$2,SCRIPTS!$A$3:$A$1048576,0)+ROW(A186)-3),INDEX(SCRIPTS!$B$3:$B$1048576,MATCH($G$2,SCRIPTS!$A$3:$A$1048576,0)+ROW(A186)-3),\"\")","v":""},{"$f":"IF($G$2=INDEX(SCRIPTS!$A$3:$A$1048576,MATCH($G$2,SCRIPTS!$A$3:$A$1048576,0)+ROW(A186)-3),INDEX(SCRIPTS!$C$3:$C$1048576,MATCH($G$2,SCRIPTS!$A$3:$A$1048576,0)+ROW(A186)-3),\"\")","v":""}]
[{"$f":"IF($G$2=INDEX(SCRIPTS!$A$3:$A$1048576,MATCH($G$2,SCRIPTS!$A$3:$A$1048576,0)+ROW(A187)-3),INDEX(SCRIPTS!$B$3:$B$1048576,MATCH($G$2,SCRIPTS!$A$3:$A$1048576,0)+ROW(A187)-3),\"\")","v":""},{"$f":"IF($G$2=INDEX(SCRIPTS!$A$3:$A$1048576,MATCH($G$2,SCRIPTS!$A$3:$A$1048576,0)+ROW(A187)-3),INDEX(SCRIPTS!$C$3:$C$1048576,MATCH($G$2,SCRIPTS!$A$3:$A$1048576,0)+ROW(A187)-3),\"\")","v":""}]
[{"$f":"IF($G$2=INDEX(SCRIPTS!$A$3:$A$1048576,MATCH($G$2,SCRIPTS!$A$3:$A$1048576,0)+ROW(A188)-3),INDEX(SCRIPTS!$B$3:$B$1048576,MATCH($G$2,SCRIPTS!$A$3:$A$1048576,0)+ROW(A188)-3),\"\")","v":""},{"$f":"IF($G$2=INDEX(SCRIPTS!$A$3:$A$1048576,MATCH($G$2,SCRIPTS!$A$3:$A$1048576,0)+ROW(A188)-3),INDEX(SCRIPTS!$C$3:$C$1048576,MATCH($G$2,SCRIPTS!$A$3:$A$1048576,0)+ROW(A188)-3),\"\")","v":""}]
[{"$f":"IF($G$2=INDEX(SCRIPTS!$A$3:$A$1048576,MATCH($G$2,SCRIPTS!$A$3:$A$1048576,0)+ROW(A189)-3),INDEX(SCRIPTS!$B$3:$B$1048576,MATCH($G$2,SCRIPTS!$A$3:$A$1048576,0)+ROW(A189)-3),\"\")","v":""},{"$f":"IF($G$2=INDEX(SCRIPTS!$A$3:$A$1048576,MATCH($G$2,SCRIPTS!$A$3:$A$1048576,0)+ROW(A189)-3),INDEX(SCRIPTS!$C$3:$C$1048576,MATCH($G$2,SCRIPTS!$A$3:$A$1048576,0)+ROW(A189)-3),\"\")","v":""}]
[{"$f":"IF($G$2=INDEX(SCRIPTS!$A$3:$A$1048576,MATCH($G$2,SCRIPTS!$A$3:$A$1048576,0)+ROW(A190)-3),INDEX(SCRIPTS!$B$3:$B$1048576,MATCH($G$2,SCRIPTS!$A$3:$A$1048576,0)+ROW(A190)-3),\"\")","v":""},{"$f":"IF($G$2=INDEX(SCRIPTS!$A$3:$A$1048576,MATCH($G$2,SCRIPTS!$A$3:$A$1048576,0)+ROW(A190)-3),INDEX(SCRIPTS!$C$3:$C$1048576,MATCH($G$2,SCRIPTS!$A$3:$A$1048576,0)+ROW(A190)-3),\"\")","v":""}]
[{"$f":"IF($G$2=INDEX(SCRIPTS!$A$3:$A$1048576,MATCH($G$2,SCRIPTS!$A$3:$A$1048576,0)+ROW(A191)-3),INDEX(SCRIPTS!$B$3:$B$1048576,MATCH($G$2,SCRIPTS!$A$3:$A$1048576,0)+ROW(A191)-3),\"\")","v":""},{"$f":"IF($G$2=INDEX(SCRIPTS!$A$3:$A$1048576,MATCH($G$2,SCRIPTS!$A$3:$A$1048576,0)+ROW(A191)-3),INDEX(SCRIPTS!$C$3:$C$1048576,MATCH($G$2,SCRIPTS!$A$3:$A$1048576,0)+ROW(A191)-3),\"\")","v":""}]
[{"$f":"IF($G$2=INDEX(SCRIPTS!$A$3:$A$1048576,MATCH($G$2,SCRIPTS!$A$3:$A$1048576,0)+ROW(A192)-3),INDEX(SCRIPTS!$B$3:$B$1048576,MATCH($G$2,SCRIPTS!$A$3:$A$1048576,0)+ROW(A192)-3),\"\")","v":""},{"$f":"IF($G$2=INDEX(SCRIPTS!$A$3:$A$1048576,MATCH($G$2,SCRIPTS!$A$3:$A$1048576,0)+ROW(A192)-3),INDEX(SCRIPTS!$C$3:$C$1048576,MATCH($G$2,SCRIPTS!$A$3:$A$1048576,0)+ROW(A192)-3),\"\")","v":""}]
[{"$f":"IF($G$2=INDEX(SCRIPTS!$A$3:$A$1048576,MATCH($G$2,SCRIPTS!$A$3:$A$1048576,0)+ROW(A193)-3),INDEX(SCRIPTS!$B$3:$B$1048576,MATCH($G$2,SCRIPTS!$A$3:$A$1048576,0)+ROW(A193)-3),\"\")","v":""},{"$f":"IF($G$2=INDEX(SCRIPTS!$A$3:$A$1048576,MATCH($G$2,SCRIPTS!$A$3:$A$1048576,0)+ROW(A193)-3),INDEX(SCRIPTS!$C$3:$C$1048576,MATCH($G$2,SCRIPTS!$A$3:$A$1048576,0)+ROW(A193)-3),\"\")","v":""}]
[{"$f":"IF($G$2=INDEX(SCRIPTS!$A$3:$A$1048576,MATCH($G$2,SCRIPTS!$A$3:$A$1048576,0)+ROW(A194)-3),INDEX(SCRIPTS!$B$3:$B$1048576,MATCH($G$2,SCRIPTS!$A$3:$A$1048576,0)+ROW(A194)-3),\"\")","v":""},{"$f":"IF($G$2=INDEX(SCRIPTS!$A$3:$A$1048576,MATCH($G$2,SCRIPTS!$A$3:$A$1048576,0)+ROW(A194)-3),INDEX(SCRIPTS!$C$3:$C$1048576,MATCH($G$2,SCRIPTS!$A$3:$A$1048576,0)+ROW(A194)-3),\"\")","v":""}]
[{"$f":"IF($G$2=INDEX(SCRIPTS!$A$3:$A$1048576,MATCH($G$2,SCRIPTS!$A$3:$A$1048576,0)+ROW(A195)-3),INDEX(SCRIPTS!$B$3:$B$1048576,MATCH($G$2,SCRIPTS!$A$3:$A$1048576,0)+ROW(A195)-3),\"\")","v":""},{"$f":"IF($G$2=INDEX(SCRIPTS!$A$3:$A$1048576,MATCH($G$2,SCRIPTS!$A$3:$A$1048576,0)+ROW(A195)-3),INDEX(SCRIPTS!$C$3:$C$1048576,MATCH($G$2,SCRIPTS!$A$3:$A$1048576,0)+ROW(A195)-3),\"\")","v":""}]
[{"$f":"IF($G$2=INDEX(SCRIPTS!$A$3:$A$1048576,MATCH($G$2,SCRIPTS!$A$3:$A$1048576,0)+ROW(A196)-3),INDEX(SCRIPTS!$B$3:$B$1048576,MATCH($G$2,SCRIPTS!$A$3:$A$1048576,0)+ROW(A196)-3),\"\")","v":""},{"$f":"IF($G$2=INDEX(SCRIPTS!$A$3:$A$1048576,MATCH($G$2,SCRIPTS!$A$3:$A$1048576,0)+ROW(A196)-3),INDEX(SCRIPTS!$C$3:$C$1048576,MATCH($G$2,SCRIPTS!$A$3:$A$1048576,0)+ROW(A196)-3),\"\")","v":""}]
[{"$f":"IF($G$2=INDEX(SCRIPTS!$A$3:$A$1048576,MATCH($G$2,SCRIPTS!$A$3:$A$1048576,0)+ROW(A197)-3),INDEX(SCRIPTS!$B$3:$B$1048576,MATCH($G$2,SCRIPTS!$A$3:$A$1048576,0)+ROW(A197)-3),\"\")","v":""},{"$f":"IF($G$2=INDEX(SCRIPTS!$A$3:$A$1048576,MATCH($G$2,SCRIPTS!$A$3:$A$1048576,0)+ROW(A197)-3),INDEX(SCRIPTS!$C$3:$C$1048576,MATCH($G$2,SCRIPTS!$A$3:$A$1048576,0)+ROW(A197)-3),\"\")","v":""}]
[{"$f":"IF($G$2=INDEX(SCRIPTS!$A$3:$A$1048576,MATCH($G$2,SCRIPTS!$A$3:$A$1048576,0)+ROW(A198)-3),INDEX(SCRIPTS!$B$3:$B$1048576,MATCH($G$2,SCRIPTS!$A$3:$A$1048576,0)+ROW(A198)-3),\"\")","v":""},{"$f":"IF($G$2=INDEX(SCRIPTS!$A$3:$A$1048576,MATCH($G$2,SCRIPTS!$A$3:$A$1048576,0)+ROW(A198)-3),INDEX(SCRIPTS!$C$3:$C$1048576,MATCH($G$2,SCRIPTS!$A$3:$A$1048576,0)+ROW(A198)-3),\"\")","v":""}]
[{"$f":"IF($G$2=INDEX(SCRIPTS!$A$3:$A$1048576,MATCH($G$2,SCRIPTS!$A$3:$A$1048576,0)+ROW(A199)-3),INDEX(SCRIPTS!$B$3:$B$1048576,MATCH($G$2,SCRIPTS!$A$3:$A$1048576,0)+ROW(A199)-3),\"\")","v":""},{"$f":"IF($G$2=INDEX(SCRIPTS!$A$3:$A$1048576,MATCH($G$2,SCRIPTS!$A$3:$A$1048576,0)+ROW(A199)-3),INDEX(SCRIPTS!$C$3:$C$1048576,MATCH($G$2,SCRIPTS!$A$3:$A$1048576,0)+ROW(A199)-3),\"\")","v":""}]
[{"$f":"IF($G$2=INDEX(SCRIPTS!$A$3:$A$1048576,MATCH($G$2,SCRIPTS!$A$3:$A$1048576,0)+ROW(A200)-3),INDEX(SCRIPTS!$B$3:$B$1048576,MATCH($G$2,SCRIPTS!$A$3:$A$1048576,0)+ROW(A200)-3),\"\")","v":""},{"$f":"IF($G$2=INDEX(SCRIPTS!$A$3:$A$1048576,MATCH($G$2,SCRIPTS!$A$3:$A$1048576,0)+ROW(A200)-3),INDEX(SCRIPTS!$C$3:$C$1048576,MATCH($G$2,SCRIPTS!$A$3:$A$1048576,0)+ROW(A200)-3),\"\")","v":""}]
[{"$f":"IF($G$2=INDEX(SCRIPTS!$A$3:$A$1048576,MATCH($G$2,SCRIPTS!$A$3:$A$1048576,0)+ROW(A201)-3),INDEX(SCRIPTS!$B$3:$B$1048576,MATCH($G$2,SCRIPTS!$A$3:$A$1048576,0)+ROW(A201)-3),\"\")","v":""},{"$f":"IF($G$2=INDEX(SCRIPTS!$A$3:$A$1048576,MATCH($G$2,SCRIPTS!$A$3:$A$1048576,0)+ROW(A201)-3),INDEX(SCRIPTS!$C$3:$C$1048576,MATCH($G$2,SCRIPTS!$A$3:$A$1048576,0)+ROW(A201)-3),\"\")","v":""}]
[{"$f":"IF($G$2=INDEX(SCRIPTS!$A$3:$A$1048576,MATCH($G$2,SCRIPTS!$A$3:$A$1048576,0)+ROW(A202)-3),INDEX(SCRIPTS!$B$3:$B$1048576,MATCH($G$2,SCRIPTS!$A$3:$A$1048576,0)+ROW(A202)-3),\"\")","v":""},{"$f":"IF($G$2=INDEX(SCRIPTS!$A$3:$A$1048576,MATCH($G$2,SCRIPTS!$A$3:$A$1048576,0)+ROW(A202)-3),INDEX(SCRIPTS!$C$3:$C$1048576,MATCH($G$2,SCRIPTS!$A$3:$A$1048576,0)+ROW(A202)-3),\"\")","v":""}]
[{"$f":"IF($G$2=INDEX(SCRIPTS!$A$3:$A$1048576,MATCH($G$2,SCRIPTS!$A$3:$A$1048576,0)+ROW(A203)-3),INDEX(SCRIPTS!$B$3:$B$1048576,MATCH($G$2,SCRIPTS!$A$3:$A$1048576,0)+ROW(A203)-3),\"\")","v":""},{"$f":"IF($G$2=INDEX(SCRIPTS!$A$3:$A$1048576,MATCH($G$2,SCRIPTS!$A$3:$A$1048576,0)+ROW(A203)-3),INDEX(SCRIPTS!$C$3:$C$1048576,MATCH($G$2,SCRIPTS!$A$3:$A$1048576,0)+ROW(A203)-3),\"\")","v":""}]
[{"$f":"IF($G$2=INDEX(SCRIPTS!$A$3:$A$1048576,MATCH($G$2,SCRIPTS!$A$3:$A$1048576,0)+ROW(A204)-3),INDEX(SCRIPTS!$B$3:$B$1048576,MATCH($G$2,SCRIPTS!$A$3:$A$1048576,0)+ROW(A204)-3),\"\")","v":""},{"$f":"IF($G$2=INDEX(SCRIPTS!$A$3:$A$1048576,MATCH($G$2,SCRIPTS!$A$3:$A$1048576,0)+ROW(A204)-3),INDEX(SCRIPTS!$C$3:$C$1048576,MATCH($G$2,SCRIPTS!$A$3:$A$1048576,0)+ROW(A204)-3),\"\")","v":""}]
[{"$f":"IF($G$2=INDEX(SCRIPTS!$A$3:$A$1048576,MATCH($G$2,SCRIPTS!$A$3:$A$1048576,0)+ROW(A205)-3),INDEX(SCRIPTS!$B$3:$B$1048576,MATCH($G$2,SCRIPTS!$A$3:$A$1048576,0)+ROW(A205)-3),\"\")","v":""},{"$f":"IF($G$2=INDEX(SCRIPTS!$A$3:$A$1048576,MATCH($G$2,SCRIPTS!$A$3:$A$1048576,0)+ROW(A205)-3),INDEX(SCRIPTS!$C$3:$C$1048576,MATCH($G$2,SCRIPTS!$A$3:$A$1048576,0)+ROW(A205)-3),\"\")","v":""}]
[{"$f":"IF($G$2=INDEX(SCRIPTS!$A$3:$A$1048576,MATCH($G$2,SCRIPTS!$A$3:$A$1048576,0)+ROW(A206)-3),INDEX(SCRIPTS!$B$3:$B$1048576,MATCH($G$2,SCRIPTS!$A$3:$A$1048576,0)+ROW(A206)-3),\"\")","v":""},{"$f":"IF($G$2=INDEX(SCRIPTS!$A$3:$A$1048576,MATCH($G$2,SCRIPTS!$A$3:$A$1048576,0)+ROW(A206)-3),INDEX(SCRIPTS!$C$3:$C$1048576,MATCH($G$2,SCRIPTS!$A$3:$A$1048576,0)+ROW(A206)-3),\"\")","v":""}]
[{"$f":"IF($G$2=INDEX(SCRIPTS!$A$3:$A$1048576,MATCH($G$2,SCRIPTS!$A$3:$A$1048576,0)+ROW(A207)-3),INDEX(SCRIPTS!$B$3:$B$1048576,MATCH($G$2,SCRIPTS!$A$3:$A$1048576,0)+ROW(A207)-3),\"\")","v":""},{"$f":"IF($G$2=INDEX(SCRIPTS!$A$3:$A$1048576,MATCH($G$2,SCRIPTS!$A$3:$A$1048576,0)+ROW(A207)-3),INDEX(SCRIPTS!$C$3:$C$1048576,MATCH($G$2,SCRIPTS!$A$3:$A$1048576,0)+ROW(A207)-3),\"\")","v":""}]
[{"$f":"IF($G$2=INDEX(SCRIPTS!$A$3:$A$1048576,MATCH($G$2,SCRIPTS!$A$3:$A$1048576,0)+ROW(A208)-3),INDEX(SCRIPTS!$B$3:$B$1048576,MATCH($G$2,SCRIPTS!$A$3:$A$1048576,0)+ROW(A208)-3),\"\")","v":""},{"$f":"IF($G$2=INDEX(SCRIPTS!$A$3:$A$1048576,MATCH($G$2,SCRIPTS!$A$3:$A$1048576,0)+ROW(A208)-3),INDEX(SCRIPTS!$C$3:$C$1048576,MATCH($G$2,SCRIPTS!$A$3:$A$1048576,0)+ROW(A208)-3),\"\")","v":""}]
[{"$f":"IF($G$2=INDEX(SCRIPTS!$A$3:$A$1048576,MATCH($G$2,SCRIPTS!$A$3:$A$1048576,0)+ROW(A209)-3),INDEX(SCRIPTS!$B$3:$B$1048576,MATCH($G$2,SCRIPTS!$A$3:$A$1048576,0)+ROW(A209)-3),\"\")","v":""},{"$f":"IF($G$2=INDEX(SCRIPTS!$A$3:$A$1048576,MATCH($G$2,SCRIPTS!$A$3:$A$1048576,0)+ROW(A209)-3),INDEX(SCRIPTS!$C$3:$C$1048576,MATCH($G$2,SCRIPTS!$A$3:$A$1048576,0)+ROW(A209)-3),\"\")","v":""}]
[{"$f":"IF($G$2=INDEX(SCRIPTS!$A$3:$A$1048576,MATCH($G$2,SCRIPTS!$A$3:$A$1048576,0)+ROW(A210)-3),INDEX(SCRIPTS!$B$3:$B$1048576,MATCH($G$2,SCRIPTS!$A$3:$A$1048576,0)+ROW(A210)-3),\"\")","v":""},{"$f":"IF($G$2=INDEX(SCRIPTS!$A$3:$A$1048576,MATCH($G$2,SCRIPTS!$A$3:$A$1048576,0)+ROW(A210)-3),INDEX(SCRIPTS!$C$3:$C$1048576,MATCH($G$2,SCRIPTS!$A$3:$A$1048576,0)+ROW(A210)-3),\"\")","v":""}]
[{"$f":"IF($G$2=INDEX(SCRIPTS!$A$3:$A$1048576,MATCH($G$2,SCRIPTS!$A$3:$A$1048576,0)+ROW(A211)-3),INDEX(SCRIPTS!$B$3:$B$1048576,MATCH($G$2,SCRIPTS!$A$3:$A$1048576,0)+ROW(A211)-3),\"\")","v":""},{"$f":"IF($G$2=INDEX(SCRIPTS!$A$3:$A$1048576,MATCH($G$2,SCRIPTS!$A$3:$A$1048576,0)+ROW(A211)-3),INDEX(SCRIPTS!$C$3:$C$1048576,MATCH($G$2,SCRIPTS!$A$3:$A$1048576,0)+ROW(A211)-3),\"\")","v":""}]
[{"$f":"IF($G$2=INDEX(SCRIPTS!$A$3:$A$1048576,MATCH($G$2,SCRIPTS!$A$3:$A$1048576,0)+ROW(A212)-3),INDEX(SCRIPTS!$B$3:$B$1048576,MATCH($G$2,SCRIPTS!$A$3:$A$1048576,0)+ROW(A212)-3),\"\")","v":""},{"$f":"IF($G$2=INDEX(SCRIPTS!$A$3:$A$1048576,MATCH($G$2,SCRIPTS!$A$3:$A$1048576,0)+ROW(A212)-3),INDEX(SCRIPTS!$C$3:$C$1048576,MATCH($G$2,SCRIPTS!$A$3:$A$1048576,0)+ROW(A212)-3),\"\")","v":""}]
[{"$f":"IF($G$2=INDEX(SCRIPTS!$A$3:$A$1048576,MATCH($G$2,SCRIPTS!$A$3:$A$1048576,0)+ROW(A213)-3),INDEX(SCRIPTS!$B$3:$B$1048576,MATCH($G$2,SCRIPTS!$A$3:$A$1048576,0)+ROW(A213)-3),\"\")","v":""},{"$f":"IF($G$2=INDEX(SCRIPTS!$A$3:$A$1048576,MATCH($G$2,SCRIPTS!$A$3:$A$1048576,0)+ROW(A213)-3),INDEX(SCRIPTS!$C$3:$C$1048576,MATCH($G$2,SCRIPTS!$A$3:$A$1048576,0)+ROW(A213)-3),\"\")","v":""}]
[{"$f":"IF($G$2=INDEX(SCRIPTS!$A$3:$A$1048576,MATCH($G$2,SCRIPTS!$A$3:$A$1048576,0)+ROW(A214)-3),INDEX(SCRIPTS!$B$3:$B$1048576,MATCH($G$2,SCRIPTS!$A$3:$A$1048576,0)+ROW(A214)-3),\"\")","v":""},{"$f":"IF($G$2=INDEX(SCRIPTS!$A$3:$A$1048576,MATCH($G$2,SCRIPTS!$A$3:$A$1048576,0)+ROW(A214)-3),INDEX(SCRIPTS!$C$3:$C$1048576,MATCH($G$2,SCRIPTS!$A$3:$A$1048576,0)+ROW(A214)-3),\"\")","v":""}]
[{"$f":"IF($G$2=INDEX(SCRIPTS!$A$3:$A$1048576,MATCH($G$2,SCRIPTS!$A$3:$A$1048576,0)+ROW(A215)-3),INDEX(SCRIPTS!$B$3:$B$1048576,MATCH($G$2,SCRIPTS!$A$3:$A$1048576,0)+ROW(A215)-3),\"\")","v":""},{"$f":"IF($G$2=INDEX(SCRIPTS!$A$3:$A$1048576,MATCH($G$2,SCRIPTS!$A$3:$A$1048576,0)+ROW(A215)-3),INDEX(SCRIPTS!$C$3:$C$1048576,MATCH($G$2,SCRIPTS!$A$3:$A$1048576,0)+ROW(A215)-3),\"\")","v":""}]
[{"$f":"IF($G$2=INDEX(SCRIPTS!$A$3:$A$1048576,MATCH($G$2,SCRIPTS!$A$3:$A$1048576,0)+ROW(A216)-3),INDEX(SCRIPTS!$B$3:$B$1048576,MATCH($G$2,SCRIPTS!$A$3:$A$1048576,0)+ROW(A216)-3),\"\")","v":""},{"$f":"IF($G$2=INDEX(SCRIPTS!$A$3:$A$1048576,MATCH($G$2,SCRIPTS!$A$3:$A$1048576,0)+ROW(A216)-3),INDEX(SCRIPTS!$C$3:$C$1048576,MATCH($G$2,SCRIPTS!$A$3:$A$1048576,0)+ROW(A216)-3),\"\")","v":""}]
[{"$f":"IF($G$2=INDEX(SCRIPTS!$A$3:$A$1048576,MATCH($G$2,SCRIPTS!$A$3:$A$1048576,0)+ROW(A217)-3),INDEX(SCRIPTS!$B$3:$B$1048576,MATCH($G$2,SCRIPTS!$A$3:$A$1048576,0)+ROW(A217)-3),\"\")","v":""},{"$f":"IF($G$2=INDEX(SCRIPTS!$A$3:$A$1048576,MATCH($G$2,SCRIPTS!$A$3:$A$1048576,0)+ROW(A217)-3),INDEX(SCRIPTS!$C$3:$C$1048576,MATCH($G$2,SCRIPTS!$A$3:$A$1048576,0)+ROW(A217)-3),\"\")","v":""}]
[{"$f":"IF($G$2=INDEX(SCRIPTS!$A$3:$A$1048576,MATCH($G$2,SCRIPTS!$A$3:$A$1048576,0)+ROW(A218)-3),INDEX(SCRIPTS!$B$3:$B$1048576,MATCH($G$2,SCRIPTS!$A$3:$A$1048576,0)+ROW(A218)-3),\"\")","v":""},{"$f":"IF($G$2=INDEX(SCRIPTS!$A$3:$A$1048576,MATCH($G$2,SCRIPTS!$A$3:$A$1048576,0)+ROW(A218)-3),INDEX(SCRIPTS!$C$3:$C$1048576,MATCH($G$2,SCRIPTS!$A$3:$A$1048576,0)+ROW(A218)-3),\"\")","v":""}]
[{"$f":"IF($G$2=INDEX(SCRIPTS!$A$3:$A$1048576,MATCH($G$2,SCRIPTS!$A$3:$A$1048576,0)+ROW(A219)-3),INDEX(SCRIPTS!$B$3:$B$1048576,MATCH($G$2,SCRIPTS!$A$3:$A$1048576,0)+ROW(A219)-3),\"\")","v":""},{"$f":"IF($G$2=INDEX(SCRIPTS!$A$3:$A$1048576,MATCH($G$2,SCRIPTS!$A$3:$A$1048576,0)+ROW(A219)-3),INDEX(SCRIPTS!$C$3:$C$1048576,MATCH($G$2,SCRIPTS!$A$3:$A$1048576,0)+ROW(A219)-3),\"\")","v":""}]
[{"$f":"IF($G$2=INDEX(SCRIPTS!$A$3:$A$1048576,MATCH($G$2,SCRIPTS!$A$3:$A$1048576,0)+ROW(A220)-3),INDEX(SCRIPTS!$B$3:$B$1048576,MATCH($G$2,SCRIPTS!$A$3:$A$1048576,0)+ROW(A220)-3),\"\")","v":""},{"$f":"IF($G$2=INDEX(SCRIPTS!$A$3:$A$1048576,MATCH($G$2,SCRIPTS!$A$3:$A$1048576,0)+ROW(A220)-3),INDEX(SCRIPTS!$C$3:$C$1048576,MATCH($G$2,SCRIPTS!$A$3:$A$1048576,0)+ROW(A220)-3),\"\")","v":""}]
[{"$f":"IF($G$2=INDEX(SCRIPTS!$A$3:$A$1048576,MATCH($G$2,SCRIPTS!$A$3:$A$1048576,0)+ROW(A221)-3),INDEX(SCRIPTS!$B$3:$B$1048576,MATCH($G$2,SCRIPTS!$A$3:$A$1048576,0)+ROW(A221)-3),\"\")","v":""},{"$f":"IF($G$2=INDEX(SCRIPTS!$A$3:$A$1048576,MATCH($G$2,SCRIPTS!$A$3:$A$1048576,0)+ROW(A221)-3),INDEX(SCRIPTS!$C$3:$C$1048576,MATCH($G$2,SCRIPTS!$A$3:$A$1048576,0)+ROW(A221)-3),\"\")","v":""}]
[{"$f":"IF($G$2=INDEX(SCRIPTS!$A$3:$A$1048576,MATCH($G$2,SCRIPTS!$A$3:$A$1048576,0)+ROW(A222)-3),INDEX(SCRIPTS!$B$3:$B$1048576,MATCH($G$2,SCRIPTS!$A$3:$A$1048576,0)+ROW(A222)-3),\"\")","v":""},{"$f":"IF($G$2=INDEX(SCRIPTS!$A$3:$A$1048576,MATCH($G$2,SCRIPTS!$A$3:$A$1048576,0)+ROW(A222)-3),INDEX(SCRIPTS!$C$3:$C$1048576,MATCH($G$2,SCRIPTS!$A$3:$A$1048576,0)+ROW(A222)-3),\"\")","v":""}]
[{"$f":"IF($G$2=INDEX(SCRIPTS!$A$3:$A$1048576,MATCH($G$2,SCRIPTS!$A$3:$A$1048576,0)+ROW(A223)-3),INDEX(SCRIPTS!$B$3:$B$1048576,MATCH($G$2,SCRIPTS!$A$3:$A$1048576,0)+ROW(A223)-3),\"\")","v":""},{"$f":"IF($G$2=INDEX(SCRIPTS!$A$3:$A$1048576,MATCH($G$2,SCRIPTS!$A$3:$A$1048576,0)+ROW(A223)-3),INDEX(SCRIPTS!$C$3:$C$1048576,MATCH($G$2,SCRIPTS!$A$3:$A$1048576,0)+ROW(A223)-3),\"\")","v":""}]
[{"$f":"IF($G$2=INDEX(SCRIPTS!$A$3:$A$1048576,MATCH($G$2,SCRIPTS!$A$3:$A$1048576,0)+ROW(A224)-3),INDEX(SCRIPTS!$B$3:$B$1048576,MATCH($G$2,SCRIPTS!$A$3:$A$1048576,0)+ROW(A224)-3),\"\")","v":""},{"$f":"IF($G$2=INDEX(SCRIPTS!$A$3:$A$1048576,MATCH($G$2,SCRIPTS!$A$3:$A$1048576,0)+ROW(A224)-3),INDEX(SCRIPTS!$C$3:$C$1048576,MATCH($G$2,SCRIPTS!$A$3:$A$1048576,0)+ROW(A224)-3),\"\")","v":""}]
[{"$f":"IF($G$2=INDEX(SCRIPTS!$A$3:$A$1048576,MATCH($G$2,SCRIPTS!$A$3:$A$1048576,0)+ROW(A225)-3),INDEX(SCRIPTS!$B$3:$B$1048576,MATCH($G$2,SCRIPTS!$A$3:$A$1048576,0)+ROW(A225)-3),\"\")","v":""},{"$f":"IF($G$2=INDEX(SCRIPTS!$A$3:$A$1048576,MATCH($G$2,SCRIPTS!$A$3:$A$1048576,0)+ROW(A225)-3),INDEX(SCRIPTS!$C$3:$C$1048576,MATCH($G$2,SCRIPTS!$A$3:$A$1048576,0)+ROW(A225)-3),\"\")","v":""}]
[{"$f":"IF($G$2=INDEX(SCRIPTS!$A$3:$A$1048576,MATCH($G$2,SCRIPTS!$A$3:$A$1048576,0)+ROW(A226)-3),INDEX(SCRIPTS!$B$3:$B$1048576,MATCH($G$2,SCRIPTS!$A$3:$A$1048576,0)+ROW(A226)-3),\"\")","v":""},{"$f":"IF($G$2=INDEX(SCRIPTS!$A$3:$A$1048576,MATCH($G$2,SCRIPTS!$A$3:$A$1048576,0)+ROW(A226)-3),INDEX(SCRIPTS!$C$3:$C$1048576,MATCH($G$2,SCRIPTS!$A$3:$A$1048576,0)+ROW(A226)-3),\"\")","v":""}]
[{"$f":"IF($G$2=INDEX(SCRIPTS!$A$3:$A$1048576,MATCH($G$2,SCRIPTS!$A$3:$A$1048576,0)+ROW(A227)-3),INDEX(SCRIPTS!$B$3:$B$1048576,MATCH($G$2,SCRIPTS!$A$3:$A$1048576,0)+ROW(A227)-3),\"\")","v":""},{"$f":"IF($G$2=INDEX(SCRIPTS!$A$3:$A$1048576,MATCH($G$2,SCRIPTS!$A$3:$A$1048576,0)+ROW(A227)-3),INDEX(SCRIPTS!$C$3:$C$1048576,MATCH($G$2,SCRIPTS!$A$3:$A$1048576,0)+ROW(A227)-3),\"\")","v":""}]
[{"$f":"IF($G$2=INDEX(SCRIPTS!$A$3:$A$1048576,MATCH($G$2,SCRIPTS!$A$3:$A$1048576,0)+ROW(A228)-3),INDEX(SCRIPTS!$B$3:$B$1048576,MATCH($G$2,SCRIPTS!$A$3:$A$1048576,0)+ROW(A228)-3),\"\")","v":""},{"$f":"IF($G$2=INDEX(SCRIPTS!$A$3:$A$1048576,MATCH($G$2,SCRIPTS!$A$3:$A$1048576,0)+ROW(A228)-3),INDEX(SCRIPTS!$C$3:$C$1048576,MATCH($G$2,SCRIPTS!$A$3:$A$1048576,0)+ROW(A228)-3),\"\")","v":""}]
[{"$f":"IF($G$2=INDEX(SCRIPTS!$A$3:$A$1048576,MATCH($G$2,SCRIPTS!$A$3:$A$1048576,0)+ROW(A229)-3),INDEX(SCRIPTS!$B$3:$B$1048576,MATCH($G$2,SCRIPTS!$A$3:$A$1048576,0)+ROW(A229)-3),\"\")","v":""},{"$f":"IF($G$2=INDEX(SCRIPTS!$A$3:$A$1048576,MATCH($G$2,SCRIPTS!$A$3:$A$1048576,0)+ROW(A229)-3),INDEX(SCRIPTS!$C$3:$C$1048576,MATCH($G$2,SCRIPTS!$A$3:$A$1048576,0)+ROW(A229)-3),\"\")","v":""}]
[{"$f":"IF($G$2=INDEX(SCRIPTS!$A$3:$A$1048576,MATCH($G$2,SCRIPTS!$A$3:$A$1048576,0)+ROW(A230)-3),INDEX(SCRIPTS!$B$3:$B$1048576,MATCH($G$2,SCRIPTS!$A$3:$A$1048576,0)+ROW(A230)-3),\"\")","v":""},{"$f":"IF($G$2=INDEX(SCRIPTS!$A$3:$A$1048576,MATCH($G$2,SCRIPTS!$A$3:$A$1048576,0)+ROW(A230)-3),INDEX(SCRIPTS!$C$3:$C$1048576,MATCH($G$2,SCRIPTS!$A$3:$A$1048576,0)+ROW(A230)-3),\"\")","v":""}]
[{"$f":"IF($G$2=INDEX(SCRIPTS!$A$3:$A$1048576,MATCH($G$2,SCRIPTS!$A$3:$A$1048576,0)+ROW(A231)-3),INDEX(SCRIPTS!$B$3:$B$1048576,MATCH($G$2,SCRIPTS!$A$3:$A$1048576,0)+ROW(A231)-3),\"\")","v":""},{"$f":"IF($G$2=INDEX(SCRIPTS!$A$3:$A$1048576,MATCH($G$2,SCRIPTS!$A$3:$A$1048576,0)+ROW(A231)-3),INDEX(SCRIPTS!$C$3:$C$1048576,MATCH($G$2,SCRIPTS!$A$3:$A$1048576,0)+ROW(A231)-3),\"\")","v":""}]
[{"$f":"IF($G$2=INDEX(SCRIPTS!$A$3:$A$1048576,MATCH($G$2,SCRIPTS!$A$3:$A$1048576,0)+ROW(A232)-3),INDEX(SCRIPTS!$B$3:$B$1048576,MATCH($G$2,SCRIPTS!$A$3:$A$1048576,0)+ROW(A232)-3),\"\")","v":""},{"$f":"IF($G$2=INDEX(SCRIPTS!$A$3:$A$1048576,MATCH($G$2,SCRIPTS!$A$3:$A$1048576,0)+ROW(A232)-3),INDEX(SCRIPTS!$C$3:$C$1048576,MATCH($G$2,SCRIPTS!$A$3:$A$1048576,0)+ROW(A232)-3),\"\")","v":""}]
[{"$f":"IF($G$2=INDEX(SCRIPTS!$A$3:$A$1048576,MATCH($G$2,SCRIPTS!$A$3:$A$1048576,0)+ROW(A233)-3),INDEX(SCRIPTS!$B$3:$B$1048576,MATCH($G$2,SCRIPTS!$A$3:$A$1048576,0)+ROW(A233)-3),\"\")","v":""},{"$f":"IF($G$2=INDEX(SCRIPTS!$A$3:$A$1048576,MATCH($G$2,SCRIPTS!$A$3:$A$1048576,0)+ROW(A233)-3),INDEX(SCRIPTS!$C$3:$C$1048576,MATCH($G$2,SCRIPTS!$A$3:$A$1048576,0)+ROW(A233)-3),\"\")","v":""}]
[{"$f":"IF($G$2=INDEX(SCRIPTS!$A$3:$A$1048576,MATCH($G$2,SCRIPTS!$A$3:$A$1048576,0)+ROW(A234)-3),INDEX(SCRIPTS!$B$3:$B$1048576,MATCH($G$2,SCRIPTS!$A$3:$A$1048576,0)+ROW(A234)-3),\"\")","v":""},{"$f":"IF($G$2=INDEX(SCRIPTS!$A$3:$A$1048576,MATCH($G$2,SCRIPTS!$A$3:$A$1048576,0)+ROW(A234)-3),INDEX(SCRIPTS!$C$3:$C$1048576,MATCH($G$2,SCRIPTS!$A$3:$A$1048576,0)+ROW(A234)-3),\"\")","v":""}]
[{"$f":"IF($G$2=INDEX(SCRIPTS!$A$3:$A$1048576,MATCH($G$2,SCRIPTS!$A$3:$A$1048576,0)+ROW(A235)-3),INDEX(SCRIPTS!$B$3:$B$1048576,MATCH($G$2,SCRIPTS!$A$3:$A$1048576,0)+ROW(A235)-3),\"\")","v":""},{"$f":"IF($G$2=INDEX(SCRIPTS!$A$3:$A$1048576,MATCH($G$2,SCRIPTS!$A$3:$A$1048576,0)+ROW(A235)-3),INDEX(SCRIPTS!$C$3:$C$1048576,MATCH($G$2,SCRIPTS!$A$3:$A$1048576,0)+ROW(A235)-3),\"\")","v":""}]
[{"$f":"IF($G$2=INDEX(SCRIPTS!$A$3:$A$1048576,MATCH($G$2,SCRIPTS!$A$3:$A$1048576,0)+ROW(A236)-3),INDEX(SCRIPTS!$B$3:$B$1048576,MATCH($G$2,SCRIPTS!$A$3:$A$1048576,0)+ROW(A236)-3),\"\")","v":""},{"$f":"IF($G$2=INDEX(SCRIPTS!$A$3:$A$1048576,MATCH($G$2,SCRIPTS!$A$3:$A$1048576,0)+ROW(A236)-3),INDEX(SCRIPTS!$C$3:$C$1048576,MATCH($G$2,SCRIPTS!$A$3:$A$1048576,0)+ROW(A236)-3),\"\")","v":""}]
[{"$f":"IF($G$2=INDEX(SCRIPTS!$A$3:$A$1048576,MATCH($G$2,SCRIPTS!$A$3:$A$1048576,0)+ROW(A237)-3),INDEX(SCRIPTS!$B$3:$B$1048576,MATCH($G$2,SCRIPTS!$A$3:$A$1048576,0)+ROW(A237)-3),\"\")","v":""},{"$f":"IF($G$2=INDEX(SCRIPTS!$A$3:$A$1048576,MATCH($G$2,SCRIPTS!$A$3:$A$1048576,0)+ROW(A237)-3),INDEX(SCRIPTS!$C$3:$C$1048576,MATCH($G$2,SCRIPTS!$A$3:$A$1048576,0)+ROW(A237)-3),\"\")","v":""}]
[{"$f":"IF($G$2=INDEX(SCRIPTS!$A$3:$A$1048576,MATCH($G$2,SCRIPTS!$A$3:$A$1048576,0)+ROW(A238)-3),INDEX(SCRIPTS!$B$3:$B$1048576,MATCH($G$2,SCRIPTS!$A$3:$A$1048576,0)+ROW(A238)-3),\"\")","v":""},{"$f":"IF($G$2=INDEX(SCRIPTS!$A$3:$A$1048576,MATCH($G$2,SCRIPTS!$A$3:$A$1048576,0)+ROW(A238)-3),INDEX(SCRIPTS!$C$3:$C$1048576,MATCH($G$2,SCRIPTS!$A$3:$A$1048576,0)+ROW(A238)-3),\"\")","v":""}]
[{"$f":"IF($G$2=INDEX(SCRIPTS!$A$3:$A$1048576,MATCH($G$2,SCRIPTS!$A$3:$A$1048576,0)+ROW(A239)-3),INDEX(SCRIPTS!$B$3:$B$1048576,MATCH($G$2,SCRIPTS!$A$3:$A$1048576,0)+ROW(A239)-3),\"\")","v":""},{"$f":"IF($G$2=INDEX(SCRIPTS!$A$3:$A$1048576,MATCH($G$2,SCRIPTS!$A$3:$A$1048576,0)+ROW(A239)-3),INDEX(SCRIPTS!$C$3:$C$1048576,MATCH($G$2,SCRIPTS!$A$3:$A$1048576,0)+ROW(A239)-3),\"\")","v":""}]
[{"$f":"IF($G$2=INDEX(SCRIPTS!$A$3:$A$1048576,MATCH($G$2,SCRIPTS!$A$3:$A$1048576,0)+ROW(A240)-3),INDEX(SCRIPTS!$B$3:$B$1048576,MATCH($G$2,SCRIPTS!$A$3:$A$1048576,0)+ROW(A240)-3),\"\")","v":""},{"$f":"IF($G$2=INDEX(SCRIPTS!$A$3:$A$1048576,MATCH($G$2,SCRIPTS!$A$3:$A$1048576,0)+ROW(A240)-3),INDEX(SCRIPTS!$C$3:$C$1048576,MATCH($G$2,SCRIPTS!$A$3:$A$1048576,0)+ROW(A240)-3),\"\")","v":""}]
[{"$f":"IF($G$2=INDEX(SCRIPTS!$A$3:$A$1048576,MATCH($G$2,SCRIPTS!$A$3:$A$1048576,0)+ROW(A241)-3),INDEX(SCRIPTS!$B$3:$B$1048576,MATCH($G$2,SCRIPTS!$A$3:$A$1048576,0)+ROW(A241)-3),\"\")","v":""},{"$f":"IF($G$2=INDEX(SCRIPTS!$A$3:$A$1048576,MATCH($G$2,SCRIPTS!$A$3:$A$1048576,0)+ROW(A241)-3),INDEX(SCRIPTS!$C$3:$C$1048576,MATCH($G$2,SCRIPTS!$A$3:$A$1048576,0)+ROW(A241)-3),\"\")","v":""}]
[{"$f":"IF($G$2=INDEX(SCRIPTS!$A$3:$A$1048576,MATCH($G$2,SCRIPTS!$A$3:$A$1048576,0)+ROW(A242)-3),INDEX(SCRIPTS!$B$3:$B$1048576,MATCH($G$2,SCRIPTS!$A$3:$A$1048576,0)+ROW(A242)-3),\"\")","v":""},{"$f":"IF($G$2=INDEX(SCRIPTS!$A$3:$A$1048576,MATCH($G$2,SCRIPTS!$A$3:$A$1048576,0)+ROW(A242)-3),INDEX(SCRIPTS!$C$3:$C$1048576,MATCH($G$2,SCRIPTS!$A$3:$A$1048576,0)+ROW(A242)-3),\"\")","v":""}]
[{"$f":"IF($G$2=INDEX(SCRIPTS!$A$3:$A$1048576,MATCH($G$2,SCRIPTS!$A$3:$A$1048576,0)+ROW(A243)-3),INDEX(SCRIPTS!$B$3:$B$1048576,MATCH($G$2,SCRIPTS!$A$3:$A$1048576,0)+ROW(A243)-3),\"\")","v":""},{"$f":"IF($G$2=INDEX(SCRIPTS!$A$3:$A$1048576,MATCH($G$2,SCRIPTS!$A$3:$A$1048576,0)+ROW(A243)-3),INDEX(SCRIPTS!$C$3:$C$1048576,MATCH($G$2,SCRIPTS!$A$3:$A$1048576,0)+ROW(A243)-3),\"\")","v":""}]
[{"$f":"IF($G$2=INDEX(SCRIPTS!$A$3:$A$1048576,MATCH($G$2,SCRIPTS!$A$3:$A$1048576,0)+ROW(A244)-3),INDEX(SCRIPTS!$B$3:$B$1048576,MATCH($G$2,SCRIPTS!$A$3:$A$1048576,0)+ROW(A244)-3),\"\")","v":""},{"$f":"IF($G$2=INDEX(SCRIPTS!$A$3:$A$1048576,MATCH($G$2,SCRIPTS!$A$3:$A$1048576,0)+ROW(A244)-3),INDEX(SCRIPTS!$C$3:$C$1048576,MATCH($G$2,SCRIPTS!$A$3:$A$1048576,0)+ROW(A244)-3),\"\")","v":""}]
[{"$f":"IF($G$2=INDEX(SCRIPTS!$A$3:$A$1048576,MATCH($G$2,SCRIPTS!$A$3:$A$1048576,0)+ROW(A245)-3),INDEX(SCRIPTS!$B$3:$B$1048576,MATCH($G$2,SCRIPTS!$A$3:$A$1048576,0)+ROW(A245)-3),\"\")","v":""},{"$f":"IF($G$2=INDEX(SCRIPTS!$A$3:$A$1048576,MATCH($G$2,SCRIPTS!$A$3:$A$1048576,0)+ROW(A245)-3),INDEX(SCRIPTS!$C$3:$C$1048576,MATCH($G$2,SCRIPTS!$A$3:$A$1048576,0)+ROW(A245)-3),\"\")","v":""}]
[{"$f":"IF($G$2=INDEX(SCRIPTS!$A$3:$A$1048576,MATCH($G$2,SCRIPTS!$A$3:$A$1048576,0)+ROW(A246)-3),INDEX(SCRIPTS!$B$3:$B$1048576,MATCH($G$2,SCRIPTS!$A$3:$A$1048576,0)+ROW(A246)-3),\"\")","v":""},{"$f":"IF($G$2=INDEX(SCRIPTS!$A$3:$A$1048576,MATCH($G$2,SCRIPTS!$A$3:$A$1048576,0)+ROW(A246)-3),INDEX(SCRIPTS!$C$3:$C$1048576,MATCH($G$2,SCRIPTS!$A$3:$A$1048576,0)+ROW(A246)-3),\"\")","v":""}]
[{"$f":"IF($G$2=INDEX(SCRIPTS!$A$3:$A$1048576,MATCH($G$2,SCRIPTS!$A$3:$A$1048576,0)+ROW(A247)-3),INDEX(SCRIPTS!$B$3:$B$1048576,MATCH($G$2,SCRIPTS!$A$3:$A$1048576,0)+ROW(A247)-3),\"\")","v":""},{"$f":"IF($G$2=INDEX(SCRIPTS!$A$3:$A$1048576,MATCH($G$2,SCRIPTS!$A$3:$A$1048576,0)+ROW(A247)-3),INDEX(SCRIPTS!$C$3:$C$1048576,MATCH($G$2,SCRIPTS!$A$3:$A$1048576,0)+ROW(A247)-3),\"\")","v":""}]
[{"$f":"IF($G$2=INDEX(SCRIPTS!$A$3:$A$1048576,MATCH($G$2,SCRIPTS!$A$3:$A$1048576,0)+ROW(A248)-3),INDEX(SCRIPTS!$B$3:$B$1048576,MATCH($G$2,SCRIPTS!$A$3:$A$1048576,0)+ROW(A248)-3),\"\")","v":""},{"$f":"IF($G$2=INDEX(SCRIPTS!$A$3:$A$1048576,MATCH($G$2,SCRIPTS!$A$3:$A$1048576,0)+ROW(A248)-3),INDEX(SCRIPTS!$C$3:$C$1048576,MATCH($G$2,SCRIPTS!$A$3:$A$1048576,0)+ROW(A248)-3),\"\")","v":""}]
[{"$f":"IF($G$2=INDEX(SCRIPTS!$A$3:$A$1048576,MATCH($G$2,SCRIPTS!$A$3:$A$1048576,0)+ROW(A249)-3),INDEX(SCRIPTS!$B$3:$B$1048576,MATCH($G$2,SCRIPTS!$A$3:$A$1048576,0)+ROW(A249)-3),\"\")","v":""},{"$f":"IF($G$2=INDEX(SCRIPTS!$A$3:$A$1048576,MATCH($G$2,SCRIPTS!$A$3:$A$1048576,0)+ROW(A249)-3),INDEX(SCRIPTS!$C$3:$C$1048576,MATCH($G$2,SCRIPTS!$A$3:$A$1048576,0)+ROW(A249)-3),\"\")","v":""}]
[{"$f":"IF($G$2=INDEX(SCRIPTS!$A$3:$A$1048576,MATCH($G$2,SCRIPTS!$A$3:$A$1048576,0)+ROW(A250)-3),INDEX(SCRIPTS!$B$3:$B$1048576,MATCH($G$2,SCRIPTS!$A$3:$A$1048576,0)+ROW(A250)-3),\"\")","v":""},{"$f":"IF($G$2=INDEX(SCRIPTS!$A$3:$A$1048576,MATCH($G$2,SCRIPTS!$A$3:$A$1048576,0)+ROW(A250)-3),INDEX(SCRIPTS!$C$3:$C$1048576,MATCH($G$2,SCRIPTS!$A$3:$A$1048576,0)+ROW(A250)-3),\"\")","v":""}]
[{"$f":"IF($G$2=INDEX(SCRIPTS!$A$3:$A$1048576,MATCH($G$2,SCRIPTS!$A$3:$A$1048576,0)+ROW(A251)-3),INDEX(SCRIPTS!$B$3:$B$1048576,MATCH($G$2,SCRIPTS!$A$3:$A$1048576,0)+ROW(A251)-3),\"\")","v":""},{"$f":"IF($G$2=INDEX(SCRIPTS!$A$3:$A$1048576,MATCH($G$2,SCRIPTS!$A$3:$A$1048576,0)+ROW(A251)-3),INDEX(SCRIPTS!$C$3:$C$1048576,MATCH($G$2,SCRIPTS!$A$3:$A$1048576,0)+ROW(A251)-3),\"\")","v":""}]
[{"$f":"IF($G$2=INDEX(SCRIPTS!$A$3:$A$1048576,MATCH($G$2,SCRIPTS!$A$3:$A$1048576,0)+ROW(A252)-3),INDEX(SCRIPTS!$B$3:$B$1048576,MATCH($G$2,SCRIPTS!$A$3:$A$1048576,0)+ROW(A252)-3),\"\")","v":""},{"$f":"IF($G$2=INDEX(SCRIPTS!$A$3:$A$1048576,MATCH($G$2,SCRIPTS!$A$3:$A$1048576,0)+ROW(A252)-3),INDEX(SCRIPTS!$C$3:$C$1048576,MATCH($G$2,SCRIPTS!$A$3:$A$1048576,0)+ROW(A252)-3),\"\")","v":""}]
[{"$f":"IF($G$2=INDEX(SCRIPTS!$A$3:$A$1048576,MATCH($G$2,SCRIPTS!$A$3:$A$1048576,0)+ROW(A253)-3),INDEX(SCRIPTS!$B$3:$B$1048576,MATCH($G$2,SCRIPTS!$A$3:$A$1048576,0)+ROW(A253)-3),\"\")","v":""},{"$f":"IF($G$2=INDEX(SCRIPTS!$A$3:$A$1048576,MATCH($G$2,SCRIPTS!$A$3:$A$1048576,0)+ROW(A253)-3),INDEX(SCRIPTS!$C$3:$C$1048576,MATCH($G$2,SCRIPTS!$A$3:$A$1048576,0)+ROW(A253)-3),\"\")","v":""}]
[{"$f":"IF($G$2=INDEX(SCRIPTS!$A$3:$A$1048576,MATCH($G$2,SCRIPTS!$A$3:$A$1048576,0)+ROW(A254)-3),INDEX(SCRIPTS!$B$3:$B$1048576,MATCH($G$2,SCRIPTS!$A$3:$A$1048576,0)+ROW(A254)-3),\"\")","v":""},{"$f":"IF($G$2=INDEX(SCRIPTS!$A$3:$A$1048576,MATCH($G$2,SCRIPTS!$A$3:$A$1048576,0)+ROW(A254)-3),INDEX(SCRIPTS!$C$3:$C$1048576,MATCH($G$2,SCRIPTS!$A$3:$A$1048576,0)+ROW(A254)-3),\"\")","v":""}]
[{"$f":"IF($G$2=INDEX(SCRIPTS!$A$3:$A$1048576,MATCH($G$2,SCRIPTS!$A$3:$A$1048576,0)+ROW(A255)-3),INDEX(SCRIPTS!$B$3:$B$1048576,MATCH($G$2,SCRIPTS!$A$3:$A$1048576,0)+ROW(A255)-3),\"\")","v":""},{"$f":"IF($G$2=INDEX(SCRIPTS!$A$3:$A$1048576,MATCH($G$2,SCRIPTS!$A$3:$A$1048576,0)+ROW(A255)-3),INDEX(SCRIPTS!$C$3:$C$1048576,MATCH($G$2,SCRIPTS!$A$3:$A$1048576,0)+ROW(A255)-3),\"\")","v":""}]
[{"$f":"IF($G$2=INDEX(SCRIPTS!$A$3:$A$1048576,MATCH($G$2,SCRIPTS!$A$3:$A$1048576,0)+ROW(A256)-3),INDEX(SCRIPTS!$B$3:$B$1048576,MATCH($G$2,SCRIPTS!$A$3:$A$1048576,0)+ROW(A256)-3),\"\")","v":""},{"$f":"IF($G$2=INDEX(SCRIPTS!$A$3:$A$1048576,MATCH($G$2,SCRIPTS!$A$3:$A$1048576,0)+ROW(A256)-3),INDEX(SCRIPTS!$C$3:$C$1048576,MATCH($G$2,SCRIPTS!$A$3:$A$1048576,0)+ROW(A256)-3),\"\")","v":""}]
[{"$f":"IF($G$2=INDEX(SCRIPTS!$A$3:$A$1048576,MATCH($G$2,SCRIPTS!$A$3:$A$1048576,0)+ROW(A257)-3),INDEX(SCRIPTS!$B$3:$B$1048576,MATCH($G$2,SCRIPTS!$A$3:$A$1048576,0)+ROW(A257)-3),\"\")","v":""},{"$f":"IF($G$2=INDEX(SCRIPTS!$A$3:$A$1048576,MATCH($G$2,SCRIPTS!$A$3:$A$1048576,0)+ROW(A257)-3),INDEX(SCRIPTS!$C$3:$C$1048576,MATCH($G$2,SCRIPTS!$A$3:$A$1048576,0)+ROW(A257)-3),\"\")","v":""}]
[{"$f":"IF($G$2=INDEX(SCRIPTS!$A$3:$A$1048576,MATCH($G$2,SCRIPTS!$A$3:$A$1048576,0)+ROW(A258)-3),INDEX(SCRIPTS!$B$3:$B$1048576,MATCH($G$2,SCRIPTS!$A$3:$A$1048576,0)+ROW(A258)-3),\"\")","v":""},{"$f":"IF($G$2=INDEX(SCRIPTS!$A$3:$A$1048576,MATCH($G$2,SCRIPTS!$A$3:$A$1048576,0)+ROW(A258)-3),INDEX(SCRIPTS!$C$3:$C$1048576,MATCH($G$2,SCRIPTS!$A$3:$A$1048576,0)+ROW(A258)-3),\"\")","v":""}]
[{"$f":"IF($G$2=INDEX(SCRIPTS!$A$3:$A$1048576,MATCH($G$2,SCRIPTS!$A$3:$A$1048576,0)+ROW(A259)-3),INDEX(SCRIPTS!$B$3:$B$1048576,MATCH($G$2,SCRIPTS!$A$3:$A$1048576,0)+ROW(A259)-3),\"\")","v":""},{"$f":"IF($G$2=INDEX(SCRIPTS!$A$3:$A$1048576,MATCH($G$2,SCRIPTS!$A$3:$A$1048576,0)+ROW(A259)-3),INDEX(SCRIPTS!$C$3:$C$1048576,MATCH($G$2,SCRIPTS!$A$3:$A$1048576,0)+ROW(A259)-3),\"\")","v":""}]
[{"$f":"IF($G$2=INDEX(SCRIPTS!$A$3:$A$1048576,MATCH($G$2,SCRIPTS!$A$3:$A$1048576,0)+ROW(A260)-3),INDEX(SCRIPTS!$B$3:$B$1048576,MATCH($G$2,SCRIPTS!$A$3:$A$1048576,0)+ROW(A260)-3),\"\")","v":""},{"$f":"IF($G$2=INDEX(SCRIPTS!$A$3:$A$1048576,MATCH($G$2,SCRIPTS!$A$3:$A$1048576,0)+ROW(A260)-3),INDEX(SCRIPTS!$C$3:$C$1048576,MATCH($G$2,SCRIPTS!$A$3:$A$1048576,0)+ROW(A260)-3),\"\")","v":""}]
[{"$f":"IF($G$2=INDEX(SCRIPTS!$A$3:$A$1048576,MATCH($G$2,SCRIPTS!$A$3:$A$1048576,0)+ROW(A261)-3),INDEX(SCRIPTS!$B$3:$B$1048576,MATCH($G$2,SCRIPTS!$A$3:$A$1048576,0)+ROW(A261)-3),\"\")","v":""},{"$f":"IF($G$2=INDEX(SCRIPTS!$A$3:$A$1048576,MATCH($G$2,SCRIPTS!$A$3:$A$1048576,0)+ROW(A261)-3),INDEX(SCRIPTS!$C$3:$C$1048576,MATCH($G$2,SCRIPTS!$A$3:$A$1048576,0)+ROW(A261)-3),\"\")","v":""}]
[{"$f":"IF($G$2=INDEX(SCRIPTS!$A$3:$A$1048576,MATCH($G$2,SCRIPTS!$A$3:$A$1048576,0)+ROW(A262)-3),INDEX(SCRIPTS!$B$3:$B$1048576,MATCH($G$2,SCRIPTS!$A$3:$A$1048576,0)+ROW(A262)-3),\"\")","v":""},{"$f":"IF($G$2=INDEX(SCRIPTS!$A$3:$A$1048576,MATCH($G$2,SCRIPTS!$A$3:$A$1048576,0)+ROW(A262)-3),INDEX(SCRIPTS!$C$3:$C$1048576,MATCH($G$2,SCRIPTS!$A$3:$A$1048576,0)+ROW(A262)-3),\"\")","v":""}]
[{"$f":"IF($G$2=INDEX(SCRIPTS!$A$3:$A$1048576,MATCH($G$2,SCRIPTS!$A$3:$A$1048576,0)+ROW(A263)-3),INDEX(SCRIPTS!$B$3:$B$1048576,MATCH($G$2,SCRIPTS!$A$3:$A$1048576,0)+ROW(A263)-3),\"\")","v":""},{"$f":"IF($G$2=INDEX(SCRIPTS!$A$3:$A$1048576,MATCH($G$2,SCRIPTS!$A$3:$A$1048576,0)+ROW(A263)-3),INDEX(SCRIPTS!$C$3:$C$1048576,MATCH($G$2,SCRIPTS!$A$3:$A$1048576,0)+ROW(A263)-3),\"\")","v":""}]
[{"$f":"IF($G$2=INDEX(SCRIPTS!$A$3:$A$1048576,MATCH($G$2,SCRIPTS!$A$3:$A$1048576,0)+ROW(A264)-3),INDEX(SCRIPTS!$B$3:$B$1048576,MATCH($G$2,SCRIPTS!$A$3:$A$1048576,0)+ROW(A264)-3),\"\")","v":""},{"$f":"IF($G$2=INDEX(SCRIPTS!$A$3:$A$1048576,MATCH($G$2,SCRIPTS!$A$3:$A$1048576,0)+ROW(A264)-3),INDEX(SCRIPTS!$C$3:$C$1048576,MATCH($G$2,SCRIPTS!$A$3:$A$1048576,0)+ROW(A264)-3),\"\")","v":""}]
[{"$f":"IF($G$2=INDEX(SCRIPTS!$A$3:$A$1048576,MATCH($G$2,SCRIPTS!$A$3:$A$1048576,0)+ROW(A265)-3),INDEX(SCRIPTS!$B$3:$B$1048576,MATCH($G$2,SCRIPTS!$A$3:$A$1048576,0)+ROW(A265)-3),\"\")","v":""},{"$f":"IF($G$2=INDEX(SCRIPTS!$A$3:$A$1048576,MATCH($G$2,SCRIPTS!$A$3:$A$1048576,0)+ROW(A265)-3),INDEX(SCRIPTS!$C$3:$C$1048576,MATCH($G$2,SCRIPTS!$A$3:$A$1048576,0)+ROW(A265)-3),\"\")","v":""}]
[{"$f":"IF($G$2=INDEX(SCRIPTS!$A$3:$A$1048576,MATCH($G$2,SCRIPTS!$A$3:$A$1048576,0)+ROW(A266)-3),INDEX(SCRIPTS!$B$3:$B$1048576,MATCH($G$2,SCRIPTS!$A$3:$A$1048576,0)+ROW(A266)-3),\"\")","v":""},{"$f":"IF($G$2=INDEX(SCRIPTS!$A$3:$A$1048576,MATCH($G$2,SCRIPTS!$A$3:$A$1048576,0)+ROW(A266)-3),INDEX(SCRIPTS!$C$3:$C$1048576,MATCH($G$2,SCRIPTS!$A$3:$A$1048576,0)+ROW(A266)-3),\"\")","v":""}]
[{"$f":"IF($G$2=INDEX(SCRIPTS!$A$3:$A$1048576,MATCH($G$2,SCRIPTS!$A$3:$A$1048576,0)+ROW(A267)-3),INDEX(SCRIPTS!$B$3:$B$1048576,MATCH($G$2,SCRIPTS!$A$3:$A$1048576,0)+ROW(A267)-3),\"\")","v":""},{"$f":"IF($G$2=INDEX(SCRIPTS!$A$3:$A$1048576,MATCH($G$2,SCRIPTS!$A$3:$A$1048576,0)+ROW(A267)-3),INDEX(SCRIPTS!$C$3:$C$1048576,MATCH($G$2,SCRIPTS!$A$3:$A$1048576,0)+ROW(A267)-3),\"\")","v":""}]
[{"$f":"IF($G$2=INDEX(SCRIPTS!$A$3:$A$1048576,MATCH($G$2,SCRIPTS!$A$3:$A$1048576,0)+ROW(A268)-3),INDEX(SCRIPTS!$B$3:$B$1048576,MATCH($G$2,SCRIPTS!$A$3:$A$1048576,0)+ROW(A268)-3),\"\")","v":""},{"$f":"IF($G$2=INDEX(SCRIPTS!$A$3:$A$1048576,MATCH($G$2,SCRIPTS!$A$3:$A$1048576,0)+ROW(A268)-3),INDEX(SCRIPTS!$C$3:$C$1048576,MATCH($G$2,SCRIPTS!$A$3:$A$1048576,0)+ROW(A268)-3),\"\")","v":""}]
[{"$f":"IF($G$2=INDEX(SCRIPTS!$A$3:$A$1048576,MATCH($G$2,SCRIPTS!$A$3:$A$1048576,0)+ROW(A269)-3),INDEX(SCRIPTS!$B$3:$B$1048576,MATCH($G$2,SCRIPTS!$A$3:$A$1048576,0)+ROW(A269)-3),\"\")","v":""},{"$f":"IF($G$2=INDEX(SCRIPTS!$A$3:$A$1048576,MATCH($G$2,SCRIPTS!$A$3:$A$1048576,0)+ROW(A269)-3),INDEX(SCRIPTS!$C$3:$C$1048576,MATCH($G$2,SCRIPTS!$A$3:$A$1048576,0)+ROW(A269)-3),\"\")","v":""}]
[{"$f":"IF($G$2=INDEX(SCRIPTS!$A$3:$A$1048576,MATCH($G$2,SCRIPTS!$A$3:$A$1048576,0)+ROW(A270)-3),INDEX(SCRIPTS!$B$3:$B$1048576,MATCH($G$2,SCRIPTS!$A$3:$A$1048576,0)+ROW(A270)-3),\"\")","v":""},{"$f":"IF($G$2=INDEX(SCRIPTS!$A$3:$A$1048576,MATCH($G$2,SCRIPTS!$A$3:$A$1048576,0)+ROW(A270)-3),INDEX(SCRIPTS!$C$3:$C$1048576,MATCH($G$2,SCRIPTS!$A$3:$A$1048576,0)+ROW(A270)-3),\"\")","v":""}]
[{"$f":"IF($G$2=INDEX(SCRIPTS!$A$3:$A$1048576,MATCH($G$2,SCRIPTS!$A$3:$A$1048576,0)+ROW(A271)-3),INDEX(SCRIPTS!$B$3:$B$1048576,MATCH($G$2,SCRIPTS!$A$3:$A$1048576,0)+ROW(A271)-3),\"\")","v":""},{"$f":"IF($G$2=INDEX(SCRIPTS!$A$3:$A$1048576,MATCH($G$2,SCRIPTS!$A$3:$A$1048576,0)+ROW(A271)-3),INDEX(SCRIPTS!$C$3:$C$1048576,MATCH($G$2,SCRIPTS!$A$3:$A$1048576,0)+ROW(A271)-3),\"\")","v":""}]
[{"$f":"IF($G$2=INDEX(SCRIPTS!$A$3:$A$1048576,MATCH($G$2,SCRIPTS!$A$3:$A$1048576,0)+ROW(A272)-3),INDEX(SCRIPTS!$B$3:$B$1048576,MATCH($G$2,SCRIPTS!$A$3:$A$1048576,0)+ROW(A272)-3),\"\")","v":""},{"$f":"IF($G$2=INDEX(SCRIPTS!$A$3:$A$1048576,MATCH($G$2,SCRIPTS!$A$3:$A$1048576,0)+ROW(A272)-3),INDEX(SCRIPTS!$C$3:$C$1048576,MATCH($G$2,SCRIPTS!$A$3:$A$1048576,0)+ROW(A272)-3),\"\")","v":""}]
[{"$f":"IF($G$2=INDEX(SCRIPTS!$A$3:$A$1048576,MATCH($G$2,SCRIPTS!$A$3:$A$1048576,0)+ROW(A273)-3),INDEX(SCRIPTS!$B$3:$B$1048576,MATCH($G$2,SCRIPTS!$A$3:$A$1048576,0)+ROW(A273)-3),\"\")","v":""},{"$f":"IF($G$2=INDEX(SCRIPTS!$A$3:$A$1048576,MATCH($G$2,SCRIPTS!$A$3:$A$1048576,0)+ROW(A273)-3),INDEX(SCRIPTS!$C$3:$C$1048576,MATCH($G$2,SCRIPTS!$A$3:$A$1048576,0)+ROW(A273)-3),\"\")","v":""}]
[{"$f":"IF($G$2=INDEX(SCRIPTS!$A$3:$A$1048576,MATCH($G$2,SCRIPTS!$A$3:$A$1048576,0)+ROW(A274)-3),INDEX(SCRIPTS!$B$3:$B$1048576,MATCH($G$2,SCRIPTS!$A$3:$A$1048576,0)+ROW(A274)-3),\"\")","v":""},{"$f":"IF($G$2=INDEX(SCRIPTS!$A$3:$A$1048576,MATCH($G$2,SCRIPTS!$A$3:$A$1048576,0)+ROW(A274)-3),INDEX(SCRIPTS!$C$3:$C$1048576,MATCH($G$2,SCRIPTS!$A$3:$A$1048576,0)+ROW(A274)-3),\"\")","v":""}]
[{"$f":"IF($G$2=INDEX(SCRIPTS!$A$3:$A$1048576,MATCH($G$2,SCRIPTS!$A$3:$A$1048576,0)+ROW(A275)-3),INDEX(SCRIPTS!$B$3:$B$1048576,MATCH($G$2,SCRIPTS!$A$3:$A$1048576,0)+ROW(A275)-3),\"\")","v":""},{"$f":"IF($G$2=INDEX(SCRIPTS!$A$3:$A$1048576,MATCH($G$2,SCRIPTS!$A$3:$A$1048576,0)+ROW(A275)-3),INDEX(SCRIPTS!$C$3:$C$1048576,MATCH($G$2,SCRIPTS!$A$3:$A$1048576,0)+ROW(A275)-3),\"\")","v":""}]
[{"$f":"IF($G$2=INDEX(SCRIPTS!$A$3:$A$1048576,MATCH($G$2,SCRIPTS!$A$3:$A$1048576,0)+ROW(A276)-3),INDEX(SCRIPTS!$B$3:$B$1048576,MATCH($G$2,SCRIPTS!$A$3:$A$1048576,0)+ROW(A276)-3),\"\")","v":""},{"$f":"IF($G$2=INDEX(SCRIPTS!$A$3:$A$1048576,MATCH($G$2,SCRIPTS!$A$3:$A$1048576,0)+ROW(A276)-3),INDEX(SCRIPTS!$C$3:$C$1048576,MATCH($G$2,SCRIPTS!$A$3:$A$1048576,0)+ROW(A276)-3),\"\")","v":""}]
[{"$f":"IF($G$2=INDEX(SCRIPTS!$A$3:$A$1048576,MATCH($G$2,SCRIPTS!$A$3:$A$1048576,0)+ROW(A277)-3),INDEX(SCRIPTS!$B$3:$B$1048576,MATCH($G$2,SCRIPTS!$A$3:$A$1048576,0)+ROW(A277)-3),\"\")","v":""},{"$f":"IF($G$2=INDEX(SCRIPTS!$A$3:$A$1048576,MATCH($G$2,SCRIPTS!$A$3:$A$1048576,0)+ROW(A277)-3),INDEX(SCRIPTS!$C$3:$C$1048576,MATCH($G$2,SCRIPTS!$A$3:$A$1048576,0)+ROW(A277)-3),\"\")","v":""}]
[{"$f":"IF($G$2=INDEX(SCRIPTS!$A$3:$A$1048576,MATCH($G$2,SCRIPTS!$A$3:$A$1048576,0)+ROW(A278)-3),INDEX(SCRIPTS!$B$3:$B$1048576,MATCH($G$2,SCRIPTS!$A$3:$A$1048576,0)+ROW(A278)-3),\"\")","v":""},{"$f":"IF($G$2=INDEX(SCRIPTS!$A$3:$A$1048576,MATCH($G$2,SCRIPTS!$A$3:$A$1048576,0)+ROW(A278)-3),INDEX(SCRIPTS!$C$3:$C$1048576,MATCH($G$2,SCRIPTS!$A$3:$A$1048576,0)+ROW(A278)-3),\"\")","v":""}]
[{"$f":"IF($G$2=INDEX(SCRIPTS!$A$3:$A$1048576,MATCH($G$2,SCRIPTS!$A$3:$A$1048576,0)+ROW(A279)-3),INDEX(SCRIPTS!$B$3:$B$1048576,MATCH($G$2,SCRIPTS!$A$3:$A$1048576,0)+ROW(A279)-3),\"\")","v":""},{"$f":"IF($G$2=INDEX(SCRIPTS!$A$3:$A$1048576,MATCH($G$2,SCRIPTS!$A$3:$A$1048576,0)+ROW(A279)-3),INDEX(SCRIPTS!$C$3:$C$1048576,MATCH($G$2,SCRIPTS!$A$3:$A$1048576,0)+ROW(A279)-3),\"\")","v":""}]
[{"$f":"IF($G$2=INDEX(SCRIPTS!$A$3:$A$1048576,MATCH($G$2,SCRIPTS!$A$3:$A$1048576,0)+ROW(A280)-3),INDEX(SCRIPTS!$B$3:$B$1048576,MATCH($G$2,SCRIPTS!$A$3:$A$1048576,0)+ROW(A280)-3),\"\")","v":""},{"$f":"IF($G$2=INDEX(SCRIPTS!$A$3:$A$1048576,MATCH($G$2,SCRIPTS!$A$3:$A$1048576,0)+ROW(A280)-3),INDEX(SCRIPTS!$C$3:$C$1048576,MATCH($G$2,SCRIPTS!$A$3:$A$1048576,0)+ROW(A280)-3),\"\")","v":""}]
[{"$f":"IF($G$2=INDEX(SCRIPTS!$A$3:$A$1048576,MATCH($G$2,SCRIPTS!$A$3:$A$1048576,0)+ROW(A281)-3),INDEX(SCRIPTS!$B$3:$B$1048576,MATCH($G$2,SCRIPTS!$A$3:$A$1048576,0)+ROW(A281)-3),\"\")","v":""},{"$f":"IF($G$2=INDEX(SCRIPTS!$A$3:$A$1048576,MATCH($G$2,SCRIPTS!$A$3:$A$1048576,0)+ROW(A281)-3),INDEX(SCRIPTS!$C$3:$C$1048576,MATCH($G$2,SCRIPTS!$A$3:$A$1048576,0)+ROW(A281)-3),\"\")","v":""}]
[{"$f":"IF($G$2=INDEX(SCRIPTS!$A$3:$A$1048576,MATCH($G$2,SCRIPTS!$A$3:$A$1048576,0)+ROW(A282)-3),INDEX(SCRIPTS!$B$3:$B$1048576,MATCH($G$2,SCRIPTS!$A$3:$A$1048576,0)+ROW(A282)-3),\"\")","v":""},{"$f":"IF($G$2=INDEX(SCRIPTS!$A$3:$A$1048576,MATCH($G$2,SCRIPTS!$A$3:$A$1048576,0)+ROW(A282)-3),INDEX(SCRIPTS!$C$3:$C$1048576,MATCH($G$2,SCRIPTS!$A$3:$A$1048576,0)+ROW(A282)-3),\"\")","v":""}]
[{"$f":"IF($G$2=INDEX(SCRIPTS!$A$3:$A$1048576,MATCH($G$2,SCRIPTS!$A$3:$A$1048576,0)+ROW(A283)-3),INDEX(SCRIPTS!$B$3:$B$1048576,MATCH($G$2,SCRIPTS!$A$3:$A$1048576,0)+ROW(A283)-3),\"\")","v":""},{"$f":"IF($G$2=INDEX(SCRIPTS!$A$3:$A$1048576,MATCH($G$2,SCRIPTS!$A$3:$A$1048576,0)+ROW(A283)-3),INDEX(SCRIPTS!$C$3:$C$1048576,MATCH($G$2,SCRIPTS!$A$3:$A$1048576,0)+ROW(A283)-3),\"\")","v":""}]
[{"$f":"IF($G$2=INDEX(SCRIPTS!$A$3:$A$1048576,MATCH($G$2,SCRIPTS!$A$3:$A$1048576,0)+ROW(A284)-3),INDEX(SCRIPTS!$B$3:$B$1048576,MATCH($G$2,SCRIPTS!$A$3:$A$1048576,0)+ROW(A284)-3),\"\")","v":""},{"$f":"IF($G$2=INDEX(SCRIPTS!$A$3:$A$1048576,MATCH($G$2,SCRIPTS!$A$3:$A$1048576,0)+ROW(A284)-3),INDEX(SCRIPTS!$C$3:$C$1048576,MATCH($G$2,SCRIPTS!$A$3:$A$1048576,0)+ROW(A284)-3),\"\")","v":""}]
[{"$f":"IF($G$2=INDEX(SCRIPTS!$A$3:$A$1048576,MATCH($G$2,SCRIPTS!$A$3:$A$1048576,0)+ROW(A285)-3),INDEX(SCRIPTS!$B$3:$B$1048576,MATCH($G$2,SCRIPTS!$A$3:$A$1048576,0)+ROW(A285)-3),\"\")","v":""},{"$f":"IF($G$2=INDEX(SCRIPTS!$A$3:$A$1048576,MATCH($G$2,SCRIPTS!$A$3:$A$1048576,0)+ROW(A285)-3),INDEX(SCRIPTS!$C$3:$C$1048576,MATCH($G$2,SCRIPTS!$A$3:$A$1048576,0)+ROW(A285)-3),\"\")","v":""}]
[{"$f":"IF($G$2=INDEX(SCRIPTS!$A$3:$A$1048576,MATCH($G$2,SCRIPTS!$A$3:$A$1048576,0)+ROW(A286)-3),INDEX(SCRIPTS!$B$3:$B$1048576,MATCH($G$2,SCRIPTS!$A$3:$A$1048576,0)+ROW(A286)-3),\"\")","v":""},{"$f":"IF($G$2=INDEX(SCRIPTS!$A$3:$A$1048576,MATCH($G$2,SCRIPTS!$A$3:$A$1048576,0)+ROW(A286)-3),INDEX(SCRIPTS!$C$3:$C$1048576,MATCH($G$2,SCRIPTS!$A$3:$A$1048576,0)+ROW(A286)-3),\"\")","v":""}]
[{"$f":"IF($G$2=INDEX(SCRIPTS!$A$3:$A$1048576,MATCH($G$2,SCRIPTS!$A$3:$A$1048576,0)+ROW(A287)-3),INDEX(SCRIPTS!$B$3:$B$1048576,MATCH($G$2,SCRIPTS!$A$3:$A$1048576,0)+ROW(A287)-3),\"\")","v":""},{"$f":"IF($G$2=INDEX(SCRIPTS!$A$3:$A$1048576,MATCH($G$2,SCRIPTS!$A$3:$A$1048576,0)+ROW(A287)-3),INDEX(SCRIPTS!$C$3:$C$1048576,MATCH($G$2,SCRIPTS!$A$3:$A$1048576,0)+ROW(A287)-3),\"\")","v":""}]
[{"$f":"IF($G$2=INDEX(SCRIPTS!$A$3:$A$1048576,MATCH($G$2,SCRIPTS!$A$3:$A$1048576,0)+ROW(A288)-3),INDEX(SCRIPTS!$B$3:$B$1048576,MATCH($G$2,SCRIPTS!$A$3:$A$1048576,0)+ROW(A288)-3),\"\")","v":""},{"$f":"IF($G$2=INDEX(SCRIPTS!$A$3:$A$1048576,MATCH($G$2,SCRIPTS!$A$3:$A$1048576,0)+ROW(A288)-3),INDEX(SCRIPTS!$C$3:$C$1048576,MATCH($G$2,SCRIPTS!$A$3:$A$1048576,0)+ROW(A288)-3),\"\")","v":""}]
[{"$f":"IF($G$2=INDEX(SCRIPTS!$A$3:$A$1048576,MATCH($G$2,SCRIPTS!$A$3:$A$1048576,0)+ROW(A289)-3),INDEX(SCRIPTS!$B$3:$B$1048576,MATCH($G$2,SCRIPTS!$A$3:$A$1048576,0)+ROW(A289)-3),\"\")","v":""},{"$f":"IF($G$2=INDEX(SCRIPTS!$A$3:$A$1048576,MATCH($G$2,SCRIPTS!$A$3:$A$1048576,0)+ROW(A289)-3),INDEX(SCRIPTS!$C$3:$C$1048576,MATCH($G$2,SCRIPTS!$A$3:$A$1048576,0)+ROW(A289)-3),\"\")","v":""}]
[{"$f":"IF($G$2=INDEX(SCRIPTS!$A$3:$A$1048576,MATCH($G$2,SCRIPTS!$A$3:$A$1048576,0)+ROW(A290)-3),INDEX(SCRIPTS!$B$3:$B$1048576,MATCH($G$2,SCRIPTS!$A$3:$A$1048576,0)+ROW(A290)-3),\"\")","v":""},{"$f":"IF($G$2=INDEX(SCRIPTS!$A$3:$A$1048576,MATCH($G$2,SCRIPTS!$A$3:$A$1048576,0)+ROW(A290)-3),INDEX(SCRIPTS!$C$3:$C$1048576,MATCH($G$2,SCRIPTS!$A$3:$A$1048576,0)+ROW(A290)-3),\"\")","v":""}]
[{"$f":"IF($G$2=INDEX(SCRIPTS!$A$3:$A$1048576,MATCH($G$2,SCRIPTS!$A$3:$A$1048576,0)+ROW(A291)-3),INDEX(SCRIPTS!$B$3:$B$1048576,MATCH($G$2,SCRIPTS!$A$3:$A$1048576,0)+ROW(A291)-3),\"\")","v":""},{"$f":"IF($G$2=INDEX(SCRIPTS!$A$3:$A$1048576,MATCH($G$2,SCRIPTS!$A$3:$A$1048576,0)+ROW(A291)-3),INDEX(SCRIPTS!$C$3:$C$1048576,MATCH($G$2,SCRIPTS!$A$3:$A$1048576,0)+ROW(A291)-3),\"\")","v":""}]
[{"$f":"IF($G$2=INDEX(SCRIPTS!$A$3:$A$1048576,MATCH($G$2,SCRIPTS!$A$3:$A$1048576,0)+ROW(A292)-3),INDEX(SCRIPTS!$B$3:$B$1048576,MATCH($G$2,SCRIPTS!$A$3:$A$1048576,0)+ROW(A292)-3),\"\")","v":""},{"$f":"IF($G$2=INDEX(SCRIPTS!$A$3:$A$1048576,MATCH($G$2,SCRIPTS!$A$3:$A$1048576,0)+ROW(A292)-3),INDEX(SCRIPTS!$C$3:$C$1048576,MATCH($G$2,SCRIPTS!$A$3:$A$1048576,0)+ROW(A292)-3),\"\")","v":""}]
[{"$f":"IF($G$2=INDEX(SCRIPTS!$A$3:$A$1048576,MATCH($G$2,SCRIPTS!$A$3:$A$1048576,0)+ROW(A293)-3),INDEX(SCRIPTS!$B$3:$B$1048576,MATCH($G$2,SCRIPTS!$A$3:$A$1048576,0)+ROW(A293)-3),\"\")","v":""},{"$f":"IF($G$2=INDEX(SCRIPTS!$A$3:$A$1048576,MATCH($G$2,SCRIPTS!$A$3:$A$1048576,0)+ROW(A293)-3),INDEX(SCRIPTS!$C$3:$C$1048576,MATCH($G$2,SCRIPTS!$A$3:$A$1048576,0)+ROW(A293)-3),\"\")","v":""}]
[{"$f":"IF($G$2=INDEX(SCRIPTS!$A$3:$A$1048576,MATCH($G$2,SCRIPTS!$A$3:$A$1048576,0)+ROW(A294)-3),INDEX(SCRIPTS!$B$3:$B$1048576,MATCH($G$2,SCRIPTS!$A$3:$A$1048576,0)+ROW(A294)-3),\"\")","v":""},{"$f":"IF($G$2=INDEX(SCRIPTS!$A$3:$A$1048576,MATCH($G$2,SCRIPTS!$A$3:$A$1048576,0)+ROW(A294)-3),INDEX(SCRIPTS!$C$3:$C$1048576,MATCH($G$2,SCRIPTS!$A$3:$A$1048576,0)+ROW(A294)-3),\"\")","v":""}]
[{"$f":"IF($G$2=INDEX(SCRIPTS!$A$3:$A$1048576,MATCH($G$2,SCRIPTS!$A$3:$A$1048576,0)+ROW(A295)-3),INDEX(SCRIPTS!$B$3:$B$1048576,MATCH($G$2,SCRIPTS!$A$3:$A$1048576,0)+ROW(A295)-3),\"\")","v":""},{"$f":"IF($G$2=INDEX(SCRIPTS!$A$3:$A$1048576,MATCH($G$2,SCRIPTS!$A$3:$A$1048576,0)+ROW(A295)-3),INDEX(SCRIPTS!$C$3:$C$1048576,MATCH($G$2,SCRIPTS!$A$3:$A$1048576,0)+ROW(A295)-3),\"\")","v":""}]
[{"$f":"IF($G$2=INDEX(SCRIPTS!$A$3:$A$1048576,MATCH($G$2,SCRIPTS!$A$3:$A$1048576,0)+ROW(A296)-3),INDEX(SCRIPTS!$B$3:$B$1048576,MATCH($G$2,SCRIPTS!$A$3:$A$1048576,0)+ROW(A296)-3),\"\")","v":""},{"$f":"IF($G$2=INDEX(SCRIPTS!$A$3:$A$1048576,MATCH($G$2,SCRIPTS!$A$3:$A$1048576,0)+ROW(A296)-3),INDEX(SCRIPTS!$C$3:$C$1048576,MATCH($G$2,SCRIPTS!$A$3:$A$1048576,0)+ROW(A296)-3),\"\")","v":""}]
[{"$f":"IF($G$2=INDEX(SCRIPTS!$A$3:$A$1048576,MATCH($G$2,SCRIPTS!$A$3:$A$1048576,0)+ROW(A297)-3),INDEX(SCRIPTS!$B$3:$B$1048576,MATCH($G$2,SCRIPTS!$A$3:$A$1048576,0)+ROW(A297)-3),\"\")","v":""},{"$f":"IF($G$2=INDEX(SCRIPTS!$A$3:$A$1048576,MATCH($G$2,SCRIPTS!$A$3:$A$1048576,0)+ROW(A297)-3),INDEX(SCRIPTS!$C$3:$C$1048576,MATCH($G$2,SCRIPTS!$A$3:$A$1048576,0)+ROW(A297)-3),\"\")","v":""}]
[{"$f":"IF($G$2=INDEX(SCRIPTS!$A$3:$A$1048576,MATCH($G$2,SCRIPTS!$A$3:$A$1048576,0)+ROW(A298)-3),INDEX(SCRIPTS!$B$3:$B$1048576,MATCH($G$2,SCRIPTS!$A$3:$A$1048576,0)+ROW(A298)-3),\"\")","v":""},{"$f":"IF($G$2=INDEX(SCRIPTS!$A$3:$A$1048576,MATCH($G$2,SCRIPTS!$A$3:$A$1048576,0)+ROW(A298)-3),INDEX(SCRIPTS!$C$3:$C$1048576,MATCH($G$2,SCRIPTS!$A$3:$A$1048576,0)+ROW(A298)-3),\"\")","v":""}]
[{"$f":"IF($G$2=INDEX(SCRIPTS!$A$3:$A$1048576,MATCH($G$2,SCRIPTS!$A$3:$A$1048576,0)+ROW(A299)-3),INDEX(SCRIPTS!$B$3:$B$1048576,MATCH($G$2,SCRIPTS!$A$3:$A$1048576,0)+ROW(A299)-3),\"\")","v":""},{"$f":"IF($G$2=INDEX(SCRIPTS!$A$3:$A$1048576,MATCH($G$2,SCRIPTS!$A$3:$A$1048576,0)+ROW(A299)-3),INDEX(SCRIPTS!$C$3:$C$1048576,MATCH($G$2,SCRIPTS!$A$3:$A$1048576,0)+ROW(A299)-3),\"\")","v":""}]
[{"$f":"IF($G$2=INDEX(SCRIPTS!$A$3:$A$1048576,MATCH($G$2,SCRIPTS!$A$3:$A$1048576,0)+ROW(A300)-3),INDEX(SCRIPTS!$B$3:$B$1048576,MATCH($G$2,SCRIPTS!$A$3:$A$1048576,0)+ROW(A300)-3),\"\")","v":""},{"$f":"IF($G$2=INDEX(SCRIPTS!$A$3:$A$1048576,MATCH($G$2,SCRIPTS!$A$3:$A$1048576,0)+ROW(A300)-3),INDEX(SCRIPTS!$C$3:$C$1048576,MATCH($G$2,SCRIPTS!$A$3:$A$1048576,0)+ROW(A300)-3),\"\")","v":""}]
[{"$f":"IF($G$2=INDEX(SCRIPTS!$A$3:$A$1048576,MATCH($G$2,SCRIPTS!$A$3:$A$1048576,0)+ROW(A301)-3),INDEX(SCRIPTS!$B$3:$B$1048576,MATCH($G$2,SCRIPTS!$A$3:$A$1048576,0)+ROW(A301)-3),\"\")","v":""},{"$f":"IF($G$2=INDEX(SCRIPTS!$A$3:$A$1048576,MATCH($G$2,SCRIPTS!$A$3:$A$1048576,0)+ROW(A301)-3),INDEX(SCRIPTS!$C$3:$C$1048576,MATCH($G$2,SCRIPTS!$A$3:$A$1048576,0)+ROW(A301)-3),\"\")","v":""}]
[{"$f":"IF($G$2=INDEX(SCRIPTS!$A$3:$A$1048576,MATCH($G$2,SCRIPTS!$A$3:$A$1048576,0)+ROW(A302)-3),INDEX(SCRIPTS!$B$3:$B$1048576,MATCH($G$2,SCRIPTS!$A$3:$A$1048576,0)+ROW(A302)-3),\"\")","v":""},{"$f":"IF($G$2=INDEX(SCRIPTS!$A$3:$A$1048576,MATCH($G$2,SCRIPTS!$A$3:$A$1048576,0)+ROW(A302)-3),INDEX(SCRIPTS!$C$3:$C$1048576,MATCH($G$2,SCRIPTS!$A$3:$A$1048576,0)+ROW(A302)-3),\"\")","v":""}]
[{"$f":"IF($G$2=INDEX(SCRIPTS!$A$3:$A$1048576,MATCH($G$2,SCRIPTS!$A$3:$A$1048576,0)+ROW(A303)-3),INDEX(SCRIPTS!$B$3:$B$1048576,MATCH($G$2,SCRIPTS!$A$3:$A$1048576,0)+ROW(A303)-3),\"\")","v":""},{"$f":"IF($G$2=INDEX(SCRIPTS!$A$3:$A$1048576,MATCH($G$2,SCRIPTS!$A$3:$A$1048576,0)+ROW(A303)-3),INDEX(SCRIPTS!$C$3:$C$1048576,MATCH($G$2,SCRIPTS!$A$3:$A$1048576,0)+ROW(A303)-3),\"\")","v":""}]
[{"$f":"IF($G$2=INDEX(SCRIPTS!$A$3:$A$1048576,MATCH($G$2,SCRIPTS!$A$3:$A$1048576,0)+ROW(A304)-3),INDEX(SCRIPTS!$B$3:$B$1048576,MATCH($G$2,SCRIPTS!$A$3:$A$1048576,0)+ROW(A304)-3),\"\")","v":""},{"$f":"IF($G$2=INDEX(SCRIPTS!$A$3:$A$1048576,MATCH($G$2,SCRIPTS!$A$3:$A$1048576,0)+ROW(A304)-3),INDEX(SCRIPTS!$C$3:$C$1048576,MATCH($G$2,SCRIPTS!$A$3:$A$1048576,0)+ROW(A304)-3),\"\")","v":""}]
[{"$f":"IF($G$2=INDEX(SCRIPTS!$A$3:$A$1048576,MATCH($G$2,SCRIPTS!$A$3:$A$1048576,0)+ROW(A305)-3),INDEX(SCRIPTS!$B$3:$B$1048576,MATCH($G$2,SCRIPTS!$A$3:$A$1048576,0)+ROW(A305)-3),\"\")","v":""},{"$f":"IF($G$2=INDEX(SCRIPTS!$A$3:$A$1048576,MATCH($G$2,SCRIPTS!$A$3:$A$1048576,0)+ROW(A305)-3),INDEX(SCRIPTS!$C$3:$C$1048576,MATCH($G$2,SCRIPTS!$A$3:$A$1048576,0)+ROW(A305)-3),\"\")","v":""}]
[{"$f":"IF($G$2=INDEX(SCRIPTS!$A$3:$A$1048576,MATCH($G$2,SCRIPTS!$A$3:$A$1048576,0)+ROW(A306)-3),INDEX(SCRIPTS!$B$3:$B$1048576,MATCH($G$2,SCRIPTS!$A$3:$A$1048576,0)+ROW(A306)-3),\"\")","v":""},{"$f":"IF($G$2=INDEX(SCRIPTS!$A$3:$A$1048576,MATCH($G$2,SCRIPTS!$A$3:$A$1048576,0)+ROW(A306)-3),INDEX(SCRIPTS!$C$3:$C$1048576,MATCH($G$2,SCRIPTS!$A$3:$A$1048576,0)+ROW(A306)-3),\"\")","v":""}]
[{"$f":"IF($G$2=INDEX(SCRIPTS!$A$3:$A$1048576,MATCH($G$2,SCRIPTS!$A$3:$A$1048576,0)+ROW(A307)-3),INDEX(SCRIPTS!$B$3:$B$1048576,MATCH($G$2,SCRIPTS!$A$3:$A$1048576,0)+ROW(A307)-3),\"\")","v":""},{"$f":"IF($G$2=INDEX(SCRIPTS!$A$3:$A$1048576,MATCH($G$2,SCRIPTS!$A$3:$A$1048576,0)+ROW(A307)-3),INDEX(SCRIPTS!$C$3:$C$1048576,MATCH($G$2,SCRIPTS!$A$3:$A$1048576,0)+ROW(A307)-3),\"\")","v":""}]
[{"$f":"IF($G$2=INDEX(SCRIPTS!$A$3:$A$1048576,MATCH($G$2,SCRIPTS!$A$3:$A$1048576,0)+ROW(A308)-3),INDEX(SCRIPTS!$B$3:$B$1048576,MATCH($G$2,SCRIPTS!$A$3:$A$1048576,0)+ROW(A308)-3),\"\")","v":""},{"$f":"IF($G$2=INDEX(SCRIPTS!$A$3:$A$1048576,MATCH($G$2,SCRIPTS!$A$3:$A$1048576,0)+ROW(A308)-3),INDEX(SCRIPTS!$C$3:$C$1048576,MATCH($G$2,SCRIPTS!$A$3:$A$1048576,0)+ROW(A308)-3),\"\")","v":""}]
[{"$f":"IF($G$2=INDEX(SCRIPTS!$A$3:$A$1048576,MATCH($G$2,SCRIPTS!$A$3:$A$1048576,0)+ROW(A309)-3),INDEX(SCRIPTS!$B$3:$B$1048576,MATCH($G$2,SCRIPTS!$A$3:$A$1048576,0)+ROW(A309)-3),\"\")","v":""},{"$f":"IF($G$2=INDEX(SCRIPTS!$A$3:$A$1048576,MATCH($G$2,SCRIPTS!$A$3:$A$1048576,0)+ROW(A309)-3),INDEX(SCRIPTS!$C$3:$C$1048576,MATCH($G$2,SCRIPTS!$A$3:$A$1048576,0)+ROW(A309)-3),\"\")","v":""}]
[{"$f":"IF($G$2=INDEX(SCRIPTS!$A$3:$A$1048576,MATCH($G$2,SCRIPTS!$A$3:$A$1048576,0)+ROW(A310)-3),INDEX(SCRIPTS!$B$3:$B$1048576,MATCH($G$2,SCRIPTS!$A$3:$A$1048576,0)+ROW(A310)-3),\"\")","v":""},{"$f":"IF($G$2=INDEX(SCRIPTS!$A$3:$A$1048576,MATCH($G$2,SCRIPTS!$A$3:$A$1048576,0)+ROW(A310)-3),INDEX(SCRIPTS!$C$3:$C$1048576,MATCH($G$2,SCRIPTS!$A$3:$A$1048576,0)+ROW(A310)-3),\"\")","v":""}]
[{"$f":"IF($G$2=INDEX(SCRIPTS!$A$3:$A$1048576,MATCH($G$2,SCRIPTS!$A$3:$A$1048576,0)+ROW(A311)-3),INDEX(SCRIPTS!$B$3:$B$1048576,MATCH($G$2,SCRIPTS!$A$3:$A$1048576,0)+ROW(A311)-3),\"\")","v":""},{"$f":"IF($G$2=INDEX(SCRIPTS!$A$3:$A$1048576,MATCH($G$2,SCRIPTS!$A$3:$A$1048576,0)+ROW(A311)-3),INDEX(SCRIPTS!$C$3:$C$1048576,MATCH($G$2,SCRIPTS!$A$3:$A$1048576,0)+ROW(A311)-3),\"\")","v":""}]
[{"$f":"IF($G$2=INDEX(SCRIPTS!$A$3:$A$1048576,MATCH($G$2,SCRIPTS!$A$3:$A$1048576,0)+ROW(A312)-3),INDEX(SCRIPTS!$B$3:$B$1048576,MATCH($G$2,SCRIPTS!$A$3:$A$1048576,0)+ROW(A312)-3),\"\")","v":""},{"$f":"IF($G$2=INDEX(SCRIPTS!$A$3:$A$1048576,MATCH($G$2,SCRIPTS!$A$3:$A$1048576,0)+ROW(A312)-3),INDEX(SCRIPTS!$C$3:$C$1048576,MATCH($G$2,SCRIPTS!$A$3:$A$1048576,0)+ROW(A312)-3),\"\")","v":""}]
[{"$f":"IF($G$2=INDEX(SCRIPTS!$A$3:$A$1048576,MATCH($G$2,SCRIPTS!$A$3:$A$1048576,0)+ROW(A313)-3),INDEX(SCRIPTS!$B$3:$B$1048576,MATCH($G$2,SCRIPTS!$A$3:$A$1048576,0)+ROW(A313)-3),\"\")","v":""},{"$f":"IF($G$2=INDEX(SCRIPTS!$A$3:$A$1048576,MATCH($G$2,SCRIPTS!$A$3:$A$1048576,0)+ROW(A313)-3),INDEX(SCRIPTS!$C$3:$C$1048576,MATCH($G$2,SCRIPTS!$A$3:$A$1048576,0)+ROW(A313)-3),\"\")","v":""}]
[{"$f":"IF($G$2=INDEX(SCRIPTS!$A$3:$A$1048576,MATCH($G$2,SCRIPTS!$A$3:$A$1048576,0)+ROW(A314)-3),INDEX(SCRIPTS!$B$3:$B$1048576,MATCH($G$2,SCRIPTS!$A$3:$A$1048576,0)+ROW(A314)-3),\"\")","v":""},{"$f":"IF($G$2=INDEX(SCRIPTS!$A$3:$A$1048576,MATCH($G$2,SCRIPTS!$A$3:$A$1048576,0)+ROW(A314)-3),INDEX(SCRIPTS!$C$3:$C$1048576,MATCH($G$2,SCRIPTS!$A$3:$A$1048576,0)+ROW(A314)-3),\"\")","v":""}]
[{"$f":"IF($G$2=INDEX(SCRIPTS!$A$3:$A$1048576,MATCH($G$2,SCRIPTS!$A$3:$A$1048576,0)+ROW(A315)-3),INDEX(SCRIPTS!$B$3:$B$1048576,MATCH($G$2,SCRIPTS!$A$3:$A$1048576,0)+ROW(A315)-3),\"\")","v":""},{"$f":"IF($G$2=INDEX(SCRIPTS!$A$3:$A$1048576,MATCH($G$2,SCRIPTS!$A$3:$A$1048576,0)+ROW(A315)-3),INDEX(SCRIPTS!$C$3:$C$1048576,MATCH($G$2,SCRIPTS!$A$3:$A$1048576,0)+ROW(A315)-3),\"\")","v":""}]
[{"$f":"IF($G$2=INDEX(SCRIPTS!$A$3:$A$1048576,MATCH($G$2,SCRIPTS!$A$3:$A$1048576,0)+ROW(A316)-3),INDEX(SCRIPTS!$B$3:$B$1048576,MATCH($G$2,SCRIPTS!$A$3:$A$1048576,0)+ROW(A316)-3),\"\")","v":""},{"$f":"IF($G$2=INDEX(SCRIPTS!$A$3:$A$1048576,MATCH($G$2,SCRIPTS!$A$3:$A$1048576,0)+ROW(A316)-3),INDEX(SCRIPTS!$C$3:$C$1048576,MATCH($G$2,SCRIPTS!$A$3:$A$1048576,0)+ROW(A316)-3),\"\")","v":""}]
[{"$f":"IF($G$2=INDEX(SCRIPTS!$A$3:$A$1048576,MATCH($G$2,SCRIPTS!$A$3:$A$1048576,0)+ROW(A317)-3),INDEX(SCRIPTS!$B$3:$B$1048576,MATCH($G$2,SCRIPTS!$A$3:$A$1048576,0)+ROW(A317)-3),\"\")","v":""},{"$f":"IF($G$2=INDEX(SCRIPTS!$A$3:$A$1048576,MATCH($G$2,SCRIPTS!$A$3:$A$1048576,0)+ROW(A317)-3),INDEX(SCRIPTS!$C$3:$C$1048576,MATCH($G$2,SCRIPTS!$A$3:$A$1048576,0)+ROW(A317)-3),\"\")","v":""}]
[{"$f":"IF($G$2=INDEX(SCRIPTS!$A$3:$A$1048576,MATCH($G$2,SCRIPTS!$A$3:$A$1048576,0)+ROW(A318)-3),INDEX(SCRIPTS!$B$3:$B$1048576,MATCH($G$2,SCRIPTS!$A$3:$A$1048576,0)+ROW(A318)-3),\"\")","v":""},{"$f":"IF($G$2=INDEX(SCRIPTS!$A$3:$A$1048576,MATCH($G$2,SCRIPTS!$A$3:$A$1048576,0)+ROW(A318)-3),INDEX(SCRIPTS!$C$3:$C$1048576,MATCH($G$2,SCRIPTS!$A$3:$A$1048576,0)+ROW(A318)-3),\"\")","v":""}]
[{"$f":"IF($G$2=INDEX(SCRIPTS!$A$3:$A$1048576,MATCH($G$2,SCRIPTS!$A$3:$A$1048576,0)+ROW(A319)-3),INDEX(SCRIPTS!$B$3:$B$1048576,MATCH($G$2,SCRIPTS!$A$3:$A$1048576,0)+ROW(A319)-3),\"\")","v":""},{"$f":"IF($G$2=INDEX(SCRIPTS!$A$3:$A$1048576,MATCH($G$2,SCRIPTS!$A$3:$A$1048576,0)+ROW(A319)-3),INDEX(SCRIPTS!$C$3:$C$1048576,MATCH($G$2,SCRIPTS!$A$3:$A$1048576,0)+ROW(A319)-3),\"\")","v":""}]
[{"$f":"IF($G$2=INDEX(SCRIPTS!$A$3:$A$1048576,MATCH($G$2,SCRIPTS!$A$3:$A$1048576,0)+ROW(A320)-3),INDEX(SCRIPTS!$B$3:$B$1048576,MATCH($G$2,SCRIPTS!$A$3:$A$1048576,0)+ROW(A320)-3),\"\")","v":""},{"$f":"IF($G$2=INDEX(SCRIPTS!$A$3:$A$1048576,MATCH($G$2,SCRIPTS!$A$3:$A$1048576,0)+ROW(A320)-3),INDEX(SCRIPTS!$C$3:$C$1048576,MATCH($G$2,SCRIPTS!$A$3:$A$1048576,0)+ROW(A320)-3),\"\")","v":""}]
[{"$f":"IF($G$2=INDEX(SCRIPTS!$A$3:$A$1048576,MATCH($G$2,SCRIPTS!$A$3:$A$1048576,0)+ROW(A321)-3),INDEX(SCRIPTS!$B$3:$B$1048576,MATCH($G$2,SCRIPTS!$A$3:$A$1048576,0)+ROW(A321)-3),\"\")","v":""},{"$f":"IF($G$2=INDEX(SCRIPTS!$A$3:$A$1048576,MATCH($G$2,SCRIPTS!$A$3:$A$1048576,0)+ROW(A321)-3),INDEX(SCRIPTS!$C$3:$C$1048576,MATCH($G$2,SCRIPTS!$A$3:$A$1048576,0)+ROW(A321)-3),\"\")","v":""}]
[{"$f":"IF($G$2=INDEX(SCRIPTS!$A$3:$A$1048576,MATCH($G$2,SCRIPTS!$A$3:$A$1048576,0)+ROW(A322)-3),INDEX(SCRIPTS!$B$3:$B$1048576,MATCH($G$2,SCRIPTS!$A$3:$A$1048576,0)+ROW(A322)-3),\"\")","v":""},{"$f":"IF($G$2=INDEX(SCRIPTS!$A$3:$A$1048576,MATCH($G$2,SCRIPTS!$A$3:$A$1048576,0)+ROW(A322)-3),INDEX(SCRIPTS!$C$3:$C$1048576,MATCH($G$2,SCRIPTS!$A$3:$A$1048576,0)+ROW(A322)-3),\"\")","v":""}]
[{"$f":"IF($G$2=INDEX(SCRIPTS!$A$3:$A$1048576,MATCH($G$2,SCRIPTS!$A$3:$A$1048576,0)+ROW(A323)-3),INDEX(SCRIPTS!$B$3:$B$1048576,MATCH($G$2,SCRIPTS!$A$3:$A$1048576,0)+ROW(A323)-3),\"\")","v":""},{"$f":"IF($G$2=INDEX(SCRIPTS!$A$3:$A$1048576,MATCH($G$2,SCRIPTS!$A$3:$A$1048576,0)+ROW(A323)-3),INDEX(SCRIPTS!$C$3:$C$1048576,MATCH($G$2,SCRIPTS!$A$3:$A$1048576,0)+ROW(A323)-3),\"\")","v":""}]
[{"$f":"IF($G$2=INDEX(SCRIPTS!$A$3:$A$1048576,MATCH($G$2,SCRIPTS!$A$3:$A$1048576,0)+ROW(A324)-3),INDEX(SCRIPTS!$B$3:$B$1048576,MATCH($G$2,SCRIPTS!$A$3:$A$1048576,0)+ROW(A324)-3),\"\")","v":""},{"$f":"IF($G$2=INDEX(SCRIPTS!$A$3:$A$1048576,MATCH($G$2,SCRIPTS!$A$3:$A$1048576,0)+ROW(A324)-3),INDEX(SCRIPTS!$C$3:$C$1048576,MATCH($G$2,SCRIPTS!$A$3:$A$1048576,0)+ROW(A324)-3),\"\")","v":""}]
[{"$f":"IF($G$2=INDEX(SCRIPTS!$A$3:$A$1048576,MATCH($G$2,SCRIPTS!$A$3:$A$1048576,0)+ROW(A325)-3),INDEX(SCRIPTS!$B$3:$B$1048576,MATCH($G$2,SCRIPTS!$A$3:$A$1048576,0)+ROW(A325)-3),\"\")","v":""},{"$f":"IF($G$2=INDEX(SCRIPTS!$A$3:$A$1048576,MATCH($G$2,SCRIPTS!$A$3:$A$1048576,0)+ROW(A325)-3),INDEX(SCRIPTS!$C$3:$C$1048576,MATCH($G$2,SCRIPTS!$A$3:$A$1048576,0)+ROW(A325)-3),\"\")","v":""}]
[{"$f":"IF($G$2=INDEX(SCRIPTS!$A$3:$A$1048576,MATCH($G$2,SCRIPTS!$A$3:$A$1048576,0)+ROW(A326)-3),INDEX(SCRIPTS!$B$3:$B$1048576,MATCH($G$2,SCRIPTS!$A$3:$A$1048576,0)+ROW(A326)-3),\"\")","v":""},{"$f":"IF($G$2=INDEX(SCRIPTS!$A$3:$A$1048576,MATCH($G$2,SCRIPTS!$A$3:$A$1048576,0)+ROW(A326)-3),INDEX(SCRIPTS!$C$3:$C$1048576,MATCH($G$2,SCRIPTS!$A$3:$A$1048576,0)+ROW(A326)-3),\"\")","v":""}]
[{"$f":"IF($G$2=INDEX(SCRIPTS!$A$3:$A$1048576,MATCH($G$2,SCRIPTS!$A$3:$A$1048576,0)+ROW(A327)-3),INDEX(SCRIPTS!$B$3:$B$1048576,MATCH($G$2,SCRIPTS!$A$3:$A$1048576,0)+ROW(A327)-3),\"\")","v":""},{"$f":"IF($G$2=INDEX(SCRIPTS!$A$3:$A$1048576,MATCH($G$2,SCRIPTS!$A$3:$A$1048576,0)+ROW(A327)-3),INDEX(SCRIPTS!$C$3:$C$1048576,MATCH($G$2,SCRIPTS!$A$3:$A$1048576,0)+ROW(A327)-3),\"\")","v":""}]
[{"$f":"IF($G$2=INDEX(SCRIPTS!$A$3:$A$1048576,MATCH($G$2,SCRIPTS!$A$3:$A$1048576,0)+ROW(A328)-3),INDEX(SCRIPTS!$B$3:$B$1048576,MATCH($G$2,SCRIPTS!$A$3:$A$1048576,0)+ROW(A328)-3),\"\")","v":""},{"$f":"IF($G$2=INDEX(SCRIPTS!$A$3:$A$1048576,MATCH($G$2,SCRIPTS!$A$3:$A$1048576,0)+ROW(A328)-3),INDEX(SCRIPTS!$C$3:$C$1048576,MATCH($G$2,SCRIPTS!$A$3:$A$1048576,0)+ROW(A328)-3),\"\")","v":""}]
[{"$f":"IF($G$2=INDEX(SCRIPTS!$A$3:$A$1048576,MATCH($G$2,SCRIPTS!$A$3:$A$1048576,0)+ROW(A329)-3),INDEX(SCRIPTS!$B$3:$B$1048576,MATCH($G$2,SCRIPTS!$A$3:$A$1048576,0)+ROW(A329)-3),\"\")","v":""},{"$f":"IF($G$2=INDEX(SCRIPTS!$A$3:$A$1048576,MATCH($G$2,SCRIPTS!$A$3:$A$1048576,0)+ROW(A329)-3),INDEX(SCRIPTS!$C$3:$C$1048576,MATCH($G$2,SCRIPTS!$A$3:$A$1048576,0)+ROW(A329)-3),\"\")","v":""}]
[{"$f":"IF($G$2=INDEX(SCRIPTS!$A$3:$A$1048576,MATCH($G$2,SCRIPTS!$A$3:$A$1048576,0)+ROW(A330)-3),INDEX(SCRIPTS!$B$3:$B$1048576,MATCH($G$2,SCRIPTS!$A$3:$A$1048576,0)+ROW(A330)-3),\"\")","v":""},{"$f":"IF($G$2=INDEX(SCRIPTS!$A$3:$A$1048576,MATCH($G$2,SCRIPTS!$A$3:$A$1048576,0)+ROW(A330)-3),INDEX(SCRIPTS!$C$3:$C$1048576,MATCH($G$2,SCRIPTS!$A$3:$A$1048576,0)+ROW(A330)-3),\"\")","v":""}]
[{"$f":"IF($G$2=INDEX(SCRIPTS!$A$3:$A$1048576,MATCH($G$2,SCRIPTS!$A$3:$A$1048576,0)+ROW(A331)-3),INDEX(SCRIPTS!$B$3:$B$1048576,MATCH($G$2,SCRIPTS!$A$3:$A$1048576,0)+ROW(A331)-3),\"\")","v":""},{"$f":"IF($G$2=INDEX(SCRIPTS!$A$3:$A$1048576,MATCH($G$2,SCRIPTS!$A$3:$A$1048576,0)+ROW(A331)-3),INDEX(SCRIPTS!$C$3:$C$1048576,MATCH($G$2,SCRIPTS!$A$3:$A$1048576,0)+ROW(A331)-3),\"\")","v":""}]
[{"$f":"IF($G$2=INDEX(SCRIPTS!$A$3:$A$1048576,MATCH($G$2,SCRIPTS!$A$3:$A$1048576,0)+ROW(A332)-3),INDEX(SCRIPTS!$B$3:$B$1048576,MATCH($G$2,SCRIPTS!$A$3:$A$1048576,0)+ROW(A332)-3),\"\")","v":""},{"$f":"IF($G$2=INDEX(SCRIPTS!$A$3:$A$1048576,MATCH($G$2,SCRIPTS!$A$3:$A$1048576,0)+ROW(A332)-3),INDEX(SCRIPTS!$C$3:$C$1048576,MATCH($G$2,SCRIPTS!$A$3:$A$1048576,0)+ROW(A332)-3),\"\")","v":""}]
[{"$f":"IF($G$2=INDEX(SCRIPTS!$A$3:$A$1048576,MATCH($G$2,SCRIPTS!$A$3:$A$1048576,0)+ROW(A333)-3),INDEX(SCRIPTS!$B$3:$B$1048576,MATCH($G$2,SCRIPTS!$A$3:$A$1048576,0)+ROW(A333)-3),\"\")","v":""},{"$f":"IF($G$2=INDEX(SCRIPTS!$A$3:$A$1048576,MATCH($G$2,SCRIPTS!$A$3:$A$1048576,0)+ROW(A333)-3),INDEX(SCRIPTS!$C$3:$C$1048576,MATCH($G$2,SCRIPTS!$A$3:$A$1048576,0)+ROW(A333)-3),\"\")","v":""}]
[{"$f":"IF($G$2=INDEX(SCRIPTS!$A$3:$A$1048576,MATCH($G$2,SCRIPTS!$A$3:$A$1048576,0)+ROW(A334)-3),INDEX(SCRIPTS!$B$3:$B$1048576,MATCH($G$2,SCRIPTS!$A$3:$A$1048576,0)+ROW(A334)-3),\"\")","v":""},{"$f":"IF($G$2=INDEX(SCRIPTS!$A$3:$A$1048576,MATCH($G$2,SCRIPTS!$A$3:$A$1048576,0)+ROW(A334)-3),INDEX(SCRIPTS!$C$3:$C$1048576,MATCH($G$2,SCRIPTS!$A$3:$A$1048576,0)+ROW(A334)-3),\"\")","v":""}]
[{"$f":"IF($G$2=INDEX(SCRIPTS!$A$3:$A$1048576,MATCH($G$2,SCRIPTS!$A$3:$A$1048576,0)+ROW(A335)-3),INDEX(SCRIPTS!$B$3:$B$1048576,MATCH($G$2,SCRIPTS!$A$3:$A$1048576,0)+ROW(A335)-3),\"\")","v":""},{"$f":"IF($G$2=INDEX(SCRIPTS!$A$3:$A$1048576,MATCH($G$2,SCRIPTS!$A$3:$A$1048576,0)+ROW(A335)-3),INDEX(SCRIPTS!$C$3:$C$1048576,MATCH($G$2,SCRIPTS!$A$3:$A$1048576,0)+ROW(A335)-3),\"\")","v":""}]
[{"$f":"IF($G$2=INDEX(SCRIPTS!$A$3:$A$1048576,MATCH($G$2,SCRIPTS!$A$3:$A$1048576,0)+ROW(A336)-3),INDEX(SCRIPTS!$B$3:$B$1048576,MATCH($G$2,SCRIPTS!$A$3:$A$1048576,0)+ROW(A336)-3),\"\")","v":""},{"$f":"IF($G$2=INDEX(SCRIPTS!$A$3:$A$1048576,MATCH($G$2,SCRIPTS!$A$3:$A$1048576,0)+ROW(A336)-3),INDEX(SCRIPTS!$C$3:$C$1048576,MATCH($G$2,SCRIPTS!$A$3:$A$1048576,0)+ROW(A336)-3),\"\")","v":""}]
[{"$f":"IF($G$2=INDEX(SCRIPTS!$A$3:$A$1048576,MATCH($G$2,SCRIPTS!$A$3:$A$1048576,0)+ROW(A337)-3),INDEX(SCRIPTS!$B$3:$B$1048576,MATCH($G$2,SCRIPTS!$A$3:$A$1048576,0)+ROW(A337)-3),\"\")","v":""},{"$f":"IF($G$2=INDEX(SCRIPTS!$A$3:$A$1048576,MATCH($G$2,SCRIPTS!$A$3:$A$1048576,0)+ROW(A337)-3),INDEX(SCRIPTS!$C$3:$C$1048576,MATCH($G$2,SCRIPTS!$A$3:$A$1048576,0)+ROW(A337)-3),\"\")","v":""}]
[{"$f":"IF($G$2=INDEX(SCRIPTS!$A$3:$A$1048576,MATCH($G$2,SCRIPTS!$A$3:$A$1048576,0)+ROW(A338)-3),INDEX(SCRIPTS!$B$3:$B$1048576,MATCH($G$2,SCRIPTS!$A$3:$A$1048576,0)+ROW(A338)-3),\"\")","v":""},{"$f":"IF($G$2=INDEX(SCRIPTS!$A$3:$A$1048576,MATCH($G$2,SCRIPTS!$A$3:$A$1048576,0)+ROW(A338)-3),INDEX(SCRIPTS!$C$3:$C$1048576,MATCH($G$2,SCRIPTS!$A$3:$A$1048576,0)+ROW(A338)-3),\"\")","v":""}]
[{"$f":"IF($G$2=INDEX(SCRIPTS!$A$3:$A$1048576,MATCH($G$2,SCRIPTS!$A$3:$A$1048576,0)+ROW(A339)-3),INDEX(SCRIPTS!$B$3:$B$1048576,MATCH($G$2,SCRIPTS!$A$3:$A$1048576,0)+ROW(A339)-3),\"\")","v":""},{"$f":"IF($G$2=INDEX(SCRIPTS!$A$3:$A$1048576,MATCH($G$2,SCRIPTS!$A$3:$A$1048576,0)+ROW(A339)-3),INDEX(SCRIPTS!$C$3:$C$1048576,MATCH($G$2,SCRIPTS!$A$3:$A$1048576,0)+ROW(A339)-3),\"\")","v":""}]
[{"$f":"IF($G$2=INDEX(SCRIPTS!$A$3:$A$1048576,MATCH($G$2,SCRIPTS!$A$3:$A$1048576,0)+ROW(A340)-3),INDEX(SCRIPTS!$B$3:$B$1048576,MATCH($G$2,SCRIPTS!$A$3:$A$1048576,0)+ROW(A340)-3),\"\")","v":""},{"$f":"IF($G$2=INDEX(SCRIPTS!$A$3:$A$1048576,MATCH($G$2,SCRIPTS!$A$3:$A$1048576,0)+ROW(A340)-3),INDEX(SCRIPTS!$C$3:$C$1048576,MATCH($G$2,SCRIPTS!$A$3:$A$1048576,0)+ROW(A340)-3),\"\")","v":""}]
[{"$f":"IF($G$2=INDEX(SCRIPTS!$A$3:$A$1048576,MATCH($G$2,SCRIPTS!$A$3:$A$1048576,0)+ROW(A341)-3),INDEX(SCRIPTS!$B$3:$B$1048576,MATCH($G$2,SCRIPTS!$A$3:$A$1048576,0)+ROW(A341)-3),\"\")","v":""},{"$f":"IF($G$2=INDEX(SCRIPTS!$A$3:$A$1048576,MATCH($G$2,SCRIPTS!$A$3:$A$1048576,0)+ROW(A341)-3),INDEX(SCRIPTS!$C$3:$C$1048576,MATCH($G$2,SCRIPTS!$A$3:$A$1048576,0)+ROW(A341)-3),\"\")","v":""}]
[{"$f":"IF($G$2=INDEX(SCRIPTS!$A$3:$A$1048576,MATCH($G$2,SCRIPTS!$A$3:$A$1048576,0)+ROW(A342)-3),INDEX(SCRIPTS!$B$3:$B$1048576,MATCH($G$2,SCRIPTS!$A$3:$A$1048576,0)+ROW(A342)-3),\"\")","v":""},{"$f":"IF($G$2=INDEX(SCRIPTS!$A$3:$A$1048576,MATCH($G$2,SCRIPTS!$A$3:$A$1048576,0)+ROW(A342)-3),INDEX(SCRIPTS!$C$3:$C$1048576,MATCH($G$2,SCRIPTS!$A$3:$A$1048576,0)+ROW(A342)-3),\"\")","v":""}]
[{"$f":"IF($G$2=INDEX(SCRIPTS!$A$3:$A$1048576,MATCH($G$2,SCRIPTS!$A$3:$A$1048576,0)+ROW(A343)-3),INDEX(SCRIPTS!$B$3:$B$1048576,MATCH($G$2,SCRIPTS!$A$3:$A$1048576,0)+ROW(A343)-3),\"\")","v":""},{"$f":"IF($G$2=INDEX(SCRIPTS!$A$3:$A$1048576,MATCH($G$2,SCRIPTS!$A$3:$A$1048576,0)+ROW(A343)-3),INDEX(SCRIPTS!$C$3:$C$1048576,MATCH($G$2,SCRIPTS!$A$3:$A$1048576,0)+ROW(A343)-3),\"\")","v":""}]
[{"$f":"IF($G$2=INDEX(SCRIPTS!$A$3:$A$1048576,MATCH($G$2,SCRIPTS!$A$3:$A$1048576,0)+ROW(A344)-3),INDEX(SCRIPTS!$B$3:$B$1048576,MATCH($G$2,SCRIPTS!$A$3:$A$1048576,0)+ROW(A344)-3),\"\")","v":""},{"$f":"IF($G$2=INDEX(SCRIPTS!$A$3:$A$1048576,MATCH($G$2,SCRIPTS!$A$3:$A$1048576,0)+ROW(A344)-3),INDEX(SCRIPTS!$C$3:$C$1048576,MATCH($G$2,SCRIPTS!$A$3:$A$1048576,0)+ROW(A344)-3),\"\")","v":""}]
[{"$f":"IF($G$2=INDEX(SCRIPTS!$A$3:$A$1048576,MATCH($G$2,SCRIPTS!$A$3:$A$1048576,0)+ROW(A345)-3),INDEX(SCRIPTS!$B$3:$B$1048576,MATCH($G$2,SCRIPTS!$A$3:$A$1048576,0)+ROW(A345)-3),\"\")","v":""},{"$f":"IF($G$2=INDEX(SCRIPTS!$A$3:$A$1048576,MATCH($G$2,SCRIPTS!$A$3:$A$1048576,0)+ROW(A345)-3),INDEX(SCRIPTS!$C$3:$C$1048576,MATCH($G$2,SCRIPTS!$A$3:$A$1048576,0)+ROW(A345)-3),\"\")","v":""}]
[{"$f":"IF($G$2=INDEX(SCRIPTS!$A$3:$A$1048576,MATCH($G$2,SCRIPTS!$A$3:$A$1048576,0)+ROW(A346)-3),INDEX(SCRIPTS!$B$3:$B$1048576,MATCH($G$2,SCRIPTS!$A$3:$A$1048576,0)+ROW(A346)-3),\"\")","v":""},{"$f":"IF($G$2=INDEX(SCRIPTS!$A$3:$A$1048576,MATCH($G$2,SCRIPTS!$A$3:$A$1048576,0)+ROW(A346)-3),INDEX(SCRIPTS!$C$3:$C$1048576,MATCH($G$2,SCRIPTS!$A$3:$A$1048576,0)+ROW(A346)-3),\"\")","v":""}]
[{"$f":"IF($G$2=INDEX(SCRIPTS!$A$3:$A$1048576,MATCH($G$2,SCRIPTS!$A$3:$A$1048576,0)+ROW(A347)-3),INDEX(SCRIPTS!$B$3:$B$1048576,MATCH($G$2,SCRIPTS!$A$3:$A$1048576,0)+ROW(A347)-3),\"\")","v":""},{"$f":"IF($G$2=INDEX(SCRIPTS!$A$3:$A$1048576,MATCH($G$2,SCRIPTS!$A$3:$A$1048576,0)+ROW(A347)-3),INDEX(SCRIPTS!$C$3:$C$1048576,MATCH($G$2,SCRIPTS!$A$3:$A$1048576,0)+ROW(A347)-3),\"\")","v":""}]
[{"$f":"IF($G$2=INDEX(SCRIPTS!$A$3:$A$1048576,MATCH($G$2,SCRIPTS!$A$3:$A$1048576,0)+ROW(A348)-3),INDEX(SCRIPTS!$B$3:$B$1048576,MATCH($G$2,SCRIPTS!$A$3:$A$1048576,0)+ROW(A348)-3),\"\")","v":""},{"$f":"IF($G$2=INDEX(SCRIPTS!$A$3:$A$1048576,MATCH($G$2,SCRIPTS!$A$3:$A$1048576,0)+ROW(A348)-3),INDEX(SCRIPTS!$C$3:$C$1048576,MATCH($G$2,SCRIPTS!$A$3:$A$1048576,0)+ROW(A348)-3),\"\")","v":""}]
[{"$f":"IF($G$2=INDEX(SCRIPTS!$A$3:$A$1048576,MATCH($G$2,SCRIPTS!$A$3:$A$1048576,0)+ROW(A349)-3),INDEX(SCRIPTS!$B$3:$B$1048576,MATCH($G$2,SCRIPTS!$A$3:$A$1048576,0)+ROW(A349)-3),\"\")","v":""},{"$f":"IF($G$2=INDEX(SCRIPTS!$A$3:$A$1048576,MATCH($G$2,SCRIPTS!$A$3:$A$1048576,0)+ROW(A349)-3),INDEX(SCRIPTS!$C$3:$C$1048576,MATCH($G$2,SCRIPTS!$A$3:$A$1048576,0)+ROW(A349)-3),\"\")","v":""}]
[{"$f":"IF($G$2=INDEX(SCRIPTS!$A$3:$A$1048576,MATCH($G$2,SCRIPTS!$A$3:$A$1048576,0)+ROW(A350)-3),INDEX(SCRIPTS!$B$3:$B$1048576,MATCH($G$2,SCRIPTS!$A$3:$A$1048576,0)+ROW(A350)-3),\"\")","v":""},{"$f":"IF($G$2=INDEX(SCRIPTS!$A$3:$A$1048576,MATCH($G$2,SCRIPTS!$A$3:$A$1048576,0)+ROW(A350)-3),INDEX(SCRIPTS!$C$3:$C$1048576,MATCH($G$2,SCRIPTS!$A$3:$A$1048576,0)+ROW(A350)-3),\"\")","v":""}]
[{"$f":"IF($G$2=INDEX(SCRIPTS!$A$3:$A$1048576,MATCH($G$2,SCRIPTS!$A$3:$A$1048576,0)+ROW(A351)-3),INDEX(SCRIPTS!$B$3:$B$1048576,MATCH($G$2,SCRIPTS!$A$3:$A$1048576,0)+ROW(A351)-3),\"\")","v":""},{"$f":"IF($G$2=INDEX(SCRIPTS!$A$3:$A$1048576,MATCH($G$2,SCRIPTS!$A$3:$A$1048576,0)+ROW(A351)-3),INDEX(SCRIPTS!$C$3:$C$1048576,MATCH($G$2,SCRIPTS!$A$3:$A$1048576,0)+ROW(A351)-3),\"\")","v":""}]
[{"$f":"IF($G$2=INDEX(SCRIPTS!$A$3:$A$1048576,MATCH($G$2,SCRIPTS!$A$3:$A$1048576,0)+ROW(A352)-3),INDEX(SCRIPTS!$B$3:$B$1048576,MATCH($G$2,SCRIPTS!$A$3:$A$1048576,0)+ROW(A352)-3),\"\")","v":""},{"$f":"IF($G$2=INDEX(SCRIPTS!$A$3:$A$1048576,MATCH($G$2,SCRIPTS!$A$3:$A$1048576,0)+ROW(A352)-3),INDEX(SCRIPTS!$C$3:$C$1048576,MATCH($G$2,SCRIPTS!$A$3:$A$1048576,0)+ROW(A352)-3),\"\")","v":""}]
[{"$f":"IF($G$2=INDEX(SCRIPTS!$A$3:$A$1048576,MATCH($G$2,SCRIPTS!$A$3:$A$1048576,0)+ROW(A353)-3),INDEX(SCRIPTS!$B$3:$B$1048576,MATCH($G$2,SCRIPTS!$A$3:$A$1048576,0)+ROW(A353)-3),\"\")","v":""},{"$f":"IF($G$2=INDEX(SCRIPTS!$A$3:$A$1048576,MATCH($G$2,SCRIPTS!$A$3:$A$1048576,0)+ROW(A353)-3),INDEX(SCRIPTS!$C$3:$C$1048576,MATCH($G$2,SCRIPTS!$A$3:$A$1048576,0)+ROW(A353)-3),\"\")","v":""}]
[{"$f":"IF($G$2=INDEX(SCRIPTS!$A$3:$A$1048576,MATCH($G$2,SCRIPTS!$A$3:$A$1048576,0)+ROW(A354)-3),INDEX(SCRIPTS!$B$3:$B$1048576,MATCH($G$2,SCRIPTS!$A$3:$A$1048576,0)+ROW(A354)-3),\"\")","v":""},{"$f":"IF($G$2=INDEX(SCRIPTS!$A$3:$A$1048576,MATCH($G$2,SCRIPTS!$A$3:$A$1048576,0)+ROW(A354)-3),INDEX(SCRIPTS!$C$3:$C$1048576,MATCH($G$2,SCRIPTS!$A$3:$A$1048576,0)+ROW(A354)-3),\"\")","v":""}]
[{"$f":"IF($G$2=INDEX(SCRIPTS!$A$3:$A$1048576,MATCH($G$2,SCRIPTS!$A$3:$A$1048576,0)+ROW(A355)-3),INDEX(SCRIPTS!$B$3:$B$1048576,MATCH($G$2,SCRIPTS!$A$3:$A$1048576,0)+ROW(A355)-3),\"\")","v":""},{"$f":"IF($G$2=INDEX(SCRIPTS!$A$3:$A$1048576,MATCH($G$2,SCRIPTS!$A$3:$A$1048576,0)+ROW(A355)-3),INDEX(SCRIPTS!$C$3:$C$1048576,MATCH($G$2,SCRIPTS!$A$3:$A$1048576,0)+ROW(A355)-3),\"\")","v":""}]
[{"$f":"IF($G$2=INDEX(SCRIPTS!$A$3:$A$1048576,MATCH($G$2,SCRIPTS!$A$3:$A$1048576,0)+ROW(A356)-3),INDEX(SCRIPTS!$B$3:$B$1048576,MATCH($G$2,SCRIPTS!$A$3:$A$1048576,0)+ROW(A356)-3),\"\")","v":""},{"$f":"IF($G$2=INDEX(SCRIPTS!$A$3:$A$1048576,MATCH($G$2,SCRIPTS!$A$3:$A$1048576,0)+ROW(A356)-3),INDEX(SCRIPTS!$C$3:$C$1048576,MATCH($G$2,SCRIPTS!$A$3:$A$1048576,0)+ROW(A356)-3),\"\")","v":""}]
[{"$f":"IF($G$2=INDEX(SCRIPTS!$A$3:$A$1048576,MATCH($G$2,SCRIPTS!$A$3:$A$1048576,0)+ROW(A357)-3),INDEX(SCRIPTS!$B$3:$B$1048576,MATCH($G$2,SCRIPTS!$A$3:$A$1048576,0)+ROW(A357)-3),\"\")","v":""},{"$f":"IF($G$2=INDEX(SCRIPTS!$A$3:$A$1048576,MATCH($G$2,SCRIPTS!$A$3:$A$1048576,0)+ROW(A357)-3),INDEX(SCRIPTS!$C$3:$C$1048576,MATCH($G$2,SCRIPTS!$A$3:$A$1048576,0)+ROW(A357)-3),\"\")","v":""}]
[{"$f":"IF($G$2=INDEX(SCRIPTS!$A$3:$A$1048576,MATCH($G$2,SCRIPTS!$A$3:$A$1048576,0)+ROW(A358)-3),INDEX(SCRIPTS!$B$3:$B$1048576,MATCH($G$2,SCRIPTS!$A$3:$A$1048576,0)+ROW(A358)-3),\"\")","v":""},{"$f":"IF($G$2=INDEX(SCRIPTS!$A$3:$A$1048576,MATCH($G$2,SCRIPTS!$A$3:$A$1048576,0)+ROW(A358)-3),INDEX(SCRIPTS!$C$3:$C$1048576,MATCH($G$2,SCRIPTS!$A$3:$A$1048576,0)+ROW(A358)-3),\"\")","v":""}]
[{"$f":"IF($G$2=INDEX(SCRIPTS!$A$3:$A$1048576,MATCH($G$2,SCRIPTS!$A$3:$A$1048576,0)+ROW(A359)-3),INDEX(SCRIPTS!$B$3:$B$1048576,MATCH($G$2,SCRIPTS!$A$3:$A$1048576,0)+ROW(A359)-3),\"\")","v":""},{"$f":"IF($G$2=INDEX(SCRIPTS!$A$3:$A$1048576,MATCH($G$2,SCRIPTS!$A$3:$A$1048576,0)+ROW(A359)-3),INDEX(SCRIPTS!$C$3:$C$1048576,MATCH($G$2,SCRIPTS!$A$3:$A$1048576,0)+ROW(A359)-3),\"\")","v":""}]
[{"$f":"IF($G$2=INDEX(SCRIPTS!$A$3:$A$1048576,MATCH($G$2,SCRIPTS!$A$3:$A$1048576,0)+ROW(A360)-3),INDEX(SCRIPTS!$B$3:$B$1048576,MATCH($G$2,SCRIPTS!$A$3:$A$1048576,0)+ROW(A360)-3),\"\")","v":""},{"$f":"IF($G$2=INDEX(SCRIPTS!$A$3:$A$1048576,MATCH($G$2,SCRIPTS!$A$3:$A$1048576,0)+ROW(A360)-3),INDEX(SCRIPTS!$C$3:$C$1048576,MATCH($G$2,SCRIPTS!$A$3:$A$1048576,0)+ROW(A360)-3),\"\")","v":""}]
[{"$f":"IF($G$2=INDEX(SCRIPTS!$A$3:$A$1048576,MATCH($G$2,SCRIPTS!$A$3:$A$1048576,0)+ROW(A361)-3),INDEX(SCRIPTS!$B$3:$B$1048576,MATCH($G$2,SCRIPTS!$A$3:$A$1048576,0)+ROW(A361)-3),\"\")","v":""},{"$f":"IF($G$2=INDEX(SCRIPTS!$A$3:$A$1048576,MATCH($G$2,SCRIPTS!$A$3:$A$1048576,0)+ROW(A361)-3),INDEX(SCRIPTS!$C$3:$C$1048576,MATCH($G$2,SCRIPTS!$A$3:$A$1048576,0)+ROW(A361)-3),\"\")","v":""}]
[{"$f":"IF($G$2=INDEX(SCRIPTS!$A$3:$A$1048576,MATCH($G$2,SCRIPTS!$A$3:$A$1048576,0)+ROW(A362)-3),INDEX(SCRIPTS!$B$3:$B$1048576,MATCH($G$2,SCRIPTS!$A$3:$A$1048576,0)+ROW(A362)-3),\"\")","v":""},{"$f":"IF($G$2=INDEX(SCRIPTS!$A$3:$A$1048576,MATCH($G$2,SCRIPTS!$A$3:$A$1048576,0)+ROW(A362)-3),INDEX(SCRIPTS!$C$3:$C$1048576,MATCH($G$2,SCRIPTS!$A$3:$A$1048576,0)+ROW(A362)-3),\"\")","v":""}]
[{"$f":"IF($G$2=INDEX(SCRIPTS!$A$3:$A$1048576,MATCH($G$2,SCRIPTS!$A$3:$A$1048576,0)+ROW(A363)-3),INDEX(SCRIPTS!$B$3:$B$1048576,MATCH($G$2,SCRIPTS!$A$3:$A$1048576,0)+ROW(A363)-3),\"\")","v":""},{"$f":"IF($G$2=INDEX(SCRIPTS!$A$3:$A$1048576,MATCH($G$2,SCRIPTS!$A$3:$A$1048576,0)+ROW(A363)-3),INDEX(SCRIPTS!$C$3:$C$1048576,MATCH($G$2,SCRIPTS!$A$3:$A$1048576,0)+ROW(A363)-3),\"\")","v":""}]
[{"$f":"IF($G$2=INDEX(SCRIPTS!$A$3:$A$1048576,MATCH($G$2,SCRIPTS!$A$3:$A$1048576,0)+ROW(A364)-3),INDEX(SCRIPTS!$B$3:$B$1048576,MATCH($G$2,SCRIPTS!$A$3:$A$1048576,0)+ROW(A364)-3),\"\")","v":""},{"$f":"IF($G$2=INDEX(SCRIPTS!$A$3:$A$1048576,MATCH($G$2,SCRIPTS!$A$3:$A$1048576,0)+ROW(A364)-3),INDEX(SCRIPTS!$C$3:$C$1048576,MATCH($G$2,SCRIPTS!$A$3:$A$1048576,0)+ROW(A364)-3),\"\")","v":""}]
[{"$f":"IF($G$2=INDEX(SCRIPTS!$A$3:$A$1048576,MATCH($G$2,SCRIPTS!$A$3:$A$1048576,0)+ROW(A365)-3),INDEX(SCRIPTS!$B$3:$B$1048576,MATCH($G$2,SCRIPTS!$A$3:$A$1048576,0)+ROW(A365)-3),\"\")","v":""},{"$f":"IF($G$2=INDEX(SCRIPTS!$A$3:$A$1048576,MATCH($G$2,SCRIPTS!$A$3:$A$1048576,0)+ROW(A365)-3),INDEX(SCRIPTS!$C$3:$C$1048576,MATCH($G$2,SCRIPTS!$A$3:$A$1048576,0)+ROW(A365)-3),\"\")","v":""}]
[{"$f":"IF($G$2=INDEX(SCRIPTS!$A$3:$A$1048576,MATCH($G$2,SCRIPTS!$A$3:$A$1048576,0)+ROW(A366)-3),INDEX(SCRIPTS!$B$3:$B$1048576,MATCH($G$2,SCRIPTS!$A$3:$A$1048576,0)+ROW(A366)-3),\"\")","v":""},{"$f":"IF($G$2=INDEX(SCRIPTS!$A$3:$A$1048576,MATCH($G$2,SCRIPTS!$A$3:$A$1048576,0)+ROW(A366)-3),INDEX(SCRIPTS!$C$3:$C$1048576,MATCH($G$2,SCRIPTS!$A$3:$A$1048576,0)+ROW(A366)-3),\"\")","v":""}]
[{"$f":"IF($G$2=INDEX(SCRIPTS!$A$3:$A$1048576,MATCH($G$2,SCRIPTS!$A$3:$A$1048576,0)+ROW(A367)-3),INDEX(SCRIPTS!$B$3:$B$1048576,MATCH($G$2,SCRIPTS!$A$3:$A$1048576,0)+ROW(A367)-3),\"\")","v":""},{"$f":"IF($G$2=INDEX(SCRIPTS!$A$3:$A$1048576,MATCH($G$2,SCRIPTS!$A$3:$A$1048576,0)+ROW(A367)-3),INDEX(SCRIPTS!$C$3:$C$1048576,MATCH($G$2,SCRIPTS!$A$3:$A$1048576,0)+ROW(A367)-3),\"\")","v":""}]
[{"$f":"IF($G$2=INDEX(SCRIPTS!$A$3:$A$1048576,MATCH($G$2,SCRIPTS!$A$3:$A$1048576,0)+ROW(A368)-3),INDEX(SCRIPTS!$B$3:$B$1048576,MATCH($G$2,SCRIPTS!$A$3:$A$1048576,0)+ROW(A368)-3),\"\")","v":""},{"$f":"IF($G$2=INDEX(SCRIPTS!$A$3:$A$1048576,MATCH($G$2,SCRIPTS!$A$3:$A$1048576,0)+ROW(A368)-3),INDEX(SCRIPTS!$C$3:$C$1048576,MATCH($G$2,SCRIPTS!$A$3:$A$1048576,0)+ROW(A368)-3),\"\")","v":""}]
[{"$f":"IF($G$2=INDEX(SCRIPTS!$A$3:$A$1048576,MATCH($G$2,SCRIPTS!$A$3:$A$1048576,0)+ROW(A369)-3),INDEX(SCRIPTS!$B$3:$B$1048576,MATCH($G$2,SCRIPTS!$A$3:$A$1048576,0)+ROW(A369)-3),\"\")","v":""},{"$f":"IF($G$2=INDEX(SCRIPTS!$A$3:$A$1048576,MATCH($G$2,SCRIPTS!$A$3:$A$1048576,0)+ROW(A369)-3),INDEX(SCRIPTS!$C$3:$C$1048576,MATCH($G$2,SCRIPTS!$A$3:$A$1048576,0)+ROW(A369)-3),\"\")","v":""}]
[{"$f":"IF($G$2=INDEX(SCRIPTS!$A$3:$A$1048576,MATCH($G$2,SCRIPTS!$A$3:$A$1048576,0)+ROW(A370)-3),INDEX(SCRIPTS!$B$3:$B$1048576,MATCH($G$2,SCRIPTS!$A$3:$A$1048576,0)+ROW(A370)-3),\"\")","v":""},{"$f":"IF($G$2=INDEX(SCRIPTS!$A$3:$A$1048576,MATCH($G$2,SCRIPTS!$A$3:$A$1048576,0)+ROW(A370)-3),INDEX(SCRIPTS!$C$3:$C$1048576,MATCH($G$2,SCRIPTS!$A$3:$A$1048576,0)+ROW(A370)-3),\"\")","v":""}]
[{"$f":"IF($G$2=INDEX(SCRIPTS!$A$3:$A$1048576,MATCH($G$2,SCRIPTS!$A$3:$A$1048576,0)+ROW(A371)-3),INDEX(SCRIPTS!$B$3:$B$1048576,MATCH($G$2,SCRIPTS!$A$3:$A$1048576,0)+ROW(A371)-3),\"\")","v":""},{"$f":"IF($G$2=INDEX(SCRIPTS!$A$3:$A$1048576,MATCH($G$2,SCRIPTS!$A$3:$A$1048576,0)+ROW(A371)-3),INDEX(SCRIPTS!$C$3:$C$1048576,MATCH($G$2,SCRIPTS!$A$3:$A$1048576,0)+ROW(A371)-3),\"\")","v":""}]
[{"$f":"IF($G$2=INDEX(SCRIPTS!$A$3:$A$1048576,MATCH($G$2,SCRIPTS!$A$3:$A$1048576,0)+ROW(A372)-3),INDEX(SCRIPTS!$B$3:$B$1048576,MATCH($G$2,SCRIPTS!$A$3:$A$1048576,0)+ROW(A372)-3),\"\")","v":""},{"$f":"IF($G$2=INDEX(SCRIPTS!$A$3:$A$1048576,MATCH($G$2,SCRIPTS!$A$3:$A$1048576,0)+ROW(A372)-3),INDEX(SCRIPTS!$C$3:$C$1048576,MATCH($G$2,SCRIPTS!$A$3:$A$1048576,0)+ROW(A372)-3),\"\")","v":""}]
[{"$f":"IF($G$2=INDEX(SCRIPTS!$A$3:$A$1048576,MATCH($G$2,SCRIPTS!$A$3:$A$1048576,0)+ROW(A373)-3),INDEX(SCRIPTS!$B$3:$B$1048576,MATCH($G$2,SCRIPTS!$A$3:$A$1048576,0)+ROW(A373)-3),\"\")","v":""},{"$f":"IF($G$2=INDEX(SCRIPTS!$A$3:$A$1048576,MATCH($G$2,SCRIPTS!$A$3:$A$1048576,0)+ROW(A373)-3),INDEX(SCRIPTS!$C$3:$C$1048576,MATCH($G$2,SCRIPTS!$A$3:$A$1048576,0)+ROW(A373)-3),\"\")","v":""}]
[{"$f":"IF($G$2=INDEX(SCRIPTS!$A$3:$A$1048576,MATCH($G$2,SCRIPTS!$A$3:$A$1048576,0)+ROW(A374)-3),INDEX(SCRIPTS!$B$3:$B$1048576,MATCH($G$2,SCRIPTS!$A$3:$A$1048576,0)+ROW(A374)-3),\"\")","v":""},{"$f":"IF($G$2=INDEX(SCRIPTS!$A$3:$A$1048576,MATCH($G$2,SCRIPTS!$A$3:$A$1048576,0)+ROW(A374)-3),INDEX(SCRIPTS!$C$3:$C$1048576,MATCH($G$2,SCRIPTS!$A$3:$A$1048576,0)+ROW(A374)-3),\"\")","v":""}]
[{"$f":"IF($G$2=INDEX(SCRIPTS!$A$3:$A$1048576,MATCH($G$2,SCRIPTS!$A$3:$A$1048576,0)+ROW(A375)-3),INDEX(SCRIPTS!$B$3:$B$1048576,MATCH($G$2,SCRIPTS!$A$3:$A$1048576,0)+ROW(A375)-3),\"\")","v":""},{"$f":"IF($G$2=INDEX(SCRIPTS!$A$3:$A$1048576,MATCH($G$2,SCRIPTS!$A$3:$A$1048576,0)+ROW(A375)-3),INDEX(SCRIPTS!$C$3:$C$1048576,MATCH($G$2,SCRIPTS!$A$3:$A$1048576,0)+ROW(A375)-3),\"\")","v":""}]
[{"$f":"IF($G$2=INDEX(SCRIPTS!$A$3:$A$1048576,MATCH($G$2,SCRIPTS!$A$3:$A$1048576,0)+ROW(A376)-3),INDEX(SCRIPTS!$B$3:$B$1048576,MATCH($G$2,SCRIPTS!$A$3:$A$1048576,0)+ROW(A376)-3),\"\")","v":""},{"$f":"IF($G$2=INDEX(SCRIPTS!$A$3:$A$1048576,MATCH($G$2,SCRIPTS!$A$3:$A$1048576,0)+ROW(A376)-3),INDEX(SCRIPTS!$C$3:$C$1048576,MATCH($G$2,SCRIPTS!$A$3:$A$1048576,0)+ROW(A376)-3),\"\")","v":""}]
[{"$f":"IF($G$2=INDEX(SCRIPTS!$A$3:$A$1048576,MATCH($G$2,SCRIPTS!$A$3:$A$1048576,0)+ROW(A377)-3),INDEX(SCRIPTS!$B$3:$B$1048576,MATCH($G$2,SCRIPTS!$A$3:$A$1048576,0)+ROW(A377)-3),\"\")","v":""},{"$f":"IF($G$2=INDEX(SCRIPTS!$A$3:$A$1048576,MATCH($G$2,SCRIPTS!$A$3:$A$1048576,0)+ROW(A377)-3),INDEX(SCRIPTS!$C$3:$C$1048576,MATCH($G$2,SCRIPTS!$A$3:$A$1048576,0)+ROW(A377)-3),\"\")","v":""}]
[{"$f":"IF($G$2=INDEX(SCRIPTS!$A$3:$A$1048576,MATCH($G$2,SCRIPTS!$A$3:$A$1048576,0)+ROW(A378)-3),INDEX(SCRIPTS!$B$3:$B$1048576,MATCH($G$2,SCRIPTS!$A$3:$A$1048576,0)+ROW(A378)-3),\"\")","v":""},{"$f":"IF($G$2=INDEX(SCRIPTS!$A$3:$A$1048576,MATCH($G$2,SCRIPTS!$A$3:$A$1048576,0)+ROW(A378)-3),INDEX(SCRIPTS!$C$3:$C$1048576,MATCH($G$2,SCRIPTS!$A$3:$A$1048576,0)+ROW(A378)-3),\"\")","v":""}]
[{"$f":"IF($G$2=INDEX(SCRIPTS!$A$3:$A$1048576,MATCH($G$2,SCRIPTS!$A$3:$A$1048576,0)+ROW(A379)-3),INDEX(SCRIPTS!$B$3:$B$1048576,MATCH($G$2,SCRIPTS!$A$3:$A$1048576,0)+ROW(A379)-3),\"\")","v":""},{"$f":"IF($G$2=INDEX(SCRIPTS!$A$3:$A$1048576,MATCH($G$2,SCRIPTS!$A$3:$A$1048576,0)+ROW(A379)-3),INDEX(SCRIPTS!$C$3:$C$1048576,MATCH($G$2,SCRIPTS!$A$3:$A$1048576,0)+ROW(A379)-3),\"\")","v":""}]
[{"$f":"IF($G$2=INDEX(SCRIPTS!$A$3:$A$1048576,MATCH($G$2,SCRIPTS!$A$3:$A$1048576,0)+ROW(A380)-3),INDEX(SCRIPTS!$B$3:$B$1048576,MATCH($G$2,SCRIPTS!$A$3:$A$1048576,0)+ROW(A380)-3),\"\")","v":""},{"$f":"IF($G$2=INDEX(SCRIPTS!$A$3:$A$1048576,MATCH($G$2,SCRIPTS!$A$3:$A$1048576,0)+ROW(A380)-3),INDEX(SCRIPTS!$C$3:$C$1048576,MATCH($G$2,SCRIPTS!$A$3:$A$1048576,0)+ROW(A380)-3),\"\")","v":""}]
[{"$f":"IF($G$2=INDEX(SCRIPTS!$A$3:$A$1048576,MATCH($G$2,SCRIPTS!$A$3:$A$1048576,0)+ROW(A381)-3),INDEX(SCRIPTS!$B$3:$B$1048576,MATCH($G$2,SCRIPTS!$A$3:$A$1048576,0)+ROW(A381)-3),\"\")","v":""},{"$f":"IF($G$2=INDEX(SCRIPTS!$A$3:$A$1048576,MATCH($G$2,SCRIPTS!$A$3:$A$1048576,0)+ROW(A381)-3),INDEX(SCRIPTS!$C$3:$C$1048576,MATCH($G$2,SCRIPTS!$A$3:$A$1048576,0)+ROW(A381)-3),\"\")","v":""}]
[{"$f":"IF($G$2=INDEX(SCRIPTS!$A$3:$A$1048576,MATCH($G$2,SCRIPTS!$A$3:$A$1048576,0)+ROW(A382)-3),INDEX(SCRIPTS!$B$3:$B$1048576,MATCH($G$2,SCRIPTS!$A$3:$A$1048576,0)+ROW(A382)-3),\"\")","v":""},{"$f":"IF($G$2=INDEX(SCRIPTS!$A$3:$A$1048576,MATCH($G$2,SCRIPTS!$A$3:$A$1048576,0)+ROW(A382)-3),INDEX(SCRIPTS!$C$3:$C$1048576,MATCH($G$2,SCRIPTS!$A$3:$A$1048576,0)+ROW(A382)-3),\"\")","v":""}]
[{"$f":"IF($G$2=INDEX(SCRIPTS!$A$3:$A$1048576,MATCH($G$2,SCRIPTS!$A$3:$A$1048576,0)+ROW(A383)-3),INDEX(SCRIPTS!$B$3:$B$1048576,MATCH($G$2,SCRIPTS!$A$3:$A$1048576,0)+ROW(A383)-3),\"\")","v":""},{"$f":"IF($G$2=INDEX(SCRIPTS!$A$3:$A$1048576,MATCH($G$2,SCRIPTS!$A$3:$A$1048576,0)+ROW(A383)-3),INDEX(SCRIPTS!$C$3:$C$1048576,MATCH($G$2,SCRIPTS!$A$3:$A$1048576,0)+ROW(A383)-3),\"\")","v":""}]
[{"$f":"IF($G$2=INDEX(SCRIPTS!$A$3:$A$1048576,MATCH($G$2,SCRIPTS!$A$3:$A$1048576,0)+ROW(A384)-3),INDEX(SCRIPTS!$B$3:$B$1048576,MATCH($G$2,SCRIPTS!$A$3:$A$1048576,0)+ROW(A384)-3),\"\")","v":""},{"$f":"IF($G$2=INDEX(SCRIPTS!$A$3:$A$1048576,MATCH($G$2,SCRIPTS!$A$3:$A$1048576,0)+ROW(A384)-3),INDEX(SCRIPTS!$C$3:$C$1048576,MATCH($G$2,SCRIPTS!$A$3:$A$1048576,0)+ROW(A384)-3),\"\")","v":""}]
[{"$f":"IF($G$2=INDEX(SCRIPTS!$A$3:$A$1048576,MATCH($G$2,SCRIPTS!$A$3:$A$1048576,0)+ROW(A385)-3),INDEX(SCRIPTS!$B$3:$B$1048576,MATCH($G$2,SCRIPTS!$A$3:$A$1048576,0)+ROW(A385)-3),\"\")","v":""},{"$f":"IF($G$2=INDEX(SCRIPTS!$A$3:$A$1048576,MATCH($G$2,SCRIPTS!$A$3:$A$1048576,0)+ROW(A385)-3),INDEX(SCRIPTS!$C$3:$C$1048576,MATCH($G$2,SCRIPTS!$A$3:$A$1048576,0)+ROW(A385)-3),\"\")","v":""}]
[{"$f":"IF($G$2=INDEX(SCRIPTS!$A$3:$A$1048576,MATCH($G$2,SCRIPTS!$A$3:$A$1048576,0)+ROW(A386)-3),INDEX(SCRIPTS!$B$3:$B$1048576,MATCH($G$2,SCRIPTS!$A$3:$A$1048576,0)+ROW(A386)-3),\"\")","v":""},{"$f":"IF($G$2=INDEX(SCRIPTS!$A$3:$A$1048576,MATCH($G$2,SCRIPTS!$A$3:$A$1048576,0)+ROW(A386)-3),INDEX(SCRIPTS!$C$3:$C$1048576,MATCH($G$2,SCRIPTS!$A$3:$A$1048576,0)+ROW(A386)-3),\"\")","v":""}]
[{"$f":"IF($G$2=INDEX(SCRIPTS!$A$3:$A$1048576,MATCH($G$2,SCRIPTS!$A$3:$A$1048576,0)+ROW(A387)-3),INDEX(SCRIPTS!$B$3:$B$1048576,MATCH($G$2,SCRIPTS!$A$3:$A$1048576,0)+ROW(A387)-3),\"\")","v":""},{"$f":"IF($G$2=INDEX(SCRIPTS!$A$3:$A$1048576,MATCH($G$2,SCRIPTS!$A$3:$A$1048576,0)+ROW(A387)-3),INDEX(SCRIPTS!$C$3:$C$1048576,MATCH($G$2,SCRIPTS!$A$3:$A$1048576,0)+ROW(A387)-3),\"\")","v":""}]
[{"$f":"IF($G$2=INDEX(SCRIPTS!$A$3:$A$1048576,MATCH($G$2,SCRIPTS!$A$3:$A$1048576,0)+ROW(A388)-3),INDEX(SCRIPTS!$B$3:$B$1048576,MATCH($G$2,SCRIPTS!$A$3:$A$1048576,0)+ROW(A388)-3),\"\")","v":""},{"$f":"IF($G$2=INDEX(SCRIPTS!$A$3:$A$1048576,MATCH($G$2,SCRIPTS!$A$3:$A$1048576,0)+ROW(A388)-3),INDEX(SCRIPTS!$C$3:$C$1048576,MATCH($G$2,SCRIPTS!$A$3:$A$1048576,0)+ROW(A388)-3),\"\")","v":""}]
[{"$f":"IF($G$2=INDEX(SCRIPTS!$A$3:$A$1048576,MATCH($G$2,SCRIPTS!$A$3:$A$1048576,0)+ROW(A389)-3),INDEX(SCRIPTS!$B$3:$B$1048576,MATCH($G$2,SCRIPTS!$A$3:$A$1048576,0)+ROW(A389)-3),\"\")","v":""},{"$f":"IF($G$2=INDEX(SCRIPTS!$A$3:$A$1048576,MATCH($G$2,SCRIPTS!$A$3:$A$1048576,0)+ROW(A389)-3),INDEX(SCRIPTS!$C$3:$C$1048576,MATCH($G$2,SCRIPTS!$A$3:$A$1048576,0)+ROW(A389)-3),\"\")","v":""}]
[{"$f":"IF($G$2=INDEX(SCRIPTS!$A$3:$A$1048576,MATCH($G$2,SCRIPTS!$A$3:$A$1048576,0)+ROW(A390)-3),INDEX(SCRIPTS!$B$3:$B$1048576,MATCH($G$2,SCRIPTS!$A$3:$A$1048576,0)+ROW(A390)-3),\"\")","v":""},{"$f":"IF($G$2=INDEX(SCRIPTS!$A$3:$A$1048576,MATCH($G$2,SCRIPTS!$A$3:$A$1048576,0)+ROW(A390)-3),INDEX(SCRIPTS!$C$3:$C$1048576,MATCH($G$2,SCRIPTS!$A$3:$A$1048576,0)+ROW(A390)-3),\"\")","v":""}]
[{"$f":"IF($G$2=INDEX(SCRIPTS!$A$3:$A$1048576,MATCH($G$2,SCRIPTS!$A$3:$A$1048576,0)+ROW(A391)-3),INDEX(SCRIPTS!$B$3:$B$1048576,MATCH($G$2,SCRIPTS!$A$3:$A$1048576,0)+ROW(A391)-3),\"\")","v":""},{"$f":"IF($G$2=INDEX(SCRIPTS!$A$3:$A$1048576,MATCH($G$2,SCRIPTS!$A$3:$A$1048576,0)+ROW(A391)-3),INDEX(SCRIPTS!$C$3:$C$1048576,MATCH($G$2,SCRIPTS!$A$3:$A$1048576,0)+ROW(A391)-3),\"\")","v":""}]
[{"$f":"IF($G$2=INDEX(SCRIPTS!$A$3:$A$1048576,MATCH($G$2,SCRIPTS!$A$3:$A$1048576,0)+ROW(A392)-3),INDEX(SCRIPTS!$B$3:$B$1048576,MATCH($G$2,SCRIPTS!$A$3:$A$1048576,0)+ROW(A392)-3),\"\")","v":""},{"$f":"IF($G$2=INDEX(SCRIPTS!$A$3:$A$1048576,MATCH($G$2,SCRIPTS!$A$3:$A$1048576,0)+ROW(A392)-3),INDEX(SCRIPTS!$C$3:$C$1048576,MATCH($G$2,SCRIPTS!$A$3:$A$1048576,0)+ROW(A392)-3),\"\")","v":""}]
[{"$f":"IF($G$2=INDEX(SCRIPTS!$A$3:$A$1048576,MATCH($G$2,SCRIPTS!$A$3:$A$1048576,0)+ROW(A393)-3),INDEX(SCRIPTS!$B$3:$B$1048576,MATCH($G$2,SCRIPTS!$A$3:$A$1048576,0)+ROW(A393)-3),\"\")","v":""},{"$f":"IF($G$2=INDEX(SCRIPTS!$A$3:$A$1048576,MATCH($G$2,SCRIPTS!$A$3:$A$1048576,0)+ROW(A393)-3),INDEX(SCRIPTS!$C$3:$C$1048576,MATCH($G$2,SCRIPTS!$A$3:$A$1048576,0)+ROW(A393)-3),\"\")","v":""}]
[{"$f":"IF($G$2=INDEX(SCRIPTS!$A$3:$A$1048576,MATCH($G$2,SCRIPTS!$A$3:$A$1048576,0)+ROW(A394)-3),INDEX(SCRIPTS!$B$3:$B$1048576,MATCH($G$2,SCRIPTS!$A$3:$A$1048576,0)+ROW(A394)-3),\"\")","v":""},{"$f":"IF($G$2=INDEX(SCRIPTS!$A$3:$A$1048576,MATCH($G$2,SCRIPTS!$A$3:$A$1048576,0)+ROW(A394)-3),INDEX(SCRIPTS!$C$3:$C$1048576,MATCH($G$2,SCRIPTS!$A$3:$A$1048576,0)+ROW(A394)-3),\"\")","v":""}]
[{"$f":"IF($G$2=INDEX(SCRIPTS!$A$3:$A$1048576,MATCH($G$2,SCRIPTS!$A$3:$A$1048576,0)+ROW(A395)-3),INDEX(SCRIPTS!$B$3:$B$1048576,MATCH($G$2,SCRIPTS!$A$3:$A$1048576,0)+ROW(A395)-3),\"\")","v":""},{"$f":"IF($G$2=INDEX(SCRIPTS!$A$3:$A$1048576,MATCH($G$2,SCRIPTS!$A$3:$A$1048576,0)+ROW(A395)-3),INDEX(SCRIPTS!$C$3:$C$1048576,MATCH($G$2,SCRIPTS!$A$3:$A$1048576,0)+ROW(A395)-3),\"\")","v":""}]
[{"$f":"IF($G$2=INDEX(SCRIPTS!$A$3:$A$1048576,MATCH($G$2,SCRIPTS!$A$3:$A$1048576,0)+ROW(A396)-3),INDEX(SCRIPTS!$B$3:$B$1048576,MATCH($G$2,SCRIPTS!$A$3:$A$1048576,0)+ROW(A396)-3),\"\")","v":""},{"$f":"IF($G$2=INDEX(SCRIPTS!$A$3:$A$1048576,MATCH($G$2,SCRIPTS!$A$3:$A$1048576,0)+ROW(A396)-3),INDEX(SCRIPTS!$C$3:$C$1048576,MATCH($G$2,SCRIPTS!$A$3:$A$1048576,0)+ROW(A396)-3),\"\")","v":""}]
[{"$f":"IF($G$2=INDEX(SCRIPTS!$A$3:$A$1048576,MATCH($G$2,SCRIPTS!$A$3:$A$1048576,0)+ROW(A397)-3),INDEX(SCRIPTS!$B$3:$B$1048576,MATCH($G$2,SCRIPTS!$A$3:$A$1048576,0)+ROW(A397)-3),\"\")","v":""},{"$f":"IF($G$2=INDEX(SCRIPTS!$A$3:$A$1048576,MATCH($G$2,SCRIPTS!$A$3:$A$1048576,0)+ROW(A397)-3),INDEX(SCRIPTS!$C$3:$C$1048576,MATCH($G$2,SCRIPTS!$A$3:$A$1048576,0)+ROW(A397)-3),\"\")","v":""}]
[{"$f":"IF($G$2=INDEX(SCRIPTS!$A$3:$A$1048576,MATCH($G$2,SCRIPTS!$A$3:$A$1048576,0)+ROW(A398)-3),INDEX(SCRIPTS!$B$3:$B$1048576,MATCH($G$2,SCRIPTS!$A$3:$A$1048576,0)+ROW(A398)-3),\"\")","v":""},{"$f":"IF($G$2=INDEX(SCRIPTS!$A$3:$A$1048576,MATCH($G$2,SCRIPTS!$A$3:$A$1048576,0)+ROW(A398)-3),INDEX(SCRIPTS!$C$3:$C$1048576,MATCH($G$2,SCRIPTS!$A$3:$A$1048576,0)+ROW(A398)-3),\"\")","v":""}]
[{"$f":"IF($G$2=INDEX(SCRIPTS!$A$3:$A$1048576,MATCH($G$2,SCRIPTS!$A$3:$A$1048576,0)+ROW(A399)-3),INDEX(SCRIPTS!$B$3:$B$1048576,MATCH($G$2,SCRIPTS!$A$3:$A$1048576,0)+ROW(A399)-3),\"\")","v":""},{"$f":"IF($G$2=INDEX(SCRIPTS!$A$3:$A$1048576,MATCH($G$2,SCRIPTS!$A$3:$A$1048576,0)+ROW(A399)-3),INDEX(SCRIPTS!$C$3:$C$1048576,MATCH($G$2,SCRIPTS!$A$3:$A$1048576,0)+ROW(A399)-3),\"\")","v":""}]
["xx","xx"]